Workbook

Sheet Instructions
A1: Directions for Using the UHSAA SCORING SPREADSHEET
A2: for Region and State Theatre Meets:
A4: If you have any questions, please email Giselle Gremmert at giselle.gremmert@canyonsdistrict.org
A5: If there is an emergency the day of your meet, feel free to call or text at 785-580-7379
A7: DID YOU ENABLE MACROS WHEN YOU DOWNLOADED THIS SPREADSHEET? IF NOT, CLOSE THE FILE, REOPEN IT, AND SELECT "ENABLE MACROS" WHEN IT PROMPTS YOU. YOUR COMPUTER WILL NOT GET A VIRUS. I PROMISE.
A9: · Each school should be assigned a letter code (ie. A, B, DD, etc…). You can type in which school belongs to which code on the Sweepstakes page of the score sheet.
A10: · You can type in student names and piece titles next to their assigned number on each of the event pages.
A11: · If a school does not bring a full slate of pieces, just don’t enter titles or scores for the extra pieces. DO NOT delete that row from the score sheet…it will mess up the formulas.
A12: · As scores come in to the tabulation room, enter their respective rank (1,2,3, or 4) and score (0-75). The spreadsheet should do all of the math for you from there.
A13: · Once you have all of your scores in and you need to determine which pieces will go to the final medals round, click on the medals round tab at the bottom of the spreadsheet. There is one for each event. IF YOU ENABLED MACROS WHEN YOU OPENED THE SHEET, all you have to do is click on the "sort first by rank, then by score" button, and the top 5-8 pieces on the table will be eligible for Medals' Round. Once the scores are entered, you can click on the "Total MR Rank" drop-down arrow (column K) and click on "Sort Smallest to Largest" and the 1st, 2nd and 3rd should go to the top. If there is a tie based on rank alone, score should be used as a tie-breaker.
A14: · The top two sweepstakes scores will automatically be highlighted on the Sweepstakes tab, so that’s how you will know who your 1st and 2nd Place will be.
A15: · Please note the drop-down menus for time violations. If a piece goes over or under time, you can just select the number of rounds that occurred in and the spreadsheet will do all the math for you. It will also strike out any piece that has a time violation in more than 1 round. This means it is ineligible to move on to State or go to Medals Round.
A16: · PLEASE NOTE: If a school has 4 entries in an event, on the State spreadsheet, the lowest score will automatically be dropped. You won’t have to do anything. This feature is not in the Region scoresheet, so make sure you’re using the correct one.
A17: · PLEASE NOTE: There is a separate spreadsheet for 3A-6A schools vs. 1A-2A schools because the total number of points required to qualify for a medal/advance to state is different. If you are using the correct sheet for your classification, each piece's row will automatically be highlighted yellow if they reach the point total needed to receive a medal/advance to State.
A26: Tintic

Sheet Humorous Monologues
A1: Humorous Monologues | K1: Rank 1-4 | X1: S | Y1: E | Z1: G | AA1: F | AC1: 1violation | AD1: 2violations | AE1: 3violations
K2: Round 1: | M2: Round 2: | O2: Round 3: | Q2: -2 for each | AB2: Drops lowest from column q
H3: Student Name | J3: Title of Piece | K3: R1 rank | L3: R1 score | M3: R2 rank | N3: R2 score | O3: R3 rank | P3: R3 score | Q3: Time Violations | S3: TOTAL SCORE | U3: TOTAL RANK | X3: TOTAL SCHOOL SWEEPS POINTS | AB3: Drop Lowest
A4: A-101 | H4: (410) Sarah B. | J4: "Trapped in.." | K4: 2 | L4: 25 | M4: 1 | N4: 23 | O4: 1 | P4: 23 | R4: =IF(Q4="1violation",-7*1,IF(Q4="2violations",-7*2,IF(Q4="3violations",-7*3,IF(Q4="","")))) ->  | S4: =SUM(L4,N4,P4,R4) -> 71 | U4: =SUM(K4,M4,O4) -> 4 | Y4: =SUM(S4,S6,S5,S7,-AB4) -> 199 | AB4: =MIN(S4:S7) -> 50
A5: A-102 | H5: (411) Katrina | J5: "Ate Them!" | K5: 2 | L5: 17 | M5: 4 | N5: 16 | O5: 3 | P5: 17 | R5: =IF(Q5="1violation",-7*1,IF(Q5="2violations",-7*2,IF(Q5="3violations",-7*3,IF(Q5="","")))) ->  | S5: =SUM(L5,N5,P5,R5) -> 50 | U5: =SUM(K5,M5,O5) -> 9
A6: A-103 | H6: (412) Maryam | J6: "Call Me Dumper" | K6: 4 | L6: 21 | M6: 3 | N6: 18 | O6: 3 | P6: 22 | R6: =IF(Q6="1violation",-7*1,IF(Q6="2violations",-7*2,IF(Q6="3violations",-7*3,IF(Q6="","")))) ->  | S6: =SUM(L6,N6,P6,R6) -> 61 | U6: =SUM(K6,M6,O6) -> 10
A7: A-104 | H7: (413) Alex C.F. | J7: "The Monologue Show From Hell" | K7: 4 | L7: 24 | M7: 4 | N7: 20 | O7: 2 | P7: 23 | S7: =SUM(L7,N7,P7,R7) -> 67 | U7: =SUM(K7,M7,O7) -> 10
A9: B-101 | H9: (400) Mikayla Reeder | J9: "Girls Camp" | S9: =SUM(L9,N9,P9,R9) -> 0 | U9: =SUM(K9,M9,O9) -> 0 | Y9: =SUM(S9,S11,S10,S12,-AB9) -> 140 | AB9: =MIN(S9:S12) -> 0
A10: B-102 | H10: (401) Elise Sarols | J10: "Guide Zombies" | K10: 3 | L10: 25 | M10: 1 | N10: 23 | O10: 1 | P10: 24 | S10: =SUM(L10,N10,P10,R10) -> 72 | U10: =SUM(K10,M10,O10) -> 5
A11: B-103 | H11: (402) Ella Hughs | J11: "Rindercella" | K11: 2 | L11: 25 | M11: 2 | N11: 22 | O11: 4 | P11: 21 | S11: =SUM(L11,N11,P11,R11) -> 68 | U11: =SUM(K11,M11,O11) -> 8
A12: B-104 | S12: =SUM(L12,N12,P12,R12) -> 0 | U12: =SUM(K12,M12,O12) -> 0
A14: C-101 | H14: (407) Katie Wilson | J14: "Thre Grabbing Man" | K14: 1 | L14: 20 | M14: 1 | N14: 25 | O14: 1 | P14: 24 | S14: =SUM(L14,N14,P14,R14) -> 69 | U14: =SUM(K14,M14,O14) -> 3 | Y14: =SUM(S14,S16,S15,S17,-AB14) -> 164 | AB14: =MIN(S14:S17) -> 0
A15: C-102 | H15: (408) Kaylee Penrod | J15: "Divorce Papers" | K15: 4 | L15: 23 | M15: 3 | N15: 21 | O15: 4 | P15: 14 | S15: =SUM(L15,N15,P15,R15) -> 58 | U15: =SUM(K15,M15,O15) -> 11
A16: C-103 | H16: (409) Alayna Saunders | J16: "Stupid Cookie" | K16: 3 | L16: 24 | M16: 4 | N16: 18 | O16: 4 | P16: 16 | Q16: 3violations | R16: -21 | S16: =SUM(L16,N16,P16,R16) -> 37 | U16: =SUM(K16,M16,O16) -> 11
A17: C-104 | S17: =SUM(L17,N17,P17,R17) -> 0 | U17: =SUM(K17,M17,O17) -> 0
A19: D-101 | H19: (414) Kamryn Sorensen | J19: "Yar!" | K19: 4 | L19: 21 | M19: 4 | N19: 15 | O19: 3 | P19: 18 | S19: =SUM(L19,N19,P19,R19) -> 54 | U19: =SUM(K19,M19,O19) -> 11 | Y19: =SUM(S19,S21,S20,S22,-AB19) -> 54 | AB19: =MIN(S19:S22) -> 0
A20: D-102 | S20: =SUM(L20,N20,P20,R20) -> 0 | U20: =SUM(K20,M20,O20) -> 0
A21: D-103 | S21: =SUM(L21,N21,P21,R21) -> 0 | U21: =SUM(K21,M21,O21) -> 0
A22: D-104 | S22: =SUM(L22,N22,P22,R22) -> 0 | U22: =SUM(K22,M22,O22) -> 0
A24: E-101 | H24: (403) Josh Larmore | J24: "Street Smarts" | K24: 1 | L24: 25 | M24: 2 | N24: 19 | O24: 2 | P24: 21 | S24: =SUM(L24,N24,P24,R24) -> 65 | U24: =SUM(K24,M24,O24) -> 5 | Y24: =SUM(S24,S26,S25,S27,-AB24) -> 179 | AB24: =MIN(S24:S27) -> 0
A25: E-102 | H25: (404) Alex Osterhout | J25: "Press Secretary" | K25: 1 | L25: 25 | M25: 3 | N25: 20 | O25: 2 | P25: 20 | S25: =SUM(L25,N25,P25,R25) -> 65 | U25: =SUM(K25,M25,O25) -> 6
A26: E-103 | H26: (405) Steven Whtie | J26: "Street Smarts" | S26: =SUM(L26,N26,P26,R26) -> 0 | U26: =SUM(K26,M26,O26) -> 0
A27: E-104 | H27: (406) Ruger Reeves | J27: "New Bull" | K27: 3 | L27: 15 | M27: 2 | N27: 21 | O27: 4 | P27: 13 | S27: =SUM(L27,N27,P27,R27) -> 49 | U27: =SUM(K27,M27,O27) -> 9
A29: F-101 | H29: (415) Alyssa Allred | J29: "Spirit of Christmas" | K29: 4 | L29: 21 | M29: 4 | N29: 19 | O29: 4 | P29: 16 | S29: =SUM(L29,N29,P29,R29) -> 56 | U29: =SUM(K29,M29,O29) -> 12 | Y29: =SUM(S29,S31,S30,S32,-AB29) -> 56 | AB29: =MIN(S29:S32) -> 0
A30: F-102 | S30: =SUM(L30,N30,P30,R30) -> 0 | U30: =SUM(K30,M30,O30) -> 0
A31: F-103 | S31: =SUM(L31,N31,P31,R31) -> 0 | U31: =SUM(K31,M31,O31) -> 0
A32: F-104 | S32: =SUM(L32,N32,P32,R32) -> 0 | U32: =SUM(K32,M32,O32) -> 0
AG33: \
A34: G-101 | S34: =SUM(L34,N34,P34,R34) -> 0 | U34: =SUM(K34,M34,O34) -> 0 | Y34: =SUM(S34,S36,S35,S37,-AB34) -> 0 | AB34: =MIN(S34:S37) -> 0 | AG34: 210
A35: G-102 | S35: =SUM(L35,N35,P35,R35) -> 0 | U35: =SUM(K35,M35,O35) -> 0
A36: G-103 | S36: =SUM(L36,N36,P36,R36) -> 0 | U36: =SUM(K36,M36,O36) -> 0
A37: G-104 | S37: =SUM(L37,N37,P37,R37) -> 0 | U37: =SUM(K37,M37,O37) -> 0
A39: H-101 | S39: =SUM(L39,N39,P39,R39) -> 0 | U39: =SUM(K39,M39,O39) -> 0 | Y39: =SUM(S39,S41,S40,S42,-AB39) -> 0 | AB39: =MIN(S39:S42) -> 0
A40: H-102 | S40: =SUM(L40,N40,P40,R40) -> 0 | U40: =SUM(K40,M40,O40) -> 0
A41: H-103 | S41: =SUM(L41,N41,P41,R41) -> 0 | U41: =SUM(K41,M41,O41) -> 0
A42: H-104 | S42: =SUM(L42,N42,P42,R42) -> 0 | U42: =SUM(K42,M42,O42) -> 0
A44: J-101 | S44: =SUM(L44,N44,P44,R44) -> 0 | U44: =SUM(K44,M44,O44) -> 0 | Y44: =SUM(S44,S46,S45,S47,-AB44) -> 0 | AB44: =MIN(S44:S47) -> 0
A45: J-102 | S45: =SUM(L45,N45,P45,R45) -> 0 | U45: =SUM(K45,M45,O45) -> 0
A46: J-103 | S46: =SUM(L46,N46,P46,R46) -> 0 | U46: =SUM(K46,M46,O46) -> 0
A47: J-104 | S47: =SUM(L47,N47,P47,R47) -> 0 | U47: =SUM(K47,M47,O47) -> 0
A49: K-101 | S49: =SUM(L49,N49,P49,R49) -> 0 | U49: =SUM(K49,M49,O49) -> 0 | Y49: =SUM(S49,S51,S50,S52,-AB49) -> 0 | AB49: =MIN(S49:S52) -> 0
A50: K-102 | S50: =SUM(L50,N50,P50,R50) -> 0 | U50: =SUM(K50,M50,O50) -> 0
A51: K-103 | S51: =SUM(L51,N51,P51,R51) -> 0 | U51: =SUM(K51,M51,O51) -> 0
A52: K-104 | S52: =SUM(L52,N52,P52,R52) -> 0 | U52: =SUM(K52,M52,O52) -> 0
A54: L-101 | S54: =SUM(L54,N54,P54,R54) -> 0 | U54: =SUM(K54,M54,O54) -> 0 | Y54: =SUM(S54,S56,S55,S57,-AB54) -> 0 | AB54: =MIN(S54:S57) -> 0
A55: L-102 | S55: =SUM(L55,N55,P55,R55) -> 0 | U55: =SUM(K55,M55,O55) -> 0
A56: L-103 | S56: =SUM(L56,N56,P56,R56) -> 0 | U56: =SUM(K56,M56,O56) -> 0
A57: L-104 | S57: =SUM(L57,N57,P57,R57) -> 0 | U57: =SUM(K57,M57,O57) -> 0
A59: M-101 | S59: =SUM(L59,N59,P59,R59) -> 0 | U59: =SUM(K59,M59,O59) -> 0 | Y59: =SUM(S59,S61,S60,S62,-AB59) -> 0 | AB59: =MIN(S59:S62) -> 0
A60: M-102 | S60: =SUM(L60,N60,P60,R60) -> 0 | U60: =SUM(K60,M60,O60) -> 0
A61: M-103 | S61: =SUM(L61,N61,P61,R61) -> 0 | U61: =SUM(K61,M61,O61) -> 0
A62: M-104 | S62: =SUM(L62,N62,P62,R62) -> 0 | U62: =SUM(K62,M62,O62) -> 0
A64: N-101 | S64: =SUM(L64,N64,P64,R64) -> 0 | U64: =SUM(K64,M64,O64) -> 0 | Y64: =SUM(S64,S66,S65,S67,-AB64) -> 0 | AB64: =MIN(S64:S67) -> 0
A65: N-102 | S65: =SUM(L65,N65,P65,R65) -> 0 | U65: =SUM(K65,M65,O65) -> 0
A66: N-103 | S66: =SUM(L66,N66,P66,R66) -> 0 | U66: =SUM(K66,M66,O66) -> 0
A67: N-104 | S67: =SUM(L67,N67,P67,R67) -> 0 | U67: =SUM(K67,M67,O67) -> 0
A69: P-101 | R69: =IF(Q69="1violation",-7*1,IF(Q69="2violations",-7*2,IF(Q69="3violations",-7*3,IF(Q69="","")))) ->  | S69: =SUM(L69,N69,P69,R69) -> 0 | U69: =SUM(K69,M69,O69) -> 0 | Y69: =SUM(S69,S71,S70,S72,-AB69) -> 0 | AB69: =MIN(S69:S72) -> 0
A70: P-102 | S70: =SUM(L70,N70,P70,R70) -> 0 | U70: =SUM(K70,M70,O70) -> 0
A71: P-103 | S71: =SUM(L71,N71,P71,R71) -> 0 | U71: =SUM(K71,M71,O71) -> 0
A72: P-104 | S72: =SUM(L72,N72,P72,R72) -> 0 | U72: =SUM(K72,M72,O72) -> 0
A74: Q-101 | S74: =SUM(L74,N74,P74,R74) -> 0 | U74: =SUM(K74,M74,O74) -> 0 | Y74: =SUM(S74,S76,S75,S77,-AB74) -> 0 | AB74: =MIN(S74:S77) -> 0
A75: Q-102 | S75: =SUM(L75,N75,P75,R75) -> 0 | U75: =SUM(K75,M75,O75) -> 0
A76: Q-103 | S76: =SUM(L76,N76,P76,R76) -> 0 | U76: =SUM(K76,M76,O76) -> 0
A77: Q-104 | S77: =SUM(L77,N77,P77,R77) -> 0 | U77: =SUM(K77,M77,O77) -> 0
A79: R-101 | S79: =SUM(L79,N79,P79,R79) -> 0 | U79: =SUM(K79,M79,O79) -> 0 | Y79: =SUM(S79,S81,S80,S82,-AB79) -> 0 | AB79: =MIN(S79:S82) -> 0
A80: R-102 | S80: =SUM(L80,N80,P80,R80) -> 0 | U80: =SUM(K80,M80,O80) -> 0
A81: R-103 | S81: =SUM(L81,N81,P81,R81) -> 0 | U81: =SUM(K81,M81,O81) -> 0
A82: R-104 | S82: =SUM(L82,N82,P82,R82) -> 0 | U82: =SUM(K82,M82,O82) -> 0
A84: S-101 | S84: =SUM(L84,N84,P84,R84) -> 0 | U84: =SUM(K84,M84,O84) -> 0 | Y84: =SUM(S84,S86,S85,S87,-AB84) -> 0 | AB84: =MIN(S84:S87) -> 0
A85: S-102 | S85: =SUM(L85,N85,P85,R85) -> 0 | U85: =SUM(K85,M85,O85) -> 0
A86: S-103 | S86: =SUM(L86,N86,P86,R86) -> 0 | U86: =SUM(K86,M86,O86) -> 0
A87: S-104 | S87: =SUM(L87,N87,P87,R87) -> 0 | U87: =SUM(K87,M87,O87) -> 0
A89: T-101 | S89: =SUM(L89,N89,P89,R89) -> 0 | U89: =SUM(K89,M89,O89) -> 0 | Y89: =SUM(S89,S91,S90,S92,-AB89) -> 0 | AB89: =MIN(S89:S92) -> 0
A90: T-102 | S90: =SUM(L90,N90,P90,R90) -> 0 | U90: =SUM(K90,M90,O90) -> 0
A91: T-103 | S91: =SUM(L91,N91,P91,R91) -> 0 | U91: =SUM(K91,M91,O91) -> 0
A92: T-104 | S92: =SUM(L92,N92,P92,R92) -> 0 | U92: =SUM(K92,M92,O92) -> 0
A94: U-101 | S94: =SUM(L94,N94,P94,R94) -> 0 | U94: =SUM(K94,M94,O94) -> 0 | Y94: =SUM(S94,S96,S95,S97,-AB94) -> 0 | AB94: =MIN(S94:S97) -> 0
A95: U-102 | S95: =SUM(L95,N95,P95,R95) -> 0 | U95: =SUM(K95,M95,O95) -> 0
A96: U-103 | S96: =SUM(L96,N96,P96,R96) -> 0 | U96: =SUM(K96,M96,O96) -> 0
A97: U-104 | S97: =SUM(L97,N97,P97,R97) -> 0 | U97: =SUM(K97,M97,O97) -> 0
A99: V-101 | S99: =SUM(L99,N99,P99,R99) -> 0 | U99: =SUM(K99,M99,O99) -> 0 | Y99: =SUM(S99,S101,S100,S102,-AB99) -> 0 | AB99: =MIN(S99:S102) -> 0
A100: V-102 | S100: =SUM(L100,N100,P100,R100) -> 0 | U100: =SUM(K100,M100,O100) -> 0
A101: V-103 | S101: =SUM(L101,N101,P101,R101) -> 0 | U101: =SUM(K101,M101,O101) -> 0
A102: V-104 | S102: =SUM(L102,N102,P102,R102) -> 0 | U102: =SUM(K102,M102,O102) -> 0
A104: W-101 | S104: =SUM(L104,N104,P104,R104) -> 0 | U104: =SUM(K104,M104,O104) -> 0 | Y104: =SUM(S104,S106,S105,S107,-AB104) -> 0 | AB104: =MIN(S104:S107) -> 0
A105: W-102 | S105: =SUM(L105,N105,P105,R105) -> 0 | U105: =SUM(K105,M105,O105) -> 0
A106: W-103 | S106: =SUM(L106,N106,P106,R106) -> 0 | U106: =SUM(K106,M106,O106) -> 0
A107: W-104 | S107: =SUM(L107,N107,P107,R107) -> 0 | U107: =SUM(K107,M107,O107) -> 0
A109: X-101 | S109: =SUM(L109,N109,P109,R109) -> 0 | U109: =SUM(K109,M109,O109) -> 0 | Y109: =SUM(S109,S111,S110,S112,-AB109) -> 0 | AB109: =MIN(S109:S112) -> 0
A110: X-102 | S110: =SUM(L110,N110,P110,R110) -> 0 | U110: =SUM(K110,M110,O110) -> 0
A111: X-103 | S111: =SUM(L111,N111,P111,R111) -> 0 | U111: =SUM(K111,M111,O111) -> 0
A112: X-104 | S112: =SUM(L112,N112,P112,R112) -> 0 | U112: =SUM(K112,M112,O112) -> 0
A114: Y-101 | S114: =SUM(L114,N114,P114,R114) -> 0 | U114: =SUM(K114,M114,O114) -> 0 | Y114: =SUM(S114,S116,S115,S117,-AB114) -> 0 | AB114: =MIN(S114:S117) -> 0
A115: Y-102 | S115: =SUM(L115,N115,P115,R115) -> 0 | U115: =SUM(K115,M115,O115) -> 0
A116: Y-103 | S116: =SUM(L116,N116,P116,R116) -> 0 | U116: =SUM(K116,M116,O116) -> 0
A117: Y-104 | S117: =SUM(L117,N117,P117,R117) -> 0 | U117: =SUM(K117,M117,O117) -> 0
A119: Z-101 | S119: =SUM(L119,N119,P119,R119) -> 0 | U119: =SUM(K119,M119,O119) -> 0 | Y119: =SUM(S119,S121,S120,S122,-AB119) -> 0 | AB119: =MIN(S119:S122) -> 0
A120: Z-102 | S120: =SUM(L120,N120,P120,R120) -> 0 | U120: =SUM(K120,M120,O120) -> 0
A121: Z-103 | S121: =SUM(L121,N121,P121,R121) -> 0 | U121: =SUM(K121,M121,O121) -> 0
A122: Z-104 | S122: =SUM(L122,N122,P122,R122) -> 0 | U122: =SUM(K122,M122,O122) -> 0
A124: AA-101 | S124: =SUM(L124,N124,P124,R124) -> 0 | U124: =SUM(K124,M124,O124) -> 0 | Y124: =SUM(S124,S126,S125,S127,-AB124) -> 0 | AB124: =MIN(S124:S127) -> 0
A125: AA-102 | S125: =SUM(L125,N125,P125,R125) -> 0 | U125: =SUM(K125,M125,O125) -> 0
A126: AA-103 | S126: =SUM(L126,N126,P126,R126) -> 0 | U126: =SUM(K126,M126,O126) -> 0
A127: AA-104 | S127: =SUM(L127,N127,P127,R127) -> 0 | U127: =SUM(K127,M127,O127) -> 0
A129: BB-101 | S129: =SUM(L129,N129,P129,R129) -> 0 | U129: =SUM(K129,M129,O129) -> 0 | Y129: =SUM(S129,S131,S130,S132,-AB129) -> 0 | AB129: =MIN(S129:S132) -> 0
A130: BB-102 | S130: =SUM(L130,N130,P130,R130) -> 0 | U130: =SUM(K130,M130,O130) -> 0
A131: BB-103 | S131: =SUM(L131,N131,P131,R131) -> 0 | U131: =SUM(K131,M131,O131) -> 0
A132: BB-104 | S132: =SUM(L132,N132,P132,R132) -> 0 | U132: =SUM(K132,M132,O132) -> 0
A134: CC-101 | R134: =IF(Q134="1violation",-7*1,IF(Q134="2violations",-7*2,IF(Q134="3violations",-7*3,IF(Q134="","")))) ->  | S134: =SUM(L134,N134,P134,R134) -> 0 | U134: =SUM(K134,M134,O134) -> 0 | Y134: =SUM(S134,S136,S135,S137,-AB134) -> 0 | AB134: =MIN(S134:S137) -> 0
A135: CC-102 | S135: =SUM(L135,N135,P135,R135) -> 0 | U135: =SUM(K135,M135,O135) -> 0
A136: CC-103 | S136: =SUM(L136,N136,P136,R136) -> 0 | U136: =SUM(K136,M136,O136) -> 0
A137: CC-104 | S137: =SUM(L137,N137,P137,R137) -> 0 | U137: =SUM(K137,M137,O137) -> 0
A139: DD-101 | S139: =SUM(L139,N139,P139,R139) -> 0 | U139: =SUM(K139,M139,O139) -> 0 | Y139: =SUM(S139,S141,S140,S142,-AB139) -> 0 | AB139: =MIN(S139:S142) -> 0
A140: DD-102 | S140: =SUM(L140,N140,P140,R140) -> 0 | U140: =SUM(K140,M140,O140) -> 0
A141: DD-103 | S141: =SUM(L141,N141,P141,R141) -> 0 | U141: =SUM(K141,M141,O141) -> 0
A142: DD-104 | S142: =SUM(L142,N142,P142,R142) -> 0 | U142: =SUM(K142,M142,O142) -> 0
A144: EE-101 | S144: =SUM(L144,N144,P144,R144) -> 0 | U144: =SUM(K144,M144,O144) -> 0 | Y144: =SUM(S144,S146,S145,S147,-AB144) -> 0 | AB144: =MIN(S144:S147) -> 0
A145: EE-102 | S145: =SUM(L145,N145,P145,R145) -> 0 | U145: =SUM(K145,M145,O145) -> 0
A146: EE-103 | S146: =SUM(L146,N146,P146,R146) -> 0 | U146: =SUM(K146,M146,O146) -> 0
A147: EE-104 | S147: =SUM(L147,N147,P147,R147) -> 0 | U147: =SUM(K147,M147,O147) -> 0
A149: FF-101 | S149: =SUM(L149,N149,P149,R149) -> 0 | U149: =SUM(K149,M149,O149) -> 0 | Y149: =SUM(S149,S151,S150,S152,-AB149) -> 0 | AB149: =MIN(S149:S152) -> 0
A150: FF-102 | S150: =SUM(L150,N150,P150,R150) -> 0 | U150: =SUM(K150,M150,O150) -> 0
A151: FF-103 | S151: =SUM(L151,N151,P151,R151) -> 0 | U151: =SUM(K151,M151,O151) -> 0
A152: FF-104 | S152: =SUM(L152,N152,P152,R152) -> 0 | U152: =SUM(K152,M152,O152) -> 0

Sheet HumorousMR
A1: Humorous | F1: Finals Medals Round Scores
A2: ID | B2: Column1 | C2: Rank | D2: Score | E2: LeaveBlank | F2: MR 1 Rank | G2: MR 1 Score | H2: MR2 Rank | I2: MR 2 Score | J2: MR3 Rank | K2: MR 3 Score | L2: Total MR Rank | M2: Total MR Score | N2: Column2
A3: ='Humorous Monologues'!A14 -> C-101 | B3: =VLOOKUP(Table7[[#This Row],[ID]],'Humorous Monologues'!A:H,8,FALSE) -> (407) Katie Wilson | C3: ='Humorous Monologues'!U14 -> 3 | D3: ='Humorous Monologues'!S14 -> 69 | E3: =IF((Table7[[#This Row],[Rank]]+Table7[[#This Row],[Score]])>0,1,0) -> 1 | F3: 1 | G3: 25 | H3: 1 | I3: 24 | J3: 2 | K3: 25 | L3: =SUM(F3,H3,J3) -> 4 | M3: =SUM(G3,I3,K3) -> 74 | N3: 1st
A4: ='Humorous Monologues'!A4 -> A-101 | B4: =VLOOKUP(Table7[[#This Row],[ID]],'Humorous Monologues'!A:H,8,FALSE) -> (410) Sarah B. | C4: ='Humorous Monologues'!U4 -> 4 | D4: ='Humorous Monologues'!S4 -> 71 | E4: =IF((Table7[[#This Row],[Rank]]+Table7[[#This Row],[Score]])>0,1,0) -> 1 | F4: 3 | G4: 24 | H4: 2 | I4: 24 | J4: 3 | K4: 25 | L4: 8 | M4: 73 | N4: 2nd
A5: ='Humorous Monologues'!A10 -> B-102 | B5: =VLOOKUP(Table7[[#This Row],[ID]],'Humorous Monologues'!A:H,8,FALSE) -> (401) Elise Sarols | C5: ='Humorous Monologues'!U10 -> 5 | D5: ='Humorous Monologues'!S10 -> 72 | E5: =IF((Table7[[#This Row],[Rank]]+Table7[[#This Row],[Score]])>0,1,0) -> 1 | F5: 3 | G5: 23 | H5: 4 | I5: 24 | J5: 1 | K5: 25 | L5: 8 | M5: 72 | N5: 3rd
A6: ='Humorous Monologues'!A24 -> E-101 | B6: =VLOOKUP(Table7[[#This Row],[ID]],'Humorous Monologues'!A:H,8,FALSE) -> (403) Josh Larmore | C6: ='Humorous Monologues'!U24 -> 5 | D6: ='Humorous Monologues'!S24 -> 65 | E6: =IF((Table7[[#This Row],[Rank]]+Table7[[#This Row],[Score]])>0,1,0) -> 1 | F6: 5 | G6: 19 | H6: 5 | I6: 22 | J6: 4 | K6: 24 | L6: 14 | M6: 65
A7: ='Humorous Monologues'!A25 -> E-102 | B7: =VLOOKUP(Table7[[#This Row],[ID]],'Humorous Monologues'!A:H,8,FALSE) -> (404) Alex Osterhout | C7: ='Humorous Monologues'!U25 -> 6 | D7: ='Humorous Monologues'!S25 -> 65 | E7: =IF((Table7[[#This Row],[Rank]]+Table7[[#This Row],[Score]])>0,1,0) -> 1 | F7: 2 | G7: 24 | H7: 4 | I7: 22 | J7: 5 | K7: 23 | L7: 11 | M7: 69
A8: ='Humorous Monologues'!A11 -> B-103 | B8: =VLOOKUP(Table7[[#This Row],[ID]],'Humorous Monologues'!A:H,8,FALSE) -> (402) Ella Hughs | C8: ='Humorous Monologues'!U11 -> 8 | D8: ='Humorous Monologues'!S11 -> 68 | E8: =IF((Table7[[#This Row],[Rank]]+Table7[[#This Row],[Score]])>0,1,0) -> 1 | L8: 0 | M8: 0
A9: ='Humorous Monologues'!A5 -> A-102 | B9: =VLOOKUP(Table7[[#This Row],[ID]],'Humorous Monologues'!A:H,8,FALSE) -> (411) Katrina | C9: ='Humorous Monologues'!U5 -> 9 | D9: ='Humorous Monologues'!S5 -> 50 | E9: =IF((Table7[[#This Row],[Rank]]+Table7[[#This Row],[Score]])>0,1,0) -> 1 | L9: 0 | M9: 0
A10: ='Humorous Monologues'!A27 -> E-104 | B10: =VLOOKUP(Table7[[#This Row],[ID]],'Humorous Monologues'!A:H,8,FALSE) -> (406) Ruger Reeves | C10: ='Humorous Monologues'!U27 -> 9 | D10: ='Humorous Monologues'!S27 -> 49 | E10: =IF((Table7[[#This Row],[Rank]]+Table7[[#This Row],[Score]])>0,1,0) -> 1 | L10: 0 | M10: 0
A11: ='Humorous Monologues'!A7 -> A-104 | B11: =VLOOKUP(Table7[[#This Row],[ID]],'Humorous Monologues'!A:H,8,FALSE) -> (413) Alex C.F. | C11: ='Humorous Monologues'!U7 -> 10 | D11: ='Humorous Monologues'!S7 -> 67 | E11: =IF((Table7[[#This Row],[Rank]]+Table7[[#This Row],[Score]])>0,1,0) -> 1 | L11: 0 | M11: 0
A12: ='Humorous Monologues'!A6 -> A-103 | B12: =VLOOKUP(Table7[[#This Row],[ID]],'Humorous Monologues'!A:H,8,FALSE) -> (412) Maryam | C12: ='Humorous Monologues'!U6 -> 10 | D12: ='Humorous Monologues'!S6 -> 61 | E12: =IF((Table7[[#This Row],[Rank]]+Table7[[#This Row],[Score]])>0,1,0) -> 1 | L12: 0 | M12: 0
A13: ='Humorous Monologues'!A15 -> C-102 | B13: =VLOOKUP(Table7[[#This Row],[ID]],'Humorous Monologues'!A:H,8,FALSE) -> (408) Kaylee Penrod | C13: ='Humorous Monologues'!U15 -> 11 | D13: ='Humorous Monologues'!S15 -> 58 | E13: =IF((Table7[[#This Row],[Rank]]+Table7[[#This Row],[Score]])>0,1,0) -> 1 | L13: 0 | M13: 0
A14: ='Humorous Monologues'!A19 -> D-101 | B14: =VLOOKUP(Table7[[#This Row],[ID]],'Humorous Monologues'!A:H,8,FALSE) -> (414) Kamryn Sorensen | C14: ='Humorous Monologues'!U19 -> 11 | D14: ='Humorous Monologues'!S19 -> 54 | E14: =IF((Table7[[#This Row],[Rank]]+Table7[[#This Row],[Score]])>0,1,0) -> 1 | L14: 0 | M14: 0
A15: ='Humorous Monologues'!A16 -> C-103 | B15: =VLOOKUP(Table7[[#This Row],[ID]],'Humorous Monologues'!A:H,8,FALSE) -> (409) Alayna Saunders | C15: ='Humorous Monologues'!U16 -> 11 | D15: ='Humorous Monologues'!S16 -> 37 | E15: =IF((Table7[[#This Row],[Rank]]+Table7[[#This Row],[Score]])>0,1,0) -> 1 | L15: 0 | M15: 0
A16: ='Humorous Monologues'!A29 -> F-101 | B16: =VLOOKUP(Table7[[#This Row],[ID]],'Humorous Monologues'!A:H,8,FALSE) -> (415) Alyssa Allred | C16: ='Humorous Monologues'!U29 -> 12 | D16: ='Humorous Monologues'!S29 -> 56 | E16: =IF((Table7[[#This Row],[Rank]]+Table7[[#This Row],[Score]])>0,1,0) -> 1 | L16: 0 | M16: 0
A17: ='Humorous Monologues'!A26 -> E-103 | B17: =VLOOKUP(Table7[[#This Row],[ID]],'Humorous Monologues'!A:H,8,FALSE) -> (405) Steven Whtie | C17: ='Humorous Monologues'!U26 -> 0 | D17: ='Humorous Monologues'!S26 -> 0 | E17: =IF((Table7[[#This Row],[Rank]]+Table7[[#This Row],[Score]])>0,1,0) -> 0 | L17: 0 | M17: 0
A18: ='Humorous Monologues'!A9 -> B-101 | B18: =VLOOKUP(Table7[[#This Row],[ID]],'Humorous Monologues'!A:H,8,FALSE) -> (400) Mikayla Reeder | C18: ='Humorous Monologues'!U9 -> 0 | D18: ='Humorous Monologues'!S9 -> 0 | E18: =IF((Table7[[#This Row],[Rank]]+Table7[[#This Row],[Score]])>0,1,0) -> 0 | L18: 0 | M18: 0
A19: ='Humorous Monologues'!A12 -> B-104 | B19: =VLOOKUP(Table7[[#This Row],[ID]],'Humorous Monologues'!A:H,8,FALSE) -> 0 | C19: ='Humorous Monologues'!U12 -> 0 | D19: ='Humorous Monologues'!S12 -> 0 | E19: =IF((Table7[[#This Row],[Rank]]+Table7[[#This Row],[Score]])>0,1,0) -> 0 | L19: 0 | M19: 0
A20: ='Humorous Monologues'!A124 -> AA-101 | B20: =VLOOKUP(Table7[[#This Row],[ID]],'Humorous Monologues'!A:H,8,FALSE) -> 0 | C20: ='Humorous Monologues'!U124 -> 0 | D20: ='Humorous Monologues'!S124 -> 0 | E20: =IF((Table7[[#This Row],[Rank]]+Table7[[#This Row],[Score]])>0,1,0) -> 0 | L20: 0 | M20: 0
A21: ='Humorous Monologues'!A125 -> AA-102 | B21: =VLOOKUP(Table7[[#This Row],[ID]],'Humorous Monologues'!A:H,8,FALSE) -> 0 | C21: ='Humorous Monologues'!U125 -> 0 | D21: ='Humorous Monologues'!S125 -> 0 | E21: =IF((Table7[[#This Row],[Rank]]+Table7[[#This Row],[Score]])>0,1,0) -> 0 | L21: 0 | M21: 0
A22: ='Humorous Monologues'!A126 -> AA-103 | B22: =VLOOKUP(Table7[[#This Row],[ID]],'Humorous Monologues'!A:H,8,FALSE) -> 0 | C22: ='Humorous Monologues'!U126 -> 0 | D22: ='Humorous Monologues'!S126 -> 0 | E22: =IF((Table7[[#This Row],[Rank]]+Table7[[#This Row],[Score]])>0,1,0) -> 0 | L22: 0 | M22: 0
A23: ='Humorous Monologues'!A127 -> AA-104 | B23: =VLOOKUP(Table7[[#This Row],[ID]],'Humorous Monologues'!A:H,8,FALSE) -> 0 | C23: ='Humorous Monologues'!U127 -> 0 | D23: ='Humorous Monologues'!S127 -> 0 | E23: =IF((Table7[[#This Row],[Rank]]+Table7[[#This Row],[Score]])>0,1,0) -> 0 | L23: 0 | M23: 0
A24: ='Humorous Monologues'!A129 -> BB-101 | B24: =VLOOKUP(Table7[[#This Row],[ID]],'Humorous Monologues'!A:H,8,FALSE) -> 0 | C24: ='Humorous Monologues'!U129 -> 0 | D24: ='Humorous Monologues'!S129 -> 0 | E24: =IF((Table7[[#This Row],[Rank]]+Table7[[#This Row],[Score]])>0,1,0) -> 0 | L24: 0 | M24: 0
A25: ='Humorous Monologues'!A130 -> BB-102 | B25: =VLOOKUP(Table7[[#This Row],[ID]],'Humorous Monologues'!A:H,8,FALSE) -> 0 | C25: ='Humorous Monologues'!U130 -> 0 | D25: ='Humorous Monologues'!S130 -> 0 | E25: =IF((Table7[[#This Row],[Rank]]+Table7[[#This Row],[Score]])>0,1,0) -> 0 | L25: 0 | M25: 0
A26: ='Humorous Monologues'!A131 -> BB-103 | B26: =VLOOKUP(Table7[[#This Row],[ID]],'Humorous Monologues'!A:H,8,FALSE) -> 0 | C26: ='Humorous Monologues'!U131 -> 0 | D26: ='Humorous Monologues'!S131 -> 0 | E26: =IF((Table7[[#This Row],[Rank]]+Table7[[#This Row],[Score]])>0,1,0) -> 0 | L26: 0 | M26: 0
A27: ='Humorous Monologues'!A132 -> BB-104 | B27: =VLOOKUP(Table7[[#This Row],[ID]],'Humorous Monologues'!A:H,8,FALSE) -> 0 | C27: ='Humorous Monologues'!U132 -> 0 | D27: ='Humorous Monologues'!S132 -> 0 | E27: =IF((Table7[[#This Row],[Rank]]+Table7[[#This Row],[Score]])>0,1,0) -> 0 | L27: 0 | M27: 0
A28: ='Humorous Monologues'!A17 -> C-104 | B28: =VLOOKUP(Table7[[#This Row],[ID]],'Humorous Monologues'!A:H,8,FALSE) -> 0 | C28: ='Humorous Monologues'!U17 -> 0 | D28: ='Humorous Monologues'!S17 -> 0 | E28: =IF((Table7[[#This Row],[Rank]]+Table7[[#This Row],[Score]])>0,1,0) -> 0 | L28: 0 | M28: 0
A29: ='Humorous Monologues'!A134 -> CC-101 | B29: =VLOOKUP(Table7[[#This Row],[ID]],'Humorous Monologues'!A:H,8,FALSE) -> 0 | C29: ='Humorous Monologues'!U134 -> 0 | D29: ='Humorous Monologues'!S134 -> 0 | E29: =IF((Table7[[#This Row],[Rank]]+Table7[[#This Row],[Score]])>0,1,0) -> 0 | L29: 0 | M29: 0
A30: ='Humorous Monologues'!A135 -> CC-102 | B30: =VLOOKUP(Table7[[#This Row],[ID]],'Humorous Monologues'!A:H,8,FALSE) -> 0 | C30: ='Humorous Monologues'!U135 -> 0 | D30: ='Humorous Monologues'!S135 -> 0 | E30: =IF((Table7[[#This Row],[Rank]]+Table7[[#This Row],[Score]])>0,1,0) -> 0 | L30: 0 | M30: 0
A31: ='Humorous Monologues'!A136 -> CC-103 | B31: =VLOOKUP(Table7[[#This Row],[ID]],'Humorous Monologues'!A:H,8,FALSE) -> 0 | C31: ='Humorous Monologues'!U136 -> 0 | D31: ='Humorous Monologues'!S136 -> 0 | E31: =IF((Table7[[#This Row],[Rank]]+Table7[[#This Row],[Score]])>0,1,0) -> 0 | L31: 0 | M31: 0
A32: ='Humorous Monologues'!A137 -> CC-104 | B32: =VLOOKUP(Table7[[#This Row],[ID]],'Humorous Monologues'!A:H,8,FALSE) -> 0 | C32: ='Humorous Monologues'!U137 -> 0 | D32: ='Humorous Monologues'!S137 -> 0 | E32: =IF((Table7[[#This Row],[Rank]]+Table7[[#This Row],[Score]])>0,1,0) -> 0 | L32: 0 | M32: 0
A33: ='Humorous Monologues'!A20 -> D-102 | B33: =VLOOKUP(Table7[[#This Row],[ID]],'Humorous Monologues'!A:H,8,FALSE) -> 0 | C33: ='Humorous Monologues'!U20 -> 0 | D33: ='Humorous Monologues'!S20 -> 0 | E33: =IF((Table7[[#This Row],[Rank]]+Table7[[#This Row],[Score]])>0,1,0) -> 0 | L33: 0 | M33: 0
A34: ='Humorous Monologues'!A21 -> D-103 | B34: =VLOOKUP(Table7[[#This Row],[ID]],'Humorous Monologues'!A:H,8,FALSE) -> 0 | C34: ='Humorous Monologues'!U21 -> 0 | D34: ='Humorous Monologues'!S21 -> 0 | E34: =IF((Table7[[#This Row],[Rank]]+Table7[[#This Row],[Score]])>0,1,0) -> 0 | L34: 0 | M34: 0
A35: ='Humorous Monologues'!A22 -> D-104 | B35: =VLOOKUP(Table7[[#This Row],[ID]],'Humorous Monologues'!A:H,8,FALSE) -> 0 | C35: ='Humorous Monologues'!U22 -> 0 | D35: ='Humorous Monologues'!S22 -> 0 | E35: =IF((Table7[[#This Row],[Rank]]+Table7[[#This Row],[Score]])>0,1,0) -> 0 | L35: =SUM(F35,H35,J35) -> 0 | M35: =SUM(G35,I35,K35) -> 0
A36: ='Humorous Monologues'!A139 -> DD-101 | B36: =VLOOKUP(Table7[[#This Row],[ID]],'Humorous Monologues'!A:H,8,FALSE) -> 0 | C36: ='Humorous Monologues'!U139 -> 0 | D36: ='Humorous Monologues'!S139 -> 0 | E36: =IF((Table7[[#This Row],[Rank]]+Table7[[#This Row],[Score]])>0,1,0) -> 0 | L36: 0 | M36: 0
A37: ='Humorous Monologues'!A140 -> DD-102 | B37: =VLOOKUP(Table7[[#This Row],[ID]],'Humorous Monologues'!A:H,8,FALSE) -> 0 | C37: ='Humorous Monologues'!U140 -> 0 | D37: ='Humorous Monologues'!S140 -> 0 | E37: =IF((Table7[[#This Row],[Rank]]+Table7[[#This Row],[Score]])>0,1,0) -> 0 | L37: 0 | M37: 0
A38: ='Humorous Monologues'!A141 -> DD-103 | B38: =VLOOKUP(Table7[[#This Row],[ID]],'Humorous Monologues'!A:H,8,FALSE) -> 0 | C38: ='Humorous Monologues'!U141 -> 0 | D38: ='Humorous Monologues'!S141 -> 0 | E38: =IF((Table7[[#This Row],[Rank]]+Table7[[#This Row],[Score]])>0,1,0) -> 0 | L38: 0 | M38: 0
A39: ='Humorous Monologues'!A142 -> DD-104 | B39: =VLOOKUP(Table7[[#This Row],[ID]],'Humorous Monologues'!A:H,8,FALSE) -> 0 | C39: ='Humorous Monologues'!U142 -> 0 | D39: ='Humorous Monologues'!S142 -> 0 | E39: =IF((Table7[[#This Row],[Rank]]+Table7[[#This Row],[Score]])>0,1,0) -> 0 | L39: 0 | M39: 0
A40: ='Humorous Monologues'!A144 -> EE-101 | B40: =VLOOKUP(Table7[[#This Row],[ID]],'Humorous Monologues'!A:H,8,FALSE) -> 0 | C40: ='Humorous Monologues'!U144 -> 0 | D40: ='Humorous Monologues'!S144 -> 0 | E40: =IF((Table7[[#This Row],[Rank]]+Table7[[#This Row],[Score]])>0,1,0) -> 0 | L40: 0 | M40: 0
A41: ='Humorous Monologues'!A145 -> EE-102 | B41: =VLOOKUP(Table7[[#This Row],[ID]],'Humorous Monologues'!A:H,8,FALSE) -> 0 | C41: ='Humorous Monologues'!U145 -> 0 | D41: ='Humorous Monologues'!S145 -> 0 | E41: =IF((Table7[[#This Row],[Rank]]+Table7[[#This Row],[Score]])>0,1,0) -> 0 | L41: 0 | M41: 0
A42: ='Humorous Monologues'!A146 -> EE-103 | B42: =VLOOKUP(Table7[[#This Row],[ID]],'Humorous Monologues'!A:H,8,FALSE) -> 0 | C42: ='Humorous Monologues'!U146 -> 0 | D42: ='Humorous Monologues'!S146 -> 0 | E42: =IF((Table7[[#This Row],[Rank]]+Table7[[#This Row],[Score]])>0,1,0) -> 0 | L42: 0 | M42: 0
A43: ='Humorous Monologues'!A147 -> EE-104 | B43: =VLOOKUP(Table7[[#This Row],[ID]],'Humorous Monologues'!A:H,8,FALSE) -> 0 | C43: ='Humorous Monologues'!U147 -> 0 | D43: ='Humorous Monologues'!S147 -> 0 | E43: =IF((Table7[[#This Row],[Rank]]+Table7[[#This Row],[Score]])>0,1,0) -> 0 | L43: 0 | M43: 0
A44: ='Humorous Monologues'!A30 -> F-102 | B44: =VLOOKUP(Table7[[#This Row],[ID]],'Humorous Monologues'!A:H,8,FALSE) -> 0 | C44: ='Humorous Monologues'!U30 -> 0 | D44: ='Humorous Monologues'!S30 -> 0 | E44: =IF((Table7[[#This Row],[Rank]]+Table7[[#This Row],[Score]])>0,1,0) -> 0 | L44: 0 | M44: 0
A45: ='Humorous Monologues'!A31 -> F-103 | B45: =VLOOKUP(Table7[[#This Row],[ID]],'Humorous Monologues'!A:H,8,FALSE) -> 0 | C45: ='Humorous Monologues'!U31 -> 0 | D45: ='Humorous Monologues'!S31 -> 0 | E45: =IF((Table7[[#This Row],[Rank]]+Table7[[#This Row],[Score]])>0,1,0) -> 0 | L45: 0 | M45: 0
A46: ='Humorous Monologues'!A32 -> F-104 | B46: =VLOOKUP(Table7[[#This Row],[ID]],'Humorous Monologues'!A:H,8,FALSE) -> 0 | C46: ='Humorous Monologues'!U32 -> 0 | D46: ='Humorous Monologues'!S32 -> 0 | E46: =IF((Table7[[#This Row],[Rank]]+Table7[[#This Row],[Score]])>0,1,0) -> 0 | L46: 0 | M46: 0
A47: ='Humorous Monologues'!A149 -> FF-101 | B47: =VLOOKUP(Table7[[#This Row],[ID]],'Humorous Monologues'!A:H,8,FALSE) -> 0 | C47: ='Humorous Monologues'!U149 -> 0 | D47: ='Humorous Monologues'!S149 -> 0 | E47: =IF((Table7[[#This Row],[Rank]]+Table7[[#This Row],[Score]])>0,1,0) -> 0 | L47: 0 | M47: 0
A48: ='Humorous Monologues'!A150 -> FF-102 | B48: =VLOOKUP(Table7[[#This Row],[ID]],'Humorous Monologues'!A:H,8,FALSE) -> 0 | C48: ='Humorous Monologues'!U150 -> 0 | D48: ='Humorous Monologues'!S150 -> 0 | E48: =IF((Table7[[#This Row],[Rank]]+Table7[[#This Row],[Score]])>0,1,0) -> 0 | L48: 0 | M48: 0
A49: ='Humorous Monologues'!A151 -> FF-103 | B49: =VLOOKUP(Table7[[#This Row],[ID]],'Humorous Monologues'!A:H,8,FALSE) -> 0 | C49: ='Humorous Monologues'!U151 -> 0 | D49: ='Humorous Monologues'!S151 -> 0 | E49: =IF((Table7[[#This Row],[Rank]]+Table7[[#This Row],[Score]])>0,1,0) -> 0 | L49: 0 | M49: 0
A50: ='Humorous Monologues'!A152 -> FF-104 | B50: =VLOOKUP(Table7[[#This Row],[ID]],'Humorous Monologues'!A:H,8,FALSE) -> 0 | C50: ='Humorous Monologues'!U152 -> 0 | D50: ='Humorous Monologues'!S152 -> 0 | E50: =IF((Table7[[#This Row],[Rank]]+Table7[[#This Row],[Score]])>0,1,0) -> 0 | L50: 0 | M50: 0
A51: ='Humorous Monologues'!A34 -> G-101 | B51: =VLOOKUP(Table7[[#This Row],[ID]],'Humorous Monologues'!A:H,8,FALSE) -> 0 | C51: ='Humorous Monologues'!U34 -> 0 | D51: ='Humorous Monologues'!S34 -> 0 | E51: =IF((Table7[[#This Row],[Rank]]+Table7[[#This Row],[Score]])>0,1,0) -> 0 | L51: 0 | M51: 0
A52: ='Humorous Monologues'!A35 -> G-102 | B52: =VLOOKUP(Table7[[#This Row],[ID]],'Humorous Monologues'!A:H,8,FALSE) -> 0 | C52: ='Humorous Monologues'!U35 -> 0 | D52: ='Humorous Monologues'!S35 -> 0 | E52: =IF((Table7[[#This Row],[Rank]]+Table7[[#This Row],[Score]])>0,1,0) -> 0 | L52: 0 | M52: 0
A53: ='Humorous Monologues'!A36 -> G-103 | B53: =VLOOKUP(Table7[[#This Row],[ID]],'Humorous Monologues'!A:H,8,FALSE) -> 0 | C53: ='Humorous Monologues'!U36 -> 0 | D53: ='Humorous Monologues'!S36 -> 0 | E53: =IF((Table7[[#This Row],[Rank]]+Table7[[#This Row],[Score]])>0,1,0) -> 0 | L53: 0 | M53: 0
A54: ='Humorous Monologues'!A37 -> G-104 | B54: =VLOOKUP(Table7[[#This Row],[ID]],'Humorous Monologues'!A:H,8,FALSE) -> 0 | C54: ='Humorous Monologues'!U37 -> 0 | D54: ='Humorous Monologues'!S37 -> 0 | E54: =IF((Table7[[#This Row],[Rank]]+Table7[[#This Row],[Score]])>0,1,0) -> 0 | L54: 0 | M54: 0
A55: ='Humorous Monologues'!A39 -> H-101 | B55: =VLOOKUP(Table7[[#This Row],[ID]],'Humorous Monologues'!A:H,8,FALSE) -> 0 | C55: ='Humorous Monologues'!U39 -> 0 | D55: ='Humorous Monologues'!S39 -> 0 | E55: =IF((Table7[[#This Row],[Rank]]+Table7[[#This Row],[Score]])>0,1,0) -> 0 | L55: 0 | M55: 0
A56: ='Humorous Monologues'!A40 -> H-102 | B56: =VLOOKUP(Table7[[#This Row],[ID]],'Humorous Monologues'!A:H,8,FALSE) -> 0 | C56: ='Humorous Monologues'!U40 -> 0 | D56: ='Humorous Monologues'!S40 -> 0 | E56: =IF((Table7[[#This Row],[Rank]]+Table7[[#This Row],[Score]])>0,1,0) -> 0 | L56: 0 | M56: 0
A57: ='Humorous Monologues'!A41 -> H-103 | B57: =VLOOKUP(Table7[[#This Row],[ID]],'Humorous Monologues'!A:H,8,FALSE) -> 0 | C57: ='Humorous Monologues'!U41 -> 0 | D57: ='Humorous Monologues'!S41 -> 0 | E57: =IF((Table7[[#This Row],[Rank]]+Table7[[#This Row],[Score]])>0,1,0) -> 0 | L57: 0 | M57: 0
A58: ='Humorous Monologues'!A42 -> H-104 | B58: =VLOOKUP(Table7[[#This Row],[ID]],'Humorous Monologues'!A:H,8,FALSE) -> 0 | C58: ='Humorous Monologues'!U42 -> 0 | D58: ='Humorous Monologues'!S42 -> 0 | E58: =IF((Table7[[#This Row],[Rank]]+Table7[[#This Row],[Score]])>0,1,0) -> 0 | L58: 0 | M58: 0
A59: ='Humorous Monologues'!A44 -> J-101 | B59: =VLOOKUP(Table7[[#This Row],[ID]],'Humorous Monologues'!A:H,8,FALSE) -> 0 | C59: ='Humorous Monologues'!U44 -> 0 | D59: ='Humorous Monologues'!S44 -> 0 | E59: =IF((Table7[[#This Row],[Rank]]+Table7[[#This Row],[Score]])>0,1,0) -> 0 | L59: 0 | M59: 0
A60: ='Humorous Monologues'!A45 -> J-102 | B60: =VLOOKUP(Table7[[#This Row],[ID]],'Humorous Monologues'!A:H,8,FALSE) -> 0 | C60: ='Humorous Monologues'!U45 -> 0 | D60: ='Humorous Monologues'!S45 -> 0 | E60: =IF((Table7[[#This Row],[Rank]]+Table7[[#This Row],[Score]])>0,1,0) -> 0 | L60: 0 | M60: 0
A61: ='Humorous Monologues'!A46 -> J-103 | B61: =VLOOKUP(Table7[[#This Row],[ID]],'Humorous Monologues'!A:H,8,FALSE) -> 0 | C61: ='Humorous Monologues'!U46 -> 0 | D61: ='Humorous Monologues'!S46 -> 0 | E61: =IF((Table7[[#This Row],[Rank]]+Table7[[#This Row],[Score]])>0,1,0) -> 0 | L61: 0 | M61: 0
A62: ='Humorous Monologues'!A47 -> J-104 | B62: =VLOOKUP(Table7[[#This Row],[ID]],'Humorous Monologues'!A:H,8,FALSE) -> 0 | C62: ='Humorous Monologues'!U47 -> 0 | D62: ='Humorous Monologues'!S47 -> 0 | E62: =IF((Table7[[#This Row],[Rank]]+Table7[[#This Row],[Score]])>0,1,0) -> 0 | L62: 0 | M62: 0
A63: ='Humorous Monologues'!A49 -> K-101 | B63: =VLOOKUP(Table7[[#This Row],[ID]],'Humorous Monologues'!A:H,8,FALSE) -> 0 | C63: ='Humorous Monologues'!U49 -> 0 | D63: ='Humorous Monologues'!S49 -> 0 | E63: =IF((Table7[[#This Row],[Rank]]+Table7[[#This Row],[Score]])>0,1,0) -> 0 | L63: 0 | M63: 0
A64: ='Humorous Monologues'!A50 -> K-102 | B64: =VLOOKUP(Table7[[#This Row],[ID]],'Humorous Monologues'!A:H,8,FALSE) -> 0 | C64: ='Humorous Monologues'!U50 -> 0 | D64: ='Humorous Monologues'!S50 -> 0 | E64: =IF((Table7[[#This Row],[Rank]]+Table7[[#This Row],[Score]])>0,1,0) -> 0 | L64: 0 | M64: 0
A65: ='Humorous Monologues'!A51 -> K-103 | B65: =VLOOKUP(Table7[[#This Row],[ID]],'Humorous Monologues'!A:H,8,FALSE) -> 0 | C65: ='Humorous Monologues'!U51 -> 0 | D65: ='Humorous Monologues'!S51 -> 0 | E65: =IF((Table7[[#This Row],[Rank]]+Table7[[#This Row],[Score]])>0,1,0) -> 0 | L65: 0 | M65: 0
A66: ='Humorous Monologues'!A52 -> K-104 | B66: =VLOOKUP(Table7[[#This Row],[ID]],'Humorous Monologues'!A:H,8,FALSE) -> 0 | C66: ='Humorous Monologues'!U52 -> 0 | D66: ='Humorous Monologues'!S52 -> 0 | E66: =IF((Table7[[#This Row],[Rank]]+Table7[[#This Row],[Score]])>0,1,0) -> 0 | L66: 0 | M66: 0
A67: ='Humorous Monologues'!A54 -> L-101 | B67: =VLOOKUP(Table7[[#This Row],[ID]],'Humorous Monologues'!A:H,8,FALSE) -> 0 | C67: ='Humorous Monologues'!U54 -> 0 | D67: ='Humorous Monologues'!S54 -> 0 | E67: =IF((Table7[[#This Row],[Rank]]+Table7[[#This Row],[Score]])>0,1,0) -> 0 | L67: =SUM(F67,H67,J67) -> 0 | M67: =SUM(G67,I67,K67) -> 0
A68: ='Humorous Monologues'!A55 -> L-102 | B68: =VLOOKUP(Table7[[#This Row],[ID]],'Humorous Monologues'!A:H,8,FALSE) -> 0 | C68: ='Humorous Monologues'!U55 -> 0 | D68: ='Humorous Monologues'!S55 -> 0 | E68: =IF((Table7[[#This Row],[Rank]]+Table7[[#This Row],[Score]])>0,1,0) -> 0 | L68: 0 | M68: 0
A69: ='Humorous Monologues'!A56 -> L-103 | B69: =VLOOKUP(Table7[[#This Row],[ID]],'Humorous Monologues'!A:H,8,FALSE) -> 0 | C69: ='Humorous Monologues'!U56 -> 0 | D69: ='Humorous Monologues'!S56 -> 0 | E69: =IF((Table7[[#This Row],[Rank]]+Table7[[#This Row],[Score]])>0,1,0) -> 0 | L69: 0 | M69: 0
A70: ='Humorous Monologues'!A57 -> L-104 | B70: =VLOOKUP(Table7[[#This Row],[ID]],'Humorous Monologues'!A:H,8,FALSE) -> 0 | C70: ='Humorous Monologues'!U57 -> 0 | D70: ='Humorous Monologues'!S57 -> 0 | E70: =IF((Table7[[#This Row],[Rank]]+Table7[[#This Row],[Score]])>0,1,0) -> 0 | L70: 0 | M70: 0
A71: ='Humorous Monologues'!A59 -> M-101 | B71: =VLOOKUP(Table7[[#This Row],[ID]],'Humorous Monologues'!A:H,8,FALSE) -> 0 | C71: ='Humorous Monologues'!U59 -> 0 | D71: ='Humorous Monologues'!S59 -> 0 | E71: =IF((Table7[[#This Row],[Rank]]+Table7[[#This Row],[Score]])>0,1,0) -> 0 | L71: 0 | M71: 0
A72: ='Humorous Monologues'!A60 -> M-102 | B72: =VLOOKUP(Table7[[#This Row],[ID]],'Humorous Monologues'!A:H,8,FALSE) -> 0 | C72: ='Humorous Monologues'!U60 -> 0 | D72: ='Humorous Monologues'!S60 -> 0 | E72: =IF((Table7[[#This Row],[Rank]]+Table7[[#This Row],[Score]])>0,1,0) -> 0 | L72: 0 | M72: 0
A73: ='Humorous Monologues'!A61 -> M-103 | B73: =VLOOKUP(Table7[[#This Row],[ID]],'Humorous Monologues'!A:H,8,FALSE) -> 0 | C73: ='Humorous Monologues'!U61 -> 0 | D73: ='Humorous Monologues'!S61 -> 0 | E73: =IF((Table7[[#This Row],[Rank]]+Table7[[#This Row],[Score]])>0,1,0) -> 0 | L73: 0 | M73: 0
A74: ='Humorous Monologues'!A62 -> M-104 | B74: =VLOOKUP(Table7[[#This Row],[ID]],'Humorous Monologues'!A:H,8,FALSE) -> 0 | C74: ='Humorous Monologues'!U62 -> 0 | D74: ='Humorous Monologues'!S62 -> 0 | E74: =IF((Table7[[#This Row],[Rank]]+Table7[[#This Row],[Score]])>0,1,0) -> 0 | L74: 0 | M74: 0
A75: ='Humorous Monologues'!A64 -> N-101 | B75: =VLOOKUP(Table7[[#This Row],[ID]],'Humorous Monologues'!A:H,8,FALSE) -> 0 | C75: ='Humorous Monologues'!U64 -> 0 | D75: ='Humorous Monologues'!S64 -> 0 | E75: =IF((Table7[[#This Row],[Rank]]+Table7[[#This Row],[Score]])>0,1,0) -> 0 | L75: 0 | M75: 0
A76: ='Humorous Monologues'!A65 -> N-102 | B76: =VLOOKUP(Table7[[#This Row],[ID]],'Humorous Monologues'!A:H,8,FALSE) -> 0 | C76: ='Humorous Monologues'!U65 -> 0 | D76: ='Humorous Monologues'!S65 -> 0 | E76: =IF((Table7[[#This Row],[Rank]]+Table7[[#This Row],[Score]])>0,1,0) -> 0 | L76: 0 | M76: 0
A77: ='Humorous Monologues'!A66 -> N-103 | B77: =VLOOKUP(Table7[[#This Row],[ID]],'Humorous Monologues'!A:H,8,FALSE) -> 0 | C77: ='Humorous Monologues'!U66 -> 0 | D77: ='Humorous Monologues'!S66 -> 0 | E77: =IF((Table7[[#This Row],[Rank]]+Table7[[#This Row],[Score]])>0,1,0) -> 0 | L77: 0 | M77: 0
A78: ='Humorous Monologues'!A67 -> N-104 | B78: =VLOOKUP(Table7[[#This Row],[ID]],'Humorous Monologues'!A:H,8,FALSE) -> 0 | C78: ='Humorous Monologues'!U67 -> 0 | D78: ='Humorous Monologues'!S67 -> 0 | E78: =IF((Table7[[#This Row],[Rank]]+Table7[[#This Row],[Score]])>0,1,0) -> 0 | L78: 0 | M78: 0
A79: ='Humorous Monologues'!A69 -> P-101 | B79: =VLOOKUP(Table7[[#This Row],[ID]],'Humorous Monologues'!A:H,8,FALSE) -> 0 | C79: ='Humorous Monologues'!U69 -> 0 | D79: ='Humorous Monologues'!S69 -> 0 | E79: =IF((Table7[[#This Row],[Rank]]+Table7[[#This Row],[Score]])>0,1,0) -> 0 | L79: 0 | M79: 0
A80: ='Humorous Monologues'!A70 -> P-102 | B80: =VLOOKUP(Table7[[#This Row],[ID]],'Humorous Monologues'!A:H,8,FALSE) -> 0 | C80: ='Humorous Monologues'!U70 -> 0 | D80: ='Humorous Monologues'!S70 -> 0 | E80: =IF((Table7[[#This Row],[Rank]]+Table7[[#This Row],[Score]])>0,1,0) -> 0 | L80: 0 | M80: 0
A81: ='Humorous Monologues'!A71 -> P-103 | B81: =VLOOKUP(Table7[[#This Row],[ID]],'Humorous Monologues'!A:H,8,FALSE) -> 0 | C81: ='Humorous Monologues'!U71 -> 0 | D81: ='Humorous Monologues'!S71 -> 0 | E81: =IF((Table7[[#This Row],[Rank]]+Table7[[#This Row],[Score]])>0,1,0) -> 0 | L81: 0 | M81: 0
A82: ='Humorous Monologues'!A72 -> P-104 | B82: =VLOOKUP(Table7[[#This Row],[ID]],'Humorous Monologues'!A:H,8,FALSE) -> 0 | C82: ='Humorous Monologues'!U72 -> 0 | D82: ='Humorous Monologues'!S72 -> 0 | E82: =IF((Table7[[#This Row],[Rank]]+Table7[[#This Row],[Score]])>0,1,0) -> 0 | L82: 0 | M82: 0
A83: ='Humorous Monologues'!A74 -> Q-101 | B83: =VLOOKUP(Table7[[#This Row],[ID]],'Humorous Monologues'!A:H,8,FALSE) -> 0 | C83: ='Humorous Monologues'!U74 -> 0 | D83: ='Humorous Monologues'!S74 -> 0 | E83: =IF((Table7[[#This Row],[Rank]]+Table7[[#This Row],[Score]])>0,1,0) -> 0 | L83: 0 | M83: 0
A84: ='Humorous Monologues'!A75 -> Q-102 | B84: =VLOOKUP(Table7[[#This Row],[ID]],'Humorous Monologues'!A:H,8,FALSE) -> 0 | C84: ='Humorous Monologues'!U75 -> 0 | D84: ='Humorous Monologues'!S75 -> 0 | E84: =IF((Table7[[#This Row],[Rank]]+Table7[[#This Row],[Score]])>0,1,0) -> 0 | L84: 0 | M84: 0
A85: ='Humorous Monologues'!A76 -> Q-103 | B85: =VLOOKUP(Table7[[#This Row],[ID]],'Humorous Monologues'!A:H,8,FALSE) -> 0 | C85: ='Humorous Monologues'!U76 -> 0 | D85: ='Humorous Monologues'!S76 -> 0 | E85: =IF((Table7[[#This Row],[Rank]]+Table7[[#This Row],[Score]])>0,1,0) -> 0 | L85: 0 | M85: 0
A86: ='Humorous Monologues'!A77 -> Q-104 | B86: =VLOOKUP(Table7[[#This Row],[ID]],'Humorous Monologues'!A:H,8,FALSE) -> 0 | C86: ='Humorous Monologues'!U77 -> 0 | D86: ='Humorous Monologues'!S77 -> 0 | E86: =IF((Table7[[#This Row],[Rank]]+Table7[[#This Row],[Score]])>0,1,0) -> 0 | L86: 0 | M86: 0
A87: ='Humorous Monologues'!A79 -> R-101 | B87: =VLOOKUP(Table7[[#This Row],[ID]],'Humorous Monologues'!A:H,8,FALSE) -> 0 | C87: ='Humorous Monologues'!U79 -> 0 | D87: ='Humorous Monologues'!S79 -> 0 | E87: =IF((Table7[[#This Row],[Rank]]+Table7[[#This Row],[Score]])>0,1,0) -> 0 | L87: 0 | M87: 0
A88: ='Humorous Monologues'!A80 -> R-102 | B88: =VLOOKUP(Table7[[#This Row],[ID]],'Humorous Monologues'!A:H,8,FALSE) -> 0 | C88: ='Humorous Monologues'!U80 -> 0 | D88: ='Humorous Monologues'!S80 -> 0 | E88: =IF((Table7[[#This Row],[Rank]]+Table7[[#This Row],[Score]])>0,1,0) -> 0 | L88: 0 | M88: 0
A89: ='Humorous Monologues'!A81 -> R-103 | B89: =VLOOKUP(Table7[[#This Row],[ID]],'Humorous Monologues'!A:H,8,FALSE) -> 0 | C89: ='Humorous Monologues'!U81 -> 0 | D89: ='Humorous Monologues'!S81 -> 0 | E89: =IF((Table7[[#This Row],[Rank]]+Table7[[#This Row],[Score]])>0,1,0) -> 0 | L89: 0 | M89: 0
A90: ='Humorous Monologues'!A82 -> R-104 | B90: =VLOOKUP(Table7[[#This Row],[ID]],'Humorous Monologues'!A:H,8,FALSE) -> 0 | C90: ='Humorous Monologues'!U82 -> 0 | D90: ='Humorous Monologues'!S82 -> 0 | E90: =IF((Table7[[#This Row],[Rank]]+Table7[[#This Row],[Score]])>0,1,0) -> 0 | L90: 0 | M90: 0
A91: ='Humorous Monologues'!A84 -> S-101 | B91: =VLOOKUP(Table7[[#This Row],[ID]],'Humorous Monologues'!A:H,8,FALSE) -> 0 | C91: ='Humorous Monologues'!U84 -> 0 | D91: ='Humorous Monologues'!S84 -> 0 | E91: =IF((Table7[[#This Row],[Rank]]+Table7[[#This Row],[Score]])>0,1,0) -> 0 | L91: 0 | M91: 0
A92: ='Humorous Monologues'!A85 -> S-102 | B92: =VLOOKUP(Table7[[#This Row],[ID]],'Humorous Monologues'!A:H,8,FALSE) -> 0 | C92: ='Humorous Monologues'!U85 -> 0 | D92: ='Humorous Monologues'!S85 -> 0 | E92: =IF((Table7[[#This Row],[Rank]]+Table7[[#This Row],[Score]])>0,1,0) -> 0 | L92: 0 | M92: 0
A93: ='Humorous Monologues'!A86 -> S-103 | B93: =VLOOKUP(Table7[[#This Row],[ID]],'Humorous Monologues'!A:H,8,FALSE) -> 0 | C93: ='Humorous Monologues'!U86 -> 0 | D93: ='Humorous Monologues'!S86 -> 0 | E93: =IF((Table7[[#This Row],[Rank]]+Table7[[#This Row],[Score]])>0,1,0) -> 0 | L93: 0 | M93: 0
A94: ='Humorous Monologues'!A87 -> S-104 | B94: =VLOOKUP(Table7[[#This Row],[ID]],'Humorous Monologues'!A:H,8,FALSE) -> 0 | C94: ='Humorous Monologues'!U87 -> 0 | D94: ='Humorous Monologues'!S87 -> 0 | E94: =IF((Table7[[#This Row],[Rank]]+Table7[[#This Row],[Score]])>0,1,0) -> 0 | L94: 0 | M94: 0
A95: ='Humorous Monologues'!A89 -> T-101 | B95: =VLOOKUP(Table7[[#This Row],[ID]],'Humorous Monologues'!A:H,8,FALSE) -> 0 | C95: ='Humorous Monologues'!U89 -> 0 | D95: ='Humorous Monologues'!S89 -> 0 | E95: =IF((Table7[[#This Row],[Rank]]+Table7[[#This Row],[Score]])>0,1,0) -> 0 | L95: 0 | M95: 0
A96: ='Humorous Monologues'!A90 -> T-102 | B96: =VLOOKUP(Table7[[#This Row],[ID]],'Humorous Monologues'!A:H,8,FALSE) -> 0 | C96: ='Humorous Monologues'!U90 -> 0 | D96: ='Humorous Monologues'!S90 -> 0 | E96: =IF((Table7[[#This Row],[Rank]]+Table7[[#This Row],[Score]])>0,1,0) -> 0 | L96: 0 | M96: 0
A97: ='Humorous Monologues'!A91 -> T-103 | B97: =VLOOKUP(Table7[[#This Row],[ID]],'Humorous Monologues'!A:H,8,FALSE) -> 0 | C97: ='Humorous Monologues'!U91 -> 0 | D97: ='Humorous Monologues'!S91 -> 0 | E97: =IF((Table7[[#This Row],[Rank]]+Table7[[#This Row],[Score]])>0,1,0) -> 0 | L97: 0 | M97: 0
A98: ='Humorous Monologues'!A92 -> T-104 | B98: =VLOOKUP(Table7[[#This Row],[ID]],'Humorous Monologues'!A:H,8,FALSE) -> 0 | C98: ='Humorous Monologues'!U92 -> 0 | D98: ='Humorous Monologues'!S92 -> 0 | E98: =IF((Table7[[#This Row],[Rank]]+Table7[[#This Row],[Score]])>0,1,0) -> 0 | L98: 0 | M98: 0
A99: ='Humorous Monologues'!A94 -> U-101 | B99: =VLOOKUP(Table7[[#This Row],[ID]],'Humorous Monologues'!A:H,8,FALSE) -> 0 | C99: ='Humorous Monologues'!U94 -> 0 | D99: ='Humorous Monologues'!S94 -> 0 | E99: =IF((Table7[[#This Row],[Rank]]+Table7[[#This Row],[Score]])>0,1,0) -> 0 | L99: =SUM(F99,H99,J99) -> 0 | M99: =SUM(G99,I99,K99) -> 0
A100: ='Humorous Monologues'!A95 -> U-102 | B100: =VLOOKUP(Table7[[#This Row],[ID]],'Humorous Monologues'!A:H,8,FALSE) -> 0 | C100: ='Humorous Monologues'!U95 -> 0 | D100: ='Humorous Monologues'!S95 -> 0 | E100: =IF((Table7[[#This Row],[Rank]]+Table7[[#This Row],[Score]])>0,1,0) -> 0 | L100: 0 | M100: 0
A101: ='Humorous Monologues'!A96 -> U-103 | B101: =VLOOKUP(Table7[[#This Row],[ID]],'Humorous Monologues'!A:H,8,FALSE) -> 0 | C101: ='Humorous Monologues'!U96 -> 0 | D101: ='Humorous Monologues'!S96 -> 0 | E101: =IF((Table7[[#This Row],[Rank]]+Table7[[#This Row],[Score]])>0,1,0) -> 0 | L101: 0 | M101: 0
A102: ='Humorous Monologues'!A97 -> U-104 | B102: =VLOOKUP(Table7[[#This Row],[ID]],'Humorous Monologues'!A:H,8,FALSE) -> 0 | C102: ='Humorous Monologues'!U97 -> 0 | D102: ='Humorous Monologues'!S97 -> 0 | E102: =IF((Table7[[#This Row],[Rank]]+Table7[[#This Row],[Score]])>0,1,0) -> 0 | L102: 0 | M102: 0
A103: ='Humorous Monologues'!A99 -> V-101 | B103: =VLOOKUP(Table7[[#This Row],[ID]],'Humorous Monologues'!A:H,8,FALSE) -> 0 | C103: ='Humorous Monologues'!U99 -> 0 | D103: ='Humorous Monologues'!S99 -> 0 | E103: =IF((Table7[[#This Row],[Rank]]+Table7[[#This Row],[Score]])>0,1,0) -> 0 | L103: 0 | M103: 0
A104: ='Humorous Monologues'!A100 -> V-102 | B104: =VLOOKUP(Table7[[#This Row],[ID]],'Humorous Monologues'!A:H,8,FALSE) -> 0 | C104: ='Humorous Monologues'!U100 -> 0 | D104: ='Humorous Monologues'!S100 -> 0 | E104: =IF((Table7[[#This Row],[Rank]]+Table7[[#This Row],[Score]])>0,1,0) -> 0 | L104: 0 | M104: 0
A105: ='Humorous Monologues'!A101 -> V-103 | B105: =VLOOKUP(Table7[[#This Row],[ID]],'Humorous Monologues'!A:H,8,FALSE) -> 0 | C105: ='Humorous Monologues'!U101 -> 0 | D105: ='Humorous Monologues'!S101 -> 0 | E105: =IF((Table7[[#This Row],[Rank]]+Table7[[#This Row],[Score]])>0,1,0) -> 0 | L105: 0 | M105: 0
A106: ='Humorous Monologues'!A102 -> V-104 | B106: =VLOOKUP(Table7[[#This Row],[ID]],'Humorous Monologues'!A:H,8,FALSE) -> 0 | C106: ='Humorous Monologues'!U102 -> 0 | D106: ='Humorous Monologues'!S102 -> 0 | E106: =IF((Table7[[#This Row],[Rank]]+Table7[[#This Row],[Score]])>0,1,0) -> 0 | L106: 0 | M106: 0
A107: ='Humorous Monologues'!A104 -> W-101 | B107: =VLOOKUP(Table7[[#This Row],[ID]],'Humorous Monologues'!A:H,8,FALSE) -> 0 | C107: ='Humorous Monologues'!U104 -> 0 | D107: ='Humorous Monologues'!S104 -> 0 | E107: =IF((Table7[[#This Row],[Rank]]+Table7[[#This Row],[Score]])>0,1,0) -> 0 | L107: 0 | M107: 0
A108: ='Humorous Monologues'!A105 -> W-102 | B108: =VLOOKUP(Table7[[#This Row],[ID]],'Humorous Monologues'!A:H,8,FALSE) -> 0 | C108: ='Humorous Monologues'!U105 -> 0 | D108: ='Humorous Monologues'!S105 -> 0 | E108: =IF((Table7[[#This Row],[Rank]]+Table7[[#This Row],[Score]])>0,1,0) -> 0 | L108: 0 | M108: 0
A109: ='Humorous Monologues'!A106 -> W-103 | B109: =VLOOKUP(Table7[[#This Row],[ID]],'Humorous Monologues'!A:H,8,FALSE) -> 0 | C109: ='Humorous Monologues'!U106 -> 0 | D109: ='Humorous Monologues'!S106 -> 0 | E109: =IF((Table7[[#This Row],[Rank]]+Table7[[#This Row],[Score]])>0,1,0) -> 0 | L109: 0 | M109: 0
A110: ='Humorous Monologues'!A107 -> W-104 | B110: =VLOOKUP(Table7[[#This Row],[ID]],'Humorous Monologues'!A:H,8,FALSE) -> 0 | C110: ='Humorous Monologues'!U107 -> 0 | D110: ='Humorous Monologues'!S107 -> 0 | E110: =IF((Table7[[#This Row],[Rank]]+Table7[[#This Row],[Score]])>0,1,0) -> 0 | L110: 0 | M110: 0
A111: ='Humorous Monologues'!A109 -> X-101 | B111: =VLOOKUP(Table7[[#This Row],[ID]],'Humorous Monologues'!A:H,8,FALSE) -> 0 | C111: ='Humorous Monologues'!U109 -> 0 | D111: ='Humorous Monologues'!S109 -> 0 | E111: =IF((Table7[[#This Row],[Rank]]+Table7[[#This Row],[Score]])>0,1,0) -> 0 | L111: 0 | M111: 0
A112: ='Humorous Monologues'!A110 -> X-102 | B112: =VLOOKUP(Table7[[#This Row],[ID]],'Humorous Monologues'!A:H,8,FALSE) -> 0 | C112: ='Humorous Monologues'!U110 -> 0 | D112: ='Humorous Monologues'!S110 -> 0 | E112: =IF((Table7[[#This Row],[Rank]]+Table7[[#This Row],[Score]])>0,1,0) -> 0 | L112: 0 | M112: 0
A113: ='Humorous Monologues'!A111 -> X-103 | B113: =VLOOKUP(Table7[[#This Row],[ID]],'Humorous Monologues'!A:H,8,FALSE) -> 0 | C113: ='Humorous Monologues'!U111 -> 0 | D113: ='Humorous Monologues'!S111 -> 0 | E113: =IF((Table7[[#This Row],[Rank]]+Table7[[#This Row],[Score]])>0,1,0) -> 0 | L113: 0 | M113: 0
A114: ='Humorous Monologues'!A112 -> X-104 | B114: =VLOOKUP(Table7[[#This Row],[ID]],'Humorous Monologues'!A:H,8,FALSE) -> 0 | C114: ='Humorous Monologues'!U112 -> 0 | D114: ='Humorous Monologues'!S112 -> 0 | E114: =IF((Table7[[#This Row],[Rank]]+Table7[[#This Row],[Score]])>0,1,0) -> 0 | L114: 0 | M114: 0
A115: ='Humorous Monologues'!A114 -> Y-101 | B115: =VLOOKUP(Table7[[#This Row],[ID]],'Humorous Monologues'!A:H,8,FALSE) -> 0 | C115: ='Humorous Monologues'!U114 -> 0 | D115: ='Humorous Monologues'!S114 -> 0 | E115: =IF((Table7[[#This Row],[Rank]]+Table7[[#This Row],[Score]])>0,1,0) -> 0 | L115: 0 | M115: 0
A116: ='Humorous Monologues'!A115 -> Y-102 | B116: =VLOOKUP(Table7[[#This Row],[ID]],'Humorous Monologues'!A:H,8,FALSE) -> 0 | C116: ='Humorous Monologues'!U115 -> 0 | D116: ='Humorous Monologues'!S115 -> 0 | E116: =IF((Table7[[#This Row],[Rank]]+Table7[[#This Row],[Score]])>0,1,0) -> 0 | L116: 0 | M116: 0
A117: ='Humorous Monologues'!A116 -> Y-103 | B117: =VLOOKUP(Table7[[#This Row],[ID]],'Humorous Monologues'!A:H,8,FALSE) -> 0 | C117: ='Humorous Monologues'!U116 -> 0 | D117: ='Humorous Monologues'!S116 -> 0 | E117: =IF((Table7[[#This Row],[Rank]]+Table7[[#This Row],[Score]])>0,1,0) -> 0 | L117: 0 | M117: 0
A118: ='Humorous Monologues'!A117 -> Y-104 | B118: =VLOOKUP(Table7[[#This Row],[ID]],'Humorous Monologues'!A:H,8,FALSE) -> 0 | C118: ='Humorous Monologues'!U117 -> 0 | D118: ='Humorous Monologues'!S117 -> 0 | E118: =IF((Table7[[#This Row],[Rank]]+Table7[[#This Row],[Score]])>0,1,0) -> 0 | L118: 0 | M118: 0
A119: ='Humorous Monologues'!A119 -> Z-101 | B119: =VLOOKUP(Table7[[#This Row],[ID]],'Humorous Monologues'!A:H,8,FALSE) -> 0 | C119: ='Humorous Monologues'!U119 -> 0 | D119: ='Humorous Monologues'!S119 -> 0 | E119: =IF((Table7[[#This Row],[Rank]]+Table7[[#This Row],[Score]])>0,1,0) -> 0 | L119: 0 | M119: 0
A120: ='Humorous Monologues'!A120 -> Z-102 | B120: =VLOOKUP(Table7[[#This Row],[ID]],'Humorous Monologues'!A:H,8,FALSE) -> 0 | C120: ='Humorous Monologues'!U120 -> 0 | D120: ='Humorous Monologues'!S120 -> 0 | E120: =IF((Table7[[#This Row],[Rank]]+Table7[[#This Row],[Score]])>0,1,0) -> 0 | L120: 0 | M120: 0
A121: ='Humorous Monologues'!A121 -> Z-103 | B121: =VLOOKUP(Table7[[#This Row],[ID]],'Humorous Monologues'!A:H,8,FALSE) -> 0 | C121: ='Humorous Monologues'!U121 -> 0 | D121: ='Humorous Monologues'!S121 -> 0 | E121: =IF((Table7[[#This Row],[Rank]]+Table7[[#This Row],[Score]])>0,1,0) -> 0 | L121: 0 | M121: 0
A122: ='Humorous Monologues'!A122 -> Z-104 | B122: =VLOOKUP(Table7[[#This Row],[ID]],'Humorous Monologues'!A:H,8,FALSE) -> 0 | C122: ='Humorous Monologues'!U122 -> 0 | D122: ='Humorous Monologues'!S122 -> 0 | E122: =IF((Table7[[#This Row],[Rank]]+Table7[[#This Row],[Score]])>0,1,0) -> 0 | L122: 0 | M122: 0

Sheet Dramatic
A1: Dramatic Monologues | K1: Rank 1-4 | X1: S | Y1: E | Z1: G | AA1: F | AC1: 1violation | AD1: 2violations | AE1: 3violations
K2: Round 1: | M2: Round 2: | O2: Round 3: | Q2: -2 for each | AB2: Drops lowest from column q
H3: Student Name | J3: Title of Piece | K3: R1 rank | L3: R1 score | M3: R2 rank | N3: R2 score | O3: R3 rank | P3: R3 score | Q3: Time Violations | S3: TOTAL SCORE | U3: TOTAL RANK | X3: TOTAL SCHOOL SWEEPS POINTS | AB3: Drop Lowest
A4: A-201 | H4: (503) Cole B. | J4: "Lord of the Rings" | K4: 4 | L4: 18 | M4: 4 | N4: 21 | O4: 4 | P4: 22 | R4: =IF(Q4="1violation",-7*1,IF(Q4="2violations",-7*2,IF(Q4="3violations",-7*3,IF(Q4="","")))) ->  | S4: =SUM(L4,N4,P4,R4) -> 61 | U4: =SUM(K4,M4,O4) -> 12 | Y4: =SUM(S4,S6,S5,S7,-AB4) -> 204 | AB4: =MIN(S4:S7) -> 58
A5: A-202 | H5: (504) Mary C. | J5: "Bluebirds" | K5: 1 | L5: 25 | M5: 1 | N5: 25 | O5: 2 | P5: 25 | R5: =IF(Q5="1violation",-7*1,IF(Q5="2violations",-7*2,IF(Q5="3violations",-7*3,IF(Q5="","")))) ->  | S5: =SUM(L5,N5,P5,R5) -> 75 | U5: =SUM(K5,M5,O5) -> 4
A6: A-203 | H6: (505) Melissa P. | J6: "Come, Stay, Go" | K6: 4 | L6: 14 | M6: 4 | N6: 20 | O6: 4 | P6: 24 | S6: =SUM(L6,N6,P6,R6) -> 58 | U6: =SUM(K6,M6,O6) -> 12
A7: A-204 | H7: (506) Ameerah | J7: "Fathers Blue Eyes" | K7: 4 | L7: 24 | M7: 4 | N7: 20 | O7: 2 | P7: 24 | S7: =SUM(L7,N7,P7,R7) -> 68 | U7: =SUM(K7,M7,O7) -> 10
A9: B-201 | H9: (500) Jaren Henrie | J9: "Dust in Eyes" | K9: 2 | L9: 20 | M9: 2 | N9: 24 | O9: 1 | P9: 25 | S9: =SUM(L9,N9,P9,R9) -> 69 | U9: =SUM(K9,M9,O9) -> 5 | Y9: =SUM(S9,S11,S10,S12,-AB9) -> 212 | AB9: =MIN(S9:S12) -> 0
A10: B-202 | H10: (501) Layna Hatch | J10: "Demons" | K10: 3 | L10: 24 | M10: 3 | N10: 23 | O10: 3 | P10: 24 | S10: =SUM(L10,N10,P10,R10) -> 71 | U10: =SUM(K10,M10,O10) -> 9
A11: B-203 | H11: (502) Kam Petsche | J11: "The Button" | K11: 1 | L11: 25 | M11: 2 | N11: 23 | O11: 4 | P11: 24 | S11: =SUM(L11,N11,P11,R11) -> 72 | U11: =SUM(K11,M11,O11) -> 7
A12: B-204 | S12: =SUM(L12,N12,P12,R12) -> 0 | U12: =SUM(K12,M12,O12) -> 0
A14: C-201 | S14: =SUM(L14,N14,P14,R14) -> 0 | U14: =SUM(K14,M14,O14) -> 0 | Y14: =SUM(S14,S16,S15,S17,-AB14) -> 0 | AB14: =MIN(S14:S17) -> 0
A15: C-202 | S15: =SUM(L15,N15,P15,R15) -> 0 | U15: =SUM(K15,M15,O15) -> 0
A16: C-203 | S16: =SUM(L16,N16,P16,R16) -> 0 | U16: =SUM(K16,M16,O16) -> 0
A17: C-204 | S17: =SUM(L17,N17,P17,R17) -> 0 | U17: =SUM(K17,M17,O17) -> 0
A19: D-201 | H19: (507) Mary Anderson | J19: "enimgma" | K19: 2 | L19: 25 | M19: 1 | N19: 24 | O19: 1 | P19: 25 | S19: =SUM(L19,N19,P19,R19) -> 74 | U19: =SUM(K19,M19,O19) -> 4 | Y19: =SUM(S19,S21,S20,S22,-AB19) -> 134 | AB19: =MIN(S19:S22) -> 0
A20: D-202 | H20: (508) Jacalyn Hulce | J20: "pretty…" | K20: 3 | L20: 18 | M20: 4 | N20: 20 | O20: 4 | P20: 22 | S20: =SUM(L20,N20,P20,R20) -> 60 | U20: =SUM(K20,M20,O20) -> 11
A21: D-203 | S21: =SUM(L21,N21,P21,R21) -> 0 | U21: =SUM(K21,M21,O21) -> 0
A22: D-204 | S22: =SUM(L22,N22,P22,R22) -> 0 | U22: =SUM(K22,M22,O22) -> 0
A24: E-201 | S24: =SUM(L24,N24,P24,R24) -> 0 | U24: =SUM(K24,M24,O24) -> 0 | Y24: =SUM(S24,S26,S25,S27,-AB24) -> 0 | AB24: =MIN(S24:S27) -> 0
A25: E-202 | S25: =SUM(L25,N25,P25,R25) -> 0 | U25: =SUM(K25,M25,O25) -> 0
A26: E-203 | S26: =SUM(L26,N26,P26,R26) -> 0 | U26: =SUM(K26,M26,O26) -> 0
A27: E-204 | S27: =SUM(L27,N27,P27,R27) -> 0 | U27: =SUM(K27,M27,O27) -> 0
A29: F-201 | H29: (509) Raif McCoy | J29: "Mockingbird" | K29: 4 | L29: 22 | M29: 3 | N29: 24 | O29: 3 | P29: 24 | S29: =SUM(L29,N29,P29,R29) -> 70 | U29: =SUM(K29,M29,O29) -> 10 | Y29: =SUM(S29,S31,S30,S32,-AB29) -> 70 | AB29: =MIN(S29:S32) -> 0
A30: F-202 | S30: =SUM(L30,N30,P30,R30) -> 0 | U30: =SUM(K30,M30,O30) -> 0
A31: F-203 | S31: =SUM(L31,N31,P31,R31) -> 0 | U31: =SUM(K31,M31,O31) -> 0
A32: F-204 | S32: =SUM(L32,N32,P32,R32) -> 0 | U32: =SUM(K32,M32,O32) -> 0
A34: G-201 | S34: =SUM(L34,N34,P34,R34) -> 0 | U34: =SUM(K34,M34,O34) -> 0 | Y34: =SUM(S34,S36,S35,S37,-AB34) -> 0 | AB34: =MIN(S34:S37) -> 0
A35: G-202 | S35: =SUM(L35,N35,P35,R35) -> 0 | U35: =SUM(K35,M35,O35) -> 0
A36: G-203 | S36: =SUM(L36,N36,P36,R36) -> 0 | U36: =SUM(K36,M36,O36) -> 0
A37: G-204 | S37: =SUM(L37,N37,P37,R37) -> 0 | U37: =SUM(K37,M37,O37) -> 0
A39: H-201 | S39: =SUM(L39,N39,P39,R39) -> 0 | U39: =SUM(K39,M39,O39) -> 0 | Y39: =SUM(S39,S41,S40,S42,-AB39) -> 0 | AB39: =MIN(S39:S42) -> 0
A40: H-202 | S40: =SUM(L40,N40,P40,R40) -> 0 | U40: =SUM(K40,M40,O40) -> 0
A41: H-203 | S41: =SUM(L41,N41,P41,R41) -> 0 | U41: =SUM(K41,M41,O41) -> 0
A42: H-204 | S42: =SUM(L42,N42,P42,R42) -> 0 | U42: =SUM(K42,M42,O42) -> 0
A44: J-201 | S44: =SUM(L44,N44,P44,R44) -> 0 | U44: =SUM(K44,M44,O44) -> 0 | Y44: =SUM(S44,S46,S45,S47,-AB44) -> 0 | AB44: =MIN(S44:S47) -> 0
A45: J-202 | S45: =SUM(L45,N45,P45,R45) -> 0 | U45: =SUM(K45,M45,O45) -> 0
A46: J-203 | S46: =SUM(L46,N46,P46,R46) -> 0 | U46: =SUM(K46,M46,O46) -> 0
A47: J-204 | S47: =SUM(L47,N47,P47,R47) -> 0 | U47: =SUM(K47,M47,O47) -> 0
A49: K-201 | S49: =SUM(L49,N49,P49,R49) -> 0 | U49: =SUM(K49,M49,O49) -> 0 | Y49: =SUM(S49,S51,S50,S52,-AB49) -> 0 | AB49: =MIN(S49:S52) -> 0
A50: K-202 | S50: =SUM(L50,N50,P50,R50) -> 0 | U50: =SUM(K50,M50,O50) -> 0
A51: K-203 | S51: =SUM(L51,N51,P51,R51) -> 0 | U51: =SUM(K51,M51,O51) -> 0
A52: K-204 | S52: =SUM(L52,N52,P52,R52) -> 0 | U52: =SUM(K52,M52,O52) -> 0
A54: L-201 | S54: =SUM(L54,N54,P54,R54) -> 0 | U54: =SUM(K54,M54,O54) -> 0 | Y54: =SUM(S54,S56,S55,S57,-AB54) -> 0 | AB54: =MIN(S54:S57) -> 0
A55: L-202 | S55: =SUM(L55,N55,P55,R55) -> 0 | U55: =SUM(K55,M55,O55) -> 0
A56: L-203 | S56: =SUM(L56,N56,P56,R56) -> 0 | U56: =SUM(K56,M56,O56) -> 0
A57: L-204 | S57: =SUM(L57,N57,P57,R57) -> 0 | U57: =SUM(K57,M57,O57) -> 0
A59: M-201 | S59: =SUM(L59,N59,P59,R59) -> 0 | U59: =SUM(K59,M59,O59) -> 0 | Y59: =SUM(S59,S61,S60,S62,-AB59) -> 0 | AB59: =MIN(S59:S62) -> 0
A60: M-202 | S60: =SUM(L60,N60,P60,R60) -> 0 | U60: =SUM(K60,M60,O60) -> 0
A61: M-203 | S61: =SUM(L61,N61,P61,R61) -> 0 | U61: =SUM(K61,M61,O61) -> 0
A62: M-204 | S62: =SUM(L62,N62,P62,R62) -> 0 | U62: =SUM(K62,M62,O62) -> 0
A64: N-201 | S64: =SUM(L64,N64,P64,R64) -> 0 | U64: =SUM(K64,M64,O64) -> 0 | Y64: =SUM(S64,S66,S65,S67,-AB64) -> 0 | AB64: =MIN(S64:S67) -> 0
A65: N-202 | S65: =SUM(L65,N65,P65,R65) -> 0 | U65: =SUM(K65,M65,O65) -> 0
A66: N-203 | S66: =SUM(L66,N66,P66,R66) -> 0 | U66: =SUM(K66,M66,O66) -> 0
A67: N-204 | S67: =SUM(L67,N67,P67,R67) -> 0 | U67: =SUM(K67,M67,O67) -> 0
A69: P-201 | S69: =SUM(L69,N69,P69,R69) -> 0 | U69: =SUM(K69,M69,O69) -> 0 | Y69: =SUM(S69,S71,S70,S72,-AB69) -> 0 | AB69: =MIN(S69:S72) -> 0
A70: P-202 | S70: =SUM(L70,N70,P70,R70) -> 0 | U70: =SUM(K70,M70,O70) -> 0
A71: P-203 | S71: =SUM(L71,N71,P71,R71) -> 0 | U71: =SUM(K71,M71,O71) -> 0
A72: P-204 | S72: =SUM(L72,N72,P72,R72) -> 0 | U72: =SUM(K72,M72,O72) -> 0
A74: Q-201 | S74: =SUM(L74,N74,P74,R74) -> 0 | U74: =SUM(K74,M74,O74) -> 0 | Y74: =SUM(S74,S76,S75,S77,-AB74) -> 0 | AB74: =MIN(S74:S77) -> 0
A75: Q-202 | S75: =SUM(L75,N75,P75,R75) -> 0 | U75: =SUM(K75,M75,O75) -> 0
A76: Q-203 | S76: =SUM(L76,N76,P76,R76) -> 0 | U76: =SUM(K76,M76,O76) -> 0
A77: Q-204 | S77: =SUM(L77,N77,P77,R77) -> 0 | U77: =SUM(K77,M77,O77) -> 0
A79: R-201 | S79: =SUM(L79,N79,P79,R79) -> 0 | U79: =SUM(K79,M79,O79) -> 0 | Y79: =SUM(S79,S81,S80,S82,-AB79) -> 0 | AB79: =MIN(S79:S82) -> 0
A80: R-202 | S80: =SUM(L80,N80,P80,R80) -> 0 | U80: =SUM(K80,M80,O80) -> 0
A81: R-203 | S81: =SUM(L81,N81,P81,R81) -> 0 | U81: =SUM(K81,M81,O81) -> 0
A82: R-204 | S82: =SUM(L82,N82,P82,R82) -> 0 | U82: =SUM(K82,M82,O82) -> 0
A84: S-201 | S84: =SUM(L84,N84,P84,R84) -> 0 | U84: =SUM(K84,M84,O84) -> 0 | Y84: =SUM(S84,S86,S85,S87,-AB84) -> 0 | AB84: =MIN(S84:S87) -> 0
A85: S-202 | R85: =IF(Q85="1violation",-7*1,IF(Q85="2violations",-7*2,IF(Q85="3violations",-7*3,IF(Q85="","")))) ->  | S85: =SUM(L85,N85,P85,R85) -> 0 | U85: =SUM(K85,M85,O85) -> 0
A86: S-203 | S86: =SUM(L86,N86,P86,R86) -> 0 | U86: =SUM(K86,M86,O86) -> 0
A87: S-204 | S87: =SUM(L87,N87,P87,R87) -> 0 | U87: =SUM(K87,M87,O87) -> 0
A89: T-201 | S89: =SUM(L89,N89,P89,R89) -> 0 | U89: =SUM(K89,M89,O89) -> 0 | Y89: =SUM(S89,S91,S90,S92,-AB89) -> 0 | AB89: =MIN(S89:S92) -> 0
A90: T-202 | S90: =SUM(L90,N90,P90,R90) -> 0 | U90: =SUM(K90,M90,O90) -> 0
A91: T-203 | S91: =SUM(L91,N91,P91,R91) -> 0 | U91: =SUM(K91,M91,O91) -> 0
A92: T-204 | S92: =SUM(L92,N92,P92,R92) -> 0 | U92: =SUM(K92,M92,O92) -> 0
A94: U-201 | S94: =SUM(L94,N94,P94,R94) -> 0 | U94: =SUM(K94,M94,O94) -> 0 | Y94: =SUM(S94,S96,S95,S97,-AB94) -> 0 | AB94: =MIN(S94:S97) -> 0
A95: U-202 | S95: =SUM(L95,N95,P95,R95) -> 0 | U95: =SUM(K95,M95,O95) -> 0
A96: U-203 | S96: =SUM(L96,N96,P96,R96) -> 0 | U96: =SUM(K96,M96,O96) -> 0
A97: U-204 | S97: =SUM(L97,N97,P97,R97) -> 0 | U97: =SUM(K97,M97,O97) -> 0
A99: V-201 | S99: =SUM(L99,N99,P99,R99) -> 0 | U99: =SUM(K99,M99,O99) -> 0 | Y99: =SUM(S99,S101,S100,S102,-AB99) -> 0 | AB99: =MIN(S99:S102) -> 0
A100: V-202 | S100: =SUM(L100,N100,P100,R100) -> 0 | U100: =SUM(K100,M100,O100) -> 0
A101: V-203 | S101: =SUM(L101,N101,P101,R101) -> 0 | U101: =SUM(K101,M101,O101) -> 0
A102: V-204 | S102: =SUM(L102,N102,P102,R102) -> 0 | U102: =SUM(K102,M102,O102) -> 0
A104: W-201 | S104: =SUM(L104,N104,P104,R104) -> 0 | U104: =SUM(K104,M104,O104) -> 0 | Y104: =SUM(S104,S106,S105,S107,-AB104) -> 0 | AB104: =MIN(S104:S107) -> 0
A105: W-202 | S105: =SUM(L105,N105,P105,R105) -> 0 | U105: =SUM(K105,M105,O105) -> 0
A106: W-203 | S106: =SUM(L106,N106,P106,R106) -> 0 | U106: =SUM(K106,M106,O106) -> 0
A107: W-204 | S107: =SUM(L107,N107,P107,R107) -> 0 | U107: =SUM(K107,M107,O107) -> 0
A109: X-201 | S109: =SUM(L109,N109,P109,R109) -> 0 | U109: =SUM(K109,M109,O109) -> 0 | Y109: =SUM(S109,S111,S110,S112,-AB109) -> 0 | AB109: =MIN(S109:S112) -> 0
A110: X-202 | S110: =SUM(L110,N110,P110,R110) -> 0 | U110: =SUM(K110,M110,O110) -> 0
A111: X-203 | S111: =SUM(L111,N111,P111,R111) -> 0 | U111: =SUM(K111,M111,O111) -> 0
A112: X-204 | S112: =SUM(L112,N112,P112,R112) -> 0 | U112: =SUM(K112,M112,O112) -> 0
A114: Y-201 | S114: =SUM(L114,N114,P114,R114) -> 0 | U114: =SUM(K114,M114,O114) -> 0 | Y114: =SUM(S114,S116,S115,S117,-AB114) -> 0 | AB114: =MIN(S114:S117) -> 0
A115: Y-202 | S115: =SUM(L115,N115,P115,R115) -> 0 | U115: =SUM(K115,M115,O115) -> 0
A116: Y-203 | S116: =SUM(L116,N116,P116,R116) -> 0 | U116: =SUM(K116,M116,O116) -> 0
A117: Y-204 | S117: =SUM(L117,N117,P117,R117) -> 0 | U117: =SUM(K117,M117,O117) -> 0
A119: Z-201 | S119: =SUM(L119,N119,P119,R119) -> 0 | U119: =SUM(K119,M119,O119) -> 0 | Y119: =SUM(S119,S121,S120,S122,-AB119) -> 0 | AB119: =MIN(S119:S122) -> 0
A120: Z-202 | S120: =SUM(L120,N120,P120,R120) -> 0 | U120: =SUM(K120,M120,O120) -> 0
A121: Z-203 | S121: =SUM(L121,N121,P121,R121) -> 0 | U121: =SUM(K121,M121,O121) -> 0
A122: Z-204 | S122: =SUM(L122,N122,P122,R122) -> 0 | U122: =SUM(K122,M122,O122) -> 0
A124: AA-201 | S124: =SUM(L124,N124,P124,R124) -> 0 | U124: =SUM(K124,M124,O124) -> 0 | Y124: =SUM(S124,S126,S125,S127,-AB124) -> 0 | AB124: =MIN(S124:S127) -> 0
A125: AA-202 | S125: =SUM(L125,N125,P125,R125) -> 0 | U125: =SUM(K125,M125,O125) -> 0
A126: AA-203 | S126: =SUM(L126,N126,P126,R126) -> 0 | U126: =SUM(K126,M126,O126) -> 0
A127: AA-204 | S127: =SUM(L127,N127,P127,R127) -> 0 | U127: =SUM(K127,M127,O127) -> 0
A129: BB-201 | S129: =SUM(L129,N129,P129,R129) -> 0 | U129: =SUM(K129,M129,O129) -> 0 | Y129: =SUM(S129,S131,S130,S132,-AB129) -> 0 | AB129: =MIN(S129:S132) -> 0
A130: BB-202 | S130: =SUM(L130,N130,P130,R130) -> 0 | U130: =SUM(K130,M130,O130) -> 0
A131: BB-203 | S131: =SUM(L131,N131,P131,R131) -> 0 | U131: =SUM(K131,M131,O131) -> 0
A132: BB-204 | S132: =SUM(L132,N132,P132,R132) -> 0 | U132: =SUM(K132,M132,O132) -> 0
A134: CC-201 | S134: =SUM(L134,N134,P134,R134) -> 0 | U134: =SUM(K134,M134,O134) -> 0 | Y134: =SUM(S134,S136,S135,S137,-AB134) -> 0 | AB134: =MIN(S134:S137) -> 0
A135: CC-202 | S135: =SUM(L135,N135,P135,R135) -> 0 | U135: =SUM(K135,M135,O135) -> 0
A136: CC-203 | S136: =SUM(L136,N136,P136,R136) -> 0 | U136: =SUM(K136,M136,O136) -> 0
A137: CC-204 | S137: =SUM(L137,N137,P137,R137) -> 0 | U137: =SUM(K137,M137,O137) -> 0
A139: DD-201 | S139: =SUM(L139,N139,P139,R139) -> 0 | U139: =SUM(K139,M139,O139) -> 0 | Y139: =SUM(S139,S141,S140,S142,-AB139) -> 0 | AB139: =MIN(S139:S142) -> 0
A140: DD-202 | S140: =SUM(L140,N140,P140,R140) -> 0 | U140: =SUM(K140,M140,O140) -> 0
A141: DD-203 | S141: =SUM(L141,N141,P141,R141) -> 0 | U141: =SUM(K141,M141,O141) -> 0
A142: DD-204 | S142: =SUM(L142,N142,P142,R142) -> 0 | U142: =SUM(K142,M142,O142) -> 0
A144: EE-201 | S144: =SUM(L144,N144,P144,R144) -> 0 | U144: =SUM(K144,M144,O144) -> 0 | Y144: =SUM(S144,S146,S145,S147,-AB144) -> 0 | AB144: =MIN(S144:S147) -> 0
A145: EE-202 | S145: =SUM(L145,N145,P145,R145) -> 0 | U145: =SUM(K145,M145,O145) -> 0
A146: EE-203 | S146: =SUM(L146,N146,P146,R146) -> 0 | U146: =SUM(K146,M146,O146) -> 0
A147: EE-204 | S147: =SUM(L147,N147,P147,R147) -> 0 | U147: =SUM(K147,M147,O147) -> 0
A149: FF-201 | S149: =SUM(L149,N149,P149,R149) -> 0 | U149: =SUM(K149,M149,O149) -> 0 | Y149: =SUM(S149,S151,S150,S152,-AB149) -> 0 | AB149: =MIN(S149:S152) -> 0
A150: FF-202 | S150: =SUM(L150,N150,P150,R150) -> 0 | U150: =SUM(K150,M150,O150) -> 0
A151: FF-203 | S151: =SUM(L151,N151,P151,R151) -> 0 | U151: =SUM(K151,M151,O151) -> 0
A152: FF-204 | S152: =SUM(L152,N152,P152,R152) -> 0 | U152: =SUM(K152,M152,O152) -> 0

Sheet DramaticMR
A1: Dramatic | F1: Finals Medals Round Scores
A2: ID | B2: Column1 | C2: Rank | D2: Score | E2: LeaveBlank | F2: MR 1 Rank | G2: MR 1 Score | H2: MR2 Rank | I2: MR 2 Score | J2: MR3 Rank | K2: MR 3 Score | L2: Total MR Rank | M2: Total MR Score | N2: Column2
A3: =Dramatic!A5 -> A-202 | B3: =VLOOKUP(Table710[[#This Row],[ID]],Dramatic!A:H,8,FALSE) -> (504) Mary C. | C3: =Dramatic!U5 -> 4 | D3: =Dramatic!S5 -> 75 | E3: =IF((Table710[[#This Row],[Rank]]+Table710[[#This Row],[Score]])>0,1,0) -> 1 | F3: 1 | G3: 25 | H3: 1 | I3: 25 | J3: 1 | K3: 25 | L3: =SUM(F3,H3,J3) -> 3 | M3: =SUM(G3,I3,K3) -> 75 | N3: 1st
A4: =Dramatic!A19 -> D-201 | B4: =VLOOKUP(Table710[[#This Row],[ID]],Dramatic!A:H,8,FALSE) -> (507) Mary Anderson | C4: =Dramatic!U19 -> 4 | D4: =Dramatic!S19 -> 74 | E4: =IF((Table710[[#This Row],[Rank]]+Table710[[#This Row],[Score]])>0,1,0) -> 1 | F4: 2 | G4: 25 | H4: 3 | I4: 23 | J4: 2 | K4: 24 | L4: =SUM(F4,H4,J4) -> 7 | M4: =SUM(G4,I4,K4) -> 72 | N4: 2nd
A5: =Dramatic!A9 -> B-201 | B5: =VLOOKUP(Table710[[#This Row],[ID]],Dramatic!A:H,8,FALSE) -> (500) Jaren Henrie | C5: =Dramatic!U9 -> 5 | D5: =Dramatic!S9 -> 69 | E5: =IF((Table710[[#This Row],[Rank]]+Table710[[#This Row],[Score]])>0,1,0) -> 1 | F5: 4 | G5: 24 | H5: 4 | I5: 23 | J5: 5 | K5: 21 | L5: =SUM(F5,H5,J5) -> 13 | M5: =SUM(G5,I5,K5) -> 68
A6: =Dramatic!A11 -> B-203 | B6: =VLOOKUP(Table710[[#This Row],[ID]],Dramatic!A:H,8,FALSE) -> (502) Kam Petsche | C6: =Dramatic!U11 -> 7 | D6: =Dramatic!S11 -> 72 | E6: =IF((Table710[[#This Row],[Rank]]+Table710[[#This Row],[Score]])>0,1,0) -> 1 | F6: 3 | G6: 24 | H6: 2 | I6: 24 | J6: 3 | K6: 23 | L6: =SUM(F6,H6,J6) -> 8 | M6: =SUM(G6,I6,K6) -> 71 | N6: 3rd
A7: =Dramatic!A10 -> B-202 | B7: =VLOOKUP(Table710[[#This Row],[ID]],Dramatic!A:H,8,FALSE) -> (501) Layna Hatch | C7: =Dramatic!U10 -> 9 | D7: =Dramatic!S10 -> 71 | E7: =IF((Table710[[#This Row],[Rank]]+Table710[[#This Row],[Score]])>0,1,0) -> 1 | F7: 5 | G7: 24 | H7: 5 | I7: 23 | J7: 4 | K7: 23 | L7: =SUM(F7,H7,J7) -> 14 | M7: =SUM(G7,I7,K7) -> 70
A8: =Dramatic!A29 -> F-201 | B8: =VLOOKUP(Table710[[#This Row],[ID]],Dramatic!A:H,8,FALSE) -> (509) Raif McCoy | C8: =Dramatic!U29 -> 10 | D8: =Dramatic!S29 -> 70 | E8: =IF((Table710[[#This Row],[Rank]]+Table710[[#This Row],[Score]])>0,1,0) -> 1 | L8: =SUM(F8,H8,J8) -> 0 | M8: =SUM(G8,I8,K8) -> 0
A9: =Dramatic!A7 -> A-204 | B9: =VLOOKUP(Table710[[#This Row],[ID]],Dramatic!A:H,8,FALSE) -> (506) Ameerah | C9: =Dramatic!U7 -> 10 | D9: =Dramatic!S7 -> 68 | E9: =IF((Table710[[#This Row],[Rank]]+Table710[[#This Row],[Score]])>0,1,0) -> 1 | L9: =SUM(F9,H9,J9) -> 0 | M9: =SUM(G9,I9,K9) -> 0
A10: =Dramatic!A20 -> D-202 | B10: =VLOOKUP(Table710[[#This Row],[ID]],Dramatic!A:H,8,FALSE) -> (508) Jacalyn Hulce | C10: =Dramatic!U20 -> 11 | D10: =Dramatic!S20 -> 60 | E10: =IF((Table710[[#This Row],[Rank]]+Table710[[#This Row],[Score]])>0,1,0) -> 1 | L10: =SUM(F10,H10,J10) -> 0 | M10: =SUM(G10,I10,K10) -> 0
A11: =Dramatic!A4 -> A-201 | B11: =VLOOKUP(Table710[[#This Row],[ID]],Dramatic!A:H,8,FALSE) -> (503) Cole B. | C11: =Dramatic!U4 -> 12 | D11: =Dramatic!S4 -> 61 | E11: =IF((Table710[[#This Row],[Rank]]+Table710[[#This Row],[Score]])>0,1,0) -> 1 | L11: =SUM(F11,H11,J11) -> 0 | M11: =SUM(G11,I11,K11) -> 0
A12: =Dramatic!A6 -> A-203 | B12: =VLOOKUP(Table710[[#This Row],[ID]],Dramatic!A:H,8,FALSE) -> (505) Melissa P. | C12: =Dramatic!U6 -> 12 | D12: =Dramatic!S6 -> 58 | E12: =IF((Table710[[#This Row],[Rank]]+Table710[[#This Row],[Score]])>0,1,0) -> 1 | L12: =SUM(F12,H12,J12) -> 0 | M12: =SUM(G12,I12,K12) -> 0
A13: =Dramatic!A124 -> AA-201 | B13: =VLOOKUP(Table710[[#This Row],[ID]],Dramatic!A:H,8,FALSE) -> 0 | C13: =Dramatic!U124 -> 0 | D13: =Dramatic!S124 -> 0 | E13: =IF((Table710[[#This Row],[Rank]]+Table710[[#This Row],[Score]])>0,1,0) -> 0 | L13: =SUM(F13,H13,J13) -> 0 | M13: =SUM(G13,I13,K13) -> 0
A14: =Dramatic!A125 -> AA-202 | B14: =VLOOKUP(Table710[[#This Row],[ID]],Dramatic!A:H,8,FALSE) -> 0 | C14: =Dramatic!U125 -> 0 | D14: =Dramatic!S125 -> 0 | E14: =IF((Table710[[#This Row],[Rank]]+Table710[[#This Row],[Score]])>0,1,0) -> 0 | L14: =SUM(F14,H14,J14) -> 0 | M14: =SUM(G14,I14,K14) -> 0
A15: =Dramatic!A126 -> AA-203 | B15: =VLOOKUP(Table710[[#This Row],[ID]],Dramatic!A:H,8,FALSE) -> 0 | C15: =Dramatic!U126 -> 0 | D15: =Dramatic!S126 -> 0 | E15: =IF((Table710[[#This Row],[Rank]]+Table710[[#This Row],[Score]])>0,1,0) -> 0 | L15: =SUM(F15,H15,J15) -> 0 | M15: =SUM(G15,I15,K15) -> 0
A16: =Dramatic!A127 -> AA-204 | B16: =VLOOKUP(Table710[[#This Row],[ID]],Dramatic!A:H,8,FALSE) -> 0 | C16: =Dramatic!U127 -> 0 | D16: =Dramatic!S127 -> 0 | E16: =IF((Table710[[#This Row],[Rank]]+Table710[[#This Row],[Score]])>0,1,0) -> 0 | L16: =SUM(F16,H16,J16) -> 0 | M16: =SUM(G16,I16,K16) -> 0
A17: =Dramatic!A12 -> B-204 | B17: =VLOOKUP(Table710[[#This Row],[ID]],Dramatic!A:H,8,FALSE) -> 0 | C17: =Dramatic!U12 -> 0 | D17: =Dramatic!S12 -> 0 | E17: =IF((Table710[[#This Row],[Rank]]+Table710[[#This Row],[Score]])>0,1,0) -> 0 | L17: =SUM(F17,H17,J17) -> 0 | M17: =SUM(G17,I17,K17) -> 0
A18: =Dramatic!A129 -> BB-201 | B18: =VLOOKUP(Table710[[#This Row],[ID]],Dramatic!A:H,8,FALSE) -> 0 | C18: =Dramatic!U129 -> 0 | D18: =Dramatic!S129 -> 0 | E18: =IF((Table710[[#This Row],[Rank]]+Table710[[#This Row],[Score]])>0,1,0) -> 0 | L18: =SUM(F18,H18,J18) -> 0 | M18: =SUM(G18,I18,K18) -> 0
A19: =Dramatic!A130 -> BB-202 | B19: =VLOOKUP(Table710[[#This Row],[ID]],Dramatic!A:H,8,FALSE) -> 0 | C19: =Dramatic!U130 -> 0 | D19: =Dramatic!S130 -> 0 | E19: =IF((Table710[[#This Row],[Rank]]+Table710[[#This Row],[Score]])>0,1,0) -> 0 | L19: =SUM(F19,H19,J19) -> 0 | M19: =SUM(G19,I19,K19) -> 0
A20: =Dramatic!A131 -> BB-203 | B20: =VLOOKUP(Table710[[#This Row],[ID]],Dramatic!A:H,8,FALSE) -> 0 | C20: =Dramatic!U131 -> 0 | D20: =Dramatic!S131 -> 0 | E20: =IF((Table710[[#This Row],[Rank]]+Table710[[#This Row],[Score]])>0,1,0) -> 0 | L20: =SUM(F20,H20,J20) -> 0 | M20: =SUM(G20,I20,K20) -> 0
A21: =Dramatic!A132 -> BB-204 | B21: =VLOOKUP(Table710[[#This Row],[ID]],Dramatic!A:H,8,FALSE) -> 0 | C21: =Dramatic!U132 -> 0 | D21: =Dramatic!S132 -> 0 | E21: =IF((Table710[[#This Row],[Rank]]+Table710[[#This Row],[Score]])>0,1,0) -> 0 | L21: =SUM(F21,H21,J21) -> 0 | M21: =SUM(G21,I21,K21) -> 0
A22: =Dramatic!A14 -> C-201 | B22: =VLOOKUP(Table710[[#This Row],[ID]],Dramatic!A:H,8,FALSE) -> 0 | C22: =Dramatic!U14 -> 0 | D22: =Dramatic!S14 -> 0 | E22: =IF((Table710[[#This Row],[Rank]]+Table710[[#This Row],[Score]])>0,1,0) -> 0 | L22: =SUM(F22,H22,J22) -> 0 | M22: =SUM(G22,I22,K22) -> 0
A23: =Dramatic!A15 -> C-202 | B23: =VLOOKUP(Table710[[#This Row],[ID]],Dramatic!A:H,8,FALSE) -> 0 | C23: =Dramatic!U15 -> 0 | D23: =Dramatic!S15 -> 0 | E23: =IF((Table710[[#This Row],[Rank]]+Table710[[#This Row],[Score]])>0,1,0) -> 0 | L23: =SUM(F23,H23,J23) -> 0 | M23: =SUM(G23,I23,K23) -> 0
A24: =Dramatic!A16 -> C-203 | B24: =VLOOKUP(Table710[[#This Row],[ID]],Dramatic!A:H,8,FALSE) -> 0 | C24: =Dramatic!U16 -> 0 | D24: =Dramatic!S16 -> 0 | E24: =IF((Table710[[#This Row],[Rank]]+Table710[[#This Row],[Score]])>0,1,0) -> 0 | L24: =SUM(F24,H24,J24) -> 0 | M24: =SUM(G24,I24,K24) -> 0
A25: =Dramatic!A17 -> C-204 | B25: =VLOOKUP(Table710[[#This Row],[ID]],Dramatic!A:H,8,FALSE) -> 0 | C25: =Dramatic!U17 -> 0 | D25: =Dramatic!S17 -> 0 | E25: =IF((Table710[[#This Row],[Rank]]+Table710[[#This Row],[Score]])>0,1,0) -> 0 | L25: =SUM(F25,H25,J25) -> 0 | M25: =SUM(G25,I25,K25) -> 0
A26: =Dramatic!A134 -> CC-201 | B26: =VLOOKUP(Table710[[#This Row],[ID]],Dramatic!A:H,8,FALSE) -> 0 | C26: =Dramatic!U134 -> 0 | D26: =Dramatic!S134 -> 0 | E26: =IF((Table710[[#This Row],[Rank]]+Table710[[#This Row],[Score]])>0,1,0) -> 0 | L26: =SUM(F26,H26,J26) -> 0 | M26: =SUM(G26,I26,K26) -> 0
A27: =Dramatic!A135 -> CC-202 | B27: =VLOOKUP(Table710[[#This Row],[ID]],Dramatic!A:H,8,FALSE) -> 0 | C27: =Dramatic!U135 -> 0 | D27: =Dramatic!S135 -> 0 | E27: =IF((Table710[[#This Row],[Rank]]+Table710[[#This Row],[Score]])>0,1,0) -> 0 | L27: =SUM(F27,H27,J27) -> 0 | M27: =SUM(G27,I27,K27) -> 0
A28: =Dramatic!A136 -> CC-203 | B28: =VLOOKUP(Table710[[#This Row],[ID]],Dramatic!A:H,8,FALSE) -> 0 | C28: =Dramatic!U136 -> 0 | D28: =Dramatic!S136 -> 0 | E28: =IF((Table710[[#This Row],[Rank]]+Table710[[#This Row],[Score]])>0,1,0) -> 0 | L28: =SUM(F28,H28,J28) -> 0 | M28: =SUM(G28,I28,K28) -> 0
A29: =Dramatic!A137 -> CC-204 | B29: =VLOOKUP(Table710[[#This Row],[ID]],Dramatic!A:H,8,FALSE) -> 0 | C29: =Dramatic!U137 -> 0 | D29: =Dramatic!S137 -> 0 | E29: =IF((Table710[[#This Row],[Rank]]+Table710[[#This Row],[Score]])>0,1,0) -> 0 | L29: =SUM(F29,H29,J29) -> 0 | M29: =SUM(G29,I29,K29) -> 0
A30: =Dramatic!A21 -> D-203 | B30: =VLOOKUP(Table710[[#This Row],[ID]],Dramatic!A:H,8,FALSE) -> 0 | C30: =Dramatic!U21 -> 0 | D30: =Dramatic!S21 -> 0 | E30: =IF((Table710[[#This Row],[Rank]]+Table710[[#This Row],[Score]])>0,1,0) -> 0 | L30: =SUM(F30,H30,J30) -> 0 | M30: =SUM(G30,I30,K30) -> 0
A31: =Dramatic!A22 -> D-204 | B31: =VLOOKUP(Table710[[#This Row],[ID]],Dramatic!A:H,8,FALSE) -> 0 | C31: =Dramatic!U22 -> 0 | D31: =Dramatic!S22 -> 0 | E31: =IF((Table710[[#This Row],[Rank]]+Table710[[#This Row],[Score]])>0,1,0) -> 0 | L31: =SUM(F31,H31,J31) -> 0 | M31: =SUM(G31,I31,K31) -> 0
A32: =Dramatic!A139 -> DD-201 | B32: =VLOOKUP(Table710[[#This Row],[ID]],Dramatic!A:H,8,FALSE) -> 0 | C32: =Dramatic!U139 -> 0 | D32: =Dramatic!S139 -> 0 | E32: =IF((Table710[[#This Row],[Rank]]+Table710[[#This Row],[Score]])>0,1,0) -> 0 | L32: =SUM(F32,H32,J32) -> 0 | M32: =SUM(G32,I32,K32) -> 0
A33: =Dramatic!A140 -> DD-202 | B33: =VLOOKUP(Table710[[#This Row],[ID]],Dramatic!A:H,8,FALSE) -> 0 | C33: =Dramatic!U140 -> 0 | D33: =Dramatic!S140 -> 0 | E33: =IF((Table710[[#This Row],[Rank]]+Table710[[#This Row],[Score]])>0,1,0) -> 0 | L33: =SUM(F33,H33,J33) -> 0 | M33: =SUM(G33,I33,K33) -> 0
A34: =Dramatic!A141 -> DD-203 | B34: =VLOOKUP(Table710[[#This Row],[ID]],Dramatic!A:H,8,FALSE) -> 0 | C34: =Dramatic!U141 -> 0 | D34: =Dramatic!S141 -> 0 | E34: =IF((Table710[[#This Row],[Rank]]+Table710[[#This Row],[Score]])>0,1,0) -> 0 | L34: =SUM(F34,H34,J34) -> 0 | M34: =SUM(G34,I34,K34) -> 0
A35: =Dramatic!A142 -> DD-204 | B35: =VLOOKUP(Table710[[#This Row],[ID]],Dramatic!A:H,8,FALSE) -> 0 | C35: =Dramatic!U142 -> 0 | D35: =Dramatic!S142 -> 0 | E35: =IF((Table710[[#This Row],[Rank]]+Table710[[#This Row],[Score]])>0,1,0) -> 0 | L35: =SUM(F35,H35,J35) -> 0 | M35: =SUM(G35,I35,K35) -> 0
A36: =Dramatic!A24 -> E-201 | B36: =VLOOKUP(Table710[[#This Row],[ID]],Dramatic!A:H,8,FALSE) -> 0 | C36: =Dramatic!U24 -> 0 | D36: =Dramatic!S24 -> 0 | E36: =IF((Table710[[#This Row],[Rank]]+Table710[[#This Row],[Score]])>0,1,0) -> 0 | L36: =SUM(F36,H36,J36) -> 0 | M36: =SUM(G36,I36,K36) -> 0
A37: =Dramatic!A25 -> E-202 | B37: =VLOOKUP(Table710[[#This Row],[ID]],Dramatic!A:H,8,FALSE) -> 0 | C37: =Dramatic!U25 -> 0 | D37: =Dramatic!S25 -> 0 | E37: =IF((Table710[[#This Row],[Rank]]+Table710[[#This Row],[Score]])>0,1,0) -> 0 | L37: =SUM(F37,H37,J37) -> 0 | M37: =SUM(G37,I37,K37) -> 0
A38: =Dramatic!A26 -> E-203 | B38: =VLOOKUP(Table710[[#This Row],[ID]],Dramatic!A:H,8,FALSE) -> 0 | C38: =Dramatic!U26 -> 0 | D38: =Dramatic!S26 -> 0 | E38: =IF((Table710[[#This Row],[Rank]]+Table710[[#This Row],[Score]])>0,1,0) -> 0 | L38: =SUM(F38,H38,J38) -> 0 | M38: =SUM(G38,I38,K38) -> 0
A39: =Dramatic!A27 -> E-204 | B39: =VLOOKUP(Table710[[#This Row],[ID]],Dramatic!A:H,8,FALSE) -> 0 | C39: =Dramatic!U27 -> 0 | D39: =Dramatic!S27 -> 0 | E39: =IF((Table710[[#This Row],[Rank]]+Table710[[#This Row],[Score]])>0,1,0) -> 0 | L39: =SUM(F39,H39,J39) -> 0 | M39: =SUM(G39,I39,K39) -> 0
A40: =Dramatic!A144 -> EE-201 | B40: =VLOOKUP(Table710[[#This Row],[ID]],Dramatic!A:H,8,FALSE) -> 0 | C40: =Dramatic!U144 -> 0 | D40: =Dramatic!S144 -> 0 | E40: =IF((Table710[[#This Row],[Rank]]+Table710[[#This Row],[Score]])>0,1,0) -> 0 | L40: =SUM(F40,H40,J40) -> 0 | M40: =SUM(G40,I40,K40) -> 0
A41: =Dramatic!A145 -> EE-202 | B41: =VLOOKUP(Table710[[#This Row],[ID]],Dramatic!A:H,8,FALSE) -> 0 | C41: =Dramatic!U145 -> 0 | D41: =Dramatic!S145 -> 0 | E41: =IF((Table710[[#This Row],[Rank]]+Table710[[#This Row],[Score]])>0,1,0) -> 0 | L41: =SUM(F41,H41,J41) -> 0 | M41: =SUM(G41,I41,K41) -> 0
A42: =Dramatic!A146 -> EE-203 | B42: =VLOOKUP(Table710[[#This Row],[ID]],Dramatic!A:H,8,FALSE) -> 0 | C42: =Dramatic!U146 -> 0 | D42: =Dramatic!S146 -> 0 | E42: =IF((Table710[[#This Row],[Rank]]+Table710[[#This Row],[Score]])>0,1,0) -> 0 | L42: =SUM(F42,H42,J42) -> 0 | M42: =SUM(G42,I42,K42) -> 0
A43: =Dramatic!A147 -> EE-204 | B43: =VLOOKUP(Table710[[#This Row],[ID]],Dramatic!A:H,8,FALSE) -> 0 | C43: =Dramatic!U147 -> 0 | D43: =Dramatic!S147 -> 0 | E43: =IF((Table710[[#This Row],[Rank]]+Table710[[#This Row],[Score]])>0,1,0) -> 0 | L43: =SUM(F43,H43,J43) -> 0 | M43: =SUM(G43,I43,K43) -> 0
A44: =Dramatic!A30 -> F-202 | B44: =VLOOKUP(Table710[[#This Row],[ID]],Dramatic!A:H,8,FALSE) -> 0 | C44: =Dramatic!U30 -> 0 | D44: =Dramatic!S30 -> 0 | E44: =IF((Table710[[#This Row],[Rank]]+Table710[[#This Row],[Score]])>0,1,0) -> 0 | L44: =SUM(F44,H44,J44) -> 0 | M44: =SUM(G44,I44,K44) -> 0
A45: =Dramatic!A32 -> F-204 | B45: =VLOOKUP(Table710[[#This Row],[ID]],Dramatic!A:H,8,FALSE) -> 0 | C45: =Dramatic!U32 -> 0 | D45: =Dramatic!S32 -> 0 | E45: =IF((Table710[[#This Row],[Rank]]+Table710[[#This Row],[Score]])>0,1,0) -> 0 | L45: =SUM(F45,H45,J45) -> 0 | M45: =SUM(G45,I45,K45) -> 0
A46: =Dramatic!A149 -> FF-201 | B46: =VLOOKUP(Table710[[#This Row],[ID]],Dramatic!A:H,8,FALSE) -> 0 | C46: =Dramatic!U149 -> 0 | D46: =Dramatic!S149 -> 0 | E46: =IF((Table710[[#This Row],[Rank]]+Table710[[#This Row],[Score]])>0,1,0) -> 0 | L46: =SUM(F46,H46,J46) -> 0 | M46: =SUM(G46,I46,K46) -> 0
A47: =Dramatic!A150 -> FF-202 | B47: =VLOOKUP(Table710[[#This Row],[ID]],Dramatic!A:H,8,FALSE) -> 0 | C47: =Dramatic!U150 -> 0 | D47: =Dramatic!S150 -> 0 | E47: =IF((Table710[[#This Row],[Rank]]+Table710[[#This Row],[Score]])>0,1,0) -> 0 | L47: =SUM(F47,H47,J47) -> 0 | M47: =SUM(G47,I47,K47) -> 0
A48: =Dramatic!A151 -> FF-203 | B48: =VLOOKUP(Table710[[#This Row],[ID]],Dramatic!A:H,8,FALSE) -> 0 | C48: =Dramatic!U151 -> 0 | D48: =Dramatic!S151 -> 0 | E48: =IF((Table710[[#This Row],[Rank]]+Table710[[#This Row],[Score]])>0,1,0) -> 0 | L48: =SUM(F48,H48,J48) -> 0 | M48: =SUM(G48,I48,K48) -> 0
A49: =Dramatic!A152 -> FF-204 | B49: =VLOOKUP(Table710[[#This Row],[ID]],Dramatic!A:H,8,FALSE) -> 0 | C49: =Dramatic!U152 -> 0 | D49: =Dramatic!S152 -> 0 | E49: =IF((Table710[[#This Row],[Rank]]+Table710[[#This Row],[Score]])>0,1,0) -> 0 | L49: =SUM(F49,H49,J49) -> 0 | M49: =SUM(G49,I49,K49) -> 0
A50: =Dramatic!A34 -> G-201 | B50: =VLOOKUP(Table710[[#This Row],[ID]],Dramatic!A:H,8,FALSE) -> 0 | C50: =Dramatic!U34 -> 0 | D50: =Dramatic!S34 -> 0 | E50: =IF((Table710[[#This Row],[Rank]]+Table710[[#This Row],[Score]])>0,1,0) -> 0 | L50: =SUM(F50,H50,J50) -> 0 | M50: =SUM(G50,I50,K50) -> 0
A51: =Dramatic!A35 -> G-202 | B51: =VLOOKUP(Table710[[#This Row],[ID]],Dramatic!A:H,8,FALSE) -> 0 | C51: =Dramatic!U35 -> 0 | D51: =Dramatic!S35 -> 0 | E51: =IF((Table710[[#This Row],[Rank]]+Table710[[#This Row],[Score]])>0,1,0) -> 0 | L51: =SUM(F51,H51,J51) -> 0 | M51: =SUM(G51,I51,K51) -> 0
A52: =Dramatic!A36 -> G-203 | B52: =VLOOKUP(Table710[[#This Row],[ID]],Dramatic!A:H,8,FALSE) -> 0 | C52: =Dramatic!U36 -> 0 | D52: =Dramatic!S36 -> 0 | E52: =IF((Table710[[#This Row],[Rank]]+Table710[[#This Row],[Score]])>0,1,0) -> 0 | L52: =SUM(F52,H52,J52) -> 0 | M52: =SUM(G52,I52,K52) -> 0
A53: =Dramatic!A37 -> G-204 | B53: =VLOOKUP(Table710[[#This Row],[ID]],Dramatic!A:H,8,FALSE) -> 0 | C53: =Dramatic!U37 -> 0 | D53: =Dramatic!S37 -> 0 | E53: =IF((Table710[[#This Row],[Rank]]+Table710[[#This Row],[Score]])>0,1,0) -> 0 | L53: =SUM(F53,H53,J53) -> 0 | M53: =SUM(G53,I53,K53) -> 0
A54: =Dramatic!A39 -> H-201 | B54: =VLOOKUP(Table710[[#This Row],[ID]],Dramatic!A:H,8,FALSE) -> 0 | C54: =Dramatic!U39 -> 0 | D54: =Dramatic!S39 -> 0 | E54: =IF((Table710[[#This Row],[Rank]]+Table710[[#This Row],[Score]])>0,1,0) -> 0 | L54: =SUM(F54,H54,J54) -> 0 | M54: =SUM(G54,I54,K54) -> 0
A55: =Dramatic!A40 -> H-202 | B55: =VLOOKUP(Table710[[#This Row],[ID]],Dramatic!A:H,8,FALSE) -> 0 | C55: =Dramatic!U40 -> 0 | D55: =Dramatic!S40 -> 0 | E55: =IF((Table710[[#This Row],[Rank]]+Table710[[#This Row],[Score]])>0,1,0) -> 0 | L55: =SUM(F55,H55,J55) -> 0 | M55: =SUM(G55,I55,K55) -> 0
A56: =Dramatic!A41 -> H-203 | B56: =VLOOKUP(Table710[[#This Row],[ID]],Dramatic!A:H,8,FALSE) -> 0 | C56: =Dramatic!U41 -> 0 | D56: =Dramatic!S41 -> 0 | E56: =IF((Table710[[#This Row],[Rank]]+Table710[[#This Row],[Score]])>0,1,0) -> 0 | L56: =SUM(F56,H56,J56) -> 0 | M56: =SUM(G56,I56,K56) -> 0
A57: =Dramatic!A42 -> H-204 | B57: =VLOOKUP(Table710[[#This Row],[ID]],Dramatic!A:H,8,FALSE) -> 0 | C57: =Dramatic!U42 -> 0 | D57: =Dramatic!S42 -> 0 | E57: =IF((Table710[[#This Row],[Rank]]+Table710[[#This Row],[Score]])>0,1,0) -> 0 | L57: =SUM(F57,H57,J57) -> 0 | M57: =SUM(G57,I57,K57) -> 0
A58: =Dramatic!A44 -> J-201 | B58: =VLOOKUP(Table710[[#This Row],[ID]],Dramatic!A:H,8,FALSE) -> 0 | C58: =Dramatic!U44 -> 0 | D58: =Dramatic!S44 -> 0 | E58: =IF((Table710[[#This Row],[Rank]]+Table710[[#This Row],[Score]])>0,1,0) -> 0 | L58: =SUM(F58,H58,J58) -> 0 | M58: =SUM(G58,I58,K58) -> 0
A59: =Dramatic!A45 -> J-202 | B59: =VLOOKUP(Table710[[#This Row],[ID]],Dramatic!A:H,8,FALSE) -> 0 | C59: =Dramatic!U45 -> 0 | D59: =Dramatic!S45 -> 0 | E59: =IF((Table710[[#This Row],[Rank]]+Table710[[#This Row],[Score]])>0,1,0) -> 0 | L59: =SUM(F59,H59,J59) -> 0 | M59: =SUM(G59,I59,K59) -> 0
A60: =Dramatic!A46 -> J-203 | B60: =VLOOKUP(Table710[[#This Row],[ID]],Dramatic!A:H,8,FALSE) -> 0 | C60: =Dramatic!U46 -> 0 | D60: =Dramatic!S46 -> 0 | E60: =IF((Table710[[#This Row],[Rank]]+Table710[[#This Row],[Score]])>0,1,0) -> 0 | L60: =SUM(F60,H60,J60) -> 0 | M60: =SUM(G60,I60,K60) -> 0
A61: =Dramatic!A47 -> J-204 | B61: =VLOOKUP(Table710[[#This Row],[ID]],Dramatic!A:H,8,FALSE) -> 0 | C61: =Dramatic!U47 -> 0 | D61: =Dramatic!S47 -> 0 | E61: =IF((Table710[[#This Row],[Rank]]+Table710[[#This Row],[Score]])>0,1,0) -> 0 | L61: =SUM(F61,H61,J61) -> 0 | M61: =SUM(G61,I61,K61) -> 0
A62: =Dramatic!A49 -> K-201 | B62: =VLOOKUP(Table710[[#This Row],[ID]],Dramatic!A:H,8,FALSE) -> 0 | C62: =Dramatic!U49 -> 0 | D62: =Dramatic!S49 -> 0 | E62: =IF((Table710[[#This Row],[Rank]]+Table710[[#This Row],[Score]])>0,1,0) -> 0 | L62: =SUM(F62,H62,J62) -> 0 | M62: =SUM(G62,I62,K62) -> 0
A63: =Dramatic!A50 -> K-202 | B63: =VLOOKUP(Table710[[#This Row],[ID]],Dramatic!A:H,8,FALSE) -> 0 | C63: =Dramatic!U50 -> 0 | D63: =Dramatic!S50 -> 0 | E63: =IF((Table710[[#This Row],[Rank]]+Table710[[#This Row],[Score]])>0,1,0) -> 0 | L63: =SUM(F63,H63,J63) -> 0 | M63: =SUM(G63,I63,K63) -> 0
A64: =Dramatic!A51 -> K-203 | B64: =VLOOKUP(Table710[[#This Row],[ID]],Dramatic!A:H,8,FALSE) -> 0 | C64: =Dramatic!U51 -> 0 | D64: =Dramatic!S51 -> 0 | E64: =IF((Table710[[#This Row],[Rank]]+Table710[[#This Row],[Score]])>0,1,0) -> 0 | L64: =SUM(F64,H64,J64) -> 0 | M64: =SUM(G64,I64,K64) -> 0
A65: =Dramatic!A52 -> K-204 | B65: =VLOOKUP(Table710[[#This Row],[ID]],Dramatic!A:H,8,FALSE) -> 0 | C65: =Dramatic!U52 -> 0 | D65: =Dramatic!S52 -> 0 | E65: =IF((Table710[[#This Row],[Rank]]+Table710[[#This Row],[Score]])>0,1,0) -> 0 | L65: =SUM(F65,H65,J65) -> 0 | M65: =SUM(G65,I65,K65) -> 0
A66: =Dramatic!A54 -> L-201 | B66: =VLOOKUP(Table710[[#This Row],[ID]],Dramatic!A:H,8,FALSE) -> 0 | C66: =Dramatic!U54 -> 0 | D66: =Dramatic!S54 -> 0 | E66: =IF((Table710[[#This Row],[Rank]]+Table710[[#This Row],[Score]])>0,1,0) -> 0 | L66: =SUM(F66,H66,J66) -> 0 | M66: =SUM(G66,I66,K66) -> 0
A67: =Dramatic!A55 -> L-202 | B67: =VLOOKUP(Table710[[#This Row],[ID]],Dramatic!A:H,8,FALSE) -> 0 | C67: =Dramatic!U55 -> 0 | D67: =Dramatic!S55 -> 0 | E67: =IF((Table710[[#This Row],[Rank]]+Table710[[#This Row],[Score]])>0,1,0) -> 0 | L67: =SUM(F67,H67,J67) -> 0 | M67: =SUM(G67,I67,K67) -> 0
A68: =Dramatic!A56 -> L-203 | B68: =VLOOKUP(Table710[[#This Row],[ID]],Dramatic!A:H,8,FALSE) -> 0 | C68: =Dramatic!U56 -> 0 | D68: =Dramatic!S56 -> 0 | E68: =IF((Table710[[#This Row],[Rank]]+Table710[[#This Row],[Score]])>0,1,0) -> 0 | L68: =SUM(F68,H68,J68) -> 0 | M68: =SUM(G68,I68,K68) -> 0
A69: =Dramatic!A57 -> L-204 | B69: =VLOOKUP(Table710[[#This Row],[ID]],Dramatic!A:H,8,FALSE) -> 0 | C69: =Dramatic!U57 -> 0 | D69: =Dramatic!S57 -> 0 | E69: =IF((Table710[[#This Row],[Rank]]+Table710[[#This Row],[Score]])>0,1,0) -> 0 | L69: =SUM(F69,H69,J69) -> 0 | M69: =SUM(G69,I69,K69) -> 0
A70: =Dramatic!A59 -> M-201 | B70: =VLOOKUP(Table710[[#This Row],[ID]],Dramatic!A:H,8,FALSE) -> 0 | C70: =Dramatic!U59 -> 0 | D70: =Dramatic!S59 -> 0 | E70: =IF((Table710[[#This Row],[Rank]]+Table710[[#This Row],[Score]])>0,1,0) -> 0 | L70: =SUM(F70,H70,J70) -> 0 | M70: =SUM(G70,I70,K70) -> 0
A71: =Dramatic!A60 -> M-202 | B71: =VLOOKUP(Table710[[#This Row],[ID]],Dramatic!A:H,8,FALSE) -> 0 | C71: =Dramatic!U60 -> 0 | D71: =Dramatic!S60 -> 0 | E71: =IF((Table710[[#This Row],[Rank]]+Table710[[#This Row],[Score]])>0,1,0) -> 0 | L71: =SUM(F71,H71,J71) -> 0 | M71: =SUM(G71,I71,K71) -> 0
A72: =Dramatic!A61 -> M-203 | B72: =VLOOKUP(Table710[[#This Row],[ID]],Dramatic!A:H,8,FALSE) -> 0 | C72: =Dramatic!U61 -> 0 | D72: =Dramatic!S61 -> 0 | E72: =IF((Table710[[#This Row],[Rank]]+Table710[[#This Row],[Score]])>0,1,0) -> 0 | L72: =SUM(F72,H72,J72) -> 0 | M72: =SUM(G72,I72,K72) -> 0
A73: =Dramatic!A62 -> M-204 | B73: =VLOOKUP(Table710[[#This Row],[ID]],Dramatic!A:H,8,FALSE) -> 0 | C73: =Dramatic!U62 -> 0 | D73: =Dramatic!S62 -> 0 | E73: =IF((Table710[[#This Row],[Rank]]+Table710[[#This Row],[Score]])>0,1,0) -> 0 | L73: =SUM(F73,H73,J73) -> 0 | M73: =SUM(G73,I73,K73) -> 0
A74: =Dramatic!A64 -> N-201 | B74: =VLOOKUP(Table710[[#This Row],[ID]],Dramatic!A:H,8,FALSE) -> 0 | C74: =Dramatic!U64 -> 0 | D74: =Dramatic!S64 -> 0 | E74: =IF((Table710[[#This Row],[Rank]]+Table710[[#This Row],[Score]])>0,1,0) -> 0 | L74: =SUM(F74,H74,J74) -> 0 | M74: =SUM(G74,I74,K74) -> 0
A75: =Dramatic!A65 -> N-202 | B75: =VLOOKUP(Table710[[#This Row],[ID]],Dramatic!A:H,8,FALSE) -> 0 | C75: =Dramatic!U65 -> 0 | D75: =Dramatic!S65 -> 0 | E75: =IF((Table710[[#This Row],[Rank]]+Table710[[#This Row],[Score]])>0,1,0) -> 0 | L75: =SUM(F75,H75,J75) -> 0 | M75: =SUM(G75,I75,K75) -> 0
A76: =Dramatic!A66 -> N-203 | B76: =VLOOKUP(Table710[[#This Row],[ID]],Dramatic!A:H,8,FALSE) -> 0 | C76: =Dramatic!U66 -> 0 | D76: =Dramatic!S66 -> 0 | E76: =IF((Table710[[#This Row],[Rank]]+Table710[[#This Row],[Score]])>0,1,0) -> 0 | L76: =SUM(F76,H76,J76) -> 0 | M76: =SUM(G76,I76,K76) -> 0
A77: =Dramatic!A67 -> N-204 | B77: =VLOOKUP(Table710[[#This Row],[ID]],Dramatic!A:H,8,FALSE) -> 0 | C77: =Dramatic!U67 -> 0 | D77: =Dramatic!S67 -> 0 | E77: =IF((Table710[[#This Row],[Rank]]+Table710[[#This Row],[Score]])>0,1,0) -> 0 | L77: =SUM(F77,H77,J77) -> 0 | M77: =SUM(G77,I77,K77) -> 0
A78: =Dramatic!A69 -> P-201 | B78: =VLOOKUP(Table710[[#This Row],[ID]],Dramatic!A:H,8,FALSE) -> 0 | C78: =Dramatic!U69 -> 0 | D78: =Dramatic!S69 -> 0 | E78: =IF((Table710[[#This Row],[Rank]]+Table710[[#This Row],[Score]])>0,1,0) -> 0 | L78: =SUM(F78,H78,J78) -> 0 | M78: =SUM(G78,I78,K78) -> 0
A79: =Dramatic!A70 -> P-202 | B79: =VLOOKUP(Table710[[#This Row],[ID]],Dramatic!A:H,8,FALSE) -> 0 | C79: =Dramatic!U70 -> 0 | D79: =Dramatic!S70 -> 0 | E79: =IF((Table710[[#This Row],[Rank]]+Table710[[#This Row],[Score]])>0,1,0) -> 0 | L79: =SUM(F79,H79,J79) -> 0 | M79: =SUM(G79,I79,K79) -> 0
A80: =Dramatic!A71 -> P-203 | B80: =VLOOKUP(Table710[[#This Row],[ID]],Dramatic!A:H,8,FALSE) -> 0 | C80: =Dramatic!U71 -> 0 | D80: =Dramatic!S71 -> 0 | E80: =IF((Table710[[#This Row],[Rank]]+Table710[[#This Row],[Score]])>0,1,0) -> 0 | L80: =SUM(F80,H80,J80) -> 0 | M80: =SUM(G80,I80,K80) -> 0
A81: =Dramatic!A72 -> P-204 | B81: =VLOOKUP(Table710[[#This Row],[ID]],Dramatic!A:H,8,FALSE) -> 0 | C81: =Dramatic!U72 -> 0 | D81: =Dramatic!S72 -> 0 | E81: =IF((Table710[[#This Row],[Rank]]+Table710[[#This Row],[Score]])>0,1,0) -> 0 | L81: =SUM(F81,H81,J81) -> 0 | M81: =SUM(G81,I81,K81) -> 0
A82: =Dramatic!A74 -> Q-201 | B82: =VLOOKUP(Table710[[#This Row],[ID]],Dramatic!A:H,8,FALSE) -> 0 | C82: =Dramatic!U74 -> 0 | D82: =Dramatic!S74 -> 0 | E82: =IF((Table710[[#This Row],[Rank]]+Table710[[#This Row],[Score]])>0,1,0) -> 0 | L82: =SUM(F82,H82,J82) -> 0 | M82: =SUM(G82,I82,K82) -> 0
A83: =Dramatic!A75 -> Q-202 | B83: =VLOOKUP(Table710[[#This Row],[ID]],Dramatic!A:H,8,FALSE) -> 0 | C83: =Dramatic!U75 -> 0 | D83: =Dramatic!S75 -> 0 | E83: =IF((Table710[[#This Row],[Rank]]+Table710[[#This Row],[Score]])>0,1,0) -> 0 | L83: =SUM(F83,H83,J83) -> 0 | M83: =SUM(G83,I83,K83) -> 0
A84: =Dramatic!A76 -> Q-203 | B84: =VLOOKUP(Table710[[#This Row],[ID]],Dramatic!A:H,8,FALSE) -> 0 | C84: =Dramatic!U76 -> 0 | D84: =Dramatic!S76 -> 0 | E84: =IF((Table710[[#This Row],[Rank]]+Table710[[#This Row],[Score]])>0,1,0) -> 0 | L84: =SUM(F84,H84,J84) -> 0 | M84: =SUM(G84,I84,K84) -> 0
A85: =Dramatic!A77 -> Q-204 | B85: =VLOOKUP(Table710[[#This Row],[ID]],Dramatic!A:H,8,FALSE) -> 0 | C85: =Dramatic!U77 -> 0 | D85: =Dramatic!S77 -> 0 | E85: =IF((Table710[[#This Row],[Rank]]+Table710[[#This Row],[Score]])>0,1,0) -> 0 | L85: =SUM(F85,H85,J85) -> 0 | M85: =SUM(G85,I85,K85) -> 0
A86: =Dramatic!A79 -> R-201 | B86: =VLOOKUP(Table710[[#This Row],[ID]],Dramatic!A:H,8,FALSE) -> 0 | C86: =Dramatic!U79 -> 0 | D86: =Dramatic!S79 -> 0 | E86: =IF((Table710[[#This Row],[Rank]]+Table710[[#This Row],[Score]])>0,1,0) -> 0 | L86: =SUM(F86,H86,J86) -> 0 | M86: =SUM(G86,I86,K86) -> 0
A87: =Dramatic!A80 -> R-202 | B87: =VLOOKUP(Table710[[#This Row],[ID]],Dramatic!A:H,8,FALSE) -> 0 | C87: =Dramatic!U80 -> 0 | D87: =Dramatic!S80 -> 0 | E87: =IF((Table710[[#This Row],[Rank]]+Table710[[#This Row],[Score]])>0,1,0) -> 0 | L87: =SUM(F87,H87,J87) -> 0 | M87: =SUM(G87,I87,K87) -> 0
A88: =Dramatic!A81 -> R-203 | B88: =VLOOKUP(Table710[[#This Row],[ID]],Dramatic!A:H,8,FALSE) -> 0 | C88: =Dramatic!U81 -> 0 | D88: =Dramatic!S81 -> 0 | E88: =IF((Table710[[#This Row],[Rank]]+Table710[[#This Row],[Score]])>0,1,0) -> 0 | L88: =SUM(F88,H88,J88) -> 0 | M88: =SUM(G88,I88,K88) -> 0
A89: =Dramatic!A82 -> R-204 | B89: =VLOOKUP(Table710[[#This Row],[ID]],Dramatic!A:H,8,FALSE) -> 0 | C89: =Dramatic!U82 -> 0 | D89: =Dramatic!S82 -> 0 | E89: =IF((Table710[[#This Row],[Rank]]+Table710[[#This Row],[Score]])>0,1,0) -> 0 | L89: =SUM(F89,H89,J89) -> 0 | M89: =SUM(G89,I89,K89) -> 0
A90: =Dramatic!A84 -> S-201 | B90: =VLOOKUP(Table710[[#This Row],[ID]],Dramatic!A:H,8,FALSE) -> 0 | C90: =Dramatic!U84 -> 0 | D90: =Dramatic!S84 -> 0 | E90: =IF((Table710[[#This Row],[Rank]]+Table710[[#This Row],[Score]])>0,1,0) -> 0 | L90: =SUM(F90,H90,J90) -> 0 | M90: =SUM(G90,I90,K90) -> 0
A91: =Dramatic!A85 -> S-202 | B91: =VLOOKUP(Table710[[#This Row],[ID]],Dramatic!A:H,8,FALSE) -> 0 | C91: =Dramatic!U85 -> 0 | D91: =Dramatic!S85 -> 0 | E91: =IF((Table710[[#This Row],[Rank]]+Table710[[#This Row],[Score]])>0,1,0) -> 0 | L91: =SUM(F91,H91,J91) -> 0 | M91: =SUM(G91,I91,K91) -> 0
A92: =Dramatic!A86 -> S-203 | B92: =VLOOKUP(Table710[[#This Row],[ID]],Dramatic!A:H,8,FALSE) -> 0 | C92: =Dramatic!U86 -> 0 | D92: =Dramatic!S86 -> 0 | E92: =IF((Table710[[#This Row],[Rank]]+Table710[[#This Row],[Score]])>0,1,0) -> 0 | L92: =SUM(F92,H92,J92) -> 0 | M92: =SUM(G92,I92,K92) -> 0
A93: =Dramatic!A87 -> S-204 | B93: =VLOOKUP(Table710[[#This Row],[ID]],Dramatic!A:H,8,FALSE) -> 0 | C93: =Dramatic!U87 -> 0 | D93: =Dramatic!S87 -> 0 | E93: =IF((Table710[[#This Row],[Rank]]+Table710[[#This Row],[Score]])>0,1,0) -> 0 | L93: =SUM(F93,H93,J93) -> 0 | M93: =SUM(G93,I93,K93) -> 0
A94: =Dramatic!A89 -> T-201 | B94: =VLOOKUP(Table710[[#This Row],[ID]],Dramatic!A:H,8,FALSE) -> 0 | C94: =Dramatic!U89 -> 0 | D94: =Dramatic!S89 -> 0 | E94: =IF((Table710[[#This Row],[Rank]]+Table710[[#This Row],[Score]])>0,1,0) -> 0 | L94: =SUM(F94,H94,J94) -> 0 | M94: =SUM(G94,I94,K94) -> 0
A95: =Dramatic!A90 -> T-202 | B95: =VLOOKUP(Table710[[#This Row],[ID]],Dramatic!A:H,8,FALSE) -> 0 | C95: =Dramatic!U90 -> 0 | D95: =Dramatic!S90 -> 0 | E95: =IF((Table710[[#This Row],[Rank]]+Table710[[#This Row],[Score]])>0,1,0) -> 0 | L95: =SUM(F95,H95,J95) -> 0 | M95: =SUM(G95,I95,K95) -> 0
A96: =Dramatic!A91 -> T-203 | B96: =VLOOKUP(Table710[[#This Row],[ID]],Dramatic!A:H,8,FALSE) -> 0 | C96: =Dramatic!U91 -> 0 | D96: =Dramatic!S91 -> 0 | E96: =IF((Table710[[#This Row],[Rank]]+Table710[[#This Row],[Score]])>0,1,0) -> 0 | L96: =SUM(F96,H96,J96) -> 0 | M96: =SUM(G96,I96,K96) -> 0
A97: =Dramatic!A92 -> T-204 | B97: =VLOOKUP(Table710[[#This Row],[ID]],Dramatic!A:H,8,FALSE) -> 0 | C97: =Dramatic!U92 -> 0 | D97: =Dramatic!S92 -> 0 | E97: =IF((Table710[[#This Row],[Rank]]+Table710[[#This Row],[Score]])>0,1,0) -> 0 | L97: =SUM(F97,H97,J97) -> 0 | M97: =SUM(G97,I97,K97) -> 0
A98: =Dramatic!A94 -> U-201 | B98: =VLOOKUP(Table710[[#This Row],[ID]],Dramatic!A:H,8,FALSE) -> 0 | C98: =Dramatic!U94 -> 0 | D98: =Dramatic!S94 -> 0 | E98: =IF((Table710[[#This Row],[Rank]]+Table710[[#This Row],[Score]])>0,1,0) -> 0 | L98: =SUM(F98,H98,J98) -> 0 | M98: =SUM(G98,I98,K98) -> 0
A99: =Dramatic!A95 -> U-202 | B99: =VLOOKUP(Table710[[#This Row],[ID]],Dramatic!A:H,8,FALSE) -> 0 | C99: =Dramatic!U95 -> 0 | D99: =Dramatic!S95 -> 0 | E99: =IF((Table710[[#This Row],[Rank]]+Table710[[#This Row],[Score]])>0,1,0) -> 0 | L99: =SUM(F99,H99,J99) -> 0 | M99: =SUM(G99,I99,K99) -> 0
A100: =Dramatic!A96 -> U-203 | B100: =VLOOKUP(Table710[[#This Row],[ID]],Dramatic!A:H,8,FALSE) -> 0 | C100: =Dramatic!U96 -> 0 | D100: =Dramatic!S96 -> 0 | E100: =IF((Table710[[#This Row],[Rank]]+Table710[[#This Row],[Score]])>0,1,0) -> 0 | L100: =SUM(F100,H100,J100) -> 0 | M100: =SUM(G100,I100,K100) -> 0
A101: =Dramatic!A97 -> U-204 | B101: =VLOOKUP(Table710[[#This Row],[ID]],Dramatic!A:H,8,FALSE) -> 0 | C101: =Dramatic!U97 -> 0 | D101: =Dramatic!S97 -> 0 | E101: =IF((Table710[[#This Row],[Rank]]+Table710[[#This Row],[Score]])>0,1,0) -> 0 | L101: =SUM(F101,H101,J101) -> 0 | M101: =SUM(G101,I101,K101) -> 0
A102: =Dramatic!A99 -> V-201 | B102: =VLOOKUP(Table710[[#This Row],[ID]],Dramatic!A:H,8,FALSE) -> 0 | C102: =Dramatic!U99 -> 0 | D102: =Dramatic!S99 -> 0 | E102: =IF((Table710[[#This Row],[Rank]]+Table710[[#This Row],[Score]])>0,1,0) -> 0 | L102: =SUM(F102,H102,J102) -> 0 | M102: =SUM(G102,I102,K102) -> 0
A103: =Dramatic!A100 -> V-202 | B103: =VLOOKUP(Table710[[#This Row],[ID]],Dramatic!A:H,8,FALSE) -> 0 | C103: =Dramatic!U100 -> 0 | D103: =Dramatic!S100 -> 0 | E103: =IF((Table710[[#This Row],[Rank]]+Table710[[#This Row],[Score]])>0,1,0) -> 0 | L103: =SUM(F103,H103,J103) -> 0 | M103: =SUM(G103,I103,K103) -> 0
A104: =Dramatic!A101 -> V-203 | B104: =VLOOKUP(Table710[[#This Row],[ID]],Dramatic!A:H,8,FALSE) -> 0 | C104: =Dramatic!U101 -> 0 | D104: =Dramatic!S101 -> 0 | E104: =IF((Table710[[#This Row],[Rank]]+Table710[[#This Row],[Score]])>0,1,0) -> 0 | L104: =SUM(F104,H104,J104) -> 0 | M104: =SUM(G104,I104,K104) -> 0
A105: =Dramatic!A102 -> V-204 | B105: =VLOOKUP(Table710[[#This Row],[ID]],Dramatic!A:H,8,FALSE) -> 0 | C105: =Dramatic!U102 -> 0 | D105: =Dramatic!S102 -> 0 | E105: =IF((Table710[[#This Row],[Rank]]+Table710[[#This Row],[Score]])>0,1,0) -> 0 | L105: =SUM(F105,H105,J105) -> 0 | M105: =SUM(G105,I105,K105) -> 0
A106: =Dramatic!A104 -> W-201 | B106: =VLOOKUP(Table710[[#This Row],[ID]],Dramatic!A:H,8,FALSE) -> 0 | C106: =Dramatic!U104 -> 0 | D106: =Dramatic!S104 -> 0 | E106: =IF((Table710[[#This Row],[Rank]]+Table710[[#This Row],[Score]])>0,1,0) -> 0 | L106: =SUM(F106,H106,J106) -> 0 | M106: =SUM(G106,I106,K106) -> 0
A107: =Dramatic!A105 -> W-202 | B107: =VLOOKUP(Table710[[#This Row],[ID]],Dramatic!A:H,8,FALSE) -> 0 | C107: =Dramatic!U105 -> 0 | D107: =Dramatic!S105 -> 0 | E107: =IF((Table710[[#This Row],[Rank]]+Table710[[#This Row],[Score]])>0,1,0) -> 0 | L107: =SUM(F107,H107,J107) -> 0 | M107: =SUM(G107,I107,K107) -> 0
A108: =Dramatic!A106 -> W-203 | B108: =VLOOKUP(Table710[[#This Row],[ID]],Dramatic!A:H,8,FALSE) -> 0 | C108: =Dramatic!U106 -> 0 | D108: =Dramatic!S106 -> 0 | E108: =IF((Table710[[#This Row],[Rank]]+Table710[[#This Row],[Score]])>0,1,0) -> 0 | L108: =SUM(F108,H108,J108) -> 0 | M108: =SUM(G108,I108,K108) -> 0
A109: =Dramatic!A107 -> W-204 | B109: =VLOOKUP(Table710[[#This Row],[ID]],Dramatic!A:H,8,FALSE) -> 0 | C109: =Dramatic!U107 -> 0 | D109: =Dramatic!S107 -> 0 | E109: =IF((Table710[[#This Row],[Rank]]+Table710[[#This Row],[Score]])>0,1,0) -> 0 | L109: =SUM(F109,H109,J109) -> 0 | M109: =SUM(G109,I109,K109) -> 0
A110: =Dramatic!A109 -> X-201 | B110: =VLOOKUP(Table710[[#This Row],[ID]],Dramatic!A:H,8,FALSE) -> 0 | C110: =Dramatic!U109 -> 0 | D110: =Dramatic!S109 -> 0 | E110: =IF((Table710[[#This Row],[Rank]]+Table710[[#This Row],[Score]])>0,1,0) -> 0 | L110: =SUM(F110,H110,J110) -> 0 | M110: =SUM(G110,I110,K110) -> 0
A111: =Dramatic!A110 -> X-202 | B111: =VLOOKUP(Table710[[#This Row],[ID]],Dramatic!A:H,8,FALSE) -> 0 | C111: =Dramatic!U110 -> 0 | D111: =Dramatic!S110 -> 0 | E111: =IF((Table710[[#This Row],[Rank]]+Table710[[#This Row],[Score]])>0,1,0) -> 0 | L111: =SUM(F111,H111,J111) -> 0 | M111: =SUM(G111,I111,K111) -> 0
A112: =Dramatic!A111 -> X-203 | B112: =VLOOKUP(Table710[[#This Row],[ID]],Dramatic!A:H,8,FALSE) -> 0 | C112: =Dramatic!U111 -> 0 | D112: =Dramatic!S111 -> 0 | E112: =IF((Table710[[#This Row],[Rank]]+Table710[[#This Row],[Score]])>0,1,0) -> 0 | L112: =SUM(F112,H112,J112) -> 0 | M112: =SUM(G112,I112,K112) -> 0
A113: =Dramatic!A112 -> X-204 | B113: =VLOOKUP(Table710[[#This Row],[ID]],Dramatic!A:H,8,FALSE) -> 0 | C113: =Dramatic!U112 -> 0 | D113: =Dramatic!S112 -> 0 | E113: =IF((Table710[[#This Row],[Rank]]+Table710[[#This Row],[Score]])>0,1,0) -> 0 | L113: =SUM(F113,H113,J113) -> 0 | M113: =SUM(G113,I113,K113) -> 0
A114: =Dramatic!A114 -> Y-201 | B114: =VLOOKUP(Table710[[#This Row],[ID]],Dramatic!A:H,8,FALSE) -> 0 | C114: =Dramatic!U114 -> 0 | D114: =Dramatic!S114 -> 0 | E114: =IF((Table710[[#This Row],[Rank]]+Table710[[#This Row],[Score]])>0,1,0) -> 0 | L114: =SUM(F114,H114,J114) -> 0 | M114: =SUM(G114,I114,K114) -> 0
A115: =Dramatic!A115 -> Y-202 | B115: =VLOOKUP(Table710[[#This Row],[ID]],Dramatic!A:H,8,FALSE) -> 0 | C115: =Dramatic!U115 -> 0 | D115: =Dramatic!S115 -> 0 | E115: =IF((Table710[[#This Row],[Rank]]+Table710[[#This Row],[Score]])>0,1,0) -> 0 | L115: =SUM(F115,H115,J115) -> 0 | M115: =SUM(G115,I115,K115) -> 0
A116: =Dramatic!A116 -> Y-203 | B116: =VLOOKUP(Table710[[#This Row],[ID]],Dramatic!A:H,8,FALSE) -> 0 | C116: =Dramatic!U116 -> 0 | D116: =Dramatic!S116 -> 0 | E116: =IF((Table710[[#This Row],[Rank]]+Table710[[#This Row],[Score]])>0,1,0) -> 0 | L116: =SUM(F116,H116,J116) -> 0 | M116: =SUM(G116,I116,K116) -> 0
A117: =Dramatic!A117 -> Y-204 | B117: =VLOOKUP(Table710[[#This Row],[ID]],Dramatic!A:H,8,FALSE) -> 0 | C117: =Dramatic!U117 -> 0 | D117: =Dramatic!S117 -> 0 | E117: =IF((Table710[[#This Row],[Rank]]+Table710[[#This Row],[Score]])>0,1,0) -> 0 | L117: =SUM(F117,H117,J117) -> 0 | M117: =SUM(G117,I117,K117) -> 0
A118: =Dramatic!A119 -> Z-201 | B118: =VLOOKUP(Table710[[#This Row],[ID]],Dramatic!A:H,8,FALSE) -> 0 | C118: =Dramatic!U119 -> 0 | D118: =Dramatic!S119 -> 0 | E118: =IF((Table710[[#This Row],[Rank]]+Table710[[#This Row],[Score]])>0,1,0) -> 0 | L118: =SUM(F118,H118,J118) -> 0 | M118: =SUM(G118,I118,K118) -> 0
A119: =Dramatic!A120 -> Z-202 | B119: =VLOOKUP(Table710[[#This Row],[ID]],Dramatic!A:H,8,FALSE) -> 0 | C119: =Dramatic!U120 -> 0 | D119: =Dramatic!S120 -> 0 | E119: =IF((Table710[[#This Row],[Rank]]+Table710[[#This Row],[Score]])>0,1,0) -> 0 | L119: =SUM(F119,H119,J119) -> 0 | M119: =SUM(G119,I119,K119) -> 0
A120: =Dramatic!A121 -> Z-203 | B120: =VLOOKUP(Table710[[#This Row],[ID]],Dramatic!A:H,8,FALSE) -> 0 | C120: =Dramatic!U121 -> 0 | D120: =Dramatic!S121 -> 0 | E120: =IF((Table710[[#This Row],[Rank]]+Table710[[#This Row],[Score]])>0,1,0) -> 0 | L120: =SUM(F120,H120,J120) -> 0 | M120: =SUM(G120,I120,K120) -> 0
A121: =Dramatic!A122 -> Z-204 | B121: =VLOOKUP(Table710[[#This Row],[ID]],Dramatic!A:H,8,FALSE) -> 0 | C121: =Dramatic!U122 -> 0 | D121: =Dramatic!S122 -> 0 | E121: =IF((Table710[[#This Row],[Rank]]+Table710[[#This Row],[Score]])>0,1,0) -> 0 | L121: =SUM(F121,H121,J121) -> 0 | M121: =SUM(G121,I121,K121) -> 0
A122: =Dramatic!A31 -> F-203 | B122: =VLOOKUP(Table710[[#This Row],[ID]],Dramatic!A:H,8,FALSE) -> 0 | C122: =Dramatic!U31 -> 0 | D122: =Dramatic!S31 -> 0 | E122: =IF((Table710[[#This Row],[Rank]]+Table710[[#This Row],[Score]])>0,1,0) -> 0 | L122: =SUM(F122,H122,J122) -> 0 | M122: =SUM(G122,I122,K122) -> 0

Sheet Classical
A1: Classical Scenes | K1: Rank 1-4 | X1: S | Y1: E | Z1: G | AA1: F | AC1: 1violation | AD1: 2violations | AE1: 3violations
K2: Round 1: | M2: Round 2: | O2: Round 3: | Q2: -2 for each | AB2: Drops lowest from column q
D3: Student Name | F3: Student Name | H3: Student Name | J3: Title of Piece | K3: R1 rank | L3: R1 score | M3: R2 rank | N3: R2 score | O3: R3 rank | P3: R3 score | Q3: Time Violations | S3: TOTAL SCORE | U3: TOTAL RANK | X3: TOTAL SCHOOL SWEEPS POINTS | AB3: Drop Lowest
A4: A-301 | D4: (202) Anthony A. | F4: Ryan B. | J4: "Cyrano De Bergerac" | K4: 3 | L4: 20 | M4: 3 | N4: 23 | O4: 4 | P4: 18 | R4: =IF(Q4="1violation",-7*1,IF(Q4="2violations",-7*2,IF(Q4="3violations",-7*3,IF(Q4="","")))) ->  | S4: =SUM(L4,N4,P4,R4) -> 61 | U4: =SUM(K4,M4,O4) -> 10 | Y4: =SUM(S4,S6,S5,S7,-AB4) -> 185 | AB4: =MIN(S4:S7) -> 52
A5: A-302 | D5: (203) Jackson P. | F5: Noah W. | J5: "Two Gentlemen" | K5: 1 | L5: 24 | M5: 2 | N5: 24 | O5: 2 | P5: 21 | R5: =IF(Q5="1violation",-7*1,IF(Q5="2violations",-7*2,IF(Q5="3violations",-7*3,IF(Q5="","")))) ->  | S5: =SUM(L5,N5,P5,R5) -> 69 | U5: =SUM(K5,M5,O5) -> 5
A6: A-303 | D6: (205) Brinley | F6: Charlie | J6: "Much Ado" | K6: 4 | L6: 16 | M6: 4 | N6: 19 | O6: 3 | P6: 20 | S6: =SUM(L6,N6,P6,R6) -> 55 | U6: =SUM(K6,M6,O6) -> 11
A7: A-304 | D7: (206) Vincent | F7: Jake O. | J7: "Othello" | K7: 4 | L7: 15 | M7: 4 | N7: 20 | O7: 4 | P7: 17 | S7: =SUM(L7,N7,P7,R7) -> 52 | U7: =SUM(K7,M7,O7) -> 12
A9: B-301 | D9: (200) Tylee Barney | F9: Atli Blevins | H9: Aspen Clark | J9: "Macbeth" | S9: =SUM(L9,N9,P9,R9) -> 0 | U9: =SUM(K9,M9,O9) -> 0 | Y9: =SUM(S9,S11,S10,S12,-AB9) -> 73 | AB9: =MIN(S9:S12) -> 0
A10: B-302 | D10: (201) Haley Coombs | F10: Gabe Sarles | J10: "Pair of Lunatics" | K10: 2 | L10: 24 | M10: 1 | N10: 24 | O10: 1 | P10: 25 | S10: =SUM(L10,N10,P10,R10) -> 73 | U10: =SUM(K10,M10,O10) -> 4
A11: B-303 | S11: =SUM(L11,N11,P11,R11) -> 0 | U11: =SUM(K11,M11,O11) -> 0
A12: B-304 | S12: =SUM(L12,N12,P12,R12) -> 0 | U12: =SUM(K12,M12,O12) -> 0
A14: C-301 | D14: (204) Brooklyn Clark | F14: C.J. Torgerson | S14: =SUM(L14,N14,P14,R14) -> 0 | U14: =SUM(K14,M14,O14) -> 0 | Y14: =SUM(S14,S16,S15,S17,-AB14) -> 0 | AB14: =MIN(S14:S17) -> 0
A15: C-302 | S15: =SUM(L15,N15,P15,R15) -> 0 | U15: =SUM(K15,M15,O15) -> 0
A16: C-303 | S16: =SUM(L16,N16,P16,R16) -> 0 | U16: =SUM(K16,M16,O16) -> 0
A17: C-304 | S17: =SUM(L17,N17,P17,R17) -> 0 | U17: =SUM(K17,M17,O17) -> 0
A19: D-301 | S19: =SUM(L19,N19,P19,R19) -> 0 | U19: =SUM(K19,M19,O19) -> 0 | Y19: =SUM(S19,S21,S20,S22,-AB19) -> 0 | AB19: =MIN(S19:S22) -> 0
A20: D-302 | S20: =SUM(L20,N20,P20,R20) -> 0 | U20: =SUM(K20,M20,O20) -> 0
A21: D-303 | S21: =SUM(L21,N21,P21,R21) -> 0 | U21: =SUM(K21,M21,O21) -> 0
A22: D-304 | S22: =SUM(L22,N22,P22,R22) -> 0 | U22: =SUM(K22,M22,O22) -> 0
A24: E-301 | S24: =SUM(L24,N24,P24,R24) -> 0 | U24: =SUM(K24,M24,O24) -> 0 | Y24: =SUM(S24,S26,S25,S27,-AB24) -> 0 | AB24: =MIN(S24:S27) -> 0
A25: E-302 | S25: =SUM(L25,N25,P25,R25) -> 0 | U25: =SUM(K25,M25,O25) -> 0
A26: E-303 | S26: =SUM(L26,N26,P26,R26) -> 0 | U26: =SUM(K26,M26,O26) -> 0
A27: E-304 | S27: =SUM(L27,N27,P27,R27) -> 0 | U27: =SUM(K27,M27,O27) -> 0
A29: F-301 | S29: =SUM(L29,N29,P29,R29) -> 0 | U29: =SUM(K29,M29,O29) -> 0 | Y29: =SUM(S29,S31,S30,S32,-AB29) -> 0 | AB29: =MIN(S29:S32) -> 0
A30: F-302 | S30: =SUM(L30,N30,P30,R30) -> 0 | U30: =SUM(K30,M30,O30) -> 0
A31: F-303 | S31: =SUM(L31,N31,P31,R31) -> 0 | U31: =SUM(K31,M31,O31) -> 0
A32: F-304 | S32: =SUM(L32,N32,P32,R32) -> 0 | U32: =SUM(K32,M32,O32) -> 0
A34: G-301 | S34: =SUM(L34,N34,P34,R34) -> 0 | U34: =SUM(K34,M34,O34) -> 0 | Y34: =SUM(S34,S36,S35,S37,-AB34) -> 0 | AB34: =MIN(S34:S37) -> 0
A35: G-302 | S35: =SUM(L35,N35,P35,R35) -> 0 | U35: =SUM(K35,M35,O35) -> 0
A36: G-303 | S36: =SUM(L36,N36,P36,R36) -> 0 | U36: =SUM(K36,M36,O36) -> 0
A37: G-304 | S37: =SUM(L37,N37,P37,R37) -> 0 | U37: =SUM(K37,M37,O37) -> 0
A39: H-301 | S39: =SUM(L39,N39,P39,R39) -> 0 | U39: =SUM(K39,M39,O39) -> 0 | Y39: =SUM(S39,S41,S40,S42,-AB39) -> 0 | AB39: =MIN(S39:S42) -> 0
A40: H-302 | S40: =SUM(L40,N40,P40,R40) -> 0 | U40: =SUM(K40,M40,O40) -> 0
A41: H-303 | S41: =SUM(L41,N41,P41,R41) -> 0 | U41: =SUM(K41,M41,O41) -> 0
A42: H-304 | S42: =SUM(L42,N42,P42,R42) -> 0 | U42: =SUM(K42,M42,O42) -> 0
A44: J-301 | S44: =SUM(L44,N44,P44,R44) -> 0 | U44: =SUM(K44,M44,O44) -> 0 | Y44: =SUM(S44,S46,S45,S47,-AB44) -> 0 | AB44: =MIN(S44:S47) -> 0
A45: J-302 | S45: =SUM(L45,N45,P45,R45) -> 0 | U45: =SUM(K45,M45,O45) -> 0
A46: J-303 | S46: =SUM(L46,N46,P46,R46) -> 0 | U46: =SUM(K46,M46,O46) -> 0
A47: J-304 | S47: =SUM(L47,N47,P47,R47) -> 0 | U47: =SUM(K47,M47,O47) -> 0
A49: K-301 | S49: =SUM(L49,N49,P49,R49) -> 0 | U49: =SUM(K49,M49,O49) -> 0 | Y49: =SUM(S49,S51,S50,S52,-AB49) -> 0 | AB49: =MIN(S49:S52) -> 0
A50: K-302 | S50: =SUM(L50,N50,P50,R50) -> 0 | U50: =SUM(K50,M50,O50) -> 0
A51: K-303 | S51: =SUM(L51,N51,P51,R51) -> 0 | U51: =SUM(K51,M51,O51) -> 0
A52: K-304 | S52: =SUM(L52,N52,P52,R52) -> 0 | U52: =SUM(K52,M52,O52) -> 0
A54: L-301 | S54: =SUM(L54,N54,P54,R54) -> 0 | U54: =SUM(K54,M54,O54) -> 0 | Y54: =SUM(S54,S56,S55,S57,-AB54) -> 0 | AB54: =MIN(S54:S57) -> 0
A55: L-302 | S55: =SUM(L55,N55,P55,R55) -> 0 | U55: =SUM(K55,M55,O55) -> 0
A56: L-303 | S56: =SUM(L56,N56,P56,R56) -> 0 | U56: =SUM(K56,M56,O56) -> 0
A57: L-304 | S57: =SUM(L57,N57,P57,R57) -> 0 | U57: =SUM(K57,M57,O57) -> 0
A59: M-301 | S59: =SUM(L59,N59,P59,R59) -> 0 | U59: =SUM(K59,M59,O59) -> 0 | Y59: =SUM(S59,S61,S60,S62,-AB59) -> 0 | AB59: =MIN(S59:S62) -> 0
A60: M-302 | S60: =SUM(L60,N60,P60,R60) -> 0 | U60: =SUM(K60,M60,O60) -> 0
A61: M-303 | S61: =SUM(L61,N61,P61,R61) -> 0 | U61: =SUM(K61,M61,O61) -> 0
A62: M-304 | S62: =SUM(L62,N62,P62,R62) -> 0 | U62: =SUM(K62,M62,O62) -> 0
A64: N-301 | S64: =SUM(L64,N64,P64,R64) -> 0 | U64: =SUM(K64,M64,O64) -> 0 | Y64: =SUM(S64,S66,S65,S67,-AB64) -> 0 | AB64: =MIN(S64:S67) -> 0
A65: N-302 | S65: =SUM(L65,N65,P65,R65) -> 0 | U65: =SUM(K65,M65,O65) -> 0
A66: N-303 | S66: =SUM(L66,N66,P66,R66) -> 0 | U66: =SUM(K66,M66,O66) -> 0
A67: N-304 | S67: =SUM(L67,N67,P67,R67) -> 0 | U67: =SUM(K67,M67,O67) -> 0
A69: P-301 | R69: =IF(Q69="1violation",-7*1,IF(Q69="2violations",-7*2,IF(Q69="3violations",-7*3,IF(Q69="","")))) ->  | S69: =SUM(L69,N69,P69,R69) -> 0 | U69: =SUM(K69,M69,O69) -> 0 | Y69: =SUM(S69,S71,S70,S72,-AB69) -> 0 | AB69: =MIN(S69:S72) -> 0
A70: P-302 | S70: =SUM(L70,N70,P70,R70) -> 0 | U70: =SUM(K70,M70,O70) -> 0
A71: P-303 | S71: =SUM(L71,N71,P71,R71) -> 0 | U71: =SUM(K71,M71,O71) -> 0
A72: P-304 | S72: =SUM(L72,N72,P72,R72) -> 0 | U72: =SUM(K72,M72,O72) -> 0
A74: Q-301 | S74: =SUM(L74,N74,P74,R74) -> 0 | U74: =SUM(K74,M74,O74) -> 0 | Y74: =SUM(S74,S76,S75,S77,-AB74) -> 0 | AB74: =MIN(S74:S77) -> 0
A75: Q-302 | S75: =SUM(L75,N75,P75,R75) -> 0 | U75: =SUM(K75,M75,O75) -> 0
A76: Q-303 | S76: =SUM(L76,N76,P76,R76) -> 0 | U76: =SUM(K76,M76,O76) -> 0
A77: Q-304 | S77: =SUM(L77,N77,P77,R77) -> 0 | U77: =SUM(K77,M77,O77) -> 0
A79: R-301 | S79: =SUM(L79,N79,P79,R79) -> 0 | U79: =SUM(K79,M79,O79) -> 0 | Y79: =SUM(S79,S81,S80,S82,-AB79) -> 0 | AB79: =MIN(S79:S82) -> 0
A80: R-302 | S80: =SUM(L80,N80,P80,R80) -> 0 | U80: =SUM(K80,M80,O80) -> 0
A81: R-303 | S81: =SUM(L81,N81,P81,R81) -> 0 | U81: =SUM(K81,M81,O81) -> 0
A82: R-304 | S82: =SUM(L82,N82,P82,R82) -> 0 | U82: =SUM(K82,M82,O82) -> 0
A84: S-301 | S84: =SUM(L84,N84,P84,R84) -> 0 | U84: =SUM(K84,M84,O84) -> 0 | Y84: =SUM(S84,S86,S85,S87,-AB84) -> 0 | AB84: =MIN(S84:S87) -> 0
A85: S-302 | S85: =SUM(L85,N85,P85,R85) -> 0 | U85: =SUM(K85,M85,O85) -> 0
A86: S-303 | S86: =SUM(L86,N86,P86,R86) -> 0 | U86: =SUM(K86,M86,O86) -> 0
A87: S-304 | S87: =SUM(L87,N87,P87,R87) -> 0 | U87: =SUM(K87,M87,O87) -> 0
A89: T-301 | S89: =SUM(L89,N89,P89,R89) -> 0 | U89: =SUM(K89,M89,O89) -> 0 | Y89: =SUM(S89,S91,S90,S92,-AB89) -> 0 | AB89: =MIN(S89:S92) -> 0
A90: T-302 | S90: =SUM(L90,N90,P90,R90) -> 0 | U90: =SUM(K90,M90,O90) -> 0
A91: T-303 | S91: =SUM(L91,N91,P91,R91) -> 0 | U91: =SUM(K91,M91,O91) -> 0
A92: T-304 | S92: =SUM(L92,N92,P92,R92) -> 0 | U92: =SUM(K92,M92,O92) -> 0
A94: U-301 | S94: =SUM(L94,N94,P94,R94) -> 0 | U94: =SUM(K94,M94,O94) -> 0 | Y94: =SUM(S94,S96,S95,S97,-AB94) -> 0 | AB94: =MIN(S94:S97) -> 0
A95: U-302 | S95: =SUM(L95,N95,P95,R95) -> 0 | U95: =SUM(K95,M95,O95) -> 0
A96: U-303 | S96: =SUM(L96,N96,P96,R96) -> 0 | U96: =SUM(K96,M96,O96) -> 0
A97: U-304 | S97: =SUM(L97,N97,P97,R97) -> 0 | U97: =SUM(K97,M97,O97) -> 0
A99: V-301 | S99: =SUM(L99,N99,P99,R99) -> 0 | U99: =SUM(K99,M99,O99) -> 0 | Y99: =SUM(S99,S101,S100,S102,-AB99) -> 0 | AB99: =MIN(S99:S102) -> 0
A100: V-302 | S100: =SUM(L100,N100,P100,R100) -> 0 | U100: =SUM(K100,M100,O100) -> 0
A101: V-303 | S101: =SUM(L101,N101,P101,R101) -> 0 | U101: =SUM(K101,M101,O101) -> 0
A102: V-304 | S102: =SUM(L102,N102,P102,R102) -> 0 | U102: =SUM(K102,M102,O102) -> 0
A104: W-301 | S104: =SUM(L104,N104,P104,R104) -> 0 | U104: =SUM(K104,M104,O104) -> 0 | Y104: =SUM(S104,S106,S105,S107,-AB104) -> 0 | AB104: =MIN(S104:S107) -> 0
A105: W-302 | S105: =SUM(L105,N105,P105,R105) -> 0 | U105: =SUM(K105,M105,O105) -> 0
A106: W-303 | S106: =SUM(L106,N106,P106,R106) -> 0 | U106: =SUM(K106,M106,O106) -> 0
A107: W-304 | S107: =SUM(L107,N107,P107,R107) -> 0 | U107: =SUM(K107,M107,O107) -> 0
A109: X-301 | S109: =SUM(L109,N109,P109,R109) -> 0 | U109: =SUM(K109,M109,O109) -> 0 | Y109: =SUM(S109,S111,S110,S112,-AB109) -> 0 | AB109: =MIN(S109:S112) -> 0
A110: X-302 | S110: =SUM(L110,N110,P110,R110) -> 0 | U110: =SUM(K110,M110,O110) -> 0
A111: X-303 | S111: =SUM(L111,N111,P111,R111) -> 0 | U111: =SUM(K111,M111,O111) -> 0
A112: X-304 | S112: =SUM(L112,N112,P112,R112) -> 0 | U112: =SUM(K112,M112,O112) -> 0
A114: Y-301 | S114: =SUM(L114,N114,P114,R114) -> 0 | U114: =SUM(K114,M114,O114) -> 0 | Y114: =SUM(S114,S116,S115,S117,-AB114) -> 0 | AB114: =MIN(S114:S117) -> 0
A115: Y-302 | S115: =SUM(L115,N115,P115,R115) -> 0 | U115: =SUM(K115,M115,O115) -> 0
A116: Y-303 | S116: =SUM(L116,N116,P116,R116) -> 0 | U116: =SUM(K116,M116,O116) -> 0
A117: Y-304 | S117: =SUM(L117,N117,P117,R117) -> 0 | U117: =SUM(K117,M117,O117) -> 0
A119: Z-301 | S119: =SUM(L119,N119,P119,R119) -> 0 | U119: =SUM(K119,M119,O119) -> 0 | Y119: =SUM(S119,S121,S120,S122,-AB119) -> 0 | AB119: =MIN(S119:S122) -> 0
A120: Z-302 | S120: =SUM(L120,N120,P120,R120) -> 0 | U120: =SUM(K120,M120,O120) -> 0
A121: Z-303 | S121: =SUM(L121,N121,P121,R121) -> 0 | U121: =SUM(K121,M121,O121) -> 0
A122: Z-304 | S122: =SUM(L122,N122,P122,R122) -> 0 | U122: =SUM(K122,M122,O122) -> 0
A124: AA-301 | S124: =SUM(L124,N124,P124,R124) -> 0 | U124: =SUM(K124,M124,O124) -> 0 | Y124: =SUM(S124,S126,S125,S127,-AB124) -> 0 | AB124: =MIN(S124:S127) -> 0
A125: AA-302 | S125: =SUM(L125,N125,P125,R125) -> 0 | U125: =SUM(K125,M125,O125) -> 0
A126: AA-303 | S126: =SUM(L126,N126,P126,R126) -> 0 | U126: =SUM(K126,M126,O126) -> 0
A127: AA-304 | S127: =SUM(L127,N127,P127,R127) -> 0 | U127: =SUM(K127,M127,O127) -> 0
A129: BB-301 | S129: =SUM(L129,N129,P129,R129) -> 0 | U129: =SUM(K129,M129,O129) -> 0 | Y129: =SUM(S129,S131,S130,S132,-AB129) -> 0 | AB129: =MIN(S129:S132) -> 0
A130: BB-302 | S130: =SUM(L130,N130,P130,R130) -> 0 | U130: =SUM(K130,M130,O130) -> 0
A131: BB-303 | S131: =SUM(L131,N131,P131,R131) -> 0 | U131: =SUM(K131,M131,O131) -> 0
A132: BB-304 | S132: =SUM(L132,N132,P132,R132) -> 0 | U132: =SUM(K132,M132,O132) -> 0
A134: CC-301 | R134: =IF(Q134="1violation",-7*1,IF(Q134="2violations",-7*2,IF(Q134="3violations",-7*3,IF(Q134="","")))) ->  | S134: =SUM(L134,N134,P134,R134) -> 0 | U134: =SUM(K134,M134,O134) -> 0 | Y134: =SUM(S134,S136,S135,S137,-AB134) -> 0 | AB134: =MIN(S134:S137) -> 0
A135: CC-302 | S135: =SUM(L135,N135,P135,R135) -> 0 | U135: =SUM(K135,M135,O135) -> 0
A136: CC-303 | S136: =SUM(L136,N136,P136,R136) -> 0 | U136: =SUM(K136,M136,O136) -> 0
A137: CC-304 | S137: =SUM(L137,N137,P137,R137) -> 0 | U137: =SUM(K137,M137,O137) -> 0
A139: DD-301 | S139: =SUM(L139,N139,P139,R139) -> 0 | U139: =SUM(K139,M139,O139) -> 0 | Y139: =SUM(S139,S141,S140,S142,-AB139) -> 0 | AB139: =MIN(S139:S142) -> 0
A140: DD-302 | S140: =SUM(L140,N140,P140,R140) -> 0 | U140: =SUM(K140,M140,O140) -> 0
A141: DD-303 | S141: =SUM(L141,N141,P141,R141) -> 0 | U141: =SUM(K141,M141,O141) -> 0
A142: DD-304 | S142: =SUM(L142,N142,P142,R142) -> 0 | U142: =SUM(K142,M142,O142) -> 0
A144: EE-301 | S144: =SUM(L144,N144,P144,R144) -> 0 | U144: =SUM(K144,M144,O144) -> 0 | Y144: =SUM(S144,S146,S145,S147,-AB144) -> 0 | AB144: =MIN(S144:S147) -> 0
A145: EE-302 | S145: =SUM(L145,N145,P145,R145) -> 0 | U145: =SUM(K145,M145,O145) -> 0
A146: EE-303 | S146: =SUM(L146,N146,P146,R146) -> 0 | U146: =SUM(K146,M146,O146) -> 0
A147: EE-304 | S147: =SUM(L147,N147,P147,R147) -> 0 | U147: =SUM(K147,M147,O147) -> 0
A149: FF-301 | S149: =SUM(L149,N149,P149,R149) -> 0 | U149: =SUM(K149,M149,O149) -> 0 | Y149: =SUM(S149,S151,S150,S152,-AB149) -> 0 | AB149: =MIN(S149:S152) -> 0
A150: FF-302 | S150: =SUM(L150,N150,P150,R150) -> 0 | U150: =SUM(K150,M150,O150) -> 0
A151: FF-303 | S151: =SUM(L151,N151,P151,R151) -> 0 | U151: =SUM(K151,M151,O151) -> 0
A152: FF-304 | S152: =SUM(L152,N152,P152,R152) -> 0 | U152: =SUM(K152,M152,O152) -> 0

Sheet ClassicalMR
A1: Classical | F1: Finals Medals Round Scores
A2: ID | B2: Column1 | C2: Rank | D2: Score | E2: LeaveBlank | F2: MR 1 Rank | G2: MR 1 Score | H2: MR2 Rank | I2: MR 2 Score | J2: MR3 Rank | K2: MR 3 Score | L2: Total MR Rank | M2: Total MR Score | N2: Column2
A3: =Classical!A10 -> B-302 | B3: =VLOOKUP(Table71012[[#This Row],[ID]],Classical!A:D,4,FALSE) -> (201) Haley Coombs | C3: =Classical!U10 -> 4 | D3: =Classical!S10 -> 73 | E3: =IF((Table71012[[#This Row],[Rank]]+Table71012[[#This Row],[Score]])>0,1,0) -> 1 | L3: =SUM(F3,H3,J3) -> 0 | M3: =SUM(G3,I3,K3) -> 0 | N3: 1st
A4: =Classical!A5 -> A-302 | B4: =VLOOKUP(Table71012[[#This Row],[ID]],Classical!A:D,4,FALSE) -> (203) Jackson P. | C4: =Classical!U5 -> 5 | D4: =Classical!S5 -> 69 | E4: =IF((Table71012[[#This Row],[Rank]]+Table71012[[#This Row],[Score]])>0,1,0) -> 1 | L4: 0 | M4: 0 | N4: 2nd
A5: =Classical!A4 -> A-301 | B5: =VLOOKUP(Table71012[[#This Row],[ID]],Classical!A:D,4,FALSE) -> (202) Anthony A. | C5: =Classical!U4 -> 10 | D5: =Classical!S4 -> 61 | E5: =IF((Table71012[[#This Row],[Rank]]+Table71012[[#This Row],[Score]])>0,1,0) -> 1 | L5: 0 | M5: 0 | N5: 3rd
A6: =Classical!A6 -> A-303 | B6: =VLOOKUP(Table71012[[#This Row],[ID]],Classical!A:D,4,FALSE) -> (205) Brinley | C6: =Classical!U6 -> 11 | D6: =Classical!S6 -> 55 | E6: =IF((Table71012[[#This Row],[Rank]]+Table71012[[#This Row],[Score]])>0,1,0) -> 1 | L6: 0 | M6: 0
A7: =Classical!A7 -> A-304 | B7: =VLOOKUP(Table71012[[#This Row],[ID]],Classical!A:D,4,FALSE) -> (206) Vincent | C7: =Classical!U7 -> 12 | D7: =Classical!S7 -> 52 | E7: =IF((Table71012[[#This Row],[Rank]]+Table71012[[#This Row],[Score]])>0,1,0) -> 1 | L7: 0 | M7: 0
A8: =Classical!A14 -> C-301 | B8: =VLOOKUP(Table71012[[#This Row],[ID]],Classical!A:D,4,FALSE) -> (204) Brooklyn Clark | C8: =Classical!U14 -> 0 | D8: =Classical!S14 -> 0 | E8: =IF((Table71012[[#This Row],[Rank]]+Table71012[[#This Row],[Score]])>0,1,0) -> 0 | L8: 0 | M8: 0
A9: =Classical!A9 -> B-301 | B9: =VLOOKUP(Table71012[[#This Row],[ID]],Classical!A:D,4,FALSE) -> (200) Tylee Barney | C9: =Classical!U9 -> 0 | D9: =Classical!S9 -> 0 | E9: =IF((Table71012[[#This Row],[Rank]]+Table71012[[#This Row],[Score]])>0,1,0) -> 0 | L9: 0 | M9: 0
A10: =Classical!A124 -> AA-301 | B10: =VLOOKUP(Table71012[[#This Row],[ID]],Classical!A:D,4,FALSE) -> 0 | C10: =Classical!U124 -> 0 | D10: =Classical!S124 -> 0 | E10: =IF((Table71012[[#This Row],[Rank]]+Table71012[[#This Row],[Score]])>0,1,0) -> 0 | L10: 0 | M10: 0
A11: =Classical!A125 -> AA-302 | B11: =VLOOKUP(Table71012[[#This Row],[ID]],Classical!A:D,4,FALSE) -> 0 | C11: =Classical!U125 -> 0 | D11: =Classical!S125 -> 0 | E11: =IF((Table71012[[#This Row],[Rank]]+Table71012[[#This Row],[Score]])>0,1,0) -> 0 | L11: 0 | M11: 0
A12: =Classical!A126 -> AA-303 | B12: =VLOOKUP(Table71012[[#This Row],[ID]],Classical!A:D,4,FALSE) -> 0 | C12: =Classical!U126 -> 0 | D12: =Classical!S126 -> 0 | E12: =IF((Table71012[[#This Row],[Rank]]+Table71012[[#This Row],[Score]])>0,1,0) -> 0 | L12: 0 | M12: 0
A13: =Classical!A127 -> AA-304 | B13: =VLOOKUP(Table71012[[#This Row],[ID]],Classical!A:D,4,FALSE) -> 0 | C13: =Classical!U127 -> 0 | D13: =Classical!S127 -> 0 | E13: =IF((Table71012[[#This Row],[Rank]]+Table71012[[#This Row],[Score]])>0,1,0) -> 0 | L13: 0 | M13: 0
A14: =Classical!A11 -> B-303 | B14: =VLOOKUP(Table71012[[#This Row],[ID]],Classical!A:D,4,FALSE) -> 0 | C14: =Classical!U11 -> 0 | D14: =Classical!S11 -> 0 | E14: =IF((Table71012[[#This Row],[Rank]]+Table71012[[#This Row],[Score]])>0,1,0) -> 0 | L14: 0 | M14: 0
A15: =Classical!A12 -> B-304 | B15: =VLOOKUP(Table71012[[#This Row],[ID]],Classical!A:D,4,FALSE) -> 0 | C15: =Classical!U12 -> 0 | D15: =Classical!S12 -> 0 | E15: =IF((Table71012[[#This Row],[Rank]]+Table71012[[#This Row],[Score]])>0,1,0) -> 0 | L15: 0 | M15: 0
A16: =Classical!A129 -> BB-301 | B16: =VLOOKUP(Table71012[[#This Row],[ID]],Classical!A:D,4,FALSE) -> 0 | C16: =Classical!U129 -> 0 | D16: =Classical!S129 -> 0 | E16: =IF((Table71012[[#This Row],[Rank]]+Table71012[[#This Row],[Score]])>0,1,0) -> 0 | L16: 0 | M16: 0
A17: =Classical!A130 -> BB-302 | B17: =VLOOKUP(Table71012[[#This Row],[ID]],Classical!A:D,4,FALSE) -> 0 | C17: =Classical!U130 -> 0 | D17: =Classical!S130 -> 0 | E17: =IF((Table71012[[#This Row],[Rank]]+Table71012[[#This Row],[Score]])>0,1,0) -> 0 | L17: 0 | M17: 0
A18: =Classical!A131 -> BB-303 | B18: =VLOOKUP(Table71012[[#This Row],[ID]],Classical!A:D,4,FALSE) -> 0 | C18: =Classical!U131 -> 0 | D18: =Classical!S131 -> 0 | E18: =IF((Table71012[[#This Row],[Rank]]+Table71012[[#This Row],[Score]])>0,1,0) -> 0 | L18: 0 | M18: 0
A19: =Classical!A132 -> BB-304 | B19: =VLOOKUP(Table71012[[#This Row],[ID]],Classical!A:D,4,FALSE) -> 0 | C19: =Classical!U132 -> 0 | D19: =Classical!S132 -> 0 | E19: =IF((Table71012[[#This Row],[Rank]]+Table71012[[#This Row],[Score]])>0,1,0) -> 0 | L19: 0 | M19: 0
A20: =Classical!A15 -> C-302 | B20: =VLOOKUP(Table71012[[#This Row],[ID]],Classical!A:D,4,FALSE) -> 0 | C20: =Classical!U15 -> 0 | D20: =Classical!S15 -> 0 | E20: =IF((Table71012[[#This Row],[Rank]]+Table71012[[#This Row],[Score]])>0,1,0) -> 0 | L20: 0 | M20: 0
A21: =Classical!A16 -> C-303 | B21: =VLOOKUP(Table71012[[#This Row],[ID]],Classical!A:D,4,FALSE) -> 0 | C21: =Classical!U16 -> 0 | D21: =Classical!S16 -> 0 | E21: =IF((Table71012[[#This Row],[Rank]]+Table71012[[#This Row],[Score]])>0,1,0) -> 0 | L21: 0 | M21: 0
A22: =Classical!A17 -> C-304 | B22: =VLOOKUP(Table71012[[#This Row],[ID]],Classical!A:D,4,FALSE) -> 0 | C22: =Classical!U17 -> 0 | D22: =Classical!S17 -> 0 | E22: =IF((Table71012[[#This Row],[Rank]]+Table71012[[#This Row],[Score]])>0,1,0) -> 0 | L22: 0 | M22: 0
A23: =Classical!A134 -> CC-301 | B23: =VLOOKUP(Table71012[[#This Row],[ID]],Classical!A:D,4,FALSE) -> 0 | C23: =Classical!U134 -> 0 | D23: =Classical!S134 -> 0 | E23: =IF((Table71012[[#This Row],[Rank]]+Table71012[[#This Row],[Score]])>0,1,0) -> 0 | L23: 0 | M23: 0
A24: =Classical!A135 -> CC-302 | B24: =VLOOKUP(Table71012[[#This Row],[ID]],Classical!A:D,4,FALSE) -> 0 | C24: =Classical!U135 -> 0 | D24: =Classical!S135 -> 0 | E24: =IF((Table71012[[#This Row],[Rank]]+Table71012[[#This Row],[Score]])>0,1,0) -> 0 | L24: 0 | M24: 0
A25: =Classical!A136 -> CC-303 | B25: =VLOOKUP(Table71012[[#This Row],[ID]],Classical!A:D,4,FALSE) -> 0 | C25: =Classical!U136 -> 0 | D25: =Classical!S136 -> 0 | E25: =IF((Table71012[[#This Row],[Rank]]+Table71012[[#This Row],[Score]])>0,1,0) -> 0 | L25: 0 | M25: 0
A26: =Classical!A137 -> CC-304 | B26: =VLOOKUP(Table71012[[#This Row],[ID]],Classical!A:D,4,FALSE) -> 0 | C26: =Classical!U137 -> 0 | D26: =Classical!S137 -> 0 | E26: =IF((Table71012[[#This Row],[Rank]]+Table71012[[#This Row],[Score]])>0,1,0) -> 0 | L26: 0 | M26: 0
A27: =Classical!A19 -> D-301 | B27: =VLOOKUP(Table71012[[#This Row],[ID]],Classical!A:D,4,FALSE) -> 0 | C27: =Classical!U19 -> 0 | D27: =Classical!S19 -> 0 | E27: =IF((Table71012[[#This Row],[Rank]]+Table71012[[#This Row],[Score]])>0,1,0) -> 0 | L27: 0 | M27: 0
A28: =Classical!A20 -> D-302 | B28: =VLOOKUP(Table71012[[#This Row],[ID]],Classical!A:D,4,FALSE) -> 0 | C28: =Classical!U20 -> 0 | D28: =Classical!S20 -> 0 | E28: =IF((Table71012[[#This Row],[Rank]]+Table71012[[#This Row],[Score]])>0,1,0) -> 0 | L28: 0 | M28: 0
A29: =Classical!A21 -> D-303 | B29: =VLOOKUP(Table71012[[#This Row],[ID]],Classical!A:D,4,FALSE) -> 0 | C29: =Classical!U21 -> 0 | D29: =Classical!S21 -> 0 | E29: =IF((Table71012[[#This Row],[Rank]]+Table71012[[#This Row],[Score]])>0,1,0) -> 0 | L29: 0 | M29: 0
A30: =Classical!A22 -> D-304 | B30: =VLOOKUP(Table71012[[#This Row],[ID]],Classical!A:D,4,FALSE) -> 0 | C30: =Classical!U22 -> 0 | D30: =Classical!S22 -> 0 | E30: =IF((Table71012[[#This Row],[Rank]]+Table71012[[#This Row],[Score]])>0,1,0) -> 0 | L30: 0 | M30: 0
A31: =Classical!A139 -> DD-301 | B31: =VLOOKUP(Table71012[[#This Row],[ID]],Classical!A:D,4,FALSE) -> 0 | C31: =Classical!U139 -> 0 | D31: =Classical!S139 -> 0 | E31: =IF((Table71012[[#This Row],[Rank]]+Table71012[[#This Row],[Score]])>0,1,0) -> 0 | L31: 0 | M31: 0
A32: =Classical!A140 -> DD-302 | B32: =VLOOKUP(Table71012[[#This Row],[ID]],Classical!A:D,4,FALSE) -> 0 | C32: =Classical!U140 -> 0 | D32: =Classical!S140 -> 0 | E32: =IF((Table71012[[#This Row],[Rank]]+Table71012[[#This Row],[Score]])>0,1,0) -> 0 | L32: 0 | M32: 0
A33: =Classical!A141 -> DD-303 | B33: =VLOOKUP(Table71012[[#This Row],[ID]],Classical!A:D,4,FALSE) -> 0 | C33: =Classical!U141 -> 0 | D33: =Classical!S141 -> 0 | E33: =IF((Table71012[[#This Row],[Rank]]+Table71012[[#This Row],[Score]])>0,1,0) -> 0 | L33: 0 | M33: 0
A34: =Classical!A142 -> DD-304 | B34: =VLOOKUP(Table71012[[#This Row],[ID]],Classical!A:D,4,FALSE) -> 0 | C34: =Classical!U142 -> 0 | D34: =Classical!S142 -> 0 | E34: =IF((Table71012[[#This Row],[Rank]]+Table71012[[#This Row],[Score]])>0,1,0) -> 0 | L34: 0 | M34: 0
A35: =Classical!A24 -> E-301 | B35: =VLOOKUP(Table71012[[#This Row],[ID]],Classical!A:D,4,FALSE) -> 0 | C35: =Classical!U24 -> 0 | D35: =Classical!S24 -> 0 | E35: =IF((Table71012[[#This Row],[Rank]]+Table71012[[#This Row],[Score]])>0,1,0) -> 0 | L35: =SUM(F35,H35,J35) -> 0 | M35: =SUM(G35,I35,K35) -> 0
A36: =Classical!A25 -> E-302 | B36: =VLOOKUP(Table71012[[#This Row],[ID]],Classical!A:D,4,FALSE) -> 0 | C36: =Classical!U25 -> 0 | D36: =Classical!S25 -> 0 | E36: =IF((Table71012[[#This Row],[Rank]]+Table71012[[#This Row],[Score]])>0,1,0) -> 0 | L36: 0 | M36: 0
A37: =Classical!A26 -> E-303 | B37: =VLOOKUP(Table71012[[#This Row],[ID]],Classical!A:D,4,FALSE) -> 0 | C37: =Classical!U26 -> 0 | D37: =Classical!S26 -> 0 | E37: =IF((Table71012[[#This Row],[Rank]]+Table71012[[#This Row],[Score]])>0,1,0) -> 0 | L37: 0 | M37: 0
A38: =Classical!A27 -> E-304 | B38: =VLOOKUP(Table71012[[#This Row],[ID]],Classical!A:D,4,FALSE) -> 0 | C38: =Classical!U27 -> 0 | D38: =Classical!S27 -> 0 | E38: =IF((Table71012[[#This Row],[Rank]]+Table71012[[#This Row],[Score]])>0,1,0) -> 0 | L38: 0 | M38: 0
A39: =Classical!A144 -> EE-301 | B39: =VLOOKUP(Table71012[[#This Row],[ID]],Classical!A:D,4,FALSE) -> 0 | C39: =Classical!U144 -> 0 | D39: =Classical!S144 -> 0 | E39: =IF((Table71012[[#This Row],[Rank]]+Table71012[[#This Row],[Score]])>0,1,0) -> 0 | L39: 0 | M39: 0
A40: =Classical!A145 -> EE-302 | B40: =VLOOKUP(Table71012[[#This Row],[ID]],Classical!A:D,4,FALSE) -> 0 | C40: =Classical!U145 -> 0 | D40: =Classical!S145 -> 0 | E40: =IF((Table71012[[#This Row],[Rank]]+Table71012[[#This Row],[Score]])>0,1,0) -> 0 | L40: 0 | M40: 0
A41: =Classical!A146 -> EE-303 | B41: =VLOOKUP(Table71012[[#This Row],[ID]],Classical!A:D,4,FALSE) -> 0 | C41: =Classical!U146 -> 0 | D41: =Classical!S146 -> 0 | E41: =IF((Table71012[[#This Row],[Rank]]+Table71012[[#This Row],[Score]])>0,1,0) -> 0 | L41: 0 | M41: 0
A42: =Classical!A147 -> EE-304 | B42: =VLOOKUP(Table71012[[#This Row],[ID]],Classical!A:D,4,FALSE) -> 0 | C42: =Classical!U147 -> 0 | D42: =Classical!S147 -> 0 | E42: =IF((Table71012[[#This Row],[Rank]]+Table71012[[#This Row],[Score]])>0,1,0) -> 0 | L42: 0 | M42: 0
A43: =Classical!A29 -> F-301 | B43: =VLOOKUP(Table71012[[#This Row],[ID]],Classical!A:D,4,FALSE) -> 0 | C43: =Classical!U29 -> 0 | D43: =Classical!S29 -> 0 | E43: =IF((Table71012[[#This Row],[Rank]]+Table71012[[#This Row],[Score]])>0,1,0) -> 0 | L43: 0 | M43: 0
A44: =Classical!A30 -> F-302 | B44: =VLOOKUP(Table71012[[#This Row],[ID]],Classical!A:D,4,FALSE) -> 0 | C44: =Classical!U30 -> 0 | D44: =Classical!S30 -> 0 | E44: =IF((Table71012[[#This Row],[Rank]]+Table71012[[#This Row],[Score]])>0,1,0) -> 0 | L44: 0 | M44: 0
A45: =Classical!A31 -> F-303 | B45: =VLOOKUP(Table71012[[#This Row],[ID]],Classical!A:D,4,FALSE) -> 0 | C45: =Classical!U31 -> 0 | D45: =Classical!S31 -> 0 | E45: =IF((Table71012[[#This Row],[Rank]]+Table71012[[#This Row],[Score]])>0,1,0) -> 0 | L45: 0 | M45: 0
A46: =Classical!A32 -> F-304 | B46: =VLOOKUP(Table71012[[#This Row],[ID]],Classical!A:D,4,FALSE) -> 0 | C46: =Classical!U32 -> 0 | D46: =Classical!S32 -> 0 | E46: =IF((Table71012[[#This Row],[Rank]]+Table71012[[#This Row],[Score]])>0,1,0) -> 0 | L46: 0 | M46: 0
A47: =Classical!A34 -> G-301 | B47: =VLOOKUP(Table71012[[#This Row],[ID]],Classical!A:D,4,FALSE) -> 0 | C47: =Classical!U34 -> 0 | D47: =Classical!S34 -> 0 | E47: =IF((Table71012[[#This Row],[Rank]]+Table71012[[#This Row],[Score]])>0,1,0) -> 0 | L47: 0 | M47: 0
A48: =Classical!A35 -> G-302 | B48: =VLOOKUP(Table71012[[#This Row],[ID]],Classical!A:D,4,FALSE) -> 0 | C48: =Classical!U35 -> 0 | D48: =Classical!S35 -> 0 | E48: =IF((Table71012[[#This Row],[Rank]]+Table71012[[#This Row],[Score]])>0,1,0) -> 0 | L48: 0 | M48: 0
A49: =Classical!A36 -> G-303 | B49: =VLOOKUP(Table71012[[#This Row],[ID]],Classical!A:D,4,FALSE) -> 0 | C49: =Classical!U36 -> 0 | D49: =Classical!S36 -> 0 | E49: =IF((Table71012[[#This Row],[Rank]]+Table71012[[#This Row],[Score]])>0,1,0) -> 0 | L49: 0 | M49: 0
A50: =Classical!A37 -> G-304 | B50: =VLOOKUP(Table71012[[#This Row],[ID]],Classical!A:D,4,FALSE) -> 0 | C50: =Classical!U37 -> 0 | D50: =Classical!S37 -> 0 | E50: =IF((Table71012[[#This Row],[Rank]]+Table71012[[#This Row],[Score]])>0,1,0) -> 0 | L50: 0 | M50: 0
A51: =Classical!A39 -> H-301 | B51: =VLOOKUP(Table71012[[#This Row],[ID]],Classical!A:D,4,FALSE) -> 0 | C51: =Classical!U39 -> 0 | D51: =Classical!S39 -> 0 | E51: =IF((Table71012[[#This Row],[Rank]]+Table71012[[#This Row],[Score]])>0,1,0) -> 0 | L51: 0 | M51: 0
A52: =Classical!A40 -> H-302 | B52: =VLOOKUP(Table71012[[#This Row],[ID]],Classical!A:D,4,FALSE) -> 0 | C52: =Classical!U40 -> 0 | D52: =Classical!S40 -> 0 | E52: =IF((Table71012[[#This Row],[Rank]]+Table71012[[#This Row],[Score]])>0,1,0) -> 0 | L52: 0 | M52: 0
A53: =Classical!A41 -> H-303 | B53: =VLOOKUP(Table71012[[#This Row],[ID]],Classical!A:D,4,FALSE) -> 0 | C53: =Classical!U41 -> 0 | D53: =Classical!S41 -> 0 | E53: =IF((Table71012[[#This Row],[Rank]]+Table71012[[#This Row],[Score]])>0,1,0) -> 0 | L53: 0 | M53: 0
A54: =Classical!A42 -> H-304 | B54: =VLOOKUP(Table71012[[#This Row],[ID]],Classical!A:D,4,FALSE) -> 0 | C54: =Classical!U42 -> 0 | D54: =Classical!S42 -> 0 | E54: =IF((Table71012[[#This Row],[Rank]]+Table71012[[#This Row],[Score]])>0,1,0) -> 0 | L54: 0 | M54: 0
A55: =Classical!A44 -> J-301 | B55: =VLOOKUP(Table71012[[#This Row],[ID]],Classical!A:D,4,FALSE) -> 0 | C55: =Classical!U44 -> 0 | D55: =Classical!S44 -> 0 | E55: =IF((Table71012[[#This Row],[Rank]]+Table71012[[#This Row],[Score]])>0,1,0) -> 0 | L55: 0 | M55: 0
A56: =Classical!A45 -> J-302 | B56: =VLOOKUP(Table71012[[#This Row],[ID]],Classical!A:D,4,FALSE) -> 0 | C56: =Classical!U45 -> 0 | D56: =Classical!S45 -> 0 | E56: =IF((Table71012[[#This Row],[Rank]]+Table71012[[#This Row],[Score]])>0,1,0) -> 0 | L56: 0 | M56: 0
A57: =Classical!A46 -> J-303 | B57: =VLOOKUP(Table71012[[#This Row],[ID]],Classical!A:D,4,FALSE) -> 0 | C57: =Classical!U46 -> 0 | D57: =Classical!S46 -> 0 | E57: =IF((Table71012[[#This Row],[Rank]]+Table71012[[#This Row],[Score]])>0,1,0) -> 0 | L57: 0 | M57: 0
A58: =Classical!A47 -> J-304 | B58: =VLOOKUP(Table71012[[#This Row],[ID]],Classical!A:D,4,FALSE) -> 0 | C58: =Classical!U47 -> 0 | D58: =Classical!S47 -> 0 | E58: =IF((Table71012[[#This Row],[Rank]]+Table71012[[#This Row],[Score]])>0,1,0) -> 0 | L58: 0 | M58: 0
A59: =Classical!A49 -> K-301 | B59: =VLOOKUP(Table71012[[#This Row],[ID]],Classical!A:D,4,FALSE) -> 0 | C59: =Classical!U49 -> 0 | D59: =Classical!S49 -> 0 | E59: =IF((Table71012[[#This Row],[Rank]]+Table71012[[#This Row],[Score]])>0,1,0) -> 0 | L59: 0 | M59: 0
A60: =Classical!A50 -> K-302 | B60: =VLOOKUP(Table71012[[#This Row],[ID]],Classical!A:D,4,FALSE) -> 0 | C60: =Classical!U50 -> 0 | D60: =Classical!S50 -> 0 | E60: =IF((Table71012[[#This Row],[Rank]]+Table71012[[#This Row],[Score]])>0,1,0) -> 0 | L60: 0 | M60: 0
A61: =Classical!A51 -> K-303 | B61: =VLOOKUP(Table71012[[#This Row],[ID]],Classical!A:D,4,FALSE) -> 0 | C61: =Classical!U51 -> 0 | D61: =Classical!S51 -> 0 | E61: =IF((Table71012[[#This Row],[Rank]]+Table71012[[#This Row],[Score]])>0,1,0) -> 0 | L61: 0 | M61: 0
A62: =Classical!A52 -> K-304 | B62: =VLOOKUP(Table71012[[#This Row],[ID]],Classical!A:D,4,FALSE) -> 0 | C62: =Classical!U52 -> 0 | D62: =Classical!S52 -> 0 | E62: =IF((Table71012[[#This Row],[Rank]]+Table71012[[#This Row],[Score]])>0,1,0) -> 0 | L62: 0 | M62: 0
A63: =Classical!A54 -> L-301 | B63: =VLOOKUP(Table71012[[#This Row],[ID]],Classical!A:D,4,FALSE) -> 0 | C63: =Classical!U54 -> 0 | D63: =Classical!S54 -> 0 | E63: =IF((Table71012[[#This Row],[Rank]]+Table71012[[#This Row],[Score]])>0,1,0) -> 0 | L63: 0 | M63: 0
A64: =Classical!A55 -> L-302 | B64: =VLOOKUP(Table71012[[#This Row],[ID]],Classical!A:D,4,FALSE) -> 0 | C64: =Classical!U55 -> 0 | D64: =Classical!S55 -> 0 | E64: =IF((Table71012[[#This Row],[Rank]]+Table71012[[#This Row],[Score]])>0,1,0) -> 0 | L64: 0 | M64: 0
A65: =Classical!A56 -> L-303 | B65: =VLOOKUP(Table71012[[#This Row],[ID]],Classical!A:D,4,FALSE) -> 0 | C65: =Classical!U56 -> 0 | D65: =Classical!S56 -> 0 | E65: =IF((Table71012[[#This Row],[Rank]]+Table71012[[#This Row],[Score]])>0,1,0) -> 0 | L65: 0 | M65: 0
A66: =Classical!A57 -> L-304 | B66: =VLOOKUP(Table71012[[#This Row],[ID]],Classical!A:D,4,FALSE) -> 0 | C66: =Classical!U57 -> 0 | D66: =Classical!S57 -> 0 | E66: =IF((Table71012[[#This Row],[Rank]]+Table71012[[#This Row],[Score]])>0,1,0) -> 0 | L66: 0 | M66: 0
A67: =Classical!A59 -> M-301 | B67: =VLOOKUP(Table71012[[#This Row],[ID]],Classical!A:D,4,FALSE) -> 0 | C67: =Classical!U59 -> 0 | D67: =Classical!S59 -> 0 | E67: =IF((Table71012[[#This Row],[Rank]]+Table71012[[#This Row],[Score]])>0,1,0) -> 0 | L67: =SUM(F67,H67,J67) -> 0 | M67: =SUM(G67,I67,K67) -> 0
A68: =Classical!A60 -> M-302 | B68: =VLOOKUP(Table71012[[#This Row],[ID]],Classical!A:D,4,FALSE) -> 0 | C68: =Classical!U60 -> 0 | D68: =Classical!S60 -> 0 | E68: =IF((Table71012[[#This Row],[Rank]]+Table71012[[#This Row],[Score]])>0,1,0) -> 0 | L68: 0 | M68: 0
A69: =Classical!A61 -> M-303 | B69: =VLOOKUP(Table71012[[#This Row],[ID]],Classical!A:D,4,FALSE) -> 0 | C69: =Classical!U61 -> 0 | D69: =Classical!S61 -> 0 | E69: =IF((Table71012[[#This Row],[Rank]]+Table71012[[#This Row],[Score]])>0,1,0) -> 0 | L69: 0 | M69: 0
A70: =Classical!A62 -> M-304 | B70: =VLOOKUP(Table71012[[#This Row],[ID]],Classical!A:D,4,FALSE) -> 0 | C70: =Classical!U62 -> 0 | D70: =Classical!S62 -> 0 | E70: =IF((Table71012[[#This Row],[Rank]]+Table71012[[#This Row],[Score]])>0,1,0) -> 0 | L70: 0 | M70: 0
A71: =Classical!A64 -> N-301 | B71: =VLOOKUP(Table71012[[#This Row],[ID]],Classical!A:D,4,FALSE) -> 0 | C71: =Classical!U64 -> 0 | D71: =Classical!S64 -> 0 | E71: =IF((Table71012[[#This Row],[Rank]]+Table71012[[#This Row],[Score]])>0,1,0) -> 0 | L71: 0 | M71: 0
A72: =Classical!A65 -> N-302 | B72: =VLOOKUP(Table71012[[#This Row],[ID]],Classical!A:D,4,FALSE) -> 0 | C72: =Classical!U65 -> 0 | D72: =Classical!S65 -> 0 | E72: =IF((Table71012[[#This Row],[Rank]]+Table71012[[#This Row],[Score]])>0,1,0) -> 0 | L72: 0 | M72: 0
A73: =Classical!A66 -> N-303 | B73: =VLOOKUP(Table71012[[#This Row],[ID]],Classical!A:D,4,FALSE) -> 0 | C73: =Classical!U66 -> 0 | D73: =Classical!S66 -> 0 | E73: =IF((Table71012[[#This Row],[Rank]]+Table71012[[#This Row],[Score]])>0,1,0) -> 0 | L73: 0 | M73: 0
A74: =Classical!A67 -> N-304 | B74: =VLOOKUP(Table71012[[#This Row],[ID]],Classical!A:D,4,FALSE) -> 0 | C74: =Classical!U67 -> 0 | D74: =Classical!S67 -> 0 | E74: =IF((Table71012[[#This Row],[Rank]]+Table71012[[#This Row],[Score]])>0,1,0) -> 0 | L74: 0 | M74: 0
A75: =Classical!A69 -> P-301 | B75: =VLOOKUP(Table71012[[#This Row],[ID]],Classical!A:D,4,FALSE) -> 0 | C75: =Classical!U69 -> 0 | D75: =Classical!S69 -> 0 | E75: =IF((Table71012[[#This Row],[Rank]]+Table71012[[#This Row],[Score]])>0,1,0) -> 0 | L75: 0 | M75: 0
A76: =Classical!A70 -> P-302 | B76: =VLOOKUP(Table71012[[#This Row],[ID]],Classical!A:D,4,FALSE) -> 0 | C76: =Classical!U70 -> 0 | D76: =Classical!S70 -> 0 | E76: =IF((Table71012[[#This Row],[Rank]]+Table71012[[#This Row],[Score]])>0,1,0) -> 0 | L76: 0 | M76: 0
A77: =Classical!A71 -> P-303 | B77: =VLOOKUP(Table71012[[#This Row],[ID]],Classical!A:D,4,FALSE) -> 0 | C77: =Classical!U71 -> 0 | D77: =Classical!S71 -> 0 | E77: =IF((Table71012[[#This Row],[Rank]]+Table71012[[#This Row],[Score]])>0,1,0) -> 0 | L77: 0 | M77: 0
A78: =Classical!A72 -> P-304 | B78: =VLOOKUP(Table71012[[#This Row],[ID]],Classical!A:D,4,FALSE) -> 0 | C78: =Classical!U72 -> 0 | D78: =Classical!S72 -> 0 | E78: =IF((Table71012[[#This Row],[Rank]]+Table71012[[#This Row],[Score]])>0,1,0) -> 0 | L78: 0 | M78: 0
A79: =Classical!A74 -> Q-301 | B79: =VLOOKUP(Table71012[[#This Row],[ID]],Classical!A:D,4,FALSE) -> 0 | C79: =Classical!U74 -> 0 | D79: =Classical!S74 -> 0 | E79: =IF((Table71012[[#This Row],[Rank]]+Table71012[[#This Row],[Score]])>0,1,0) -> 0 | L79: 0 | M79: 0
A80: =Classical!A75 -> Q-302 | B80: =VLOOKUP(Table71012[[#This Row],[ID]],Classical!A:D,4,FALSE) -> 0 | C80: =Classical!U75 -> 0 | D80: =Classical!S75 -> 0 | E80: =IF((Table71012[[#This Row],[Rank]]+Table71012[[#This Row],[Score]])>0,1,0) -> 0 | L80: 0 | M80: 0
A81: =Classical!A76 -> Q-303 | B81: =VLOOKUP(Table71012[[#This Row],[ID]],Classical!A:D,4,FALSE) -> 0 | C81: =Classical!U76 -> 0 | D81: =Classical!S76 -> 0 | E81: =IF((Table71012[[#This Row],[Rank]]+Table71012[[#This Row],[Score]])>0,1,0) -> 0 | L81: 0 | M81: 0
A82: =Classical!A77 -> Q-304 | B82: =VLOOKUP(Table71012[[#This Row],[ID]],Classical!A:D,4,FALSE) -> 0 | C82: =Classical!U77 -> 0 | D82: =Classical!S77 -> 0 | E82: =IF((Table71012[[#This Row],[Rank]]+Table71012[[#This Row],[Score]])>0,1,0) -> 0 | L82: 0 | M82: 0
A83: =Classical!A79 -> R-301 | B83: =VLOOKUP(Table71012[[#This Row],[ID]],Classical!A:D,4,FALSE) -> 0 | C83: =Classical!U79 -> 0 | D83: =Classical!S79 -> 0 | E83: =IF((Table71012[[#This Row],[Rank]]+Table71012[[#This Row],[Score]])>0,1,0) -> 0 | L83: 0 | M83: 0
A84: =Classical!A80 -> R-302 | B84: =VLOOKUP(Table71012[[#This Row],[ID]],Classical!A:D,4,FALSE) -> 0 | C84: =Classical!U80 -> 0 | D84: =Classical!S80 -> 0 | E84: =IF((Table71012[[#This Row],[Rank]]+Table71012[[#This Row],[Score]])>0,1,0) -> 0 | L84: 0 | M84: 0
A85: =Classical!A81 -> R-303 | B85: =VLOOKUP(Table71012[[#This Row],[ID]],Classical!A:D,4,FALSE) -> 0 | C85: =Classical!U81 -> 0 | D85: =Classical!S81 -> 0 | E85: =IF((Table71012[[#This Row],[Rank]]+Table71012[[#This Row],[Score]])>0,1,0) -> 0 | L85: 0 | M85: 0
A86: =Classical!A82 -> R-304 | B86: =VLOOKUP(Table71012[[#This Row],[ID]],Classical!A:D,4,FALSE) -> 0 | C86: =Classical!U82 -> 0 | D86: =Classical!S82 -> 0 | E86: =IF((Table71012[[#This Row],[Rank]]+Table71012[[#This Row],[Score]])>0,1,0) -> 0 | L86: 0 | M86: 0
A87: =Classical!A84 -> S-301 | B87: =VLOOKUP(Table71012[[#This Row],[ID]],Classical!A:D,4,FALSE) -> 0 | C87: =Classical!U84 -> 0 | D87: =Classical!S84 -> 0 | E87: =IF((Table71012[[#This Row],[Rank]]+Table71012[[#This Row],[Score]])>0,1,0) -> 0 | L87: 0 | M87: 0
A88: =Classical!A85 -> S-302 | B88: =VLOOKUP(Table71012[[#This Row],[ID]],Classical!A:D,4,FALSE) -> 0 | C88: =Classical!U85 -> 0 | D88: =Classical!S85 -> 0 | E88: =IF((Table71012[[#This Row],[Rank]]+Table71012[[#This Row],[Score]])>0,1,0) -> 0 | L88: 0 | M88: 0
A89: =Classical!A86 -> S-303 | B89: =VLOOKUP(Table71012[[#This Row],[ID]],Classical!A:D,4,FALSE) -> 0 | C89: =Classical!U86 -> 0 | D89: =Classical!S86 -> 0 | E89: =IF((Table71012[[#This Row],[Rank]]+Table71012[[#This Row],[Score]])>0,1,0) -> 0 | L89: 0 | M89: 0
A90: =Classical!A87 -> S-304 | B90: =VLOOKUP(Table71012[[#This Row],[ID]],Classical!A:D,4,FALSE) -> 0 | C90: =Classical!U87 -> 0 | D90: =Classical!S87 -> 0 | E90: =IF((Table71012[[#This Row],[Rank]]+Table71012[[#This Row],[Score]])>0,1,0) -> 0 | L90: 0 | M90: 0
A91: =Classical!A89 -> T-301 | B91: =VLOOKUP(Table71012[[#This Row],[ID]],Classical!A:D,4,FALSE) -> 0 | C91: =Classical!U89 -> 0 | D91: =Classical!S89 -> 0 | E91: =IF((Table71012[[#This Row],[Rank]]+Table71012[[#This Row],[Score]])>0,1,0) -> 0 | L91: 0 | M91: 0
A92: =Classical!A90 -> T-302 | B92: =VLOOKUP(Table71012[[#This Row],[ID]],Classical!A:D,4,FALSE) -> 0 | C92: =Classical!U90 -> 0 | D92: =Classical!S90 -> 0 | E92: =IF((Table71012[[#This Row],[Rank]]+Table71012[[#This Row],[Score]])>0,1,0) -> 0 | L92: 0 | M92: 0
A93: =Classical!A91 -> T-303 | B93: =VLOOKUP(Table71012[[#This Row],[ID]],Classical!A:D,4,FALSE) -> 0 | C93: =Classical!U91 -> 0 | D93: =Classical!S91 -> 0 | E93: =IF((Table71012[[#This Row],[Rank]]+Table71012[[#This Row],[Score]])>0,1,0) -> 0 | L93: 0 | M93: 0
A94: =Classical!A92 -> T-304 | B94: =VLOOKUP(Table71012[[#This Row],[ID]],Classical!A:D,4,FALSE) -> 0 | C94: =Classical!U92 -> 0 | D94: =Classical!S92 -> 0 | E94: =IF((Table71012[[#This Row],[Rank]]+Table71012[[#This Row],[Score]])>0,1,0) -> 0 | L94: 0 | M94: 0
A95: =Classical!A94 -> U-301 | B95: =VLOOKUP(Table71012[[#This Row],[ID]],Classical!A:D,4,FALSE) -> 0 | C95: =Classical!U94 -> 0 | D95: =Classical!S94 -> 0 | E95: =IF((Table71012[[#This Row],[Rank]]+Table71012[[#This Row],[Score]])>0,1,0) -> 0 | L95: 0 | M95: 0
A96: =Classical!A95 -> U-302 | B96: =VLOOKUP(Table71012[[#This Row],[ID]],Classical!A:D,4,FALSE) -> 0 | C96: =Classical!U95 -> 0 | D96: =Classical!S95 -> 0 | E96: =IF((Table71012[[#This Row],[Rank]]+Table71012[[#This Row],[Score]])>0,1,0) -> 0 | L96: 0 | M96: 0
A97: =Classical!A96 -> U-303 | B97: =VLOOKUP(Table71012[[#This Row],[ID]],Classical!A:D,4,FALSE) -> 0 | C97: =Classical!U96 -> 0 | D97: =Classical!S96 -> 0 | E97: =IF((Table71012[[#This Row],[Rank]]+Table71012[[#This Row],[Score]])>0,1,0) -> 0 | L97: 0 | M97: 0
A98: =Classical!A97 -> U-304 | B98: =VLOOKUP(Table71012[[#This Row],[ID]],Classical!A:D,4,FALSE) -> 0 | C98: =Classical!U97 -> 0 | D98: =Classical!S97 -> 0 | E98: =IF((Table71012[[#This Row],[Rank]]+Table71012[[#This Row],[Score]])>0,1,0) -> 0 | L98: 0 | M98: 0
A99: =Classical!A99 -> V-301 | B99: =VLOOKUP(Table71012[[#This Row],[ID]],Classical!A:D,4,FALSE) -> 0 | C99: =Classical!U99 -> 0 | D99: =Classical!S99 -> 0 | E99: =IF((Table71012[[#This Row],[Rank]]+Table71012[[#This Row],[Score]])>0,1,0) -> 0 | L99: =SUM(F99,H99,J99) -> 0 | M99: =SUM(G99,I99,K99) -> 0
A100: =Classical!A100 -> V-302 | B100: =VLOOKUP(Table71012[[#This Row],[ID]],Classical!A:D,4,FALSE) -> 0 | C100: =Classical!U100 -> 0 | D100: =Classical!S100 -> 0 | E100: =IF((Table71012[[#This Row],[Rank]]+Table71012[[#This Row],[Score]])>0,1,0) -> 0 | L100: 0 | M100: 0
A101: =Classical!A101 -> V-303 | B101: =VLOOKUP(Table71012[[#This Row],[ID]],Classical!A:D,4,FALSE) -> 0 | C101: =Classical!U101 -> 0 | D101: =Classical!S101 -> 0 | E101: =IF((Table71012[[#This Row],[Rank]]+Table71012[[#This Row],[Score]])>0,1,0) -> 0 | L101: 0 | M101: 0
A102: =Classical!A102 -> V-304 | B102: =VLOOKUP(Table71012[[#This Row],[ID]],Classical!A:D,4,FALSE) -> 0 | C102: =Classical!U102 -> 0 | D102: =Classical!S102 -> 0 | E102: =IF((Table71012[[#This Row],[Rank]]+Table71012[[#This Row],[Score]])>0,1,0) -> 0 | L102: 0 | M102: 0
A103: =Classical!A104 -> W-301 | B103: =VLOOKUP(Table71012[[#This Row],[ID]],Classical!A:D,4,FALSE) -> 0 | C103: =Classical!U104 -> 0 | D103: =Classical!S104 -> 0 | E103: =IF((Table71012[[#This Row],[Rank]]+Table71012[[#This Row],[Score]])>0,1,0) -> 0 | L103: 0 | M103: 0
A104: =Classical!A105 -> W-302 | B104: =VLOOKUP(Table71012[[#This Row],[ID]],Classical!A:D,4,FALSE) -> 0 | C104: =Classical!U105 -> 0 | D104: =Classical!S105 -> 0 | E104: =IF((Table71012[[#This Row],[Rank]]+Table71012[[#This Row],[Score]])>0,1,0) -> 0 | L104: 0 | M104: 0
A105: =Classical!A106 -> W-303 | B105: =VLOOKUP(Table71012[[#This Row],[ID]],Classical!A:D,4,FALSE) -> 0 | C105: =Classical!U106 -> 0 | D105: =Classical!S106 -> 0 | E105: =IF((Table71012[[#This Row],[Rank]]+Table71012[[#This Row],[Score]])>0,1,0) -> 0 | L105: 0 | M105: 0
A106: =Classical!A107 -> W-304 | B106: =VLOOKUP(Table71012[[#This Row],[ID]],Classical!A:D,4,FALSE) -> 0 | C106: =Classical!U107 -> 0 | D106: =Classical!S107 -> 0 | E106: =IF((Table71012[[#This Row],[Rank]]+Table71012[[#This Row],[Score]])>0,1,0) -> 0 | L106: 0 | M106: 0
A107: =Classical!A109 -> X-301 | B107: =VLOOKUP(Table71012[[#This Row],[ID]],Classical!A:D,4,FALSE) -> 0 | C107: =Classical!U109 -> 0 | D107: =Classical!S109 -> 0 | E107: =IF((Table71012[[#This Row],[Rank]]+Table71012[[#This Row],[Score]])>0,1,0) -> 0 | L107: 0 | M107: 0
A108: =Classical!A110 -> X-302 | B108: =VLOOKUP(Table71012[[#This Row],[ID]],Classical!A:D,4,FALSE) -> 0 | C108: =Classical!U110 -> 0 | D108: =Classical!S110 -> 0 | E108: =IF((Table71012[[#This Row],[Rank]]+Table71012[[#This Row],[Score]])>0,1,0) -> 0 | L108: 0 | M108: 0
A109: =Classical!A111 -> X-303 | B109: =VLOOKUP(Table71012[[#This Row],[ID]],Classical!A:D,4,FALSE) -> 0 | C109: =Classical!U111 -> 0 | D109: =Classical!S111 -> 0 | E109: =IF((Table71012[[#This Row],[Rank]]+Table71012[[#This Row],[Score]])>0,1,0) -> 0 | L109: 0 | M109: 0
A110: =Classical!A112 -> X-304 | B110: =VLOOKUP(Table71012[[#This Row],[ID]],Classical!A:D,4,FALSE) -> 0 | C110: =Classical!U112 -> 0 | D110: =Classical!S112 -> 0 | E110: =IF((Table71012[[#This Row],[Rank]]+Table71012[[#This Row],[Score]])>0,1,0) -> 0 | L110: 0 | M110: 0
A111: =Classical!A114 -> Y-301 | B111: =VLOOKUP(Table71012[[#This Row],[ID]],Classical!A:D,4,FALSE) -> 0 | C111: =Classical!U114 -> 0 | D111: =Classical!S114 -> 0 | E111: =IF((Table71012[[#This Row],[Rank]]+Table71012[[#This Row],[Score]])>0,1,0) -> 0 | L111: 0 | M111: 0
A112: =Classical!A115 -> Y-302 | B112: =VLOOKUP(Table71012[[#This Row],[ID]],Classical!A:D,4,FALSE) -> 0 | C112: =Classical!U115 -> 0 | D112: =Classical!S115 -> 0 | E112: =IF((Table71012[[#This Row],[Rank]]+Table71012[[#This Row],[Score]])>0,1,0) -> 0 | L112: 0 | M112: 0
A113: =Classical!A116 -> Y-303 | B113: =VLOOKUP(Table71012[[#This Row],[ID]],Classical!A:D,4,FALSE) -> 0 | C113: =Classical!U116 -> 0 | D113: =Classical!S116 -> 0 | E113: =IF((Table71012[[#This Row],[Rank]]+Table71012[[#This Row],[Score]])>0,1,0) -> 0 | L113: 0 | M113: 0
A114: =Classical!A117 -> Y-304 | B114: =VLOOKUP(Table71012[[#This Row],[ID]],Classical!A:D,4,FALSE) -> 0 | C114: =Classical!U117 -> 0 | D114: =Classical!S117 -> 0 | E114: =IF((Table71012[[#This Row],[Rank]]+Table71012[[#This Row],[Score]])>0,1,0) -> 0 | L114: 0 | M114: 0
A115: =Classical!A119 -> Z-301 | B115: =VLOOKUP(Table71012[[#This Row],[ID]],Classical!A:D,4,FALSE) -> 0 | C115: =Classical!U119 -> 0 | D115: =Classical!S119 -> 0 | E115: =IF((Table71012[[#This Row],[Rank]]+Table71012[[#This Row],[Score]])>0,1,0) -> 0 | L115: 0 | M115: 0
A116: =Classical!A120 -> Z-302 | B116: =VLOOKUP(Table71012[[#This Row],[ID]],Classical!A:D,4,FALSE) -> 0 | C116: =Classical!U120 -> 0 | D116: =Classical!S120 -> 0 | E116: =IF((Table71012[[#This Row],[Rank]]+Table71012[[#This Row],[Score]])>0,1,0) -> 0 | L116: 0 | M116: 0
A117: =Classical!A121 -> Z-303 | B117: =VLOOKUP(Table71012[[#This Row],[ID]],Classical!A:D,4,FALSE) -> 0 | C117: =Classical!U121 -> 0 | D117: =Classical!S121 -> 0 | E117: =IF((Table71012[[#This Row],[Rank]]+Table71012[[#This Row],[Score]])>0,1,0) -> 0 | L117: 0 | M117: 0
A118: =Classical!A122 -> Z-304 | B118: =VLOOKUP(Table71012[[#This Row],[ID]],Classical!A:D,4,FALSE) -> 0 | C118: =Classical!U122 -> 0 | D118: =Classical!S122 -> 0 | E118: =IF((Table71012[[#This Row],[Rank]]+Table71012[[#This Row],[Score]])>0,1,0) -> 0 | L118: 0 | M118: 0
A119: =Classical!A149 -> FF-301 | B119: =VLOOKUP(Table71012[[#This Row],[ID]],Classical!A:D,4,FALSE) -> 0 | C119: =Classical!U149 -> 0 | D119: =Classical!S149 -> 0 | E119: =IF((Table71012[[#This Row],[Rank]]+Table71012[[#This Row],[Score]])>0,1,0) -> 0 | L119: 0 | M119: 0
A120: =Classical!A150 -> FF-302 | B120: =VLOOKUP(Table71012[[#This Row],[ID]],Classical!A:D,4,FALSE) -> 0 | C120: =Classical!U150 -> 0 | D120: =Classical!S150 -> 0 | E120: =IF((Table71012[[#This Row],[Rank]]+Table71012[[#This Row],[Score]])>0,1,0) -> 0 | L120: 0 | M120: 0
A121: =Classical!A151 -> FF-303 | B121: =VLOOKUP(Table71012[[#This Row],[ID]],Classical!A:D,4,FALSE) -> 0 | C121: =Classical!U151 -> 0 | D121: =Classical!S151 -> 0 | E121: =IF((Table71012[[#This Row],[Rank]]+Table71012[[#This Row],[Score]])>0,1,0) -> 0 | L121: 0 | M121: 0
A122: =Classical!A152 -> FF-304 | B122: =VLOOKUP(Table71012[[#This Row],[ID]],Classical!A:D,4,FALSE) -> 0 | C122: =Classical!U152 -> 0 | D122: =Classical!S152 -> 0 | E122: =IF((Table71012[[#This Row],[Rank]]+Table71012[[#This Row],[Score]])>0,1,0) -> 0 | L122: 0 | M122: 0

Sheet Contemporary
A1: Contemporary Scenes | K1: Rank 1-4 | X1: S | Y1: E | Z1: G | AA1: F | AC1: 1violation | AD1: 2violations | AE1: 3violations
K2: Round 1: | M2: Round 2: | O2: Round 3: | Q2: -2 for each | AB2: Drops lowest from column q
D3: Student Name | F3: Student Name | H3: Student Name | J3: Title of Piece | K3: R1 rank | L3: R1 score | M3: R2 rank | N3: R2 score | O3: R3 rank | P3: R3 score | Q3: Time Violations | S3: TOTAL SCORE | U3: TOTAL RANK | X3: TOTAL SCHOOL SWEEPS POINTS | AB3: Drop Lowest
A4: A-401 | D4: (306) Andy G. | F4: Zach H. | H4: Dom Y. | J4: "Pep Apocalyse" | K4: 3 | L4: 20 | M4: 4 | N4: 23 | O4: 3 | P4: 18 | R4: =IF(Q4="1violation",-7*1,IF(Q4="2violations",-7*2,IF(Q4="3violations",-7*3,IF(Q4="","")))) ->  | S4: =SUM(L4,N4,P4,R4) -> 61 | U4: =SUM(K4,M4,O4) -> 10 | Y4: =SUM(S4,S6,S5,S7,-AB4) -> 186 | AB4: =MIN(S4:S7) -> 59
A5: A-402 | D5: (307) Ella | F5: Riley C. | J5: "Anti-Social" | K5: 2 | L5: 20 | M5: 3 | N5: 24 | O5: 4 | P5: 18 | R5: =IF(Q5="1violation",-7*1,IF(Q5="2violations",-7*2,IF(Q5="3violations",-7*3,IF(Q5="","")))) ->  | S5: =SUM(L5,N5,P5,R5) -> 62 | U5: =SUM(K5,M5,O5) -> 9
A6: A-403 | D6: (308) Tristan | F6: George M. | H6: Joey R. | J6: "Dubuque 911" | K6: 1 | L6: 22 | M6: 4 | N6: 18 | O6: 1 | P6: 23 | S6: =SUM(L6,N6,P6,R6) -> 63 | U6: =SUM(K6,M6,O6) -> 6
A7: A-404 | D7: (309) Aaron | F7: Nimi | J7: "From Empowered" | K7: 4 | L7: 17 | M7: 4 | N7: 24 | O7: 4 | P7: 18 | S7: =SUM(L7,N7,P7,R7) -> 59 | U7: =SUM(K7,M7,O7) -> 12
A9: B-401 | D9: (301) Lilly Spendlove | F9: Mark Tebbs | J9: "Barefoot in Park" | K9: 3 | L9: 18 | M9: 2 | N9: 20 | O9: 2 | P9: 19 | S9: =SUM(L9,N9,P9,R9) -> 57 | U9: =SUM(K9,M9,O9) -> 7 | Y9: =SUM(S9,S11,S10,S12,-AB9) -> 121 | AB9: =MIN(S9:S12) -> 0
A10: B-402 | D10: (302) Chynne Anderson | F10: Courtney Houston | J10: "Julliet…" | K10: 4 | L10: 19 | M10: 2 | N10: 24 | O10: 1 | P10: 21 | S10: =SUM(L10,N10,P10,R10) -> 64 | U10: =SUM(K10,M10,O10) -> 7
A11: B-403 | S11: =SUM(L11,N11,P11,R11) -> 0 | U11: =SUM(K11,M11,O11) -> 0
A12: B-404 | S12: =SUM(L12,N12,P12,R12) -> 0 | U12: =SUM(K12,M12,O12) -> 0
A14: C-401 | D14: (305) Bryndis Maw | F14: Kalina Maw | S14: =SUM(L14,N14,P14,R14) -> 0 | U14: =SUM(K14,M14,O14) -> 0 | Y14: =SUM(S14,S16,S15,S17,-AB14) -> 0 | AB14: =MIN(S14:S17) -> 0
A15: C-402 | S15: =SUM(L15,N15,P15,R15) -> 0 | U15: =SUM(K15,M15,O15) -> 0
A16: C-403 | S16: =SUM(L16,N16,P16,R16) -> 0 | U16: =SUM(K16,M16,O16) -> 0
A17: C-404 | S17: =SUM(L17,N17,P17,R17) -> 0 | U17: =SUM(K17,M17,O17) -> 0
A19: D-401 | D19: (303) Melinda Grimstead | F19: Elizabeth Milne | J19: "Fancy Restaurant" | K19: 4 | L19: 18 | M19: 3 | N19: 24 | O19: 2 | P19: 19 | S19: =SUM(L19,N19,P19,R19) -> 61 | U19: =SUM(K19,M19,O19) -> 9 | Y19: =SUM(S19,S21,S20,S22,-AB19) -> 126 | AB19: =MIN(S19:S22) -> 0
A20: D-402 | D20: (310) Talesha Bills | E20: Sierra Richardson | J20: "Rainbow Bunnies" | K20: 2 | L20: 21 | M20: 1 | N20: 22 | O20: 3 | P20: 22 | S20: =SUM(L20,N20,P20,R20) -> 65 | U20: =SUM(K20,M20,O20) -> 6
A21: D-403 | S21: =SUM(L21,N21,P21,R21) -> 0 | U21: =SUM(K21,M21,O21) -> 0
A22: D-404 | S22: =SUM(L22,N22,P22,R22) -> 0 | U22: =SUM(K22,M22,O22) -> 0
A24: E-401 | S24: =SUM(L24,N24,P24,R24) -> 0 | U24: =SUM(K24,M24,O24) -> 0 | Y24: =SUM(S24,S26,S25,S27,-AB24) -> 0 | AB24: =MIN(S24:S27) -> 0
A25: E-402 | S25: =SUM(L25,N25,P25,R25) -> 0 | U25: =SUM(K25,M25,O25) -> 0
A26: E-403 | S26: =SUM(L26,N26,P26,R26) -> 0 | U26: =SUM(K26,M26,O26) -> 0
A27: E-404 | S27: =SUM(L27,N27,P27,R27) -> 0 | U27: =SUM(K27,M27,O27) -> 0
A29: F-401 | D29: (311) Makenzie Allred | F29: Emer Murphy | H29: Haylie Reil | J29: "Chemical Bonding" | K29: 3 | L29: 20 | M29: 1 | N29: 25 | O29: 4 | P29: 18 | S29: =SUM(L29,N29,P29,R29) -> 63 | U29: =SUM(K29,M29,O29) -> 8 | Y29: =SUM(S29,S31,S30,S32,-AB29) -> 125 | AB29: =MIN(S29:S32) -> 0
A30: F-402 | D30: (312) Korban Murphy | F30: Cash Reil | J30: "13 ways" | K30: 2 | L30: 24 | M30: 3 | N30: 20 | O30: 4 | P30: 18 | S30: =SUM(L30,N30,P30,R30) -> 62 | U30: =SUM(K30,M30,O30) -> 9
A31: F-403 | S31: =SUM(L31,N31,P31,R31) -> 0 | U31: =SUM(K31,M31,O31) -> 0
A32: F-404 | S32: =SUM(L32,N32,P32,R32) -> 0 | U32: =SUM(K32,M32,O32) -> 0
A34: G-401 | D34: (300) Mersadie Rhoades | F34: Taylor Thomas | J34: The Boy Book | K34: 4 | L34: 19 | M34: 4 | N34: 22 | O34: 3 | P34: 19 | S34: =SUM(L34,N34,P34,R34) -> 60 | U34: =SUM(K34,M34,O34) -> 11 | Y34: =SUM(S34,S36,S35,S37,-AB34) -> 60 | AB34: =MIN(S34:S37) -> 0
A35: G-402 | S35: =SUM(L35,N35,P35,R35) -> 0 | U35: =SUM(K35,M35,O35) -> 0
A36: G-403 | S36: =SUM(L36,N36,P36,R36) -> 0 | U36: =SUM(K36,M36,O36) -> 0
A37: G-404 | S37: =SUM(L37,N37,P37,R37) -> 0 | U37: =SUM(K37,M37,O37) -> 0
A39: H-401 | D39: (313) Kara Conrad | F39: Sam Roberts | H39: Jenna Conrad | J39: Patsy Fumbles | K39: 1 | L39: 25 | M39: 1 | N39: 25 | O39: 1 | P39: 20 | S39: =SUM(L39,N39,P39,R39) -> 70 | U39: =SUM(K39,M39,O39) -> 3 | Y39: =SUM(S39,S41,S40,S42,-AB39) -> 70 | AB39: =MIN(S39:S42) -> 0
A40: H-402 | S40: =SUM(L40,N40,P40,R40) -> 0 | U40: =SUM(K40,M40,O40) -> 0
A41: H-403 | S41: =SUM(L41,N41,P41,R41) -> 0 | U41: =SUM(K41,M41,O41) -> 0
A42: H-404 | S42: =SUM(L42,N42,P42,R42) -> 0 | U42: =SUM(K42,M42,O42) -> 0
A44: J-401 | D44: (304) Kelby Jessen | F44: Porter Trapp | J44: "Wait Wati Bo Bait" | K44: 1 | L44: 25 | M44: 2 | N44: 24 | O44: 2 | P44: 23 | S44: =SUM(L44,N44,P44,R44) -> 72 | U44: =SUM(K44,M44,O44) -> 5 | Y44: =SUM(S44,S46,S45,S47,-AB44) -> 72 | AB44: =MIN(S44:S47) -> 0
A45: J-402 | S45: =SUM(L45,N45,P45,R45) -> 0 | U45: =SUM(K45,M45,O45) -> 0
A46: J-403 | S46: =SUM(L46,N46,P46,R46) -> 0 | U46: =SUM(K46,M46,O46) -> 0
A47: J-404 | S47: =SUM(L47,N47,P47,R47) -> 0 | U47: =SUM(K47,M47,O47) -> 0
A49: K-401 | S49: =SUM(L49,N49,P49,R49) -> 0 | U49: =SUM(K49,M49,O49) -> 0 | Y49: =SUM(S49,S51,S50,S52,-AB49) -> 0 | AB49: =MIN(S49:S52) -> 0
A50: K-402 | S50: =SUM(L50,N50,P50,R50) -> 0 | U50: =SUM(K50,M50,O50) -> 0
A51: K-403 | S51: =SUM(L51,N51,P51,R51) -> 0 | U51: =SUM(K51,M51,O51) -> 0
A52: K-404 | S52: =SUM(L52,N52,P52,R52) -> 0 | U52: =SUM(K52,M52,O52) -> 0
A54: L-401 | S54: =SUM(L54,N54,P54,R54) -> 0 | U54: =SUM(K54,M54,O54) -> 0 | Y54: =SUM(S54,S56,S55,S57,-AB54) -> 0 | AB54: =MIN(S54:S57) -> 0
A55: L-402 | S55: =SUM(L55,N55,P55,R55) -> 0 | U55: =SUM(K55,M55,O55) -> 0
A56: L-403 | S56: =SUM(L56,N56,P56,R56) -> 0 | U56: =SUM(K56,M56,O56) -> 0
A57: L-404 | S57: =SUM(L57,N57,P57,R57) -> 0 | U57: =SUM(K57,M57,O57) -> 0
A59: M-401 | S59: =SUM(L59,N59,P59,R59) -> 0 | U59: =SUM(K59,M59,O59) -> 0 | Y59: =SUM(S59,S61,S60,S62,-AB59) -> 0 | AB59: =MIN(S59:S62) -> 0
A60: M-402 | S60: =SUM(L60,N60,P60,R60) -> 0 | U60: =SUM(K60,M60,O60) -> 0
A61: M-403 | S61: =SUM(L61,N61,P61,R61) -> 0 | U61: =SUM(K61,M61,O61) -> 0
A62: M-404 | S62: =SUM(L62,N62,P62,R62) -> 0 | U62: =SUM(K62,M62,O62) -> 0
A64: N-401 | S64: =SUM(L64,N64,P64,R64) -> 0 | U64: =SUM(K64,M64,O64) -> 0 | Y64: =SUM(S64,S66,S65,S67,-AB64) -> 0 | AB64: =MIN(S64:S67) -> 0
A65: N-402 | S65: =SUM(L65,N65,P65,R65) -> 0 | U65: =SUM(K65,M65,O65) -> 0
A66: N-403 | S66: =SUM(L66,N66,P66,R66) -> 0 | U66: =SUM(K66,M66,O66) -> 0
A67: N-404 | S67: =SUM(L67,N67,P67,R67) -> 0 | U67: =SUM(K67,M67,O67) -> 0
A69: P-401 | R69: =IF(Q69="1violation",-7*1,IF(Q69="2violations",-7*2,IF(Q69="3violations",-7*3,IF(Q69="","")))) ->  | S69: =SUM(L69,N69,P69,R69) -> 0 | U69: =SUM(K69,M69,O69) -> 0 | Y69: =SUM(S69,S71,S70,S72,-AB69) -> 0 | AB69: =MIN(S69:S72) -> 0
A70: P-402 | S70: =SUM(L70,N70,P70,R70) -> 0 | U70: =SUM(K70,M70,O70) -> 0
A71: P-403 | S71: =SUM(L71,N71,P71,R71) -> 0 | U71: =SUM(K71,M71,O71) -> 0
A72: P-404 | S72: =SUM(L72,N72,P72,R72) -> 0 | U72: =SUM(K72,M72,O72) -> 0
A74: Q-401 | S74: =SUM(L74,N74,P74,R74) -> 0 | U74: =SUM(K74,M74,O74) -> 0 | Y74: =SUM(S74,S76,S75,S77,-AB74) -> 0 | AB74: =MIN(S74:S77) -> 0
A75: Q-402 | S75: =SUM(L75,N75,P75,R75) -> 0 | U75: =SUM(K75,M75,O75) -> 0
A76: Q-403 | S76: =SUM(L76,N76,P76,R76) -> 0 | U76: =SUM(K76,M76,O76) -> 0
A77: Q-404 | S77: =SUM(L77,N77,P77,R77) -> 0 | U77: =SUM(K77,M77,O77) -> 0
A79: R-401 | S79: =SUM(L79,N79,P79,R79) -> 0 | U79: =SUM(K79,M79,O79) -> 0 | Y79: =SUM(S79,S81,S80,S82,-AB79) -> 0 | AB79: =MIN(S79:S82) -> 0
A80: R-402 | S80: =SUM(L80,N80,P80,R80) -> 0 | U80: =SUM(K80,M80,O80) -> 0
A81: R-403 | S81: =SUM(L81,N81,P81,R81) -> 0 | U81: =SUM(K81,M81,O81) -> 0
A82: R-404 | S82: =SUM(L82,N82,P82,R82) -> 0 | U82: =SUM(K82,M82,O82) -> 0
A84: S-401 | S84: =SUM(L84,N84,P84,R84) -> 0 | U84: =SUM(K84,M84,O84) -> 0 | Y84: =SUM(S84,S86,S85,S87,-AB84) -> 0 | AB84: =MIN(S84:S87) -> 0
A85: S-402 | S85: =SUM(L85,N85,P85,R85) -> 0 | U85: =SUM(K85,M85,O85) -> 0
A86: S-403 | S86: =SUM(L86,N86,P86,R86) -> 0 | U86: =SUM(K86,M86,O86) -> 0
A87: S-404 | S87: =SUM(L87,N87,P87,R87) -> 0 | U87: =SUM(K87,M87,O87) -> 0
A89: T-401 | S89: =SUM(L89,N89,P89,R89) -> 0 | U89: =SUM(K89,M89,O89) -> 0 | Y89: =SUM(S89,S91,S90,S92,-AB89) -> 0 | AB89: =MIN(S89:S92) -> 0
A90: T-402 | S90: =SUM(L90,N90,P90,R90) -> 0 | U90: =SUM(K90,M90,O90) -> 0
A91: T-403 | S91: =SUM(L91,N91,P91,R91) -> 0 | U91: =SUM(K91,M91,O91) -> 0
A92: T-404 | S92: =SUM(L92,N92,P92,R92) -> 0 | U92: =SUM(K92,M92,O92) -> 0
A94: U-401 | S94: =SUM(L94,N94,P94,R94) -> 0 | U94: =SUM(K94,M94,O94) -> 0 | Y94: =SUM(S94,S96,S95,S97,-AB94) -> 0 | AB94: =MIN(S94:S97) -> 0
A95: U-402 | S95: =SUM(L95,N95,P95,R95) -> 0 | U95: =SUM(K95,M95,O95) -> 0
A96: U-403 | S96: =SUM(L96,N96,P96,R96) -> 0 | U96: =SUM(K96,M96,O96) -> 0
A97: U-404 | S97: =SUM(L97,N97,P97,R97) -> 0 | U97: =SUM(K97,M97,O97) -> 0
A99: V-401 | S99: =SUM(L99,N99,P99,R99) -> 0 | U99: =SUM(K99,M99,O99) -> 0 | Y99: =SUM(S99,S101,S100,S102,-AB99) -> 0 | AB99: =MIN(S99:S102) -> 0
A100: V-402 | S100: =SUM(L100,N100,P100,R100) -> 0 | U100: =SUM(K100,M100,O100) -> 0
A101: V-403 | S101: =SUM(L101,N101,P101,R101) -> 0 | U101: =SUM(K101,M101,O101) -> 0
A102: V-404 | S102: =SUM(L102,N102,P102,R102) -> 0 | U102: =SUM(K102,M102,O102) -> 0
A104: W-401 | S104: =SUM(L104,N104,P104,R104) -> 0 | U104: =SUM(K104,M104,O104) -> 0 | Y104: =SUM(S104,S106,S105,S107,-AB104) -> 0 | AB104: =MIN(S104:S107) -> 0
A105: W-402 | S105: =SUM(L105,N105,P105,R105) -> 0 | U105: =SUM(K105,M105,O105) -> 0
A106: W-403 | S106: =SUM(L106,N106,P106,R106) -> 0 | U106: =SUM(K106,M106,O106) -> 0
A107: W-404 | S107: =SUM(L107,N107,P107,R107) -> 0 | U107: =SUM(K107,M107,O107) -> 0
A109: X-401 | S109: =SUM(L109,N109,P109,R109) -> 0 | U109: =SUM(K109,M109,O109) -> 0 | Y109: =SUM(S109,S111,S110,S112,-AB109) -> 0 | AB109: =MIN(S109:S112) -> 0
A110: X-402 | S110: =SUM(L110,N110,P110,R110) -> 0 | U110: =SUM(K110,M110,O110) -> 0
A111: X-403 | S111: =SUM(L111,N111,P111,R111) -> 0 | U111: =SUM(K111,M111,O111) -> 0
A112: X-404 | S112: =SUM(L112,N112,P112,R112) -> 0 | U112: =SUM(K112,M112,O112) -> 0
A114: Y-401 | S114: =SUM(L114,N114,P114,R114) -> 0 | U114: =SUM(K114,M114,O114) -> 0 | Y114: =SUM(S114,S116,S115,S117,-AB114) -> 0 | AB114: =MIN(S114:S117) -> 0
A115: Y-402 | S115: =SUM(L115,N115,P115,R115) -> 0 | U115: =SUM(K115,M115,O115) -> 0
A116: Y-403 | S116: =SUM(L116,N116,P116,R116) -> 0 | U116: =SUM(K116,M116,O116) -> 0
A117: Y-404 | S117: =SUM(L117,N117,P117,R117) -> 0 | U117: =SUM(K117,M117,O117) -> 0
A119: Z-401 | S119: =SUM(L119,N119,P119,R119) -> 0 | U119: =SUM(K119,M119,O119) -> 0 | Y119: =SUM(S119,S121,S120,S122,-AB119) -> 0 | AB119: =MIN(S119:S122) -> 0
A120: Z-402 | S120: =SUM(L120,N120,P120,R120) -> 0 | U120: =SUM(K120,M120,O120) -> 0
A121: Z-403 | S121: =SUM(L121,N121,P121,R121) -> 0 | U121: =SUM(K121,M121,O121) -> 0
A122: Z-404 | S122: =SUM(L122,N122,P122,R122) -> 0 | U122: =SUM(K122,M122,O122) -> 0
A124: AA-401 | S124: =SUM(L124,N124,P124,R124) -> 0 | U124: =SUM(K124,M124,O124) -> 0 | Y124: =SUM(S124,S126,S125,S127,-AB124) -> 0 | AB124: =MIN(S124:S127) -> 0
A125: AA-402 | S125: =SUM(L125,N125,P125,R125) -> 0 | U125: =SUM(K125,M125,O125) -> 0
A126: AA-403 | S126: =SUM(L126,N126,P126,R126) -> 0 | U126: =SUM(K126,M126,O126) -> 0
A127: AA-404 | S127: =SUM(L127,N127,P127,R127) -> 0 | U127: =SUM(K127,M127,O127) -> 0
A129: BB-401 | S129: =SUM(L129,N129,P129,R129) -> 0 | U129: =SUM(K129,M129,O129) -> 0 | Y129: =SUM(S129,S131,S130,S132,-AB129) -> 0 | AB129: =MIN(S129:S132) -> 0
A130: BB-402 | S130: =SUM(L130,N130,P130,R130) -> 0 | U130: =SUM(K130,M130,O130) -> 0
A131: BB-403 | S131: =SUM(L131,N131,P131,R131) -> 0 | U131: =SUM(K131,M131,O131) -> 0
A132: BB-404 | S132: =SUM(L132,N132,P132,R132) -> 0 | U132: =SUM(K132,M132,O132) -> 0
A134: CC-401 | R134: =IF(Q134="1violation",-7*1,IF(Q134="2violations",-7*2,IF(Q134="3violations",-7*3,IF(Q134="","")))) ->  | S134: =SUM(L134,N134,P134,R134) -> 0 | U134: =SUM(K134,M134,O134) -> 0 | Y134: =SUM(S134,S136,S135,S137,-AB134) -> 0 | AB134: =MIN(S134:S137) -> 0
A135: CC-402 | S135: =SUM(L135,N135,P135,R135) -> 0 | U135: =SUM(K135,M135,O135) -> 0
A136: CC-403 | S136: =SUM(L136,N136,P136,R136) -> 0 | U136: =SUM(K136,M136,O136) -> 0
A137: CC-404 | S137: =SUM(L137,N137,P137,R137) -> 0 | U137: =SUM(K137,M137,O137) -> 0
A139: DD-401 | S139: =SUM(L139,N139,P139,R139) -> 0 | U139: =SUM(K139,M139,O139) -> 0 | Y139: =SUM(S139,S141,S140,S142,-AB139) -> 0 | AB139: =MIN(S139:S142) -> 0
A140: DD-402 | S140: =SUM(L140,N140,P140,R140) -> 0 | U140: =SUM(K140,M140,O140) -> 0
A141: DD-403 | S141: =SUM(L141,N141,P141,R141) -> 0 | U141: =SUM(K141,M141,O141) -> 0
A142: DD-404 | S142: =SUM(L142,N142,P142,R142) -> 0 | U142: =SUM(K142,M142,O142) -> 0
A144: EE-401 | S144: =SUM(L144,N144,P144,R144) -> 0 | U144: =SUM(K144,M144,O144) -> 0 | Y144: =SUM(S144,S146,S145,S147,-AB144) -> 0 | AB144: =MIN(S144:S147) -> 0
A145: EE-402 | S145: =SUM(L145,N145,P145,R145) -> 0 | U145: =SUM(K145,M145,O145) -> 0
A146: EE-403 | S146: =SUM(L146,N146,P146,R146) -> 0 | U146: =SUM(K146,M146,O146) -> 0
A147: EE-404 | S147: =SUM(L147,N147,P147,R147) -> 0 | U147: =SUM(K147,M147,O147) -> 0
A149: FF-401 | S149: =SUM(L149,N149,P149,R149) -> 0 | U149: =SUM(K149,M149,O149) -> 0 | Y149: =SUM(S149,S151,S150,S152,-AB149) -> 0 | AB149: =MIN(S149:S152) -> 0
A150: FF-402 | S150: =SUM(L150,N150,P150,R150) -> 0 | U150: =SUM(K150,M150,O150) -> 0
A151: FF-403 | S151: =SUM(L151,N151,P151,R151) -> 0 | U151: =SUM(K151,M151,O151) -> 0
A152: FF-404 | S152: =SUM(L152,N152,P152,R152) -> 0 | U152: =SUM(K152,M152,O152) -> 0

Sheet ContemporaryMR
A1: Contemporary | C1: 0 | F1: Finals Medals Round Scores
A2: ID | B2: Column1 | C2: Rank | D2: Score | E2: LeaveBlank | F2: MR 1 Rank | G2: MR 1 Score | H2: MR2 Rank | I2: MR 2 Score | J2: MR3 Rank | K2: MR 3 Score | L2: Total MR Rank | M2: Total MR Score | N2: Column2
A3: =Contemporary!A39 -> H-401 | B3: =VLOOKUP(Table7101213[[#This Row],[ID]],Contemporary!A:D,4,FALSE) -> (313) Kara Conrad | C3: =Contemporary!U39 -> 3 | D3: =Contemporary!S39 -> 70 | E3: =IF((Table7101213[[#This Row],[Rank]]+Table7101213[[#This Row],[Score]])>0,1,0) -> 1 | F3: 3 | G3: 23 | H3: 4 | I3: 23 | J3: 6 | K3: 19 | L3: =SUM(F3,H3,J3) -> 13 | M3: =SUM(G3,I3,K3) -> 65
A4: =Contemporary!A44 -> J-401 | B4: =VLOOKUP(Table7101213[[#This Row],[ID]],Contemporary!A:D,4,FALSE) -> (304) Kelby Jessen | C4: =Contemporary!U44 -> 5 | D4: =Contemporary!S44 -> 72 | E4: =IF((Table7101213[[#This Row],[Rank]]+Table7101213[[#This Row],[Score]])>0,1,0) -> 1 | F4: 1 | G4: 25 | H4: 2 | I4: 25 | J4: 1 | K4: 24 | L4: =SUM(F4,H4,J4) -> 4 | M4: =SUM(G4,I4,K4) -> 74 | N4: 1st
A5: =Contemporary!A20 -> D-402 | B5: =VLOOKUP(Table7101213[[#This Row],[ID]],Contemporary!A:D,4,FALSE) -> (310) Talesha Bills | C5: =Contemporary!U20 -> 6 | D5: =Contemporary!S20 -> 65 | E5: =IF((Table7101213[[#This Row],[Rank]]+Table7101213[[#This Row],[Score]])>0,1,0) -> 1 | F5: 4 | G5: 22 | H5: 5 | I5: 23 | J5: 5 | K5: 19 | L5: =SUM(F5,H5,J5) -> 14 | M5: =SUM(G5,I5,K5) -> 64
A6: =Contemporary!A6 -> A-403 | B6: =VLOOKUP(Table7101213[[#This Row],[ID]],Contemporary!A:D,4,FALSE) -> (308) Tristan | C6: =Contemporary!U6 -> 6 | D6: =Contemporary!S6 -> 63 | E6: =IF((Table7101213[[#This Row],[Rank]]+Table7101213[[#This Row],[Score]])>0,1,0) -> 1 | F6: 2 | G6: 25 | H6: 1 | I6: 25 | J6: 2 | K6: 23 | L6: =SUM(F6,H6,J6) -> 5 | M6: =SUM(G6,I6,K6) -> 73 | N6: 2nd
A7: =Contemporary!A10 -> B-402 | B7: =VLOOKUP(Table7101213[[#This Row],[ID]],Contemporary!A:D,4,FALSE) -> (302) Chynne Anderson | C7: =Contemporary!U10 -> 7 | D7: =Contemporary!S10 -> 64 | E7: =IF((Table7101213[[#This Row],[Rank]]+Table7101213[[#This Row],[Score]])>0,1,0) -> 1 | F7: 5 | G7: 21 | H7: 3 | I7: 24 | J7: 3 | K7: 22 | L7: =SUM(F7,H7,J7) -> 11 | M7: =SUM(G7,I7,K7) -> 67 | N7: 3rd
A8: =Contemporary!A9 -> B-401 | B8: =VLOOKUP(Table7101213[[#This Row],[ID]],Contemporary!A:D,4,FALSE) -> (301) Lilly Spendlove | C8: =Contemporary!U9 -> 7 | D8: =Contemporary!S9 -> 57 | E8: =IF((Table7101213[[#This Row],[Rank]]+Table7101213[[#This Row],[Score]])>0,1,0) -> 1 | F8: 6 | G8: 20 | H8: 6 | I8: 23 | J8: 4 | K8: 21 | L8: =SUM(F8,H8,J8) -> 16 | M8: =SUM(G8,I8,K8) -> 64
A9: =Contemporary!A29 -> F-401 | B9: =VLOOKUP(Table7101213[[#This Row],[ID]],Contemporary!A:D,4,FALSE) -> (311) Makenzie Allred | C9: =Contemporary!U29 -> 8 | D9: =Contemporary!S29 -> 63 | E9: =IF((Table7101213[[#This Row],[Rank]]+Table7101213[[#This Row],[Score]])>0,1,0) -> 1 | L9: =SUM(F9,H9,J9) -> 0 | M9: =SUM(G9,I9,K9) -> 0
A10: =Contemporary!A30 -> F-402 | B10: =VLOOKUP(Table7101213[[#This Row],[ID]],Contemporary!A:D,4,FALSE) -> (312) Korban Murphy | C10: =Contemporary!U30 -> 9 | D10: =Contemporary!S30 -> 62 | E10: =IF((Table7101213[[#This Row],[Rank]]+Table7101213[[#This Row],[Score]])>0,1,0) -> 1 | L10: =SUM(F10,H10,J10) -> 0 | M10: =SUM(G10,I10,K10) -> 0
A11: =Contemporary!A5 -> A-402 | B11: =VLOOKUP(Table7101213[[#This Row],[ID]],Contemporary!A:D,4,FALSE) -> (307) Ella | C11: =Contemporary!U5 -> 9 | D11: =Contemporary!S5 -> 62 | E11: =IF((Table7101213[[#This Row],[Rank]]+Table7101213[[#This Row],[Score]])>0,1,0) -> 1 | L11: =SUM(F11,H11,J11) -> 0 | M11: =SUM(G11,I11,K11) -> 0
A12: =Contemporary!A19 -> D-401 | B12: =VLOOKUP(Table7101213[[#This Row],[ID]],Contemporary!A:D,4,FALSE) -> (303) Melinda Grimstead | C12: =Contemporary!U19 -> 9 | D12: =Contemporary!S19 -> 61 | E12: =IF((Table7101213[[#This Row],[Rank]]+Table7101213[[#This Row],[Score]])>0,1,0) -> 1 | L12: =SUM(F12,H12,J12) -> 0 | M12: =SUM(G12,I12,K12) -> 0
A13: =Contemporary!A4 -> A-401 | B13: =VLOOKUP(Table7101213[[#This Row],[ID]],Contemporary!A:D,4,FALSE) -> (306) Andy G. | C13: =Contemporary!U4 -> 10 | D13: =Contemporary!S4 -> 61 | E13: =IF((Table7101213[[#This Row],[Rank]]+Table7101213[[#This Row],[Score]])>0,1,0) -> 1 | L13: =SUM(F13,H13,J13) -> 0 | M13: =SUM(G13,I13,K13) -> 0
A14: =Contemporary!A34 -> G-401 | B14: =VLOOKUP(Table7101213[[#This Row],[ID]],Contemporary!A:D,4,FALSE) -> (300) Mersadie Rhoades | C14: =Contemporary!U34 -> 11 | D14: =Contemporary!S34 -> 60 | E14: =IF((Table7101213[[#This Row],[Rank]]+Table7101213[[#This Row],[Score]])>0,1,0) -> 1 | L14: =SUM(F14,H14,J14) -> 0 | M14: =SUM(G14,I14,K14) -> 0
A15: =Contemporary!A7 -> A-404 | B15: =VLOOKUP(Table7101213[[#This Row],[ID]],Contemporary!A:D,4,FALSE) -> (309) Aaron | C15: =Contemporary!U7 -> 12 | D15: =Contemporary!S7 -> 59 | E15: =IF((Table7101213[[#This Row],[Rank]]+Table7101213[[#This Row],[Score]])>0,1,0) -> 1 | L15: =SUM(F15,H15,J15) -> 0 | M15: =SUM(G15,I15,K15) -> 0
A16: =Contemporary!A14 -> C-401 | B16: =VLOOKUP(Table7101213[[#This Row],[ID]],Contemporary!A:D,4,FALSE) -> (305) Bryndis Maw | C16: =Contemporary!U14 -> 0 | D16: =Contemporary!S14 -> 0 | E16: =IF((Table7101213[[#This Row],[Rank]]+Table7101213[[#This Row],[Score]])>0,1,0) -> 0 | L16: =SUM(F16,H16,J16) -> 0 | M16: =SUM(G16,I16,K16) -> 0
A17: =Contemporary!A124 -> AA-401 | B17: =VLOOKUP(Table7101213[[#This Row],[ID]],Contemporary!A:D,4,FALSE) -> 0 | C17: =Contemporary!U124 -> 0 | D17: =Contemporary!S124 -> 0 | E17: =IF((Table7101213[[#This Row],[Rank]]+Table7101213[[#This Row],[Score]])>0,1,0) -> 0 | L17: =SUM(F17,H17,J17) -> 0 | M17: =SUM(G17,I17,K17) -> 0
A18: =Contemporary!A125 -> AA-402 | B18: =VLOOKUP(Table7101213[[#This Row],[ID]],Contemporary!A:D,4,FALSE) -> 0 | C18: =Contemporary!U125 -> 0 | D18: =Contemporary!S125 -> 0 | E18: =IF((Table7101213[[#This Row],[Rank]]+Table7101213[[#This Row],[Score]])>0,1,0) -> 0 | L18: =SUM(F18,H18,J18) -> 0 | M18: =SUM(G18,I18,K18) -> 0
A19: =Contemporary!A126 -> AA-403 | B19: =VLOOKUP(Table7101213[[#This Row],[ID]],Contemporary!A:D,4,FALSE) -> 0 | C19: =Contemporary!U126 -> 0 | D19: =Contemporary!S126 -> 0 | E19: =IF((Table7101213[[#This Row],[Rank]]+Table7101213[[#This Row],[Score]])>0,1,0) -> 0 | L19: =SUM(F19,H19,J19) -> 0 | M19: =SUM(G19,I19,K19) -> 0
A20: =Contemporary!A127 -> AA-404 | B20: =VLOOKUP(Table7101213[[#This Row],[ID]],Contemporary!A:D,4,FALSE) -> 0 | C20: =Contemporary!U127 -> 0 | D20: =Contemporary!S127 -> 0 | E20: =IF((Table7101213[[#This Row],[Rank]]+Table7101213[[#This Row],[Score]])>0,1,0) -> 0 | L20: =SUM(F20,H20,J20) -> 0 | M20: =SUM(G20,I20,K20) -> 0
A21: =Contemporary!A11 -> B-403 | B21: =VLOOKUP(Table7101213[[#This Row],[ID]],Contemporary!A:D,4,FALSE) -> 0 | C21: =Contemporary!U11 -> 0 | D21: =Contemporary!S11 -> 0 | E21: =IF((Table7101213[[#This Row],[Rank]]+Table7101213[[#This Row],[Score]])>0,1,0) -> 0 | L21: =SUM(F21,H21,J21) -> 0 | M21: =SUM(G21,I21,K21) -> 0
A22: =Contemporary!A12 -> B-404 | B22: =VLOOKUP(Table7101213[[#This Row],[ID]],Contemporary!A:D,4,FALSE) -> 0 | C22: =Contemporary!U12 -> 0 | D22: =Contemporary!S12 -> 0 | E22: =IF((Table7101213[[#This Row],[Rank]]+Table7101213[[#This Row],[Score]])>0,1,0) -> 0 | L22: =SUM(F22,H22,J22) -> 0 | M22: =SUM(G22,I22,K22) -> 0
A23: =Contemporary!A129 -> BB-401 | B23: =VLOOKUP(Table7101213[[#This Row],[ID]],Contemporary!A:D,4,FALSE) -> 0 | C23: =Contemporary!U129 -> 0 | D23: =Contemporary!S129 -> 0 | E23: =IF((Table7101213[[#This Row],[Rank]]+Table7101213[[#This Row],[Score]])>0,1,0) -> 0 | L23: =SUM(F23,H23,J23) -> 0 | M23: =SUM(G23,I23,K23) -> 0
A24: =Contemporary!A130 -> BB-402 | B24: =VLOOKUP(Table7101213[[#This Row],[ID]],Contemporary!A:D,4,FALSE) -> 0 | C24: =Contemporary!U130 -> 0 | D24: =Contemporary!S130 -> 0 | E24: =IF((Table7101213[[#This Row],[Rank]]+Table7101213[[#This Row],[Score]])>0,1,0) -> 0 | L24: =SUM(F24,H24,J24) -> 0 | M24: =SUM(G24,I24,K24) -> 0
A25: =Contemporary!A131 -> BB-403 | B25: =VLOOKUP(Table7101213[[#This Row],[ID]],Contemporary!A:D,4,FALSE) -> 0 | C25: =Contemporary!U131 -> 0 | D25: =Contemporary!S131 -> 0 | E25: =IF((Table7101213[[#This Row],[Rank]]+Table7101213[[#This Row],[Score]])>0,1,0) -> 0 | L25: =SUM(F25,H25,J25) -> 0 | M25: =SUM(G25,I25,K25) -> 0
A26: =Contemporary!A132 -> BB-404 | B26: =VLOOKUP(Table7101213[[#This Row],[ID]],Contemporary!A:D,4,FALSE) -> 0 | C26: =Contemporary!U132 -> 0 | D26: =Contemporary!S132 -> 0 | E26: =IF((Table7101213[[#This Row],[Rank]]+Table7101213[[#This Row],[Score]])>0,1,0) -> 0 | L26: =SUM(F26,H26,J26) -> 0 | M26: =SUM(G26,I26,K26) -> 0
A27: =Contemporary!A15 -> C-402 | B27: =VLOOKUP(Table7101213[[#This Row],[ID]],Contemporary!A:D,4,FALSE) -> 0 | C27: =Contemporary!U15 -> 0 | D27: =Contemporary!S15 -> 0 | E27: =IF((Table7101213[[#This Row],[Rank]]+Table7101213[[#This Row],[Score]])>0,1,0) -> 0 | L27: =SUM(F27,H27,J27) -> 0 | M27: =SUM(G27,I27,K27) -> 0
A28: =Contemporary!A16 -> C-403 | B28: =VLOOKUP(Table7101213[[#This Row],[ID]],Contemporary!A:D,4,FALSE) -> 0 | C28: =Contemporary!U16 -> 0 | D28: =Contemporary!S16 -> 0 | E28: =IF((Table7101213[[#This Row],[Rank]]+Table7101213[[#This Row],[Score]])>0,1,0) -> 0 | L28: =SUM(F28,H28,J28) -> 0 | M28: =SUM(G28,I28,K28) -> 0
A29: =Contemporary!A17 -> C-404 | B29: =VLOOKUP(Table7101213[[#This Row],[ID]],Contemporary!A:D,4,FALSE) -> 0 | C29: =Contemporary!U17 -> 0 | D29: =Contemporary!S17 -> 0 | E29: =IF((Table7101213[[#This Row],[Rank]]+Table7101213[[#This Row],[Score]])>0,1,0) -> 0 | L29: =SUM(F29,H29,J29) -> 0 | M29: =SUM(G29,I29,K29) -> 0
A30: =Contemporary!A134 -> CC-401 | B30: =VLOOKUP(Table7101213[[#This Row],[ID]],Contemporary!A:D,4,FALSE) -> 0 | C30: =Contemporary!U134 -> 0 | D30: =Contemporary!S134 -> 0 | E30: =IF((Table7101213[[#This Row],[Rank]]+Table7101213[[#This Row],[Score]])>0,1,0) -> 0 | L30: =SUM(F30,H30,J30) -> 0 | M30: =SUM(G30,I30,K30) -> 0
A31: =Contemporary!A135 -> CC-402 | B31: =VLOOKUP(Table7101213[[#This Row],[ID]],Contemporary!A:D,4,FALSE) -> 0 | C31: =Contemporary!U135 -> 0 | D31: =Contemporary!S135 -> 0 | E31: =IF((Table7101213[[#This Row],[Rank]]+Table7101213[[#This Row],[Score]])>0,1,0) -> 0 | L31: =SUM(F31,H31,J31) -> 0 | M31: =SUM(G31,I31,K31) -> 0
A32: =Contemporary!A136 -> CC-403 | B32: =VLOOKUP(Table7101213[[#This Row],[ID]],Contemporary!A:D,4,FALSE) -> 0 | C32: =Contemporary!U136 -> 0 | D32: =Contemporary!S136 -> 0 | E32: =IF((Table7101213[[#This Row],[Rank]]+Table7101213[[#This Row],[Score]])>0,1,0) -> 0 | L32: =SUM(F32,H32,J32) -> 0 | M32: =SUM(G32,I32,K32) -> 0
A33: =Contemporary!A137 -> CC-404 | B33: =VLOOKUP(Table7101213[[#This Row],[ID]],Contemporary!A:D,4,FALSE) -> 0 | C33: =Contemporary!U137 -> 0 | D33: =Contemporary!S137 -> 0 | E33: =IF((Table7101213[[#This Row],[Rank]]+Table7101213[[#This Row],[Score]])>0,1,0) -> 0 | L33: =SUM(F33,H33,J33) -> 0 | M33: =SUM(G33,I33,K33) -> 0
A34: =Contemporary!A21 -> D-403 | B34: =VLOOKUP(Table7101213[[#This Row],[ID]],Contemporary!A:D,4,FALSE) -> 0 | C34: =Contemporary!U21 -> 0 | D34: =Contemporary!S21 -> 0 | E34: =IF((Table7101213[[#This Row],[Rank]]+Table7101213[[#This Row],[Score]])>0,1,0) -> 0 | L34: =SUM(F34,H34,J34) -> 0 | M34: =SUM(G34,I34,K34) -> 0
A35: =Contemporary!A22 -> D-404 | B35: =VLOOKUP(Table7101213[[#This Row],[ID]],Contemporary!A:D,4,FALSE) -> 0 | C35: =Contemporary!U22 -> 0 | D35: =Contemporary!S22 -> 0 | E35: =IF((Table7101213[[#This Row],[Rank]]+Table7101213[[#This Row],[Score]])>0,1,0) -> 0 | L35: =SUM(F35,H35,J35) -> 0 | M35: =SUM(G35,I35,K35) -> 0
A36: =Contemporary!A139 -> DD-401 | B36: =VLOOKUP(Table7101213[[#This Row],[ID]],Contemporary!A:D,4,FALSE) -> 0 | C36: =Contemporary!U139 -> 0 | D36: =Contemporary!S139 -> 0 | E36: =IF((Table7101213[[#This Row],[Rank]]+Table7101213[[#This Row],[Score]])>0,1,0) -> 0 | L36: =SUM(F36,H36,J36) -> 0 | M36: =SUM(G36,I36,K36) -> 0
A37: =Contemporary!A140 -> DD-402 | B37: =VLOOKUP(Table7101213[[#This Row],[ID]],Contemporary!A:D,4,FALSE) -> 0 | C37: =Contemporary!U140 -> 0 | D37: =Contemporary!S140 -> 0 | E37: =IF((Table7101213[[#This Row],[Rank]]+Table7101213[[#This Row],[Score]])>0,1,0) -> 0 | L37: =SUM(F37,H37,J37) -> 0 | M37: =SUM(G37,I37,K37) -> 0
A38: =Contemporary!A141 -> DD-403 | B38: =VLOOKUP(Table7101213[[#This Row],[ID]],Contemporary!A:D,4,FALSE) -> 0 | C38: =Contemporary!U141 -> 0 | D38: =Contemporary!S141 -> 0 | E38: =IF((Table7101213[[#This Row],[Rank]]+Table7101213[[#This Row],[Score]])>0,1,0) -> 0 | L38: =SUM(F38,H38,J38) -> 0 | M38: =SUM(G38,I38,K38) -> 0
A39: =Contemporary!A142 -> DD-404 | B39: =VLOOKUP(Table7101213[[#This Row],[ID]],Contemporary!A:D,4,FALSE) -> 0 | C39: =Contemporary!U142 -> 0 | D39: =Contemporary!S142 -> 0 | E39: =IF((Table7101213[[#This Row],[Rank]]+Table7101213[[#This Row],[Score]])>0,1,0) -> 0 | L39: =SUM(F39,H39,J39) -> 0 | M39: =SUM(G39,I39,K39) -> 0
A40: =Contemporary!A24 -> E-401 | B40: =VLOOKUP(Table7101213[[#This Row],[ID]],Contemporary!A:D,4,FALSE) -> 0 | C40: =Contemporary!U24 -> 0 | D40: =Contemporary!S24 -> 0 | E40: =IF((Table7101213[[#This Row],[Rank]]+Table7101213[[#This Row],[Score]])>0,1,0) -> 0 | L40: =SUM(F40,H40,J40) -> 0 | M40: =SUM(G40,I40,K40) -> 0
A41: =Contemporary!A25 -> E-402 | B41: =VLOOKUP(Table7101213[[#This Row],[ID]],Contemporary!A:D,4,FALSE) -> 0 | C41: =Contemporary!U25 -> 0 | D41: =Contemporary!S25 -> 0 | E41: =IF((Table7101213[[#This Row],[Rank]]+Table7101213[[#This Row],[Score]])>0,1,0) -> 0 | L41: =SUM(F41,H41,J41) -> 0 | M41: =SUM(G41,I41,K41) -> 0
A42: =Contemporary!A26 -> E-403 | B42: =VLOOKUP(Table7101213[[#This Row],[ID]],Contemporary!A:D,4,FALSE) -> 0 | C42: =Contemporary!U26 -> 0 | D42: =Contemporary!S26 -> 0 | E42: =IF((Table7101213[[#This Row],[Rank]]+Table7101213[[#This Row],[Score]])>0,1,0) -> 0 | L42: =SUM(F42,H42,J42) -> 0 | M42: =SUM(G42,I42,K42) -> 0
A43: =Contemporary!A27 -> E-404 | B43: =VLOOKUP(Table7101213[[#This Row],[ID]],Contemporary!A:D,4,FALSE) -> 0 | C43: =Contemporary!U27 -> 0 | D43: =Contemporary!S27 -> 0 | E43: =IF((Table7101213[[#This Row],[Rank]]+Table7101213[[#This Row],[Score]])>0,1,0) -> 0 | L43: =SUM(F43,H43,J43) -> 0 | M43: =SUM(G43,I43,K43) -> 0
A44: =Contemporary!A144 -> EE-401 | B44: =VLOOKUP(Table7101213[[#This Row],[ID]],Contemporary!A:D,4,FALSE) -> 0 | C44: =Contemporary!U144 -> 0 | D44: =Contemporary!S144 -> 0 | E44: =IF((Table7101213[[#This Row],[Rank]]+Table7101213[[#This Row],[Score]])>0,1,0) -> 0 | L44: =SUM(F44,H44,J44) -> 0 | M44: =SUM(G44,I44,K44) -> 0
A45: =Contemporary!A145 -> EE-402 | B45: =VLOOKUP(Table7101213[[#This Row],[ID]],Contemporary!A:D,4,FALSE) -> 0 | C45: =Contemporary!U145 -> 0 | D45: =Contemporary!S145 -> 0 | E45: =IF((Table7101213[[#This Row],[Rank]]+Table7101213[[#This Row],[Score]])>0,1,0) -> 0 | L45: =SUM(F45,H45,J45) -> 0 | M45: =SUM(G45,I45,K45) -> 0
A46: =Contemporary!A146 -> EE-403 | B46: =VLOOKUP(Table7101213[[#This Row],[ID]],Contemporary!A:D,4,FALSE) -> 0 | C46: =Contemporary!U146 -> 0 | D46: =Contemporary!S146 -> 0 | E46: =IF((Table7101213[[#This Row],[Rank]]+Table7101213[[#This Row],[Score]])>0,1,0) -> 0 | L46: =SUM(F46,H46,J46) -> 0 | M46: =SUM(G46,I46,K46) -> 0
A47: =Contemporary!A147 -> EE-404 | B47: =VLOOKUP(Table7101213[[#This Row],[ID]],Contemporary!A:D,4,FALSE) -> 0 | C47: =Contemporary!U147 -> 0 | D47: =Contemporary!S147 -> 0 | E47: =IF((Table7101213[[#This Row],[Rank]]+Table7101213[[#This Row],[Score]])>0,1,0) -> 0 | L47: =SUM(F47,H47,J47) -> 0 | M47: =SUM(G47,I47,K47) -> 0
A48: =Contemporary!A31 -> F-403 | B48: =VLOOKUP(Table7101213[[#This Row],[ID]],Contemporary!A:D,4,FALSE) -> 0 | C48: =Contemporary!U31 -> 0 | D48: =Contemporary!S31 -> 0 | E48: =IF((Table7101213[[#This Row],[Rank]]+Table7101213[[#This Row],[Score]])>0,1,0) -> 0 | L48: =SUM(F48,H48,J48) -> 0 | M48: =SUM(G48,I48,K48) -> 0
A49: =Contemporary!A32 -> F-404 | B49: =VLOOKUP(Table7101213[[#This Row],[ID]],Contemporary!A:D,4,FALSE) -> 0 | C49: =Contemporary!U32 -> 0 | D49: =Contemporary!S32 -> 0 | E49: =IF((Table7101213[[#This Row],[Rank]]+Table7101213[[#This Row],[Score]])>0,1,0) -> 0 | L49: =SUM(F49,H49,J49) -> 0 | M49: =SUM(G49,I49,K49) -> 0
A50: =Contemporary!A35 -> G-402 | B50: =VLOOKUP(Table7101213[[#This Row],[ID]],Contemporary!A:D,4,FALSE) -> 0 | C50: =Contemporary!U35 -> 0 | D50: =Contemporary!S35 -> 0 | E50: =IF((Table7101213[[#This Row],[Rank]]+Table7101213[[#This Row],[Score]])>0,1,0) -> 0 | L50: =SUM(F50,H50,J50) -> 0 | M50: =SUM(G50,I50,K50) -> 0
A51: =Contemporary!A36 -> G-403 | B51: =VLOOKUP(Table7101213[[#This Row],[ID]],Contemporary!A:D,4,FALSE) -> 0 | C51: =Contemporary!U36 -> 0 | D51: =Contemporary!S36 -> 0 | E51: =IF((Table7101213[[#This Row],[Rank]]+Table7101213[[#This Row],[Score]])>0,1,0) -> 0 | L51: =SUM(F51,H51,J51) -> 0 | M51: =SUM(G51,I51,K51) -> 0
A52: =Contemporary!A37 -> G-404 | B52: =VLOOKUP(Table7101213[[#This Row],[ID]],Contemporary!A:D,4,FALSE) -> 0 | C52: =Contemporary!U37 -> 0 | D52: =Contemporary!S37 -> 0 | E52: =IF((Table7101213[[#This Row],[Rank]]+Table7101213[[#This Row],[Score]])>0,1,0) -> 0 | L52: =SUM(F52,H52,J52) -> 0 | M52: =SUM(G52,I52,K52) -> 0
A53: =Contemporary!A40 -> H-402 | B53: =VLOOKUP(Table7101213[[#This Row],[ID]],Contemporary!A:D,4,FALSE) -> 0 | C53: =Contemporary!U40 -> 0 | D53: =Contemporary!S40 -> 0 | E53: =IF((Table7101213[[#This Row],[Rank]]+Table7101213[[#This Row],[Score]])>0,1,0) -> 0 | L53: =SUM(F53,H53,J53) -> 0 | M53: =SUM(G53,I53,K53) -> 0
A54: =Contemporary!A41 -> H-403 | B54: =VLOOKUP(Table7101213[[#This Row],[ID]],Contemporary!A:D,4,FALSE) -> 0 | C54: =Contemporary!U41 -> 0 | D54: =Contemporary!S41 -> 0 | E54: =IF((Table7101213[[#This Row],[Rank]]+Table7101213[[#This Row],[Score]])>0,1,0) -> 0 | L54: =SUM(F54,H54,J54) -> 0 | M54: =SUM(G54,I54,K54) -> 0
A55: =Contemporary!A42 -> H-404 | B55: =VLOOKUP(Table7101213[[#This Row],[ID]],Contemporary!A:D,4,FALSE) -> 0 | C55: =Contemporary!U42 -> 0 | D55: =Contemporary!S42 -> 0 | E55: =IF((Table7101213[[#This Row],[Rank]]+Table7101213[[#This Row],[Score]])>0,1,0) -> 0 | L55: =SUM(F55,H55,J55) -> 0 | M55: =SUM(G55,I55,K55) -> 0
A56: =Contemporary!A45 -> J-402 | B56: =VLOOKUP(Table7101213[[#This Row],[ID]],Contemporary!A:D,4,FALSE) -> 0 | C56: =Contemporary!U45 -> 0 | D56: =Contemporary!S45 -> 0 | E56: =IF((Table7101213[[#This Row],[Rank]]+Table7101213[[#This Row],[Score]])>0,1,0) -> 0 | L56: =SUM(F56,H56,J56) -> 0 | M56: =SUM(G56,I56,K56) -> 0
A57: =Contemporary!A46 -> J-403 | B57: =VLOOKUP(Table7101213[[#This Row],[ID]],Contemporary!A:D,4,FALSE) -> 0 | C57: =Contemporary!U46 -> 0 | D57: =Contemporary!S46 -> 0 | E57: =IF((Table7101213[[#This Row],[Rank]]+Table7101213[[#This Row],[Score]])>0,1,0) -> 0 | L57: =SUM(F57,H57,J57) -> 0 | M57: =SUM(G57,I57,K57) -> 0
A58: =Contemporary!A47 -> J-404 | B58: =VLOOKUP(Table7101213[[#This Row],[ID]],Contemporary!A:D,4,FALSE) -> 0 | C58: =Contemporary!U47 -> 0 | D58: =Contemporary!S47 -> 0 | E58: =IF((Table7101213[[#This Row],[Rank]]+Table7101213[[#This Row],[Score]])>0,1,0) -> 0 | L58: =SUM(F58,H58,J58) -> 0 | M58: =SUM(G58,I58,K58) -> 0
A59: =Contemporary!A49 -> K-401 | B59: =VLOOKUP(Table7101213[[#This Row],[ID]],Contemporary!A:D,4,FALSE) -> 0 | C59: =Contemporary!U49 -> 0 | D59: =Contemporary!S49 -> 0 | E59: =IF((Table7101213[[#This Row],[Rank]]+Table7101213[[#This Row],[Score]])>0,1,0) -> 0 | L59: =SUM(F59,H59,J59) -> 0 | M59: =SUM(G59,I59,K59) -> 0
A60: =Contemporary!A50 -> K-402 | B60: =VLOOKUP(Table7101213[[#This Row],[ID]],Contemporary!A:D,4,FALSE) -> 0 | C60: =Contemporary!U50 -> 0 | D60: =Contemporary!S50 -> 0 | E60: =IF((Table7101213[[#This Row],[Rank]]+Table7101213[[#This Row],[Score]])>0,1,0) -> 0 | L60: =SUM(F60,H60,J60) -> 0 | M60: =SUM(G60,I60,K60) -> 0
A61: =Contemporary!A51 -> K-403 | B61: =VLOOKUP(Table7101213[[#This Row],[ID]],Contemporary!A:D,4,FALSE) -> 0 | C61: =Contemporary!U51 -> 0 | D61: =Contemporary!S51 -> 0 | E61: =IF((Table7101213[[#This Row],[Rank]]+Table7101213[[#This Row],[Score]])>0,1,0) -> 0 | L61: =SUM(F61,H61,J61) -> 0 | M61: =SUM(G61,I61,K61) -> 0
A62: =Contemporary!A52 -> K-404 | B62: =VLOOKUP(Table7101213[[#This Row],[ID]],Contemporary!A:D,4,FALSE) -> 0 | C62: =Contemporary!U52 -> 0 | D62: =Contemporary!S52 -> 0 | E62: =IF((Table7101213[[#This Row],[Rank]]+Table7101213[[#This Row],[Score]])>0,1,0) -> 0 | L62: =SUM(F62,H62,J62) -> 0 | M62: =SUM(G62,I62,K62) -> 0
A63: =Contemporary!A54 -> L-401 | B63: =VLOOKUP(Table7101213[[#This Row],[ID]],Contemporary!A:D,4,FALSE) -> 0 | C63: =Contemporary!U54 -> 0 | D63: =Contemporary!S54 -> 0 | E63: =IF((Table7101213[[#This Row],[Rank]]+Table7101213[[#This Row],[Score]])>0,1,0) -> 0 | L63: =SUM(F63,H63,J63) -> 0 | M63: =SUM(G63,I63,K63) -> 0
A64: =Contemporary!A55 -> L-402 | B64: =VLOOKUP(Table7101213[[#This Row],[ID]],Contemporary!A:D,4,FALSE) -> 0 | C64: =Contemporary!U55 -> 0 | D64: =Contemporary!S55 -> 0 | E64: =IF((Table7101213[[#This Row],[Rank]]+Table7101213[[#This Row],[Score]])>0,1,0) -> 0 | L64: =SUM(F64,H64,J64) -> 0 | M64: =SUM(G64,I64,K64) -> 0
A65: =Contemporary!A56 -> L-403 | B65: =VLOOKUP(Table7101213[[#This Row],[ID]],Contemporary!A:D,4,FALSE) -> 0 | C65: =Contemporary!U56 -> 0 | D65: =Contemporary!S56 -> 0 | E65: =IF((Table7101213[[#This Row],[Rank]]+Table7101213[[#This Row],[Score]])>0,1,0) -> 0 | L65: =SUM(F65,H65,J65) -> 0 | M65: =SUM(G65,I65,K65) -> 0
A66: =Contemporary!A57 -> L-404 | B66: =VLOOKUP(Table7101213[[#This Row],[ID]],Contemporary!A:D,4,FALSE) -> 0 | C66: =Contemporary!U57 -> 0 | D66: =Contemporary!S57 -> 0 | E66: =IF((Table7101213[[#This Row],[Rank]]+Table7101213[[#This Row],[Score]])>0,1,0) -> 0 | L66: =SUM(F66,H66,J66) -> 0 | M66: =SUM(G66,I66,K66) -> 0
A67: =Contemporary!A59 -> M-401 | B67: =VLOOKUP(Table7101213[[#This Row],[ID]],Contemporary!A:D,4,FALSE) -> 0 | C67: =Contemporary!U59 -> 0 | D67: =Contemporary!S59 -> 0 | E67: =IF((Table7101213[[#This Row],[Rank]]+Table7101213[[#This Row],[Score]])>0,1,0) -> 0 | L67: =SUM(F67,H67,J67) -> 0 | M67: =SUM(G67,I67,K67) -> 0
A68: =Contemporary!A60 -> M-402 | B68: =VLOOKUP(Table7101213[[#This Row],[ID]],Contemporary!A:D,4,FALSE) -> 0 | C68: =Contemporary!U60 -> 0 | D68: =Contemporary!S60 -> 0 | E68: =IF((Table7101213[[#This Row],[Rank]]+Table7101213[[#This Row],[Score]])>0,1,0) -> 0 | L68: =SUM(F68,H68,J68) -> 0 | M68: =SUM(G68,I68,K68) -> 0
A69: =Contemporary!A61 -> M-403 | B69: =VLOOKUP(Table7101213[[#This Row],[ID]],Contemporary!A:D,4,FALSE) -> 0 | C69: =Contemporary!U61 -> 0 | D69: =Contemporary!S61 -> 0 | E69: =IF((Table7101213[[#This Row],[Rank]]+Table7101213[[#This Row],[Score]])>0,1,0) -> 0 | L69: =SUM(F69,H69,J69) -> 0 | M69: =SUM(G69,I69,K69) -> 0
A70: =Contemporary!A62 -> M-404 | B70: =VLOOKUP(Table7101213[[#This Row],[ID]],Contemporary!A:D,4,FALSE) -> 0 | C70: =Contemporary!U62 -> 0 | D70: =Contemporary!S62 -> 0 | E70: =IF((Table7101213[[#This Row],[Rank]]+Table7101213[[#This Row],[Score]])>0,1,0) -> 0 | L70: =SUM(F70,H70,J70) -> 0 | M70: =SUM(G70,I70,K70) -> 0
A71: =Contemporary!A64 -> N-401 | B71: =VLOOKUP(Table7101213[[#This Row],[ID]],Contemporary!A:D,4,FALSE) -> 0 | C71: =Contemporary!U64 -> 0 | D71: =Contemporary!S64 -> 0 | E71: =IF((Table7101213[[#This Row],[Rank]]+Table7101213[[#This Row],[Score]])>0,1,0) -> 0 | L71: =SUM(F71,H71,J71) -> 0 | M71: =SUM(G71,I71,K71) -> 0
A72: =Contemporary!A65 -> N-402 | B72: =VLOOKUP(Table7101213[[#This Row],[ID]],Contemporary!A:D,4,FALSE) -> 0 | C72: =Contemporary!U65 -> 0 | D72: =Contemporary!S65 -> 0 | E72: =IF((Table7101213[[#This Row],[Rank]]+Table7101213[[#This Row],[Score]])>0,1,0) -> 0 | L72: =SUM(F72,H72,J72) -> 0 | M72: =SUM(G72,I72,K72) -> 0
A73: =Contemporary!A66 -> N-403 | B73: =VLOOKUP(Table7101213[[#This Row],[ID]],Contemporary!A:D,4,FALSE) -> 0 | C73: =Contemporary!U66 -> 0 | D73: =Contemporary!S66 -> 0 | E73: =IF((Table7101213[[#This Row],[Rank]]+Table7101213[[#This Row],[Score]])>0,1,0) -> 0 | L73: =SUM(F73,H73,J73) -> 0 | M73: =SUM(G73,I73,K73) -> 0
A74: =Contemporary!A67 -> N-404 | B74: =VLOOKUP(Table7101213[[#This Row],[ID]],Contemporary!A:D,4,FALSE) -> 0 | C74: =Contemporary!U67 -> 0 | D74: =Contemporary!S67 -> 0 | E74: =IF((Table7101213[[#This Row],[Rank]]+Table7101213[[#This Row],[Score]])>0,1,0) -> 0 | L74: =SUM(F74,H74,J74) -> 0 | M74: =SUM(G74,I74,K74) -> 0
A75: =Contemporary!A69 -> P-401 | B75: =VLOOKUP(Table7101213[[#This Row],[ID]],Contemporary!A:D,4,FALSE) -> 0 | C75: =Contemporary!U69 -> 0 | D75: =Contemporary!S69 -> 0 | E75: =IF((Table7101213[[#This Row],[Rank]]+Table7101213[[#This Row],[Score]])>0,1,0) -> 0 | L75: =SUM(F75,H75,J75) -> 0 | M75: =SUM(G75,I75,K75) -> 0
A76: =Contemporary!A70 -> P-402 | B76: =VLOOKUP(Table7101213[[#This Row],[ID]],Contemporary!A:D,4,FALSE) -> 0 | C76: =Contemporary!U70 -> 0 | D76: =Contemporary!S70 -> 0 | E76: =IF((Table7101213[[#This Row],[Rank]]+Table7101213[[#This Row],[Score]])>0,1,0) -> 0 | L76: =SUM(F76,H76,J76) -> 0 | M76: =SUM(G76,I76,K76) -> 0
A77: =Contemporary!A71 -> P-403 | B77: =VLOOKUP(Table7101213[[#This Row],[ID]],Contemporary!A:D,4,FALSE) -> 0 | C77: =Contemporary!U71 -> 0 | D77: =Contemporary!S71 -> 0 | E77: =IF((Table7101213[[#This Row],[Rank]]+Table7101213[[#This Row],[Score]])>0,1,0) -> 0 | L77: =SUM(F77,H77,J77) -> 0 | M77: =SUM(G77,I77,K77) -> 0
A78: =Contemporary!A72 -> P-404 | B78: =VLOOKUP(Table7101213[[#This Row],[ID]],Contemporary!A:D,4,FALSE) -> 0 | C78: =Contemporary!U72 -> 0 | D78: =Contemporary!S72 -> 0 | E78: =IF((Table7101213[[#This Row],[Rank]]+Table7101213[[#This Row],[Score]])>0,1,0) -> 0 | L78: =SUM(F78,H78,J78) -> 0 | M78: =SUM(G78,I78,K78) -> 0
A79: =Contemporary!A74 -> Q-401 | B79: =VLOOKUP(Table7101213[[#This Row],[ID]],Contemporary!A:D,4,FALSE) -> 0 | C79: =Contemporary!U74 -> 0 | D79: =Contemporary!S74 -> 0 | E79: =IF((Table7101213[[#This Row],[Rank]]+Table7101213[[#This Row],[Score]])>0,1,0) -> 0 | L79: =SUM(F79,H79,J79) -> 0 | M79: =SUM(G79,I79,K79) -> 0
A80: =Contemporary!A75 -> Q-402 | B80: =VLOOKUP(Table7101213[[#This Row],[ID]],Contemporary!A:D,4,FALSE) -> 0 | C80: =Contemporary!U75 -> 0 | D80: =Contemporary!S75 -> 0 | E80: =IF((Table7101213[[#This Row],[Rank]]+Table7101213[[#This Row],[Score]])>0,1,0) -> 0 | L80: =SUM(F80,H80,J80) -> 0 | M80: =SUM(G80,I80,K80) -> 0
A81: =Contemporary!A76 -> Q-403 | B81: =VLOOKUP(Table7101213[[#This Row],[ID]],Contemporary!A:D,4,FALSE) -> 0 | C81: =Contemporary!U76 -> 0 | D81: =Contemporary!S76 -> 0 | E81: =IF((Table7101213[[#This Row],[Rank]]+Table7101213[[#This Row],[Score]])>0,1,0) -> 0 | L81: =SUM(F81,H81,J81) -> 0 | M81: =SUM(G81,I81,K81) -> 0
A82: =Contemporary!A77 -> Q-404 | B82: =VLOOKUP(Table7101213[[#This Row],[ID]],Contemporary!A:D,4,FALSE) -> 0 | C82: =Contemporary!U77 -> 0 | D82: =Contemporary!S77 -> 0 | E82: =IF((Table7101213[[#This Row],[Rank]]+Table7101213[[#This Row],[Score]])>0,1,0) -> 0 | L82: =SUM(F82,H82,J82) -> 0 | M82: =SUM(G82,I82,K82) -> 0
A83: =Contemporary!A79 -> R-401 | B83: =VLOOKUP(Table7101213[[#This Row],[ID]],Contemporary!A:D,4,FALSE) -> 0 | C83: =Contemporary!U79 -> 0 | D83: =Contemporary!S79 -> 0 | E83: =IF((Table7101213[[#This Row],[Rank]]+Table7101213[[#This Row],[Score]])>0,1,0) -> 0 | L83: =SUM(F83,H83,J83) -> 0 | M83: =SUM(G83,I83,K83) -> 0
A84: =Contemporary!A80 -> R-402 | B84: =VLOOKUP(Table7101213[[#This Row],[ID]],Contemporary!A:D,4,FALSE) -> 0 | C84: =Contemporary!U80 -> 0 | D84: =Contemporary!S80 -> 0 | E84: =IF((Table7101213[[#This Row],[Rank]]+Table7101213[[#This Row],[Score]])>0,1,0) -> 0 | L84: =SUM(F84,H84,J84) -> 0 | M84: =SUM(G84,I84,K84) -> 0
A85: =Contemporary!A81 -> R-403 | B85: =VLOOKUP(Table7101213[[#This Row],[ID]],Contemporary!A:D,4,FALSE) -> 0 | C85: =Contemporary!U81 -> 0 | D85: =Contemporary!S81 -> 0 | E85: =IF((Table7101213[[#This Row],[Rank]]+Table7101213[[#This Row],[Score]])>0,1,0) -> 0 | L85: =SUM(F85,H85,J85) -> 0 | M85: =SUM(G85,I85,K85) -> 0
A86: =Contemporary!A82 -> R-404 | B86: =VLOOKUP(Table7101213[[#This Row],[ID]],Contemporary!A:D,4,FALSE) -> 0 | C86: =Contemporary!U82 -> 0 | D86: =Contemporary!S82 -> 0 | E86: =IF((Table7101213[[#This Row],[Rank]]+Table7101213[[#This Row],[Score]])>0,1,0) -> 0 | L86: =SUM(F86,H86,J86) -> 0 | M86: =SUM(G86,I86,K86) -> 0
A87: =Contemporary!A84 -> S-401 | B87: =VLOOKUP(Table7101213[[#This Row],[ID]],Contemporary!A:D,4,FALSE) -> 0 | C87: =Contemporary!U84 -> 0 | D87: =Contemporary!S84 -> 0 | E87: =IF((Table7101213[[#This Row],[Rank]]+Table7101213[[#This Row],[Score]])>0,1,0) -> 0 | L87: =SUM(F87,H87,J87) -> 0 | M87: =SUM(G87,I87,K87) -> 0
A88: =Contemporary!A85 -> S-402 | B88: =VLOOKUP(Table7101213[[#This Row],[ID]],Contemporary!A:D,4,FALSE) -> 0 | C88: =Contemporary!U85 -> 0 | D88: =Contemporary!S85 -> 0 | E88: =IF((Table7101213[[#This Row],[Rank]]+Table7101213[[#This Row],[Score]])>0,1,0) -> 0 | L88: =SUM(F88,H88,J88) -> 0 | M88: =SUM(G88,I88,K88) -> 0
A89: =Contemporary!A86 -> S-403 | B89: =VLOOKUP(Table7101213[[#This Row],[ID]],Contemporary!A:D,4,FALSE) -> 0 | C89: =Contemporary!U86 -> 0 | D89: =Contemporary!S86 -> 0 | E89: =IF((Table7101213[[#This Row],[Rank]]+Table7101213[[#This Row],[Score]])>0,1,0) -> 0 | L89: =SUM(F89,H89,J89) -> 0 | M89: =SUM(G89,I89,K89) -> 0
A90: =Contemporary!A87 -> S-404 | B90: =VLOOKUP(Table7101213[[#This Row],[ID]],Contemporary!A:D,4,FALSE) -> 0 | C90: =Contemporary!U87 -> 0 | D90: =Contemporary!S87 -> 0 | E90: =IF((Table7101213[[#This Row],[Rank]]+Table7101213[[#This Row],[Score]])>0,1,0) -> 0 | L90: =SUM(F90,H90,J90) -> 0 | M90: =SUM(G90,I90,K90) -> 0
A91: =Contemporary!A89 -> T-401 | B91: =VLOOKUP(Table7101213[[#This Row],[ID]],Contemporary!A:D,4,FALSE) -> 0 | C91: =Contemporary!U89 -> 0 | D91: =Contemporary!S89 -> 0 | E91: =IF((Table7101213[[#This Row],[Rank]]+Table7101213[[#This Row],[Score]])>0,1,0) -> 0 | L91: =SUM(F91,H91,J91) -> 0 | M91: =SUM(G91,I91,K91) -> 0
A92: =Contemporary!A90 -> T-402 | B92: =VLOOKUP(Table7101213[[#This Row],[ID]],Contemporary!A:D,4,FALSE) -> 0 | C92: =Contemporary!U90 -> 0 | D92: =Contemporary!S90 -> 0 | E92: =IF((Table7101213[[#This Row],[Rank]]+Table7101213[[#This Row],[Score]])>0,1,0) -> 0 | L92: =SUM(F92,H92,J92) -> 0 | M92: =SUM(G92,I92,K92) -> 0
A93: =Contemporary!A91 -> T-403 | B93: =VLOOKUP(Table7101213[[#This Row],[ID]],Contemporary!A:D,4,FALSE) -> 0 | C93: =Contemporary!U91 -> 0 | D93: =Contemporary!S91 -> 0 | E93: =IF((Table7101213[[#This Row],[Rank]]+Table7101213[[#This Row],[Score]])>0,1,0) -> 0 | L93: =SUM(F93,H93,J93) -> 0 | M93: =SUM(G93,I93,K93) -> 0
A94: =Contemporary!A92 -> T-404 | B94: =VLOOKUP(Table7101213[[#This Row],[ID]],Contemporary!A:D,4,FALSE) -> 0 | C94: =Contemporary!U92 -> 0 | D94: =Contemporary!S92 -> 0 | E94: =IF((Table7101213[[#This Row],[Rank]]+Table7101213[[#This Row],[Score]])>0,1,0) -> 0 | L94: =SUM(F94,H94,J94) -> 0 | M94: =SUM(G94,I94,K94) -> 0
A95: =Contemporary!A94 -> U-401 | B95: =VLOOKUP(Table7101213[[#This Row],[ID]],Contemporary!A:D,4,FALSE) -> 0 | C95: =Contemporary!U94 -> 0 | D95: =Contemporary!S94 -> 0 | E95: =IF((Table7101213[[#This Row],[Rank]]+Table7101213[[#This Row],[Score]])>0,1,0) -> 0 | L95: =SUM(F95,H95,J95) -> 0 | M95: =SUM(G95,I95,K95) -> 0
A96: =Contemporary!A95 -> U-402 | B96: =VLOOKUP(Table7101213[[#This Row],[ID]],Contemporary!A:D,4,FALSE) -> 0 | C96: =Contemporary!U95 -> 0 | D96: =Contemporary!S95 -> 0 | E96: =IF((Table7101213[[#This Row],[Rank]]+Table7101213[[#This Row],[Score]])>0,1,0) -> 0 | L96: =SUM(F96,H96,J96) -> 0 | M96: =SUM(G96,I96,K96) -> 0
A97: =Contemporary!A96 -> U-403 | B97: =VLOOKUP(Table7101213[[#This Row],[ID]],Contemporary!A:D,4,FALSE) -> 0 | C97: =Contemporary!U96 -> 0 | D97: =Contemporary!S96 -> 0 | E97: =IF((Table7101213[[#This Row],[Rank]]+Table7101213[[#This Row],[Score]])>0,1,0) -> 0 | L97: =SUM(F97,H97,J97) -> 0 | M97: =SUM(G97,I97,K97) -> 0
A98: =Contemporary!A97 -> U-404 | B98: =VLOOKUP(Table7101213[[#This Row],[ID]],Contemporary!A:D,4,FALSE) -> 0 | C98: =Contemporary!U97 -> 0 | D98: =Contemporary!S97 -> 0 | E98: =IF((Table7101213[[#This Row],[Rank]]+Table7101213[[#This Row],[Score]])>0,1,0) -> 0 | L98: =SUM(F98,H98,J98) -> 0 | M98: =SUM(G98,I98,K98) -> 0
A99: =Contemporary!A99 -> V-401 | B99: =VLOOKUP(Table7101213[[#This Row],[ID]],Contemporary!A:D,4,FALSE) -> 0 | C99: =Contemporary!U99 -> 0 | D99: =Contemporary!S99 -> 0 | E99: =IF((Table7101213[[#This Row],[Rank]]+Table7101213[[#This Row],[Score]])>0,1,0) -> 0 | L99: =SUM(F99,H99,J99) -> 0 | M99: =SUM(G99,I99,K99) -> 0
A100: =Contemporary!A100 -> V-402 | B100: =VLOOKUP(Table7101213[[#This Row],[ID]],Contemporary!A:D,4,FALSE) -> 0 | C100: =Contemporary!U100 -> 0 | D100: =Contemporary!S100 -> 0 | E100: =IF((Table7101213[[#This Row],[Rank]]+Table7101213[[#This Row],[Score]])>0,1,0) -> 0 | L100: =SUM(F100,H100,J100) -> 0 | M100: =SUM(G100,I100,K100) -> 0
A101: =Contemporary!A101 -> V-403 | B101: =VLOOKUP(Table7101213[[#This Row],[ID]],Contemporary!A:D,4,FALSE) -> 0 | C101: =Contemporary!U101 -> 0 | D101: =Contemporary!S101 -> 0 | E101: =IF((Table7101213[[#This Row],[Rank]]+Table7101213[[#This Row],[Score]])>0,1,0) -> 0 | L101: =SUM(F101,H101,J101) -> 0 | M101: =SUM(G101,I101,K101) -> 0
A102: =Contemporary!A102 -> V-404 | B102: =VLOOKUP(Table7101213[[#This Row],[ID]],Contemporary!A:D,4,FALSE) -> 0 | C102: =Contemporary!U102 -> 0 | D102: =Contemporary!S102 -> 0 | E102: =IF((Table7101213[[#This Row],[Rank]]+Table7101213[[#This Row],[Score]])>0,1,0) -> 0 | L102: =SUM(F102,H102,J102) -> 0 | M102: =SUM(G102,I102,K102) -> 0
A103: =Contemporary!A104 -> W-401 | B103: =VLOOKUP(Table7101213[[#This Row],[ID]],Contemporary!A:D,4,FALSE) -> 0 | C103: =Contemporary!U104 -> 0 | D103: =Contemporary!S104 -> 0 | E103: =IF((Table7101213[[#This Row],[Rank]]+Table7101213[[#This Row],[Score]])>0,1,0) -> 0 | L103: =SUM(F103,H103,J103) -> 0 | M103: =SUM(G103,I103,K103) -> 0
A104: =Contemporary!A105 -> W-402 | B104: =VLOOKUP(Table7101213[[#This Row],[ID]],Contemporary!A:D,4,FALSE) -> 0 | C104: =Contemporary!U105 -> 0 | D104: =Contemporary!S105 -> 0 | E104: =IF((Table7101213[[#This Row],[Rank]]+Table7101213[[#This Row],[Score]])>0,1,0) -> 0 | L104: =SUM(F104,H104,J104) -> 0 | M104: =SUM(G104,I104,K104) -> 0
A105: =Contemporary!A106 -> W-403 | B105: =VLOOKUP(Table7101213[[#This Row],[ID]],Contemporary!A:D,4,FALSE) -> 0 | C105: =Contemporary!U106 -> 0 | D105: =Contemporary!S106 -> 0 | E105: =IF((Table7101213[[#This Row],[Rank]]+Table7101213[[#This Row],[Score]])>0,1,0) -> 0 | L105: =SUM(F105,H105,J105) -> 0 | M105: =SUM(G105,I105,K105) -> 0
A106: =Contemporary!A107 -> W-404 | B106: =VLOOKUP(Table7101213[[#This Row],[ID]],Contemporary!A:D,4,FALSE) -> 0 | C106: =Contemporary!U107 -> 0 | D106: =Contemporary!S107 -> 0 | E106: =IF((Table7101213[[#This Row],[Rank]]+Table7101213[[#This Row],[Score]])>0,1,0) -> 0 | L106: =SUM(F106,H106,J106) -> 0 | M106: =SUM(G106,I106,K106) -> 0
A107: =Contemporary!A109 -> X-401 | B107: =VLOOKUP(Table7101213[[#This Row],[ID]],Contemporary!A:D,4,FALSE) -> 0 | C107: =Contemporary!U109 -> 0 | D107: =Contemporary!S109 -> 0 | E107: =IF((Table7101213[[#This Row],[Rank]]+Table7101213[[#This Row],[Score]])>0,1,0) -> 0 | L107: =SUM(F107,H107,J107) -> 0 | M107: =SUM(G107,I107,K107) -> 0
A108: =Contemporary!A110 -> X-402 | B108: =VLOOKUP(Table7101213[[#This Row],[ID]],Contemporary!A:D,4,FALSE) -> 0 | C108: =Contemporary!U110 -> 0 | D108: =Contemporary!S110 -> 0 | E108: =IF((Table7101213[[#This Row],[Rank]]+Table7101213[[#This Row],[Score]])>0,1,0) -> 0 | L108: =SUM(F108,H108,J108) -> 0 | M108: =SUM(G108,I108,K108) -> 0
A109: =Contemporary!A111 -> X-403 | B109: =VLOOKUP(Table7101213[[#This Row],[ID]],Contemporary!A:D,4,FALSE) -> 0 | C109: =Contemporary!U111 -> 0 | D109: =Contemporary!S111 -> 0 | E109: =IF((Table7101213[[#This Row],[Rank]]+Table7101213[[#This Row],[Score]])>0,1,0) -> 0 | L109: =SUM(F109,H109,J109) -> 0 | M109: =SUM(G109,I109,K109) -> 0
A110: =Contemporary!A112 -> X-404 | B110: =VLOOKUP(Table7101213[[#This Row],[ID]],Contemporary!A:D,4,FALSE) -> 0 | C110: =Contemporary!U112 -> 0 | D110: =Contemporary!S112 -> 0 | E110: =IF((Table7101213[[#This Row],[Rank]]+Table7101213[[#This Row],[Score]])>0,1,0) -> 0 | L110: =SUM(F110,H110,J110) -> 0 | M110: =SUM(G110,I110,K110) -> 0
A111: =Contemporary!A114 -> Y-401 | B111: =VLOOKUP(Table7101213[[#This Row],[ID]],Contemporary!A:D,4,FALSE) -> 0 | C111: =Contemporary!U114 -> 0 | D111: =Contemporary!S114 -> 0 | E111: =IF((Table7101213[[#This Row],[Rank]]+Table7101213[[#This Row],[Score]])>0,1,0) -> 0 | L111: =SUM(F111,H111,J111) -> 0 | M111: =SUM(G111,I111,K111) -> 0
A112: =Contemporary!A115 -> Y-402 | B112: =VLOOKUP(Table7101213[[#This Row],[ID]],Contemporary!A:D,4,FALSE) -> 0 | C112: =Contemporary!U115 -> 0 | D112: =Contemporary!S115 -> 0 | E112: =IF((Table7101213[[#This Row],[Rank]]+Table7101213[[#This Row],[Score]])>0,1,0) -> 0 | L112: =SUM(F112,H112,J112) -> 0 | M112: =SUM(G112,I112,K112) -> 0
A113: =Contemporary!A116 -> Y-403 | B113: =VLOOKUP(Table7101213[[#This Row],[ID]],Contemporary!A:D,4,FALSE) -> 0 | C113: =Contemporary!U116 -> 0 | D113: =Contemporary!S116 -> 0 | E113: =IF((Table7101213[[#This Row],[Rank]]+Table7101213[[#This Row],[Score]])>0,1,0) -> 0 | L113: =SUM(F113,H113,J113) -> 0 | M113: =SUM(G113,I113,K113) -> 0
A114: =Contemporary!A117 -> Y-404 | B114: =VLOOKUP(Table7101213[[#This Row],[ID]],Contemporary!A:D,4,FALSE) -> 0 | C114: =Contemporary!U117 -> 0 | D114: =Contemporary!S117 -> 0 | E114: =IF((Table7101213[[#This Row],[Rank]]+Table7101213[[#This Row],[Score]])>0,1,0) -> 0 | L114: =SUM(F114,H114,J114) -> 0 | M114: =SUM(G114,I114,K114) -> 0
A115: =Contemporary!A119 -> Z-401 | B115: =VLOOKUP(Table7101213[[#This Row],[ID]],Contemporary!A:D,4,FALSE) -> 0 | C115: =Contemporary!U119 -> 0 | D115: =Contemporary!S119 -> 0 | E115: =IF((Table7101213[[#This Row],[Rank]]+Table7101213[[#This Row],[Score]])>0,1,0) -> 0 | L115: =SUM(F115,H115,J115) -> 0 | M115: =SUM(G115,I115,K115) -> 0
A116: =Contemporary!A120 -> Z-402 | B116: =VLOOKUP(Table7101213[[#This Row],[ID]],Contemporary!A:D,4,FALSE) -> 0 | C116: =Contemporary!U120 -> 0 | D116: =Contemporary!S120 -> 0 | E116: =IF((Table7101213[[#This Row],[Rank]]+Table7101213[[#This Row],[Score]])>0,1,0) -> 0 | L116: =SUM(F116,H116,J116) -> 0 | M116: =SUM(G116,I116,K116) -> 0
A117: =Contemporary!A121 -> Z-403 | B117: =VLOOKUP(Table7101213[[#This Row],[ID]],Contemporary!A:D,4,FALSE) -> 0 | C117: =Contemporary!U121 -> 0 | D117: =Contemporary!S121 -> 0 | E117: =IF((Table7101213[[#This Row],[Rank]]+Table7101213[[#This Row],[Score]])>0,1,0) -> 0 | L117: =SUM(F117,H117,J117) -> 0 | M117: =SUM(G117,I117,K117) -> 0
A118: =Contemporary!A122 -> Z-404 | B118: =VLOOKUP(Table7101213[[#This Row],[ID]],Contemporary!A:D,4,FALSE) -> 0 | C118: =Contemporary!U122 -> 0 | D118: =Contemporary!S122 -> 0 | E118: =IF((Table7101213[[#This Row],[Rank]]+Table7101213[[#This Row],[Score]])>0,1,0) -> 0 | L118: =SUM(F118,H118,J118) -> 0 | M118: =SUM(G118,I118,K118) -> 0
A119: =Contemporary!A149 -> FF-401 | B119: =VLOOKUP(Table7101213[[#This Row],[ID]],Contemporary!A:D,4,FALSE) -> 0 | C119: =Contemporary!U149 -> 0 | D119: =Contemporary!S149 -> 0 | E119: =IF((Table7101213[[#This Row],[Rank]]+Table7101213[[#This Row],[Score]])>0,1,0) -> 0 | L119: =SUM(F119,H119,J119) -> 0 | M119: =SUM(G119,I119,K119) -> 0
A120: =Contemporary!A150 -> FF-402 | B120: =VLOOKUP(Table7101213[[#This Row],[ID]],Contemporary!A:D,4,FALSE) -> 0 | C120: =Contemporary!U150 -> 0 | D120: =Contemporary!S150 -> 0 | E120: =IF((Table7101213[[#This Row],[Rank]]+Table7101213[[#This Row],[Score]])>0,1,0) -> 0 | L120: =SUM(F120,H120,J120) -> 0 | M120: =SUM(G120,I120,K120) -> 0
A121: =Contemporary!A151 -> FF-403 | B121: =VLOOKUP(Table7101213[[#This Row],[ID]],Contemporary!A:D,4,FALSE) -> 0 | C121: =Contemporary!U151 -> 0 | D121: =Contemporary!S151 -> 0 | E121: =IF((Table7101213[[#This Row],[Rank]]+Table7101213[[#This Row],[Score]])>0,1,0) -> 0 | L121: =SUM(F121,H121,J121) -> 0 | M121: =SUM(G121,I121,K121) -> 0
A122: =Contemporary!A152 -> FF-404 | B122: =VLOOKUP(Table7101213[[#This Row],[ID]],Contemporary!A:D,4,FALSE) -> 0 | C122: =Contemporary!U152 -> 0 | D122: =Contemporary!S152 -> 0 | E122: =IF((Table7101213[[#This Row],[Rank]]+Table7101213[[#This Row],[Score]])>0,1,0) -> 0 | L122: =SUM(F122,H122,J122) -> 0 | M122: =SUM(G122,I122,K122) -> 0

Sheet Pantomime
A1: Pantomimes | K1: Rank 1-4 | X1: S | Y1: E | Z1: G | AA1: F | AC1: 1violation | AD1: 2violations | AE1: 3violations
K2: Round 1: | M2: Round 2: | O2: Round 3: | Q2: -2 for each | AB2: Drops lowest from column q
F3: Student Name | H3: Student Name | J3: Title of Piece | K3: R1 rank | L3: R1 score | M3: R2 rank | N3: R2 score | O3: R3 rank | P3: R3 score | Q3: Time Violations | S3: TOTAL SCORE | U3: TOTAL RANK | X3: TOTAL SCHOOL SWEEPS POINTS | AB3: Drop Lowest
A4: A-501 | F4: (606) Dom L | H4: Dom D | J4: "Heist" | K4: 3 | L4: 18 | M4: 4 | N4: 20 | O4: 4 | P4: 20 | R4: =IF(Q4="1violation",-7*1,IF(Q4="2violations",-7*2,IF(Q4="3violations",-7*3,IF(Q4="","")))) ->  | S4: =SUM(L4,N4,P4,R4) -> 58 | U4: =SUM(K4,M4,O4) -> 11 | Y4: =SUM(S4,S6,S5,S7,-AB4) -> 203 | AB4: =MIN(S4:S7) -> 58
A5: A-502 | F5: (607) Leslie | H5: Kate | J5: "Moms Away" | K5: 2 | L5: 23 | M5: 2 | N5: 22 | O5: 1 | P5: 23 | R5: =IF(Q5="1violation",-7*1,IF(Q5="2violations",-7*2,IF(Q5="3violations",-7*3,IF(Q5="","")))) ->  | S5: =SUM(L5,N5,P5,R5) -> 68 | U5: =SUM(K5,M5,O5) -> 5
A6: A-503 | F6: (608) Tyler P. | J6: "Pizza & Bar" | K6: 1 | L6: 22 | M6: 2 | N6: 23 | O6: 4 | P6: 21 | S6: =SUM(L6,N6,P6,R6) -> 66 | U6: =SUM(K6,M6,O6) -> 7
A7: A-504 | F7: (609) Marcus P | H7: Jake W. | J7: "Grafitti" | K7: 1 | L7: 25 | M7: 3 | N7: 22 | O7: 3 | P7: 22 | S7: =SUM(L7,N7,P7,R7) -> 69 | U7: =SUM(K7,M7,O7) -> 7
A9: B-501 | F9: (600) Arik Blevins | S9: =SUM(L9,N9,P9,R9) -> 0 | U9: =SUM(K9,M9,O9) -> 0 | Y9: =SUM(S9,S11,S10,S12,-AB9) -> 58 | AB9: =MIN(S9:S12) -> 0
A10: B-502 | F10: (601) Joslyn Certino | H10: Mckenzie Roundy | J10: "My First Sewing lesson" | K10: 4 | L10: 17 | M10: 3 | N10: 21 | O10: 4 | P10: 20 | S10: =SUM(L10,N10,P10,R10) -> 58 | U10: =SUM(K10,M10,O10) -> 11
A11: B-503 | S11: =SUM(L11,N11,P11,R11) -> 0 | U11: =SUM(K11,M11,O11) -> 0
A12: B-504 | S12: =SUM(L12,N12,P12,R12) -> 0 | U12: =SUM(K12,M12,O12) -> 0
A14: C-501 | F14: (605) Jackie Leavitt | H14: Miah Pace | J14: "The Worst Only Date" | K14: 3 | L14: 22 | M14: 1 | N14: 23 | O14: 1 | P14: 25 | S14: =SUM(L14,N14,P14,R14) -> 70 | U14: =SUM(K14,M14,O14) -> 5 | Y14: =SUM(S14,S16,S15,S17,-AB14) -> 70 | AB14: =MIN(S14:S17) -> 0 | AE14: Rule violation - used three chairs
A15: C-502 | S15: =SUM(L15,N15,P15,R15) -> 0 | U15: =SUM(K15,M15,O15) -> 0
A16: C-503 | S16: =SUM(L16,N16,P16,R16) -> 0 | U16: =SUM(K16,M16,O16) -> 0
A17: C-504 | S17: =SUM(L17,N17,P17,R17) -> 0 | U17: =SUM(K17,M17,O17) -> 0
A19: D-501 | S19: =SUM(L19,N19,P19,R19) -> 0 | U19: =SUM(K19,M19,O19) -> 0 | Y19: =SUM(S19,S21,S20,S22,-AB19) -> 0 | AB19: =MIN(S19:S22) -> 0
A20: D-502 | S20: =SUM(L20,N20,P20,R20) -> 0 | U20: =SUM(K20,M20,O20) -> 0
A21: D-503 | S21: =SUM(L21,N21,P21,R21) -> 0 | U21: =SUM(K21,M21,O21) -> 0
A22: D-504 | S22: =SUM(L22,N22,P22,R22) -> 0 | U22: =SUM(K22,M22,O22) -> 0
A24: E-501 | F24: (604) Kaitlyn Esplin | H24: T.J. Petersen | J24: "All the Magic" | K24: 2 | L24: 18 | M24: 4 | N24: 20 | O24: 2 | P24: 24 | S24: =SUM(L24,N24,P24,R24) -> 62 | U24: =SUM(K24,M24,O24) -> 8 | Y24: =SUM(S24,S26,S25,S27,-AB24) -> 62 | AB24: =MIN(S24:S27) -> 0
A25: E-502 | S25: =SUM(L25,N25,P25,R25) -> 0 | U25: =SUM(K25,M25,O25) -> 0
A26: E-503 | S26: =SUM(L26,N26,P26,R26) -> 0 | U26: =SUM(K26,M26,O26) -> 0
A27: E-504 | S27: =SUM(L27,N27,P27,R27) -> 0 | U27: =SUM(K27,M27,O27) -> 0
A29: F-501 | F29: (603) Gannon Murphy | J29: "Failing at Making Waffles" | K29: 4 | L29: 20 | M29: 1 | N29: 25 | O29: 2 | P29: 23 | S29: =SUM(L29,N29,P29,R29) -> 68 | U29: =SUM(K29,M29,O29) -> 7 | Y29: =SUM(S29,S31,S30,S32,-AB29) -> 68 | AB29: =MIN(S29:S32) -> 0
A30: F-502 | S30: =SUM(L30,N30,P30,R30) -> 0 | U30: =SUM(K30,M30,O30) -> 0
A31: F-503 | S31: =SUM(L31,N31,P31,R31) -> 0 | U31: =SUM(K31,M31,O31) -> 0
A32: F-504 | S32: =SUM(L32,N32,P32,R32) -> 0 | U32: =SUM(K32,M32,O32) -> 0
A34: G-501 | F34: (602) Madison Rhoades | H34: Jemey Summarell | J34: Doctor Visit. | K34: 4 | L34: 18 | M34: 4 | N34: 19 | O34: 3 | P34: 23 | S34: =SUM(L34,N34,P34,R34) -> 60 | U34: =SUM(K34,M34,O34) -> 11 | Y34: =SUM(S34,S36,S35,S37,-AB34) -> 60 | AB34: =MIN(S34:S37) -> 0
A35: G-502 | S35: =SUM(L35,N35,P35,R35) -> 0 | U35: =SUM(K35,M35,O35) -> 0
A36: G-503 | S36: =SUM(L36,N36,P36,R36) -> 0 | U36: =SUM(K36,M36,O36) -> 0
A37: G-504 | S37: =SUM(L37,N37,P37,R37) -> 0 | U37: =SUM(K37,M37,O37) -> 0
A39: H-501 | S39: =SUM(L39,N39,P39,R39) -> 0 | U39: =SUM(K39,M39,O39) -> 0 | Y39: =SUM(S39,S41,S40,S42,-AB39) -> 0 | AB39: =MIN(S39:S42) -> 0
A40: H-502 | S40: =SUM(L40,N40,P40,R40) -> 0 | U40: =SUM(K40,M40,O40) -> 0
A41: H-503 | S41: =SUM(L41,N41,P41,R41) -> 0 | U41: =SUM(K41,M41,O41) -> 0
A42: H-504 | S42: =SUM(L42,N42,P42,R42) -> 0 | U42: =SUM(K42,M42,O42) -> 0
A44: J-501 | S44: =SUM(L44,N44,P44,R44) -> 0 | U44: =SUM(K44,M44,O44) -> 0 | Y44: =SUM(S44,S46,S45,S47,-AB44) -> 0 | AB44: =MIN(S44:S47) -> 0
A45: J-502 | S45: =SUM(L45,N45,P45,R45) -> 0 | U45: =SUM(K45,M45,O45) -> 0
A46: J-503 | S46: =SUM(L46,N46,P46,R46) -> 0 | U46: =SUM(K46,M46,O46) -> 0
A47: J-504 | S47: =SUM(L47,N47,P47,R47) -> 0 | U47: =SUM(K47,M47,O47) -> 0
A49: K-501 | S49: =SUM(L49,N49,P49,R49) -> 0 | U49: =SUM(K49,M49,O49) -> 0 | Y49: =SUM(S49,S51,S50,S52,-AB49) -> 0 | AB49: =MIN(S49:S52) -> 0
A50: K-502 | S50: =SUM(L50,N50,P50,R50) -> 0 | U50: =SUM(K50,M50,O50) -> 0
A51: K-503 | S51: =SUM(L51,N51,P51,R51) -> 0 | U51: =SUM(K51,M51,O51) -> 0
A52: K-504 | S52: =SUM(L52,N52,P52,R52) -> 0 | U52: =SUM(K52,M52,O52) -> 0
A54: L-501 | S54: =SUM(L54,N54,P54,R54) -> 0 | U54: =SUM(K54,M54,O54) -> 0 | Y54: =SUM(S54,S56,S55,S57,-AB54) -> 0 | AB54: =MIN(S54:S57) -> 0
A55: L-502 | S55: =SUM(L55,N55,P55,R55) -> 0 | U55: =SUM(K55,M55,O55) -> 0
A56: L-503 | S56: =SUM(L56,N56,P56,R56) -> 0 | U56: =SUM(K56,M56,O56) -> 0
A57: L-504 | S57: =SUM(L57,N57,P57,R57) -> 0 | U57: =SUM(K57,M57,O57) -> 0
A59: M-501 | S59: =SUM(L59,N59,P59,R59) -> 0 | U59: =SUM(K59,M59,O59) -> 0 | Y59: =SUM(S59,S61,S60,S62,-AB59) -> 0 | AB59: =MIN(S59:S62) -> 0
A60: M-502 | S60: =SUM(L60,N60,P60,R60) -> 0 | U60: =SUM(K60,M60,O60) -> 0
A61: M-503 | S61: =SUM(L61,N61,P61,R61) -> 0 | U61: =SUM(K61,M61,O61) -> 0
A62: M-504 | S62: =SUM(L62,N62,P62,R62) -> 0 | U62: =SUM(K62,M62,O62) -> 0
A64: N-501 | S64: =SUM(L64,N64,P64,R64) -> 0 | U64: =SUM(K64,M64,O64) -> 0 | Y64: =SUM(S64,S66,S65,S67,-AB64) -> 0 | AB64: =MIN(S64:S67) -> 0
A65: N-502 | S65: =SUM(L65,N65,P65,R65) -> 0 | U65: =SUM(K65,M65,O65) -> 0
A66: N-503 | S66: =SUM(L66,N66,P66,R66) -> 0 | U66: =SUM(K66,M66,O66) -> 0
A67: N-504 | S67: =SUM(L67,N67,P67,R67) -> 0 | U67: =SUM(K67,M67,O67) -> 0
A69: P-501 | R69: =IF(Q69="1violation",-7*1,IF(Q69="2violations",-7*2,IF(Q69="3violations",-7*3,IF(Q69="","")))) ->  | S69: =SUM(L69,N69,P69,R69) -> 0 | U69: =SUM(K69,M69,O69) -> 0 | Y69: =SUM(S69,S71,S70,S72,-AB69) -> 0 | AB69: =MIN(S69:S72) -> 0
A70: P-502 | S70: =SUM(L70,N70,P70,R70) -> 0 | U70: =SUM(K70,M70,O70) -> 0
A71: P-503 | S71: =SUM(L71,N71,P71,R71) -> 0 | U71: =SUM(K71,M71,O71) -> 0
A72: P-504 | S72: =SUM(L72,N72,P72,R72) -> 0 | U72: =SUM(K72,M72,O72) -> 0
A74: Q-501 | S74: =SUM(L74,N74,P74,R74) -> 0 | U74: =SUM(K74,M74,O74) -> 0 | Y74: =SUM(S74,S76,S75,S77,-AB74) -> 0 | AB74: =MIN(S74:S77) -> 0
A75: Q-502 | S75: =SUM(L75,N75,P75,R75) -> 0 | U75: =SUM(K75,M75,O75) -> 0
A76: Q-502 | S76: =SUM(L76,N76,P76,R76) -> 0 | U76: =SUM(K76,M76,O76) -> 0
A77: Q-504 | S77: =SUM(L77,N77,P77,R77) -> 0 | U77: =SUM(K77,M77,O77) -> 0
A79: R-501 | S79: =SUM(L79,N79,P79,R79) -> 0 | U79: =SUM(K79,M79,O79) -> 0 | Y79: =SUM(S79,S81,S80,S82,-AB79) -> 0 | AB79: =MIN(S79:S82) -> 0
A80: R-502 | S80: =SUM(L80,N80,P80,R80) -> 0 | U80: =SUM(K80,M80,O80) -> 0
A81: R-503 | S81: =SUM(L81,N81,P81,R81) -> 0 | U81: =SUM(K81,M81,O81) -> 0
A82: R-504 | S82: =SUM(L82,N82,P82,R82) -> 0 | U82: =SUM(K82,M82,O82) -> 0
A84: S-501 | S84: =SUM(L84,N84,P84,R84) -> 0 | U84: =SUM(K84,M84,O84) -> 0 | Y84: =SUM(S84,S86,S85,S87,-AB84) -> 0 | AB84: =MIN(S84:S87) -> 0
A85: S-502 | S85: =SUM(L85,N85,P85,R85) -> 0 | U85: =SUM(K85,M85,O85) -> 0
A86: S-503 | S86: =SUM(L86,N86,P86,R86) -> 0 | U86: =SUM(K86,M86,O86) -> 0
A87: S-504 | S87: =SUM(L87,N87,P87,R87) -> 0 | U87: =SUM(K87,M87,O87) -> 0
A89: T-501 | S89: =SUM(L89,N89,P89,R89) -> 0 | U89: =SUM(K89,M89,O89) -> 0 | Y89: =SUM(S89,S91,S90,S92,-AB89) -> 0 | AB89: =MIN(S89:S92) -> 0
A90: T-502 | S90: =SUM(L90,N90,P90,R90) -> 0 | U90: =SUM(K90,M90,O90) -> 0
A91: T-503 | S91: =SUM(L91,N91,P91,R91) -> 0 | U91: =SUM(K91,M91,O91) -> 0
A92: T-504 | S92: =SUM(L92,N92,P92,R92) -> 0 | U92: =SUM(K92,M92,O92) -> 0
A94: U-501 | S94: =SUM(L94,N94,P94,R94) -> 0 | U94: =SUM(K94,M94,O94) -> 0 | Y94: =SUM(S94,S96,S95,S97,-AB94) -> 0 | AB94: =MIN(S94:S97) -> 0
A95: U-502 | S95: =SUM(L95,N95,P95,R95) -> 0 | U95: =SUM(K95,M95,O95) -> 0
A96: U-503 | S96: =SUM(L96,N96,P96,R96) -> 0 | U96: =SUM(K96,M96,O96) -> 0
A97: U-504 | S97: =SUM(L97,N97,P97,R97) -> 0 | U97: =SUM(K97,M97,O97) -> 0
A99: V-501 | S99: =SUM(L99,N99,P99,R99) -> 0 | U99: =SUM(K99,M99,O99) -> 0 | Y99: =SUM(S99,S101,S100,S102,-AB99) -> 0 | AB99: =MIN(S99:S102) -> 0
A100: V-502 | S100: =SUM(L100,N100,P100,R100) -> 0 | U100: =SUM(K100,M100,O100) -> 0
A101: V-503 | S101: =SUM(L101,N101,P101,R101) -> 0 | U101: =SUM(K101,M101,O101) -> 0
A102: V-504 | S102: =SUM(L102,N102,P102,R102) -> 0 | U102: =SUM(K102,M102,O102) -> 0
A104: W-501 | S104: =SUM(L104,N104,P104,R104) -> 0 | U104: =SUM(K104,M104,O104) -> 0 | Y104: =SUM(S104,S106,S105,S107,-AB104) -> 0 | AB104: =MIN(S104:S107) -> 0
A105: W-502 | S105: =SUM(L105,N105,P105,R105) -> 0 | U105: =SUM(K105,M105,O105) -> 0
A106: W-503 | S106: =SUM(L106,N106,P106,R106) -> 0 | U106: =SUM(K106,M106,O106) -> 0
A107: W-504 | S107: =SUM(L107,N107,P107,R107) -> 0 | U107: =SUM(K107,M107,O107) -> 0
A109: X-501 | S109: =SUM(L109,N109,P109,R109) -> 0 | U109: =SUM(K109,M109,O109) -> 0 | Y109: =SUM(S109,S111,S110,S112,-AB109) -> 0 | AB109: =MIN(S109:S112) -> 0
A110: X-502 | S110: =SUM(L110,N110,P110,R110) -> 0 | U110: =SUM(K110,M110,O110) -> 0
A111: X-503 | S111: =SUM(L111,N111,P111,R111) -> 0 | U111: =SUM(K111,M111,O111) -> 0
A112: X-504 | S112: =SUM(L112,N112,P112,R112) -> 0 | U112: =SUM(K112,M112,O112) -> 0
A114: Y-501 | S114: =SUM(L114,N114,P114,R114) -> 0 | U114: =SUM(K114,M114,O114) -> 0 | Y114: =SUM(S114,S116,S115,S117,-AB114) -> 0 | AB114: =MIN(S114:S117) -> 0
A115: Y-502 | S115: =SUM(L115,N115,P115,R115) -> 0 | U115: =SUM(K115,M115,O115) -> 0
A116: Y-503 | S116: =SUM(L116,N116,P116,R116) -> 0 | U116: =SUM(K116,M116,O116) -> 0
A117: Y-504 | S117: =SUM(L117,N117,P117,R117) -> 0 | U117: =SUM(K117,M117,O117) -> 0
A119: Z-501 | S119: =SUM(L119,N119,P119,R119) -> 0 | U119: =SUM(K119,M119,O119) -> 0 | Y119: =SUM(S119,S121,S120,S122,-AB119) -> 0 | AB119: =MIN(S119:S122) -> 0
A120: Z-502 | S120: =SUM(L120,N120,P120,R120) -> 0 | U120: =SUM(K120,M120,O120) -> 0
A121: Z-503 | S121: =SUM(L121,N121,P121,R121) -> 0 | U121: =SUM(K121,M121,O121) -> 0
A122: Z-504 | S122: =SUM(L122,N122,P122,R122) -> 0 | U122: =SUM(K122,M122,O122) -> 0
A124: AA-501 | S124: =SUM(L124,N124,P124,R124) -> 0 | U124: =SUM(K124,M124,O124) -> 0 | Y124: =SUM(S124,S126,S125,S127,-AB124) -> 0 | AB124: =MIN(S124:S127) -> 0
A125: AA-502 | S125: =SUM(L125,N125,P125,R125) -> 0 | U125: =SUM(K125,M125,O125) -> 0
A126: AA-503 | S126: =SUM(L126,N126,P126,R126) -> 0 | U126: =SUM(K126,M126,O126) -> 0
A127: AA-504 | S127: =SUM(L127,N127,P127,R127) -> 0 | U127: =SUM(K127,M127,O127) -> 0
A129: BB-501 | S129: =SUM(L129,N129,P129,R129) -> 0 | U129: =SUM(K129,M129,O129) -> 0 | Y129: =SUM(S129,S131,S130,S132,-AB129) -> 0 | AB129: =MIN(S129:S132) -> 0
A130: BB-502 | S130: =SUM(L130,N130,P130,R130) -> 0 | U130: =SUM(K130,M130,O130) -> 0
A131: BB-503 | S131: =SUM(L131,N131,P131,R131) -> 0 | U131: =SUM(K131,M131,O131) -> 0
A132: BB-504 | S132: =SUM(L132,N132,P132,R132) -> 0 | U132: =SUM(K132,M132,O132) -> 0
A134: CC-501 | R134: =IF(Q134="1violation",-7*1,IF(Q134="2violations",-7*2,IF(Q134="3violations",-7*3,IF(Q134="","")))) ->  | S134: =SUM(L134,N134,P134,R134) -> 0 | U134: =SUM(K134,M134,O134) -> 0 | Y134: =SUM(S134,S136,S135,S137,-AB134) -> 0 | AB134: =MIN(S134:S137) -> 0
A135: CC-502 | S135: =SUM(L135,N135,P135,R135) -> 0 | U135: =SUM(K135,M135,O135) -> 0
A136: CC-503 | S136: =SUM(L136,N136,P136,R136) -> 0 | U136: =SUM(K136,M136,O136) -> 0
A137: CC-504 | S137: =SUM(L137,N137,P137,R137) -> 0 | U137: =SUM(K137,M137,O137) -> 0
A139: DD-501 | S139: =SUM(L139,N139,P139,R139) -> 0 | U139: =SUM(K139,M139,O139) -> 0 | Y139: =SUM(S139,S141,S140,S142,-AB139) -> 0 | AB139: =MIN(S139:S142) -> 0
A140: DD-502 | S140: =SUM(L140,N140,P140,R140) -> 0 | U140: =SUM(K140,M140,O140) -> 0
A141: DD-503 | S141: =SUM(L141,N141,P141,R141) -> 0 | U141: =SUM(K141,M141,O141) -> 0
A142: DD-504 | S142: =SUM(L142,N142,P142,R142) -> 0 | U142: =SUM(K142,M142,O142) -> 0
A144: EE-501 | S144: =SUM(L144,N144,P144,R144) -> 0 | U144: =SUM(K144,M144,O144) -> 0 | Y144: =SUM(S144,S146,S145,S147,-AB144) -> 0 | AB144: =MIN(S144:S147) -> 0
A145: EE-502 | S145: =SUM(L145,N145,P145,R145) -> 0 | U145: =SUM(K145,M145,O145) -> 0
A146: EE-503 | S146: =SUM(L146,N146,P146,R146) -> 0 | U146: =SUM(K146,M146,O146) -> 0
A147: EE-504 | S147: =SUM(L147,N147,P147,R147) -> 0 | U147: =SUM(K147,M147,O147) -> 0
A149: FF-501 | S149: =SUM(L149,N149,P149,R149) -> 0 | U149: =SUM(K149,M149,O149) -> 0 | Y149: =SUM(S149,S151,S150,S152,-AB149) -> 0 | AB149: =MIN(S149:S152) -> 0
A150: FF-502 | S150: =SUM(L150,N150,P150,R150) -> 0 | U150: =SUM(K150,M150,O150) -> 0
A151: FF-503 | S151: =SUM(L151,N151,P151,R151) -> 0 | U151: =SUM(K151,M151,O151) -> 0
A152: FF-504 | S152: =SUM(L152,N152,P152,R152) -> 0 | U152: =SUM(K152,M152,O152) -> 0

Sheet PantomimeMR
A1: Pantomime | F1: Finals Medals Round Scores
A2: ID | B2: Column1 | C2: Rank | D2: Score | E2: LeaveBlank | F2: MR 1 Rank | G2: MR 1 Score | H2: MR2 Rank | I2: MR 2 Score | J2: MR3 Rank | K2: MR 3 Score | L2: Total MR Rank | M2: Total MR Score | N2: Column2
A3: =Pantomime!A14 -> C-501 | B3: =VLOOKUP(Table710121314[[#This Row],[ID]],Pantomime!A:F,6,FALSE) -> (605) Jackie Leavitt | C3: =Pantomime!U14 -> 5 | D3: =Pantomime!S14 -> 70 | E3: =IF((Table710121314[[#This Row],[Rank]]+Table710121314[[#This Row],[Score]])>0,1,0) -> 1 | F3: 1 | G3: 24 | H3: 2 | I3: 24 | J3: 2 | K3: 22 | L3: =SUM(F3,H3,J3) -> 5 | M3: =SUM(G3,I3,K3) -> 70 | N3: 2nd
A4: =Pantomime!A5 -> A-502 | B4: =VLOOKUP(Table710121314[[#This Row],[ID]],Pantomime!A:F,6,FALSE) -> (607) Leslie | C4: =Pantomime!U5 -> 5 | D4: =Pantomime!S5 -> 68 | E4: =IF((Table710121314[[#This Row],[Rank]]+Table710121314[[#This Row],[Score]])>0,1,0) -> 1 | F4: 3 | G4: 20 | H4: 3 | I4: 20 | J4: 3 | K4: 22 | L4: =SUM(F4,H4,J4) -> 9 | M4: =SUM(G4,I4,K4) -> 62 | N4: 3rd
A5: =Pantomime!A7 -> A-504 | B5: =VLOOKUP(Table710121314[[#This Row],[ID]],Pantomime!A:F,6,FALSE) -> (609) Marcus P | C5: =Pantomime!U7 -> 7 | D5: =Pantomime!S7 -> 69 | E5: =IF((Table710121314[[#This Row],[Rank]]+Table710121314[[#This Row],[Score]])>0,1,0) -> 1 | F5: 4 | G5: 20 | H5: 4 | I5: 19 | J5: 4 | K5: 21 | L5: =SUM(F5,H5,J5) -> 12 | M5: =SUM(G5,I5,K5) -> 60
A6: =Pantomime!A29 -> F-501 | B6: =VLOOKUP(Table710121314[[#This Row],[ID]],Pantomime!A:F,6,FALSE) -> (603) Gannon Murphy | C6: =Pantomime!U29 -> 7 | D6: =Pantomime!S29 -> 68 | E6: =IF((Table710121314[[#This Row],[Rank]]+Table710121314[[#This Row],[Score]])>0,1,0) -> 1 | F6: 2 | G6: 23 | H6: 1 | I6: 24 | J6: 1 | K6: 23 | L6: =SUM(F6,H6,J6) -> 4 | M6: =SUM(G6,I6,K6) -> 70 | N6: 1st
A7: =Pantomime!A6 -> A-503 | B7: =VLOOKUP(Table710121314[[#This Row],[ID]],Pantomime!A:F,6,FALSE) -> (608) Tyler P. | C7: =Pantomime!U6 -> 7 | D7: =Pantomime!S6 -> 66 | E7: =IF((Table710121314[[#This Row],[Rank]]+Table710121314[[#This Row],[Score]])>0,1,0) -> 1 | F7: 5 | G7: 20 | H7: 5 | I7: 18 | J7: 5 | K7: 18 | L7: =SUM(F7,H7,J7) -> 15 | M7: =SUM(G7,I7,K7) -> 56
A8: =Pantomime!A24 -> E-501 | B8: =VLOOKUP(Table710121314[[#This Row],[ID]],Pantomime!A:F,6,FALSE) -> (604) Kaitlyn Esplin | C8: =Pantomime!U24 -> 8 | D8: =Pantomime!S24 -> 62 | E8: =IF((Table710121314[[#This Row],[Rank]]+Table710121314[[#This Row],[Score]])>0,1,0) -> 1 | L8: =SUM(F8,H8,J8) -> 0 | M8: =SUM(G8,I8,K8) -> 0
A9: =Pantomime!A34 -> G-501 | B9: =VLOOKUP(Table710121314[[#This Row],[ID]],Pantomime!A:F,6,FALSE) -> (602) Madison Rhoades | C9: =Pantomime!U34 -> 11 | D9: =Pantomime!S34 -> 60 | E9: =IF((Table710121314[[#This Row],[Rank]]+Table710121314[[#This Row],[Score]])>0,1,0) -> 1 | L9: =SUM(F9,H9,J9) -> 0 | M9: =SUM(G9,I9,K9) -> 0
A10: =Pantomime!A4 -> A-501 | B10: =VLOOKUP(Table710121314[[#This Row],[ID]],Pantomime!A:F,6,FALSE) -> (606) Dom L | C10: =Pantomime!U4 -> 11 | D10: =Pantomime!S4 -> 58 | E10: =IF((Table710121314[[#This Row],[Rank]]+Table710121314[[#This Row],[Score]])>0,1,0) -> 1 | L10: =SUM(F10,H10,J10) -> 0 | M10: =SUM(G10,I10,K10) -> 0
A11: =Pantomime!A10 -> B-502 | B11: =VLOOKUP(Table710121314[[#This Row],[ID]],Pantomime!A:F,6,FALSE) -> (601) Joslyn Certino | C11: =Pantomime!U10 -> 11 | D11: =Pantomime!S10 -> 58 | E11: =IF((Table710121314[[#This Row],[Rank]]+Table710121314[[#This Row],[Score]])>0,1,0) -> 1 | L11: =SUM(F11,H11,J11) -> 0 | M11: =SUM(G11,I11,K11) -> 0
A12: =Pantomime!A9 -> B-501 | B12: =VLOOKUP(Table710121314[[#This Row],[ID]],Pantomime!A:F,6,FALSE) -> (600) Arik Blevins | C12: =Pantomime!U9 -> 0 | D12: =Pantomime!S9 -> 0 | E12: =IF((Table710121314[[#This Row],[Rank]]+Table710121314[[#This Row],[Score]])>0,1,0) -> 0 | L12: =SUM(F12,H12,J12) -> 0 | M12: =SUM(G12,I12,K12) -> 0
A13: =Pantomime!A44 -> J-501 | B13: =VLOOKUP(Table710121314[[#This Row],[ID]],Pantomime!A:F,6,FALSE) -> 0 | C13: =Pantomime!U44 -> 0 | D13: =Pantomime!S44 -> 0 | E13: =IF((Table710121314[[#This Row],[Rank]]+Table710121314[[#This Row],[Score]])>0,1,0) -> 0 | L13: =SUM(F13,H13,J13) -> 0 | M13: =SUM(G13,I13,K13) -> 0
A14: =Pantomime!A19 -> D-501 | B14: =VLOOKUP(Table710121314[[#This Row],[ID]],Pantomime!A:F,6,FALSE) -> 0 | C14: =Pantomime!U19 -> 0 | D14: =Pantomime!S19 -> 0 | E14: =IF((Table710121314[[#This Row],[Rank]]+Table710121314[[#This Row],[Score]])>0,1,0) -> 0 | L14: =SUM(F14,H14,J14) -> 0 | M14: =SUM(G14,I14,K14) -> 0
A15: =Pantomime!A124 -> AA-501 | B15: =VLOOKUP(Table710121314[[#This Row],[ID]],Pantomime!A:F,6,FALSE) -> 0 | C15: =Pantomime!U124 -> 0 | D15: =Pantomime!S124 -> 0 | E15: =IF((Table710121314[[#This Row],[Rank]]+Table710121314[[#This Row],[Score]])>0,1,0) -> 0 | L15: =SUM(F15,H15,J15) -> 0 | M15: =SUM(G15,I15,K15) -> 0
A16: =Pantomime!A125 -> AA-502 | B16: =VLOOKUP(Table710121314[[#This Row],[ID]],Pantomime!A:F,6,FALSE) -> 0 | C16: =Pantomime!U125 -> 0 | D16: =Pantomime!S125 -> 0 | E16: =IF((Table710121314[[#This Row],[Rank]]+Table710121314[[#This Row],[Score]])>0,1,0) -> 0 | L16: =SUM(F16,H16,J16) -> 0 | M16: =SUM(G16,I16,K16) -> 0
A17: =Pantomime!A126 -> AA-503 | B17: =VLOOKUP(Table710121314[[#This Row],[ID]],Pantomime!A:F,6,FALSE) -> 0 | C17: =Pantomime!U126 -> 0 | D17: =Pantomime!S126 -> 0 | E17: =IF((Table710121314[[#This Row],[Rank]]+Table710121314[[#This Row],[Score]])>0,1,0) -> 0 | L17: =SUM(F17,H17,J17) -> 0 | M17: =SUM(G17,I17,K17) -> 0
A18: =Pantomime!A127 -> AA-504 | B18: =VLOOKUP(Table710121314[[#This Row],[ID]],Pantomime!A:F,6,FALSE) -> 0 | C18: =Pantomime!U127 -> 0 | D18: =Pantomime!S127 -> 0 | E18: =IF((Table710121314[[#This Row],[Rank]]+Table710121314[[#This Row],[Score]])>0,1,0) -> 0 | L18: =SUM(F18,H18,J18) -> 0 | M18: =SUM(G18,I18,K18) -> 0
A19: =Pantomime!A11 -> B-503 | B19: =VLOOKUP(Table710121314[[#This Row],[ID]],Pantomime!A:F,6,FALSE) -> 0 | C19: =Pantomime!U11 -> 0 | D19: =Pantomime!S11 -> 0 | E19: =IF((Table710121314[[#This Row],[Rank]]+Table710121314[[#This Row],[Score]])>0,1,0) -> 0 | L19: =SUM(F19,H19,J19) -> 0 | M19: =SUM(G19,I19,K19) -> 0
A20: =Pantomime!A12 -> B-504 | B20: =VLOOKUP(Table710121314[[#This Row],[ID]],Pantomime!A:F,6,FALSE) -> 0 | C20: =Pantomime!U12 -> 0 | D20: =Pantomime!S12 -> 0 | E20: =IF((Table710121314[[#This Row],[Rank]]+Table710121314[[#This Row],[Score]])>0,1,0) -> 0 | L20: =SUM(F20,H20,J20) -> 0 | M20: =SUM(G20,I20,K20) -> 0
A21: =Pantomime!A129 -> BB-501 | B21: =VLOOKUP(Table710121314[[#This Row],[ID]],Pantomime!A:F,6,FALSE) -> 0 | C21: =Pantomime!U129 -> 0 | D21: =Pantomime!S129 -> 0 | E21: =IF((Table710121314[[#This Row],[Rank]]+Table710121314[[#This Row],[Score]])>0,1,0) -> 0 | L21: =SUM(F21,H21,J21) -> 0 | M21: =SUM(G21,I21,K21) -> 0
A22: =Pantomime!A130 -> BB-502 | B22: =VLOOKUP(Table710121314[[#This Row],[ID]],Pantomime!A:F,6,FALSE) -> 0 | C22: =Pantomime!U130 -> 0 | D22: =Pantomime!S130 -> 0 | E22: =IF((Table710121314[[#This Row],[Rank]]+Table710121314[[#This Row],[Score]])>0,1,0) -> 0 | L22: =SUM(F22,H22,J22) -> 0 | M22: =SUM(G22,I22,K22) -> 0
A23: =Pantomime!A131 -> BB-503 | B23: =VLOOKUP(Table710121314[[#This Row],[ID]],Pantomime!A:F,6,FALSE) -> 0 | C23: =Pantomime!U131 -> 0 | D23: =Pantomime!S131 -> 0 | E23: =IF((Table710121314[[#This Row],[Rank]]+Table710121314[[#This Row],[Score]])>0,1,0) -> 0 | L23: =SUM(F23,H23,J23) -> 0 | M23: =SUM(G23,I23,K23) -> 0
A24: =Pantomime!A132 -> BB-504 | B24: =VLOOKUP(Table710121314[[#This Row],[ID]],Pantomime!A:F,6,FALSE) -> 0 | C24: =Pantomime!U132 -> 0 | D24: =Pantomime!S132 -> 0 | E24: =IF((Table710121314[[#This Row],[Rank]]+Table710121314[[#This Row],[Score]])>0,1,0) -> 0 | L24: =SUM(F24,H24,J24) -> 0 | M24: =SUM(G24,I24,K24) -> 0
A25: =Pantomime!A15 -> C-502 | B25: =VLOOKUP(Table710121314[[#This Row],[ID]],Pantomime!A:F,6,FALSE) -> 0 | C25: =Pantomime!U15 -> 0 | D25: =Pantomime!S15 -> 0 | E25: =IF((Table710121314[[#This Row],[Rank]]+Table710121314[[#This Row],[Score]])>0,1,0) -> 0 | L25: =SUM(F25,H25,J25) -> 0 | M25: =SUM(G25,I25,K25) -> 0
A26: =Pantomime!A16 -> C-503 | B26: =VLOOKUP(Table710121314[[#This Row],[ID]],Pantomime!A:F,6,FALSE) -> 0 | C26: =Pantomime!U16 -> 0 | D26: =Pantomime!S16 -> 0 | E26: =IF((Table710121314[[#This Row],[Rank]]+Table710121314[[#This Row],[Score]])>0,1,0) -> 0 | L26: =SUM(F26,H26,J26) -> 0 | M26: =SUM(G26,I26,K26) -> 0
A27: =Pantomime!A17 -> C-504 | B27: =VLOOKUP(Table710121314[[#This Row],[ID]],Pantomime!A:F,6,FALSE) -> 0 | C27: =Pantomime!U17 -> 0 | D27: =Pantomime!S17 -> 0 | E27: =IF((Table710121314[[#This Row],[Rank]]+Table710121314[[#This Row],[Score]])>0,1,0) -> 0 | L27: =SUM(F27,H27,J27) -> 0 | M27: =SUM(G27,I27,K27) -> 0
A28: =Pantomime!A134 -> CC-501 | B28: =VLOOKUP(Table710121314[[#This Row],[ID]],Pantomime!A:F,6,FALSE) -> 0 | C28: =Pantomime!U134 -> 0 | D28: =Pantomime!S134 -> 0 | E28: =IF((Table710121314[[#This Row],[Rank]]+Table710121314[[#This Row],[Score]])>0,1,0) -> 0 | L28: =SUM(F28,H28,J28) -> 0 | M28: =SUM(G28,I28,K28) -> 0
A29: =Pantomime!A135 -> CC-502 | B29: =VLOOKUP(Table710121314[[#This Row],[ID]],Pantomime!A:F,6,FALSE) -> 0 | C29: =Pantomime!U135 -> 0 | D29: =Pantomime!S135 -> 0 | E29: =IF((Table710121314[[#This Row],[Rank]]+Table710121314[[#This Row],[Score]])>0,1,0) -> 0 | L29: =SUM(F29,H29,J29) -> 0 | M29: =SUM(G29,I29,K29) -> 0
A30: =Pantomime!A136 -> CC-503 | B30: =VLOOKUP(Table710121314[[#This Row],[ID]],Pantomime!A:F,6,FALSE) -> 0 | C30: =Pantomime!U136 -> 0 | D30: =Pantomime!S136 -> 0 | E30: =IF((Table710121314[[#This Row],[Rank]]+Table710121314[[#This Row],[Score]])>0,1,0) -> 0 | L30: =SUM(F30,H30,J30) -> 0 | M30: =SUM(G30,I30,K30) -> 0
A31: =Pantomime!A137 -> CC-504 | B31: =VLOOKUP(Table710121314[[#This Row],[ID]],Pantomime!A:F,6,FALSE) -> 0 | C31: =Pantomime!U137 -> 0 | D31: =Pantomime!S137 -> 0 | E31: =IF((Table710121314[[#This Row],[Rank]]+Table710121314[[#This Row],[Score]])>0,1,0) -> 0 | L31: =SUM(F31,H31,J31) -> 0 | M31: =SUM(G31,I31,K31) -> 0
A32: =Pantomime!A20 -> D-502 | B32: =VLOOKUP(Table710121314[[#This Row],[ID]],Pantomime!A:F,6,FALSE) -> 0 | C32: =Pantomime!U20 -> 0 | D32: =Pantomime!S20 -> 0 | E32: =IF((Table710121314[[#This Row],[Rank]]+Table710121314[[#This Row],[Score]])>0,1,0) -> 0 | L32: =SUM(F32,H32,J32) -> 0 | M32: =SUM(G32,I32,K32) -> 0
A33: =Pantomime!A21 -> D-503 | B33: =VLOOKUP(Table710121314[[#This Row],[ID]],Pantomime!A:F,6,FALSE) -> 0 | C33: =Pantomime!U21 -> 0 | D33: =Pantomime!S21 -> 0 | E33: =IF((Table710121314[[#This Row],[Rank]]+Table710121314[[#This Row],[Score]])>0,1,0) -> 0 | L33: =SUM(F33,H33,J33) -> 0 | M33: =SUM(G33,I33,K33) -> 0
A34: =Pantomime!A22 -> D-504 | B34: =VLOOKUP(Table710121314[[#This Row],[ID]],Pantomime!A:F,6,FALSE) -> 0 | C34: =Pantomime!U22 -> 0 | D34: =Pantomime!S22 -> 0 | E34: =IF((Table710121314[[#This Row],[Rank]]+Table710121314[[#This Row],[Score]])>0,1,0) -> 0 | L34: =SUM(F34,H34,J34) -> 0 | M34: =SUM(G34,I34,K34) -> 0
A35: =Pantomime!A139 -> DD-501 | B35: =VLOOKUP(Table710121314[[#This Row],[ID]],Pantomime!A:F,6,FALSE) -> 0 | C35: =Pantomime!U139 -> 0 | D35: =Pantomime!S139 -> 0 | E35: =IF((Table710121314[[#This Row],[Rank]]+Table710121314[[#This Row],[Score]])>0,1,0) -> 0 | L35: =SUM(F35,H35,J35) -> 0 | M35: =SUM(G35,I35,K35) -> 0
A36: =Pantomime!A140 -> DD-502 | B36: =VLOOKUP(Table710121314[[#This Row],[ID]],Pantomime!A:F,6,FALSE) -> 0 | C36: =Pantomime!U140 -> 0 | D36: =Pantomime!S140 -> 0 | E36: =IF((Table710121314[[#This Row],[Rank]]+Table710121314[[#This Row],[Score]])>0,1,0) -> 0 | L36: =SUM(F36,H36,J36) -> 0 | M36: =SUM(G36,I36,K36) -> 0
A37: =Pantomime!A141 -> DD-503 | B37: =VLOOKUP(Table710121314[[#This Row],[ID]],Pantomime!A:F,6,FALSE) -> 0 | C37: =Pantomime!U141 -> 0 | D37: =Pantomime!S141 -> 0 | E37: =IF((Table710121314[[#This Row],[Rank]]+Table710121314[[#This Row],[Score]])>0,1,0) -> 0 | L37: =SUM(F37,H37,J37) -> 0 | M37: =SUM(G37,I37,K37) -> 0
A38: =Pantomime!A142 -> DD-504 | B38: =VLOOKUP(Table710121314[[#This Row],[ID]],Pantomime!A:F,6,FALSE) -> 0 | C38: =Pantomime!U142 -> 0 | D38: =Pantomime!S142 -> 0 | E38: =IF((Table710121314[[#This Row],[Rank]]+Table710121314[[#This Row],[Score]])>0,1,0) -> 0 | L38: =SUM(F38,H38,J38) -> 0 | M38: =SUM(G38,I38,K38) -> 0
A39: =Pantomime!A25 -> E-502 | B39: =VLOOKUP(Table710121314[[#This Row],[ID]],Pantomime!A:F,6,FALSE) -> 0 | C39: =Pantomime!U25 -> 0 | D39: =Pantomime!S25 -> 0 | E39: =IF((Table710121314[[#This Row],[Rank]]+Table710121314[[#This Row],[Score]])>0,1,0) -> 0 | L39: =SUM(F39,H39,J39) -> 0 | M39: =SUM(G39,I39,K39) -> 0
A40: =Pantomime!A26 -> E-503 | B40: =VLOOKUP(Table710121314[[#This Row],[ID]],Pantomime!A:F,6,FALSE) -> 0 | C40: =Pantomime!U26 -> 0 | D40: =Pantomime!S26 -> 0 | E40: =IF((Table710121314[[#This Row],[Rank]]+Table710121314[[#This Row],[Score]])>0,1,0) -> 0 | L40: =SUM(F40,H40,J40) -> 0 | M40: =SUM(G40,I40,K40) -> 0
A41: =Pantomime!A27 -> E-504 | B41: =VLOOKUP(Table710121314[[#This Row],[ID]],Pantomime!A:F,6,FALSE) -> 0 | C41: =Pantomime!U27 -> 0 | D41: =Pantomime!S27 -> 0 | E41: =IF((Table710121314[[#This Row],[Rank]]+Table710121314[[#This Row],[Score]])>0,1,0) -> 0 | L41: =SUM(F41,H41,J41) -> 0 | M41: =SUM(G41,I41,K41) -> 0
A42: =Pantomime!A144 -> EE-501 | B42: =VLOOKUP(Table710121314[[#This Row],[ID]],Pantomime!A:F,6,FALSE) -> 0 | C42: =Pantomime!U144 -> 0 | D42: =Pantomime!S144 -> 0 | E42: =IF((Table710121314[[#This Row],[Rank]]+Table710121314[[#This Row],[Score]])>0,1,0) -> 0 | L42: =SUM(F42,H42,J42) -> 0 | M42: =SUM(G42,I42,K42) -> 0
A43: =Pantomime!A145 -> EE-502 | B43: =VLOOKUP(Table710121314[[#This Row],[ID]],Pantomime!A:F,6,FALSE) -> 0 | C43: =Pantomime!U145 -> 0 | D43: =Pantomime!S145 -> 0 | E43: =IF((Table710121314[[#This Row],[Rank]]+Table710121314[[#This Row],[Score]])>0,1,0) -> 0 | L43: =SUM(F43,H43,J43) -> 0 | M43: =SUM(G43,I43,K43) -> 0
A44: =Pantomime!A146 -> EE-503 | B44: =VLOOKUP(Table710121314[[#This Row],[ID]],Pantomime!A:F,6,FALSE) -> 0 | C44: =Pantomime!U146 -> 0 | D44: =Pantomime!S146 -> 0 | E44: =IF((Table710121314[[#This Row],[Rank]]+Table710121314[[#This Row],[Score]])>0,1,0) -> 0 | L44: =SUM(F44,H44,J44) -> 0 | M44: =SUM(G44,I44,K44) -> 0
A45: =Pantomime!A147 -> EE-504 | B45: =VLOOKUP(Table710121314[[#This Row],[ID]],Pantomime!A:F,6,FALSE) -> 0 | C45: =Pantomime!U147 -> 0 | D45: =Pantomime!S147 -> 0 | E45: =IF((Table710121314[[#This Row],[Rank]]+Table710121314[[#This Row],[Score]])>0,1,0) -> 0 | L45: =SUM(F45,H45,J45) -> 0 | M45: =SUM(G45,I45,K45) -> 0
A46: =Pantomime!A30 -> F-502 | B46: =VLOOKUP(Table710121314[[#This Row],[ID]],Pantomime!A:F,6,FALSE) -> 0 | C46: =Pantomime!U30 -> 0 | D46: =Pantomime!S30 -> 0 | E46: =IF((Table710121314[[#This Row],[Rank]]+Table710121314[[#This Row],[Score]])>0,1,0) -> 0 | L46: =SUM(F46,H46,J46) -> 0 | M46: =SUM(G46,I46,K46) -> 0
A47: =Pantomime!A31 -> F-503 | B47: =VLOOKUP(Table710121314[[#This Row],[ID]],Pantomime!A:F,6,FALSE) -> 0 | C47: =Pantomime!U31 -> 0 | D47: =Pantomime!S31 -> 0 | E47: =IF((Table710121314[[#This Row],[Rank]]+Table710121314[[#This Row],[Score]])>0,1,0) -> 0 | L47: =SUM(F47,H47,J47) -> 0 | M47: =SUM(G47,I47,K47) -> 0
A48: =Pantomime!A32 -> F-504 | B48: =VLOOKUP(Table710121314[[#This Row],[ID]],Pantomime!A:F,6,FALSE) -> 0 | C48: =Pantomime!U32 -> 0 | D48: =Pantomime!S32 -> 0 | E48: =IF((Table710121314[[#This Row],[Rank]]+Table710121314[[#This Row],[Score]])>0,1,0) -> 0 | L48: =SUM(F48,H48,J48) -> 0 | M48: =SUM(G48,I48,K48) -> 0
A49: =Pantomime!A149 -> FF-501 | B49: =VLOOKUP(Table710121314[[#This Row],[ID]],Pantomime!A:F,6,FALSE) -> 0 | C49: =Pantomime!U149 -> 0 | D49: =Pantomime!S149 -> 0 | E49: =IF((Table710121314[[#This Row],[Rank]]+Table710121314[[#This Row],[Score]])>0,1,0) -> 0 | L49: =SUM(F49,H49,J49) -> 0 | M49: =SUM(G49,I49,K49) -> 0
A50: =Pantomime!A150 -> FF-502 | B50: =VLOOKUP(Table710121314[[#This Row],[ID]],Pantomime!A:F,6,FALSE) -> 0 | C50: =Pantomime!U150 -> 0 | D50: =Pantomime!S150 -> 0 | E50: =IF((Table710121314[[#This Row],[Rank]]+Table710121314[[#This Row],[Score]])>0,1,0) -> 0 | L50: =SUM(F50,H50,J50) -> 0 | M50: =SUM(G50,I50,K50) -> 0
A51: =Pantomime!A151 -> FF-503 | B51: =VLOOKUP(Table710121314[[#This Row],[ID]],Pantomime!A:F,6,FALSE) -> 0 | C51: =Pantomime!U151 -> 0 | D51: =Pantomime!S151 -> 0 | E51: =IF((Table710121314[[#This Row],[Rank]]+Table710121314[[#This Row],[Score]])>0,1,0) -> 0 | L51: =SUM(F51,H51,J51) -> 0 | M51: =SUM(G51,I51,K51) -> 0
A52: =Pantomime!A152 -> FF-504 | B52: =VLOOKUP(Table710121314[[#This Row],[ID]],Pantomime!A:F,6,FALSE) -> 0 | C52: =Pantomime!U152 -> 0 | D52: =Pantomime!S152 -> 0 | E52: =IF((Table710121314[[#This Row],[Rank]]+Table710121314[[#This Row],[Score]])>0,1,0) -> 0 | L52: =SUM(F52,H52,J52) -> 0 | M52: =SUM(G52,I52,K52) -> 0
A53: =Pantomime!A35 -> G-502 | B53: =VLOOKUP(Table710121314[[#This Row],[ID]],Pantomime!A:F,6,FALSE) -> 0 | C53: =Pantomime!U35 -> 0 | D53: =Pantomime!S35 -> 0 | E53: =IF((Table710121314[[#This Row],[Rank]]+Table710121314[[#This Row],[Score]])>0,1,0) -> 0 | L53: =SUM(F53,H53,J53) -> 0 | M53: =SUM(G53,I53,K53) -> 0
A54: =Pantomime!A36 -> G-503 | B54: =VLOOKUP(Table710121314[[#This Row],[ID]],Pantomime!A:F,6,FALSE) -> 0 | C54: =Pantomime!U36 -> 0 | D54: =Pantomime!S36 -> 0 | E54: =IF((Table710121314[[#This Row],[Rank]]+Table710121314[[#This Row],[Score]])>0,1,0) -> 0 | L54: =SUM(F54,H54,J54) -> 0 | M54: =SUM(G54,I54,K54) -> 0
A55: =Pantomime!A37 -> G-504 | B55: =VLOOKUP(Table710121314[[#This Row],[ID]],Pantomime!A:F,6,FALSE) -> 0 | C55: =Pantomime!U37 -> 0 | D55: =Pantomime!S37 -> 0 | E55: =IF((Table710121314[[#This Row],[Rank]]+Table710121314[[#This Row],[Score]])>0,1,0) -> 0 | L55: =SUM(F55,H55,J55) -> 0 | M55: =SUM(G55,I55,K55) -> 0
A56: =Pantomime!A39 -> H-501 | B56: =VLOOKUP(Table710121314[[#This Row],[ID]],Pantomime!A:F,6,FALSE) -> 0 | C56: =Pantomime!U39 -> 0 | D56: =Pantomime!S39 -> 0 | E56: =IF((Table710121314[[#This Row],[Rank]]+Table710121314[[#This Row],[Score]])>0,1,0) -> 0 | L56: =SUM(F56,H56,J56) -> 0 | M56: =SUM(G56,I56,K56) -> 0
A57: =Pantomime!A40 -> H-502 | B57: =VLOOKUP(Table710121314[[#This Row],[ID]],Pantomime!A:F,6,FALSE) -> 0 | C57: =Pantomime!U40 -> 0 | D57: =Pantomime!S40 -> 0 | E57: =IF((Table710121314[[#This Row],[Rank]]+Table710121314[[#This Row],[Score]])>0,1,0) -> 0 | L57: =SUM(F57,H57,J57) -> 0 | M57: =SUM(G57,I57,K57) -> 0
A58: =Pantomime!A41 -> H-503 | B58: =VLOOKUP(Table710121314[[#This Row],[ID]],Pantomime!A:F,6,FALSE) -> 0 | C58: =Pantomime!U41 -> 0 | D58: =Pantomime!S41 -> 0 | E58: =IF((Table710121314[[#This Row],[Rank]]+Table710121314[[#This Row],[Score]])>0,1,0) -> 0 | L58: =SUM(F58,H58,J58) -> 0 | M58: =SUM(G58,I58,K58) -> 0
A59: =Pantomime!A42 -> H-504 | B59: =VLOOKUP(Table710121314[[#This Row],[ID]],Pantomime!A:F,6,FALSE) -> 0 | C59: =Pantomime!U42 -> 0 | D59: =Pantomime!S42 -> 0 | E59: =IF((Table710121314[[#This Row],[Rank]]+Table710121314[[#This Row],[Score]])>0,1,0) -> 0 | L59: =SUM(F59,H59,J59) -> 0 | M59: =SUM(G59,I59,K59) -> 0
A60: =Pantomime!A45 -> J-502 | B60: =VLOOKUP(Table710121314[[#This Row],[ID]],Pantomime!A:F,6,FALSE) -> 0 | C60: =Pantomime!U45 -> 0 | D60: =Pantomime!S45 -> 0 | E60: =IF((Table710121314[[#This Row],[Rank]]+Table710121314[[#This Row],[Score]])>0,1,0) -> 0 | L60: =SUM(F60,H60,J60) -> 0 | M60: =SUM(G60,I60,K60) -> 0
A61: =Pantomime!A46 -> J-503 | B61: =VLOOKUP(Table710121314[[#This Row],[ID]],Pantomime!A:F,6,FALSE) -> 0 | C61: =Pantomime!U46 -> 0 | D61: =Pantomime!S46 -> 0 | E61: =IF((Table710121314[[#This Row],[Rank]]+Table710121314[[#This Row],[Score]])>0,1,0) -> 0 | L61: =SUM(F61,H61,J61) -> 0 | M61: =SUM(G61,I61,K61) -> 0
A62: =Pantomime!A47 -> J-504 | B62: =VLOOKUP(Table710121314[[#This Row],[ID]],Pantomime!A:F,6,FALSE) -> 0 | C62: =Pantomime!U47 -> 0 | D62: =Pantomime!S47 -> 0 | E62: =IF((Table710121314[[#This Row],[Rank]]+Table710121314[[#This Row],[Score]])>0,1,0) -> 0 | L62: =SUM(F62,H62,J62) -> 0 | M62: =SUM(G62,I62,K62) -> 0
A63: =Pantomime!A49 -> K-501 | B63: =VLOOKUP(Table710121314[[#This Row],[ID]],Pantomime!A:F,6,FALSE) -> 0 | C63: =Pantomime!U49 -> 0 | D63: =Pantomime!S49 -> 0 | E63: =IF((Table710121314[[#This Row],[Rank]]+Table710121314[[#This Row],[Score]])>0,1,0) -> 0 | L63: =SUM(F63,H63,J63) -> 0 | M63: =SUM(G63,I63,K63) -> 0
A64: =Pantomime!A50 -> K-502 | B64: =VLOOKUP(Table710121314[[#This Row],[ID]],Pantomime!A:F,6,FALSE) -> 0 | C64: =Pantomime!U50 -> 0 | D64: =Pantomime!S50 -> 0 | E64: =IF((Table710121314[[#This Row],[Rank]]+Table710121314[[#This Row],[Score]])>0,1,0) -> 0 | L64: =SUM(F64,H64,J64) -> 0 | M64: =SUM(G64,I64,K64) -> 0
A65: =Pantomime!A51 -> K-503 | B65: =VLOOKUP(Table710121314[[#This Row],[ID]],Pantomime!A:F,6,FALSE) -> 0 | C65: =Pantomime!U51 -> 0 | D65: =Pantomime!S51 -> 0 | E65: =IF((Table710121314[[#This Row],[Rank]]+Table710121314[[#This Row],[Score]])>0,1,0) -> 0 | L65: =SUM(F65,H65,J65) -> 0 | M65: =SUM(G65,I65,K65) -> 0
A66: =Pantomime!A52 -> K-504 | B66: =VLOOKUP(Table710121314[[#This Row],[ID]],Pantomime!A:F,6,FALSE) -> 0 | C66: =Pantomime!U52 -> 0 | D66: =Pantomime!S52 -> 0 | E66: =IF((Table710121314[[#This Row],[Rank]]+Table710121314[[#This Row],[Score]])>0,1,0) -> 0 | L66: =SUM(F66,H66,J66) -> 0 | M66: =SUM(G66,I66,K66) -> 0
A67: =Pantomime!A54 -> L-501 | B67: =VLOOKUP(Table710121314[[#This Row],[ID]],Pantomime!A:F,6,FALSE) -> 0 | C67: =Pantomime!U54 -> 0 | D67: =Pantomime!S54 -> 0 | E67: =IF((Table710121314[[#This Row],[Rank]]+Table710121314[[#This Row],[Score]])>0,1,0) -> 0 | L67: =SUM(F67,H67,J67) -> 0 | M67: =SUM(G67,I67,K67) -> 0
A68: =Pantomime!A55 -> L-502 | B68: =VLOOKUP(Table710121314[[#This Row],[ID]],Pantomime!A:F,6,FALSE) -> 0 | C68: =Pantomime!U55 -> 0 | D68: =Pantomime!S55 -> 0 | E68: =IF((Table710121314[[#This Row],[Rank]]+Table710121314[[#This Row],[Score]])>0,1,0) -> 0 | L68: =SUM(F68,H68,J68) -> 0 | M68: =SUM(G68,I68,K68) -> 0
A69: =Pantomime!A56 -> L-503 | B69: =VLOOKUP(Table710121314[[#This Row],[ID]],Pantomime!A:F,6,FALSE) -> 0 | C69: =Pantomime!U56 -> 0 | D69: =Pantomime!S56 -> 0 | E69: =IF((Table710121314[[#This Row],[Rank]]+Table710121314[[#This Row],[Score]])>0,1,0) -> 0 | L69: =SUM(F69,H69,J69) -> 0 | M69: =SUM(G69,I69,K69) -> 0
A70: =Pantomime!A57 -> L-504 | B70: =VLOOKUP(Table710121314[[#This Row],[ID]],Pantomime!A:F,6,FALSE) -> 0 | C70: =Pantomime!U57 -> 0 | D70: =Pantomime!S57 -> 0 | E70: =IF((Table710121314[[#This Row],[Rank]]+Table710121314[[#This Row],[Score]])>0,1,0) -> 0 | L70: =SUM(F70,H70,J70) -> 0 | M70: =SUM(G70,I70,K70) -> 0
A71: =Pantomime!A59 -> M-501 | B71: =VLOOKUP(Table710121314[[#This Row],[ID]],Pantomime!A:F,6,FALSE) -> 0 | C71: =Pantomime!U59 -> 0 | D71: =Pantomime!S59 -> 0 | E71: =IF((Table710121314[[#This Row],[Rank]]+Table710121314[[#This Row],[Score]])>0,1,0) -> 0 | L71: =SUM(F71,H71,J71) -> 0 | M71: =SUM(G71,I71,K71) -> 0
A72: =Pantomime!A60 -> M-502 | B72: =VLOOKUP(Table710121314[[#This Row],[ID]],Pantomime!A:F,6,FALSE) -> 0 | C72: =Pantomime!U60 -> 0 | D72: =Pantomime!S60 -> 0 | E72: =IF((Table710121314[[#This Row],[Rank]]+Table710121314[[#This Row],[Score]])>0,1,0) -> 0 | L72: =SUM(F72,H72,J72) -> 0 | M72: =SUM(G72,I72,K72) -> 0
A73: =Pantomime!A61 -> M-503 | B73: =VLOOKUP(Table710121314[[#This Row],[ID]],Pantomime!A:F,6,FALSE) -> 0 | C73: =Pantomime!U61 -> 0 | D73: =Pantomime!S61 -> 0 | E73: =IF((Table710121314[[#This Row],[Rank]]+Table710121314[[#This Row],[Score]])>0,1,0) -> 0 | L73: =SUM(F73,H73,J73) -> 0 | M73: =SUM(G73,I73,K73) -> 0
A74: =Pantomime!A62 -> M-504 | B74: =VLOOKUP(Table710121314[[#This Row],[ID]],Pantomime!A:F,6,FALSE) -> 0 | C74: =Pantomime!U62 -> 0 | D74: =Pantomime!S62 -> 0 | E74: =IF((Table710121314[[#This Row],[Rank]]+Table710121314[[#This Row],[Score]])>0,1,0) -> 0 | L74: =SUM(F74,H74,J74) -> 0 | M74: =SUM(G74,I74,K74) -> 0
A75: =Pantomime!A64 -> N-501 | B75: =VLOOKUP(Table710121314[[#This Row],[ID]],Pantomime!A:F,6,FALSE) -> 0 | C75: =Pantomime!U64 -> 0 | D75: =Pantomime!S64 -> 0 | E75: =IF((Table710121314[[#This Row],[Rank]]+Table710121314[[#This Row],[Score]])>0,1,0) -> 0 | L75: =SUM(F75,H75,J75) -> 0 | M75: =SUM(G75,I75,K75) -> 0
A76: =Pantomime!A65 -> N-502 | B76: =VLOOKUP(Table710121314[[#This Row],[ID]],Pantomime!A:F,6,FALSE) -> 0 | C76: =Pantomime!U65 -> 0 | D76: =Pantomime!S65 -> 0 | E76: =IF((Table710121314[[#This Row],[Rank]]+Table710121314[[#This Row],[Score]])>0,1,0) -> 0 | L76: =SUM(F76,H76,J76) -> 0 | M76: =SUM(G76,I76,K76) -> 0
A77: =Pantomime!A66 -> N-503 | B77: =VLOOKUP(Table710121314[[#This Row],[ID]],Pantomime!A:F,6,FALSE) -> 0 | C77: =Pantomime!U66 -> 0 | D77: =Pantomime!S66 -> 0 | E77: =IF((Table710121314[[#This Row],[Rank]]+Table710121314[[#This Row],[Score]])>0,1,0) -> 0 | L77: =SUM(F77,H77,J77) -> 0 | M77: =SUM(G77,I77,K77) -> 0
A78: =Pantomime!A67 -> N-504 | B78: =VLOOKUP(Table710121314[[#This Row],[ID]],Pantomime!A:F,6,FALSE) -> 0 | C78: =Pantomime!U67 -> 0 | D78: =Pantomime!S67 -> 0 | E78: =IF((Table710121314[[#This Row],[Rank]]+Table710121314[[#This Row],[Score]])>0,1,0) -> 0 | L78: =SUM(F78,H78,J78) -> 0 | M78: =SUM(G78,I78,K78) -> 0
A79: =Pantomime!A69 -> P-501 | B79: =VLOOKUP(Table710121314[[#This Row],[ID]],Pantomime!A:F,6,FALSE) -> 0 | C79: =Pantomime!U69 -> 0 | D79: =Pantomime!S69 -> 0 | E79: =IF((Table710121314[[#This Row],[Rank]]+Table710121314[[#This Row],[Score]])>0,1,0) -> 0 | L79: =SUM(F79,H79,J79) -> 0 | M79: =SUM(G79,I79,K79) -> 0
A80: =Pantomime!A70 -> P-502 | B80: =VLOOKUP(Table710121314[[#This Row],[ID]],Pantomime!A:F,6,FALSE) -> 0 | C80: =Pantomime!U70 -> 0 | D80: =Pantomime!S70 -> 0 | E80: =IF((Table710121314[[#This Row],[Rank]]+Table710121314[[#This Row],[Score]])>0,1,0) -> 0 | L80: =SUM(F80,H80,J80) -> 0 | M80: =SUM(G80,I80,K80) -> 0
A81: =Pantomime!A71 -> P-503 | B81: =VLOOKUP(Table710121314[[#This Row],[ID]],Pantomime!A:F,6,FALSE) -> 0 | C81: =Pantomime!U71 -> 0 | D81: =Pantomime!S71 -> 0 | E81: =IF((Table710121314[[#This Row],[Rank]]+Table710121314[[#This Row],[Score]])>0,1,0) -> 0 | L81: =SUM(F81,H81,J81) -> 0 | M81: =SUM(G81,I81,K81) -> 0
A82: =Pantomime!A72 -> P-504 | B82: =VLOOKUP(Table710121314[[#This Row],[ID]],Pantomime!A:F,6,FALSE) -> 0 | C82: =Pantomime!U72 -> 0 | D82: =Pantomime!S72 -> 0 | E82: =IF((Table710121314[[#This Row],[Rank]]+Table710121314[[#This Row],[Score]])>0,1,0) -> 0 | L82: =SUM(F82,H82,J82) -> 0 | M82: =SUM(G82,I82,K82) -> 0
A83: =Pantomime!A74 -> Q-501 | B83: =VLOOKUP(Table710121314[[#This Row],[ID]],Pantomime!A:F,6,FALSE) -> 0 | C83: =Pantomime!U74 -> 0 | D83: =Pantomime!S74 -> 0 | E83: =IF((Table710121314[[#This Row],[Rank]]+Table710121314[[#This Row],[Score]])>0,1,0) -> 0 | L83: =SUM(F83,H83,J83) -> 0 | M83: =SUM(G83,I83,K83) -> 0
A84: =Pantomime!A75 -> Q-502 | B84: =VLOOKUP(Table710121314[[#This Row],[ID]],Pantomime!A:F,6,FALSE) -> 0 | C84: =Pantomime!U75 -> 0 | D84: =Pantomime!S75 -> 0 | E84: =IF((Table710121314[[#This Row],[Rank]]+Table710121314[[#This Row],[Score]])>0,1,0) -> 0 | L84: =SUM(F84,H84,J84) -> 0 | M84: =SUM(G84,I84,K84) -> 0
A85: =Pantomime!A76 -> Q-502 | B85: =VLOOKUP(Table710121314[[#This Row],[ID]],Pantomime!A:F,6,FALSE) -> 0 | C85: =Pantomime!U76 -> 0 | D85: =Pantomime!S76 -> 0 | E85: =IF((Table710121314[[#This Row],[Rank]]+Table710121314[[#This Row],[Score]])>0,1,0) -> 0 | L85: =SUM(F85,H85,J85) -> 0 | M85: =SUM(G85,I85,K85) -> 0
A86: =Pantomime!A77 -> Q-504 | B86: =VLOOKUP(Table710121314[[#This Row],[ID]],Pantomime!A:F,6,FALSE) -> 0 | C86: =Pantomime!U77 -> 0 | D86: =Pantomime!S77 -> 0 | E86: =IF((Table710121314[[#This Row],[Rank]]+Table710121314[[#This Row],[Score]])>0,1,0) -> 0 | L86: =SUM(F86,H86,J86) -> 0 | M86: =SUM(G86,I86,K86) -> 0
A87: =Pantomime!A79 -> R-501 | B87: =VLOOKUP(Table710121314[[#This Row],[ID]],Pantomime!A:F,6,FALSE) -> 0 | C87: =Pantomime!U79 -> 0 | D87: =Pantomime!S79 -> 0 | E87: =IF((Table710121314[[#This Row],[Rank]]+Table710121314[[#This Row],[Score]])>0,1,0) -> 0 | L87: =SUM(F87,H87,J87) -> 0 | M87: =SUM(G87,I87,K87) -> 0
A88: =Pantomime!A80 -> R-502 | B88: =VLOOKUP(Table710121314[[#This Row],[ID]],Pantomime!A:F,6,FALSE) -> 0 | C88: =Pantomime!U80 -> 0 | D88: =Pantomime!S80 -> 0 | E88: =IF((Table710121314[[#This Row],[Rank]]+Table710121314[[#This Row],[Score]])>0,1,0) -> 0 | L88: =SUM(F88,H88,J88) -> 0 | M88: =SUM(G88,I88,K88) -> 0
A89: =Pantomime!A81 -> R-503 | B89: =VLOOKUP(Table710121314[[#This Row],[ID]],Pantomime!A:F,6,FALSE) -> 0 | C89: =Pantomime!U81 -> 0 | D89: =Pantomime!S81 -> 0 | E89: =IF((Table710121314[[#This Row],[Rank]]+Table710121314[[#This Row],[Score]])>0,1,0) -> 0 | L89: =SUM(F89,H89,J89) -> 0 | M89: =SUM(G89,I89,K89) -> 0
A90: =Pantomime!A82 -> R-504 | B90: =VLOOKUP(Table710121314[[#This Row],[ID]],Pantomime!A:F,6,FALSE) -> 0 | C90: =Pantomime!U82 -> 0 | D90: =Pantomime!S82 -> 0 | E90: =IF((Table710121314[[#This Row],[Rank]]+Table710121314[[#This Row],[Score]])>0,1,0) -> 0 | L90: =SUM(F90,H90,J90) -> 0 | M90: =SUM(G90,I90,K90) -> 0
A91: =Pantomime!A84 -> S-501 | B91: =VLOOKUP(Table710121314[[#This Row],[ID]],Pantomime!A:F,6,FALSE) -> 0 | C91: =Pantomime!U84 -> 0 | D91: =Pantomime!S84 -> 0 | E91: =IF((Table710121314[[#This Row],[Rank]]+Table710121314[[#This Row],[Score]])>0,1,0) -> 0 | L91: =SUM(F91,H91,J91) -> 0 | M91: =SUM(G91,I91,K91) -> 0
A92: =Pantomime!A85 -> S-502 | B92: =VLOOKUP(Table710121314[[#This Row],[ID]],Pantomime!A:F,6,FALSE) -> 0 | C92: =Pantomime!U85 -> 0 | D92: =Pantomime!S85 -> 0 | E92: =IF((Table710121314[[#This Row],[Rank]]+Table710121314[[#This Row],[Score]])>0,1,0) -> 0 | L92: =SUM(F92,H92,J92) -> 0 | M92: =SUM(G92,I92,K92) -> 0
A93: =Pantomime!A86 -> S-503 | B93: =VLOOKUP(Table710121314[[#This Row],[ID]],Pantomime!A:F,6,FALSE) -> 0 | C93: =Pantomime!U86 -> 0 | D93: =Pantomime!S86 -> 0 | E93: =IF((Table710121314[[#This Row],[Rank]]+Table710121314[[#This Row],[Score]])>0,1,0) -> 0 | L93: =SUM(F93,H93,J93) -> 0 | M93: =SUM(G93,I93,K93) -> 0
A94: =Pantomime!A87 -> S-504 | B94: =VLOOKUP(Table710121314[[#This Row],[ID]],Pantomime!A:F,6,FALSE) -> 0 | C94: =Pantomime!U87 -> 0 | D94: =Pantomime!S87 -> 0 | E94: =IF((Table710121314[[#This Row],[Rank]]+Table710121314[[#This Row],[Score]])>0,1,0) -> 0 | L94: =SUM(F94,H94,J94) -> 0 | M94: =SUM(G94,I94,K94) -> 0
A95: =Pantomime!A89 -> T-501 | B95: =VLOOKUP(Table710121314[[#This Row],[ID]],Pantomime!A:F,6,FALSE) -> 0 | C95: =Pantomime!U89 -> 0 | D95: =Pantomime!S89 -> 0 | E95: =IF((Table710121314[[#This Row],[Rank]]+Table710121314[[#This Row],[Score]])>0,1,0) -> 0 | L95: =SUM(F95,H95,J95) -> 0 | M95: =SUM(G95,I95,K95) -> 0
A96: =Pantomime!A90 -> T-502 | B96: =VLOOKUP(Table710121314[[#This Row],[ID]],Pantomime!A:F,6,FALSE) -> 0 | C96: =Pantomime!U90 -> 0 | D96: =Pantomime!S90 -> 0 | E96: =IF((Table710121314[[#This Row],[Rank]]+Table710121314[[#This Row],[Score]])>0,1,0) -> 0 | L96: =SUM(F96,H96,J96) -> 0 | M96: =SUM(G96,I96,K96) -> 0
A97: =Pantomime!A91 -> T-503 | B97: =VLOOKUP(Table710121314[[#This Row],[ID]],Pantomime!A:F,6,FALSE) -> 0 | C97: =Pantomime!U91 -> 0 | D97: =Pantomime!S91 -> 0 | E97: =IF((Table710121314[[#This Row],[Rank]]+Table710121314[[#This Row],[Score]])>0,1,0) -> 0 | L97: =SUM(F97,H97,J97) -> 0 | M97: =SUM(G97,I97,K97) -> 0
A98: =Pantomime!A92 -> T-504 | B98: =VLOOKUP(Table710121314[[#This Row],[ID]],Pantomime!A:F,6,FALSE) -> 0 | C98: =Pantomime!U92 -> 0 | D98: =Pantomime!S92 -> 0 | E98: =IF((Table710121314[[#This Row],[Rank]]+Table710121314[[#This Row],[Score]])>0,1,0) -> 0 | L98: =SUM(F98,H98,J98) -> 0 | M98: =SUM(G98,I98,K98) -> 0
A99: =Pantomime!A94 -> U-501 | B99: =VLOOKUP(Table710121314[[#This Row],[ID]],Pantomime!A:F,6,FALSE) -> 0 | C99: =Pantomime!U94 -> 0 | D99: =Pantomime!S94 -> 0 | E99: =IF((Table710121314[[#This Row],[Rank]]+Table710121314[[#This Row],[Score]])>0,1,0) -> 0 | L99: =SUM(F99,H99,J99) -> 0 | M99: =SUM(G99,I99,K99) -> 0
A100: =Pantomime!A95 -> U-502 | B100: =VLOOKUP(Table710121314[[#This Row],[ID]],Pantomime!A:F,6,FALSE) -> 0 | C100: =Pantomime!U95 -> 0 | D100: =Pantomime!S95 -> 0 | E100: =IF((Table710121314[[#This Row],[Rank]]+Table710121314[[#This Row],[Score]])>0,1,0) -> 0 | L100: =SUM(F100,H100,J100) -> 0 | M100: =SUM(G100,I100,K100) -> 0
A101: =Pantomime!A96 -> U-503 | B101: =VLOOKUP(Table710121314[[#This Row],[ID]],Pantomime!A:F,6,FALSE) -> 0 | C101: =Pantomime!U96 -> 0 | D101: =Pantomime!S96 -> 0 | E101: =IF((Table710121314[[#This Row],[Rank]]+Table710121314[[#This Row],[Score]])>0,1,0) -> 0 | L101: =SUM(F101,H101,J101) -> 0 | M101: =SUM(G101,I101,K101) -> 0
A102: =Pantomime!A97 -> U-504 | B102: =VLOOKUP(Table710121314[[#This Row],[ID]],Pantomime!A:F,6,FALSE) -> 0 | C102: =Pantomime!U97 -> 0 | D102: =Pantomime!S97 -> 0 | E102: =IF((Table710121314[[#This Row],[Rank]]+Table710121314[[#This Row],[Score]])>0,1,0) -> 0 | L102: =SUM(F102,H102,J102) -> 0 | M102: =SUM(G102,I102,K102) -> 0
A103: =Pantomime!A99 -> V-501 | B103: =VLOOKUP(Table710121314[[#This Row],[ID]],Pantomime!A:F,6,FALSE) -> 0 | C103: =Pantomime!U99 -> 0 | D103: =Pantomime!S99 -> 0 | E103: =IF((Table710121314[[#This Row],[Rank]]+Table710121314[[#This Row],[Score]])>0,1,0) -> 0 | L103: =SUM(F103,H103,J103) -> 0 | M103: =SUM(G103,I103,K103) -> 0
A104: =Pantomime!A100 -> V-502 | B104: =VLOOKUP(Table710121314[[#This Row],[ID]],Pantomime!A:F,6,FALSE) -> 0 | C104: =Pantomime!U100 -> 0 | D104: =Pantomime!S100 -> 0 | E104: =IF((Table710121314[[#This Row],[Rank]]+Table710121314[[#This Row],[Score]])>0,1,0) -> 0 | L104: =SUM(F104,H104,J104) -> 0 | M104: =SUM(G104,I104,K104) -> 0
A105: =Pantomime!A101 -> V-503 | B105: =VLOOKUP(Table710121314[[#This Row],[ID]],Pantomime!A:F,6,FALSE) -> 0 | C105: =Pantomime!U101 -> 0 | D105: =Pantomime!S101 -> 0 | E105: =IF((Table710121314[[#This Row],[Rank]]+Table710121314[[#This Row],[Score]])>0,1,0) -> 0 | L105: =SUM(F105,H105,J105) -> 0 | M105: =SUM(G105,I105,K105) -> 0
A106: =Pantomime!A102 -> V-504 | B106: =VLOOKUP(Table710121314[[#This Row],[ID]],Pantomime!A:F,6,FALSE) -> 0 | C106: =Pantomime!U102 -> 0 | D106: =Pantomime!S102 -> 0 | E106: =IF((Table710121314[[#This Row],[Rank]]+Table710121314[[#This Row],[Score]])>0,1,0) -> 0 | L106: =SUM(F106,H106,J106) -> 0 | M106: =SUM(G106,I106,K106) -> 0
A107: =Pantomime!A104 -> W-501 | B107: =VLOOKUP(Table710121314[[#This Row],[ID]],Pantomime!A:F,6,FALSE) -> 0 | C107: =Pantomime!U104 -> 0 | D107: =Pantomime!S104 -> 0 | E107: =IF((Table710121314[[#This Row],[Rank]]+Table710121314[[#This Row],[Score]])>0,1,0) -> 0 | L107: =SUM(F107,H107,J107) -> 0 | M107: =SUM(G107,I107,K107) -> 0
A108: =Pantomime!A105 -> W-502 | B108: =VLOOKUP(Table710121314[[#This Row],[ID]],Pantomime!A:F,6,FALSE) -> 0 | C108: =Pantomime!U105 -> 0 | D108: =Pantomime!S105 -> 0 | E108: =IF((Table710121314[[#This Row],[Rank]]+Table710121314[[#This Row],[Score]])>0,1,0) -> 0 | L108: =SUM(F108,H108,J108) -> 0 | M108: =SUM(G108,I108,K108) -> 0
A109: =Pantomime!A106 -> W-503 | B109: =VLOOKUP(Table710121314[[#This Row],[ID]],Pantomime!A:F,6,FALSE) -> 0 | C109: =Pantomime!U106 -> 0 | D109: =Pantomime!S106 -> 0 | E109: =IF((Table710121314[[#This Row],[Rank]]+Table710121314[[#This Row],[Score]])>0,1,0) -> 0 | L109: =SUM(F109,H109,J109) -> 0 | M109: =SUM(G109,I109,K109) -> 0
A110: =Pantomime!A107 -> W-504 | B110: =VLOOKUP(Table710121314[[#This Row],[ID]],Pantomime!A:F,6,FALSE) -> 0 | C110: =Pantomime!U107 -> 0 | D110: =Pantomime!S107 -> 0 | E110: =IF((Table710121314[[#This Row],[Rank]]+Table710121314[[#This Row],[Score]])>0,1,0) -> 0 | L110: =SUM(F110,H110,J110) -> 0 | M110: =SUM(G110,I110,K110) -> 0
A111: =Pantomime!A109 -> X-501 | B111: =VLOOKUP(Table710121314[[#This Row],[ID]],Pantomime!A:F,6,FALSE) -> 0 | C111: =Pantomime!U109 -> 0 | D111: =Pantomime!S109 -> 0 | E111: =IF((Table710121314[[#This Row],[Rank]]+Table710121314[[#This Row],[Score]])>0,1,0) -> 0 | L111: =SUM(F111,H111,J111) -> 0 | M111: =SUM(G111,I111,K111) -> 0
A112: =Pantomime!A110 -> X-502 | B112: =VLOOKUP(Table710121314[[#This Row],[ID]],Pantomime!A:F,6,FALSE) -> 0 | C112: =Pantomime!U110 -> 0 | D112: =Pantomime!S110 -> 0 | E112: =IF((Table710121314[[#This Row],[Rank]]+Table710121314[[#This Row],[Score]])>0,1,0) -> 0 | L112: =SUM(F112,H112,J112) -> 0 | M112: =SUM(G112,I112,K112) -> 0
A113: =Pantomime!A111 -> X-503 | B113: =VLOOKUP(Table710121314[[#This Row],[ID]],Pantomime!A:F,6,FALSE) -> 0 | C113: =Pantomime!U111 -> 0 | D113: =Pantomime!S111 -> 0 | E113: =IF((Table710121314[[#This Row],[Rank]]+Table710121314[[#This Row],[Score]])>0,1,0) -> 0 | L113: =SUM(F113,H113,J113) -> 0 | M113: =SUM(G113,I113,K113) -> 0
A114: =Pantomime!A112 -> X-504 | B114: =VLOOKUP(Table710121314[[#This Row],[ID]],Pantomime!A:F,6,FALSE) -> 0 | C114: =Pantomime!U112 -> 0 | D114: =Pantomime!S112 -> 0 | E114: =IF((Table710121314[[#This Row],[Rank]]+Table710121314[[#This Row],[Score]])>0,1,0) -> 0 | L114: =SUM(F114,H114,J114) -> 0 | M114: =SUM(G114,I114,K114) -> 0
A115: =Pantomime!A114 -> Y-501 | B115: =VLOOKUP(Table710121314[[#This Row],[ID]],Pantomime!A:F,6,FALSE) -> 0 | C115: =Pantomime!U114 -> 0 | D115: =Pantomime!S114 -> 0 | E115: =IF((Table710121314[[#This Row],[Rank]]+Table710121314[[#This Row],[Score]])>0,1,0) -> 0 | L115: =SUM(F115,H115,J115) -> 0 | M115: =SUM(G115,I115,K115) -> 0
A116: =Pantomime!A115 -> Y-502 | B116: =VLOOKUP(Table710121314[[#This Row],[ID]],Pantomime!A:F,6,FALSE) -> 0 | C116: =Pantomime!U115 -> 0 | D116: =Pantomime!S115 -> 0 | E116: =IF((Table710121314[[#This Row],[Rank]]+Table710121314[[#This Row],[Score]])>0,1,0) -> 0 | L116: =SUM(F116,H116,J116) -> 0 | M116: =SUM(G116,I116,K116) -> 0
A117: =Pantomime!A116 -> Y-503 | B117: =VLOOKUP(Table710121314[[#This Row],[ID]],Pantomime!A:F,6,FALSE) -> 0 | C117: =Pantomime!U116 -> 0 | D117: =Pantomime!S116 -> 0 | E117: =IF((Table710121314[[#This Row],[Rank]]+Table710121314[[#This Row],[Score]])>0,1,0) -> 0 | L117: =SUM(F117,H117,J117) -> 0 | M117: =SUM(G117,I117,K117) -> 0
A118: =Pantomime!A117 -> Y-504 | B118: =VLOOKUP(Table710121314[[#This Row],[ID]],Pantomime!A:F,6,FALSE) -> 0 | C118: =Pantomime!U117 -> 0 | D118: =Pantomime!S117 -> 0 | E118: =IF((Table710121314[[#This Row],[Rank]]+Table710121314[[#This Row],[Score]])>0,1,0) -> 0 | L118: =SUM(F118,H118,J118) -> 0 | M118: =SUM(G118,I118,K118) -> 0
A119: =Pantomime!A119 -> Z-501 | B119: =VLOOKUP(Table710121314[[#This Row],[ID]],Pantomime!A:F,6,FALSE) -> 0 | C119: =Pantomime!U119 -> 0 | D119: =Pantomime!S119 -> 0 | E119: =IF((Table710121314[[#This Row],[Rank]]+Table710121314[[#This Row],[Score]])>0,1,0) -> 0 | L119: =SUM(F119,H119,J119) -> 0 | M119: =SUM(G119,I119,K119) -> 0
A120: =Pantomime!A120 -> Z-502 | B120: =VLOOKUP(Table710121314[[#This Row],[ID]],Pantomime!A:F,6,FALSE) -> 0 | C120: =Pantomime!U120 -> 0 | D120: =Pantomime!S120 -> 0 | E120: =IF((Table710121314[[#This Row],[Rank]]+Table710121314[[#This Row],[Score]])>0,1,0) -> 0 | L120: =SUM(F120,H120,J120) -> 0 | M120: =SUM(G120,I120,K120) -> 0
A121: =Pantomime!A121 -> Z-503 | B121: =VLOOKUP(Table710121314[[#This Row],[ID]],Pantomime!A:F,6,FALSE) -> 0 | C121: =Pantomime!U121 -> 0 | D121: =Pantomime!S121 -> 0 | E121: =IF((Table710121314[[#This Row],[Rank]]+Table710121314[[#This Row],[Score]])>0,1,0) -> 0 | L121: =SUM(F121,H121,J121) -> 0 | M121: =SUM(G121,I121,K121) -> 0
A122: =Pantomime!A122 -> Z-504 | B122: =VLOOKUP(Table710121314[[#This Row],[ID]],Pantomime!A:F,6,FALSE) -> 0 | C122: =Pantomime!U122 -> 0 | D122: =Pantomime!S122 -> 0 | E122: =IF((Table710121314[[#This Row],[Rank]]+Table710121314[[#This Row],[Score]])>0,1,0) -> 0 | L122: =SUM(F122,H122,J122) -> 0 | M122: =SUM(G122,I122,K122) -> 0

Sheet MusicalTheatre
A1: Musical Theatre | K1: Rank 1-4 | X1: S | Y1: E | Z1: G | AA1: F | AC1: 1violation | AD1: 2violations | AE1: 3violations
K2: Round 1: | M2: Round 2: | O2: Round 3: | Q2: -2 for each | AB2: Drops lowest from column q
B3: Student Name | D3: Student Name | F3: Student Name | H3: Student Name | J3: Title of Piece | K3: R1 rank | L3: R1 score | M3: R2 rank | N3: R2 score | O3: R3 rank | P3: R3 score | Q3: Time Violations | S3: TOTAL SCORE | U3: TOTAL RANK | X3: TOTAL SCHOOL SWEEPS POINTS | AB3: Drop Lowest
A4: A-601 | B4: (711) Mary C. | J4: "When He Sees Me" | K4: 2 | L4: 25 | M4: 2 | N4: 25 | O4: 3 | P4: 20 | R4: =IF(Q4="1violation",-7*1,IF(Q4="2violations",-7*2,IF(Q4="3violations",-7*3,IF(Q4="","")))) ->  | S4: =SUM(L4,N4,P4,R4) -> 70 | U4: =SUM(K4,M4,O4) -> 7 | Y4: =SUM(S4,S6,S5,S7,-AB4) -> 200 | AB4: =MIN(S4:S7) -> 0
A5: A-602 | B5: (712) Marcus P. | J5: "Where is Love" | K5: 2 | L5: 24 | M5: 1 | N5: 23 | O5: 4 | P5: 21 | R5: =IF(Q5="1violation",-7*1,IF(Q5="2violations",-7*2,IF(Q5="3violations",-7*3,IF(Q5="","")))) ->  | S5: =SUM(L5,N5,P5,R5) -> 68 | U5: =SUM(K5,M5,O5) -> 7
A6: A-603 | B6: (713) Sarah B. | J6: "Always the Bridesmaid" | K6: 3 | L6: 22 | M6: 4 | N6: 17 | O6: 4 | P6: 23 | S6: =SUM(L6,N6,P6,R6) -> 62 | U6: =SUM(K6,M6,O6) -> 11
A7: A-604 | S7: =SUM(L7,N7,P7,R7) -> 0 | U7: =SUM(K7,M7,O7) -> 0
A9: B-601 | B9: (700) Courtney Houston | J9: "With You" | K9: 1 | L9: 25 | M9: 3 | N9: 18 | O9: 1 | P9: 25 | S9: =SUM(L9,N9,P9,R9) -> 68 | U9: =SUM(K9,M9,O9) -> 5 | Y9: =SUM(S9,S11,S10,S12,-AB9) -> 212 | AB9: =MIN(S9:S12) -> 66
A10: B-602 | B10: (701) Chynna Anderson | D10: Ella Hughes | J10: "Watch What Happens" | K10: 4 | L10: 20 | M10: 4 | N10: 23 | O10: 4 | P10: 23 | S10: =SUM(L10,N10,P10,R10) -> 66 | U10: =SUM(K10,M10,O10) -> 12
A11: B-603 | B11: (702) Jaren Henrie | D11: Gabe Sarles | J11: "Dear Theadosa" | K11: 1 | L11: 23 | M11: 2 | N11: 22 | O11: 3 | P11: 24 | S11: =SUM(L11,N11,P11,R11) -> 69 | U11: =SUM(K11,M11,O11) -> 6
A12: B-604 | B12: (703) Kam Petsche | J12: "Confrontation" | K12: 1 | L12: 25 | M12: 1 | N12: 25 | O12: 1 | P12: 25 | S12: =SUM(L12,N12,P12,R12) -> 75 | U12: =SUM(K12,M12,O12) -> 3
A14: C-601 | B14: (707) Brooklyn Clark | D14: Katie Wilson | J14: "End of the Line" | K14: 4 | L14: 23 | M14: 3 | N14: 19 | O14: 3 | P14: 23 | S14: =SUM(L14,N14,P14,R14) -> 65 | U14: =SUM(K14,M14,O14) -> 10 | Y14: =SUM(S14,S16,S15,S17,-AB14) -> 196 | AB14: =MIN(S14:S17) -> 0
A15: C-602 | B15: (708) Jackie Leavitt | J15: "Little Girls" | K15: 2 | L15: 23 | M15: 3 | N15: 24 | O15: 4 | P15: 20 | S15: =SUM(L15,N15,P15,R15) -> 67 | U15: =SUM(K15,M15,O15) -> 9
A16: C-603 | B16: (709) C.J. Torgerson | J16: "Being Alive" | S16: =SUM(L16,N16,P16,R16) -> 0 | U16: =SUM(K16,M16,O16) -> 0
A17: C-604 | B17: (710) Kassen Pace | J17: "Dead Mom" | K17: 4 | L17: 22 | M17: 4 | N17: 18 | O17: 2 | P17: 24 | S17: =SUM(L17,N17,P17,R17) -> 64 | U17: =SUM(K17,M17,O17) -> 10
A19: D-601 | B19: (706) Melinda Grimstead | J19: "When He Sees Me" | K19: 4 | L19: 22 | M19: 4 | N19: 18 | O19: 2 | P19: 21 | S19: =SUM(L19,N19,P19,R19) -> 61 | U19: =SUM(K19,M19,O19) -> 10 | Y19: =SUM(S19,S21,S20,S22,-AB19) -> 194 | AB19: =MIN(S19:S22) -> 0
A20: D-602 | B20: (714) Eloisa Thornock | J20: "Worst Thing I Could Do" | K20: 4 | L20: 19 | M20: 4 | N20: 19 | O20: 4 | P20: 21 | S20: =SUM(L20,N20,P20,R20) -> 59 | U20: =SUM(K20,M20,O20) -> 12
A21: D-603 | B21: (716) Mary Anderson | J21: "My Grand Plan" | K21: 3 | L21: 25 | M21: 1 | N21: 24 | O21: 1 | P21: 25 | S21: =SUM(L21,N21,P21,R21) -> 74 | U21: =SUM(K21,M21,O21) -> 5
A22: D-604 | S22: =SUM(L22,N22,P22,R22) -> 0 | U22: =SUM(K22,M22,O22) -> 0
A24: E-601 | B24: (704) Alex Osterhout | J24: "Farquaad" | K24: 4 | L24: 21 | M24: 2 | N24: 19 | O24: 4 | P24: 18 | S24: =SUM(L24,N24,P24,R24) -> 58 | U24: =SUM(K24,M24,O24) -> 10 | Y24: =SUM(S24,S26,S25,S27,-AB24) -> 125 | AB24: =MIN(S24:S27) -> 0
A25: E-602 | B25: (705) Hazel Harris | J25: "Little Girls" | K25: 3 | L25: 23 | M25: 4 | N25: 19 | O25: 2 | P25: 25 | S25: =SUM(L25,N25,P25,R25) -> 67 | U25: =SUM(K25,M25,O25) -> 9
A26: E-603 | S26: =SUM(L26,N26,P26,R26) -> 0 | U26: =SUM(K26,M26,O26) -> 0
A27: E-604 | S27: =SUM(L27,N27,P27,R27) -> 0 | U27: =SUM(K27,M27,O27) -> 0
A29: F-601 | S29: =SUM(L29,N29,P29,R29) -> 0 | U29: =SUM(K29,M29,O29) -> 0 | Y29: =SUM(S29,S31,S30,S32,-AB29) -> 0 | AB29: =MIN(S29:S32) -> 0
A30: F-602 | S30: =SUM(L30,N30,P30,R30) -> 0 | U30: =SUM(K30,M30,O30) -> 0
A31: F-603 | S31: =SUM(L31,N31,P31,R31) -> 0 | U31: =SUM(K31,M31,O31) -> 0
A32: F-604 | S32: =SUM(L32,N32,P32,R32) -> 0 | U32: =SUM(K32,M32,O32) -> 0
A34: G-601 | S34: =SUM(L34,N34,P34,R34) -> 0 | U34: =SUM(K34,M34,O34) -> 0 | Y34: =SUM(S34,S36,S35,S37,-AB34) -> 0 | AB34: =MIN(S34:S37) -> 0
A35: G-602 | S35: =SUM(L35,N35,P35,R35) -> 0 | U35: =SUM(K35,M35,O35) -> 0
A36: G-603 | S36: =SUM(L36,N36,P36,R36) -> 0 | U36: =SUM(K36,M36,O36) -> 0
A37: G-604 | S37: =SUM(L37,N37,P37,R37) -> 0 | U37: =SUM(K37,M37,O37) -> 0
A39: H-601 | B39: (715) Yudnely Avelar | J39: "Someone Like You" | K39: 4 | L39: 22 | M39: 4 | N39: 18 | O39: 4 | P39: 24 | S39: =SUM(L39,N39,P39,R39) -> 64 | U39: =SUM(K39,M39,O39) -> 12 | Y39: =SUM(S39,S41,S40,S42,-AB39) -> 64 | AB39: =MIN(S39:S42) -> 0
A40: H-602 | S40: =SUM(L40,N40,P40,R40) -> 0 | U40: =SUM(K40,M40,O40) -> 0
A41: H-603 | S41: =SUM(L41,N41,P41,R41) -> 0 | U41: =SUM(K41,M41,O41) -> 0
A42: H-604 | S42: =SUM(L42,N42,P42,R42) -> 0 | U42: =SUM(K42,M42,O42) -> 0
A44: J-601 | S44: =SUM(L44,N44,P44,R44) -> 0 | U44: =SUM(K44,M44,O44) -> 0 | Y44: =SUM(S44,S46,S45,S47,-AB44) -> 0 | AB44: =MIN(S44:S47) -> 0
A45: J-602 | S45: =SUM(L45,N45,P45,R45) -> 0 | U45: =SUM(K45,M45,O45) -> 0
A46: J-603 | S46: =SUM(L46,N46,P46,R46) -> 0 | U46: =SUM(K46,M46,O46) -> 0
A47: J-604 | S47: =SUM(L47,N47,P47,R47) -> 0 | U47: =SUM(K47,M47,O47) -> 0
A49: K-601 | S49: =SUM(L49,N49,P49,R49) -> 0 | U49: =SUM(K49,M49,O49) -> 0 | Y49: =SUM(S49,S51,S50,S52,-AB49) -> 0 | AB49: =MIN(S49:S52) -> 0
A50: K-602 | S50: =SUM(L50,N50,P50,R50) -> 0 | U50: =SUM(K50,M50,O50) -> 0
A51: K-603 | S51: =SUM(L51,N51,P51,R51) -> 0 | U51: =SUM(K51,M51,O51) -> 0
A52: K-604 | S52: =SUM(L52,N52,P52,R52) -> 0 | U52: =SUM(K52,M52,O52) -> 0
A54: L-601 | S54: =SUM(L54,N54,P54,R54) -> 0 | U54: =SUM(K54,M54,O54) -> 0 | Y54: =SUM(S54,S56,S55,S57,-AB54) -> 0 | AB54: =MIN(S54:S57) -> 0
A55: L-602 | S55: =SUM(L55,N55,P55,R55) -> 0 | U55: =SUM(K55,M55,O55) -> 0
A56: L-603 | S56: =SUM(L56,N56,P56,R56) -> 0 | U56: =SUM(K56,M56,O56) -> 0
A57: L-604 | S57: =SUM(L57,N57,P57,R57) -> 0 | U57: =SUM(K57,M57,O57) -> 0
A59: M-601 | S59: =SUM(L59,N59,P59,R59) -> 0 | U59: =SUM(K59,M59,O59) -> 0 | Y59: =SUM(S59,S61,S60,S62,-AB59) -> 0 | AB59: =MIN(S59:S62) -> 0
A60: M-602 | S60: =SUM(L60,N60,P60,R60) -> 0 | U60: =SUM(K60,M60,O60) -> 0
A61: M-603 | S61: =SUM(L61,N61,P61,R61) -> 0 | U61: =SUM(K61,M61,O61) -> 0
A62: M-604 | S62: =SUM(L62,N62,P62,R62) -> 0 | U62: =SUM(K62,M62,O62) -> 0
A64: N-601 | S64: =SUM(L64,N64,P64,R64) -> 0 | U64: =SUM(K64,M64,O64) -> 0 | Y64: =SUM(S64,S66,S65,S67,-AB64) -> 0 | AB64: =MIN(S64:S67) -> 0
A65: N-602 | S65: =SUM(L65,N65,P65,R65) -> 0 | U65: =SUM(K65,M65,O65) -> 0
A66: N-603 | S66: =SUM(L66,N66,P66,R66) -> 0 | U66: =SUM(K66,M66,O66) -> 0
A67: N-604 | S67: =SUM(L67,N67,P67,R67) -> 0 | U67: =SUM(K67,M67,O67) -> 0
A69: P-601 | R69: =IF(Q69="1violation",-7*1,IF(Q69="2violations",-7*2,IF(Q69="3violations",-7*3,IF(Q69="","")))) ->  | S69: =SUM(L69,N69,P69,R69) -> 0 | U69: =SUM(K69,M69,O69) -> 0 | Y69: =SUM(S69,S71,S70,S72,-AB69) -> 0 | AB69: =MIN(S69:S72) -> 0
A70: P-602 | S70: =SUM(L70,N70,P70,R70) -> 0 | U70: =SUM(K70,M70,O70) -> 0
A71: P-603 | S71: =SUM(L71,N71,P71,R71) -> 0 | U71: =SUM(K71,M71,O71) -> 0
A72: P-604 | S72: =SUM(L72,N72,P72,R72) -> 0 | U72: =SUM(K72,M72,O72) -> 0
A74: Q-601 | S74: =SUM(L74,N74,P74,R74) -> 0 | U74: =SUM(K74,M74,O74) -> 0 | Y74: =SUM(S74,S76,S75,S77,-AB74) -> 0 | AB74: =MIN(S74:S77) -> 0
A75: Q-602 | S75: =SUM(L75,N75,P75,R75) -> 0 | U75: =SUM(K75,M75,O75) -> 0
A76: Q-603 | S76: =SUM(L76,N76,P76,R76) -> 0 | U76: =SUM(K76,M76,O76) -> 0
A77: Q-604 | S77: =SUM(L77,N77,P77,R77) -> 0 | U77: =SUM(K77,M77,O77) -> 0
A79: R-601 | S79: =SUM(L79,N79,P79,R79) -> 0 | U79: =SUM(K79,M79,O79) -> 0 | Y79: =SUM(S79,S81,S80,S82,-AB79) -> 0 | AB79: =MIN(S79:S82) -> 0
A80: R-602 | S80: =SUM(L80,N80,P80,R80) -> 0 | U80: =SUM(K80,M80,O80) -> 0
A81: R-603 | S81: =SUM(L81,N81,P81,R81) -> 0 | U81: =SUM(K81,M81,O81) -> 0
A82: R-604 | S82: =SUM(L82,N82,P82,R82) -> 0 | U82: =SUM(K82,M82,O82) -> 0
A84: S-601 | S84: =SUM(L84,N84,P84,R84) -> 0 | U84: =SUM(K84,M84,O84) -> 0 | Y84: =SUM(S84,S86,S85,S87,-AB84) -> 0 | AB84: =MIN(S84:S87) -> 0
A85: S-602 | S85: =SUM(L85,N85,P85,R85) -> 0 | U85: =SUM(K85,M85,O85) -> 0
A86: S-603 | S86: =SUM(L86,N86,P86,R86) -> 0 | U86: =SUM(K86,M86,O86) -> 0
A87: S-604 | S87: =SUM(L87,N87,P87,R87) -> 0 | U87: =SUM(K87,M87,O87) -> 0
A89: T-601 | S89: =SUM(L89,N89,P89,R89) -> 0 | U89: =SUM(K89,M89,O89) -> 0 | Y89: =SUM(S89,S91,S90,S92,-AB89) -> 0 | AB89: =MIN(S89:S92) -> 0
A90: T-602 | S90: =SUM(L90,N90,P90,R90) -> 0 | U90: =SUM(K90,M90,O90) -> 0
A91: T-603 | S91: =SUM(L91,N91,P91,R91) -> 0 | U91: =SUM(K91,M91,O91) -> 0
A92: T-604 | S92: =SUM(L92,N92,P92,R92) -> 0 | U92: =SUM(K92,M92,O92) -> 0
A94: U-601 | S94: =SUM(L94,N94,P94,R94) -> 0 | U94: =SUM(K94,M94,O94) -> 0 | Y94: =SUM(S94,S96,S95,S97,-AB94) -> 0 | AB94: =MIN(S94:S97) -> 0
A95: U-602 | S95: =SUM(L95,N95,P95,R95) -> 0 | U95: =SUM(K95,M95,O95) -> 0
A96: U-603 | S96: =SUM(L96,N96,P96,R96) -> 0 | U96: =SUM(K96,M96,O96) -> 0
A97: U-604 | S97: =SUM(L97,N97,P97,R97) -> 0 | U97: =SUM(K97,M97,O97) -> 0
A99: V-601 | S99: =SUM(L99,N99,P99,R99) -> 0 | U99: =SUM(K99,M99,O99) -> 0 | Y99: =SUM(S99,S101,S100,S102,-AB99) -> 0 | AB99: =MIN(S99:S102) -> 0
A100: V-602 | S100: =SUM(L100,N100,P100,R100) -> 0 | U100: =SUM(K100,M100,O100) -> 0
A101: V-603 | S101: =SUM(L101,N101,P101,R101) -> 0 | U101: =SUM(K101,M101,O101) -> 0
A102: V-604 | S102: =SUM(L102,N102,P102,R102) -> 0 | U102: =SUM(K102,M102,O102) -> 0
A104: W-601 | S104: =SUM(L104,N104,P104,R104) -> 0 | U104: =SUM(K104,M104,O104) -> 0 | Y104: =SUM(S104,S106,S105,S107,-AB104) -> 0 | AB104: =MIN(S104:S107) -> 0
A105: W-602 | S105: =SUM(L105,N105,P105,R105) -> 0 | U105: =SUM(K105,M105,O105) -> 0
A106: W-603 | S106: =SUM(L106,N106,P106,R106) -> 0 | U106: =SUM(K106,M106,O106) -> 0
A107: W-604 | S107: =SUM(L107,N107,P107,R107) -> 0 | U107: =SUM(K107,M107,O107) -> 0
A109: X-601 | S109: =SUM(L109,N109,P109,R109) -> 0 | U109: =SUM(K109,M109,O109) -> 0 | Y109: =SUM(S109,S111,S110,S112,-AB109) -> 0 | AB109: =MIN(S109:S112) -> 0
A110: X-602 | S110: =SUM(L110,N110,P110,R110) -> 0 | U110: =SUM(K110,M110,O110) -> 0
A111: X-603 | S111: =SUM(L111,N111,P111,R111) -> 0 | U111: =SUM(K111,M111,O111) -> 0
A112: X-604 | S112: =SUM(L112,N112,P112,R112) -> 0 | U112: =SUM(K112,M112,O112) -> 0
A114: Y-601 | S114: =SUM(L114,N114,P114,R114) -> 0 | U114: =SUM(K114,M114,O114) -> 0 | Y114: =SUM(S114,S116,S115,S117,-AB114) -> 0 | AB114: =MIN(S114:S117) -> 0
A115: Y-602 | S115: =SUM(L115,N115,P115,R115) -> 0 | U115: =SUM(K115,M115,O115) -> 0
A116: Y-603 | S116: =SUM(L116,N116,P116,R116) -> 0 | U116: =SUM(K116,M116,O116) -> 0
A117: Y-604 | S117: =SUM(L117,N117,P117,R117) -> 0 | U117: =SUM(K117,M117,O117) -> 0
A119: Z-601 | S119: =SUM(L119,N119,P119,R119) -> 0 | U119: =SUM(K119,M119,O119) -> 0 | Y119: =SUM(S119,S121,S120,S122,-AB119) -> 0 | AB119: =MIN(S119:S122) -> 0
A120: Z-602 | S120: =SUM(L120,N120,P120,R120) -> 0 | U120: =SUM(K120,M120,O120) -> 0
A121: Z-603 | S121: =SUM(L121,N121,P121,R121) -> 0 | U121: =SUM(K121,M121,O121) -> 0
A122: Z-604 | S122: =SUM(L122,N122,P122,R122) -> 0 | U122: =SUM(K122,M122,O122) -> 0
A124: AA-601 | S124: =SUM(L124,N124,P124,R124) -> 0 | U124: =SUM(K124,M124,O124) -> 0 | Y124: =SUM(S124,S126,S125,S127,-AB124) -> 0 | AB124: =MIN(S124:S127) -> 0
A125: AA-602 | S125: =SUM(L125,N125,P125,R125) -> 0 | U125: =SUM(K125,M125,O125) -> 0
A126: AA-603 | S126: =SUM(L126,N126,P126,R126) -> 0 | U126: =SUM(K126,M126,O126) -> 0
A127: AA-604 | S127: =SUM(L127,N127,P127,R127) -> 0 | U127: =SUM(K127,M127,O127) -> 0
A129: BB-601 | S129: =SUM(L129,N129,P129,R129) -> 0 | U129: =SUM(K129,M129,O129) -> 0 | Y129: =SUM(S129,S131,S130,S132,-AB129) -> 0 | AB129: =MIN(S129:S132) -> 0
A130: BB-602 | S130: =SUM(L130,N130,P130,R130) -> 0 | U130: =SUM(K130,M130,O130) -> 0
A131: BB-603 | S131: =SUM(L131,N131,P131,R131) -> 0 | U131: =SUM(K131,M131,O131) -> 0
A132: BB-604 | S132: =SUM(L132,N132,P132,R132) -> 0 | U132: =SUM(K132,M132,O132) -> 0
A134: CC-601 | R134: =IF(Q134="1violation",-7*1,IF(Q134="2violations",-7*2,IF(Q134="3violations",-7*3,IF(Q134="","")))) ->  | S134: =SUM(L134,N134,P134,R134) -> 0 | U134: =SUM(K134,M134,O134) -> 0 | Y134: =SUM(S134,S136,S135,S137,-AB134) -> 0 | AB134: =MIN(S134:S137) -> 0
A135: CC-602 | S135: =SUM(L135,N135,P135,R135) -> 0 | U135: =SUM(K135,M135,O135) -> 0
A136: CC-603 | S136: =SUM(L136,N136,P136,R136) -> 0 | U136: =SUM(K136,M136,O136) -> 0
A137: CC-604 | S137: =SUM(L137,N137,P137,R137) -> 0 | U137: =SUM(K137,M137,O137) -> 0
A139: DD-601 | S139: =SUM(L139,N139,P139,R139) -> 0 | U139: =SUM(K139,M139,O139) -> 0 | Y139: =SUM(S139,S141,S140,S142,-AB139) -> 0 | AB139: =MIN(S139:S142) -> 0
A140: DD-602 | S140: =SUM(L140,N140,P140,R140) -> 0 | U140: =SUM(K140,M140,O140) -> 0
A141: DD-603 | S141: =SUM(L141,N141,P141,R141) -> 0 | U141: =SUM(K141,M141,O141) -> 0
A142: DD-604 | S142: =SUM(L142,N142,P142,R142) -> 0 | U142: =SUM(K142,M142,O142) -> 0
A144: EE-601 | S144: =SUM(L144,N144,P144,R144) -> 0 | U144: =SUM(K144,M144,O144) -> 0 | Y144: =SUM(S144,S146,S145,S147,-AB144) -> 0 | AB144: =MIN(S144:S147) -> 0
A145: EE-602 | S145: =SUM(L145,N145,P145,R145) -> 0 | U145: =SUM(K145,M145,O145) -> 0
A146: EE-603 | S146: =SUM(L146,N146,P146,R146) -> 0 | U146: =SUM(K146,M146,O146) -> 0
A147: EE-604 | S147: =SUM(L147,N147,P147,R147) -> 0 | U147: =SUM(K147,M147,O147) -> 0
A149: FF-601 | S149: =SUM(L149,N149,P149,R149) -> 0 | U149: =SUM(K149,M149,O149) -> 0 | Y149: =SUM(S149,S151,S150,S152,-AB149) -> 0 | AB149: =MIN(S149:S152) -> 0
A150: FF-602 | S150: =SUM(L150,N150,P150,R150) -> 0 | U150: =SUM(K150,M150,O150) -> 0
A151: FF-603 | S151: =SUM(L151,N151,P151,R151) -> 0 | U151: =SUM(K151,M151,O151) -> 0
A152: FF-604 | S152: =SUM(L152,N152,P152,R152) -> 0 | U152: =SUM(K152,M152,O152) -> 0

Sheet MusicalTheatreMR
A1: Musical Theatre | F1: Finals Medals Round Scores
A2: ID | B2: Column1 | C2: Rank | D2: Score | E2: LeaveBlank | F2: MR 1 Rank | G2: MR 1 Score | H2: MR2 Rank | I2: MR 2 Score | J2: MR3 Rank | K2: MR 3 Score | L2: Total MR Rank | M2: Total MR Score | N2: Column2
A3: =MusicalTheatre!A12 -> B-604 | B3: =VLOOKUP(Table71012131415[[#This Row],[ID]],MusicalTheatre!A:B,2, FALSE) -> (703) Kam Petsche | C3: =MusicalTheatre!U12 -> 3 | D3: =MusicalTheatre!S12 -> 75 | E3: =IF((Table71012131415[[#This Row],[Rank]]+Table71012131415[[#This Row],[Score]])>0,1,0) -> 1 | F3: 1 | G3: 24 | H3: 3 | I3: 25 | J3: 4 | K3: 23 | L3: =SUM(F3,H3,J3) -> 8 | M3: =SUM(G3,I3,K3) -> 72 | N3: 2nd
A4: =MusicalTheatre!A21 -> D-603 | B4: =VLOOKUP(Table71012131415[[#This Row],[ID]],MusicalTheatre!A:B,2, FALSE) -> (716) Mary Anderson | C4: =MusicalTheatre!U21 -> 5 | D4: =MusicalTheatre!S21 -> 74 | E4: =IF((Table71012131415[[#This Row],[Rank]]+Table71012131415[[#This Row],[Score]])>0,1,0) -> 1 | F4: 4 | G4: 22 | H4: 1 | I4: 25 | J4: 1 | K4: 25 | L4: =SUM(F4,H4,J4) -> 6 | M4: =SUM(G4,I4,K4) -> 72 | N4: 1st
A5: =MusicalTheatre!A9 -> B-601 | B5: =VLOOKUP(Table71012131415[[#This Row],[ID]],MusicalTheatre!A:B,2, FALSE) -> (700) Courtney Houston | C5: =MusicalTheatre!U9 -> 5 | D5: =MusicalTheatre!S9 -> 68 | E5: =IF((Table71012131415[[#This Row],[Rank]]+Table71012131415[[#This Row],[Score]])>0,1,0) -> 1 | F5: 6 | G5: 20 | H5: 6 | I5: 24 | J5: 5 | K5: 21 | L5: =SUM(F5,H5,J5) -> 17 | M5: =SUM(G5,I5,K5) -> 65
A6: =MusicalTheatre!A11 -> B-603 | B6: =VLOOKUP(Table71012131415[[#This Row],[ID]],MusicalTheatre!A:B,2, FALSE) -> (702) Jaren Henrie | C6: =MusicalTheatre!U11 -> 6 | D6: =MusicalTheatre!S11 -> 69 | E6: =IF((Table71012131415[[#This Row],[Rank]]+Table71012131415[[#This Row],[Score]])>0,1,0) -> 1 | F6: 3 | G6: 23 | H6: 4 | I6: 24 | J6: 3 | K6: 23 | L6: =SUM(F6,H6,J6) -> 10 | M6: =SUM(G6,I6,K6) -> 70
A7: =MusicalTheatre!A4 -> A-601 | B7: =VLOOKUP(Table71012131415[[#This Row],[ID]],MusicalTheatre!A:B,2, FALSE) -> (711) Mary C. | C7: =MusicalTheatre!U4 -> 7 | D7: =MusicalTheatre!S4 -> 70 | E7: =IF((Table71012131415[[#This Row],[Rank]]+Table71012131415[[#This Row],[Score]])>0,1,0) -> 1 | F7: 5 | G7: 22 | H7: 2 | I7: 25 | J7: 2 | K7: 25 | L7: =SUM(F7,H7,J7) -> 9 | M7: =SUM(G7,I7,K7) -> 72 | N7: 3rd
A8: =MusicalTheatre!A5 -> A-602 | B8: =VLOOKUP(Table71012131415[[#This Row],[ID]],MusicalTheatre!A:B,2, FALSE) -> (712) Marcus P. | C8: =MusicalTheatre!U5 -> 7 | D8: =MusicalTheatre!S5 -> 68 | E8: =IF((Table71012131415[[#This Row],[Rank]]+Table71012131415[[#This Row],[Score]])>0,1,0) -> 1 | F8: 2 | G8: 24 | H8: 5 | I8: 24 | J8: 6 | K8: 19 | L8: =SUM(F8,H8,J8) -> 13 | M8: =SUM(G8,I8,K8) -> 67
A9: =MusicalTheatre!A15 -> C-602 | B9: =VLOOKUP(Table71012131415[[#This Row],[ID]],MusicalTheatre!A:B,2, FALSE) -> (708) Jackie Leavitt | C9: =MusicalTheatre!U15 -> 9 | D9: =MusicalTheatre!S15 -> 67 | E9: =IF((Table71012131415[[#This Row],[Rank]]+Table71012131415[[#This Row],[Score]])>0,1,0) -> 1 | L9: =SUM(F9,H9,J9) -> 0 | M9: =SUM(G9,I9,K9) -> 0
A10: =MusicalTheatre!A25 -> E-602 | B10: =VLOOKUP(Table71012131415[[#This Row],[ID]],MusicalTheatre!A:B,2, FALSE) -> (705) Hazel Harris | C10: =MusicalTheatre!U25 -> 9 | D10: =MusicalTheatre!S25 -> 67 | E10: =IF((Table71012131415[[#This Row],[Rank]]+Table71012131415[[#This Row],[Score]])>0,1,0) -> 1 | L10: =SUM(F10,H10,J10) -> 0 | M10: =SUM(G10,I10,K10) -> 0
A11: =MusicalTheatre!A14 -> C-601 | B11: =VLOOKUP(Table71012131415[[#This Row],[ID]],MusicalTheatre!A:B,2, FALSE) -> (707) Brooklyn Clark | C11: =MusicalTheatre!U14 -> 10 | D11: =MusicalTheatre!S14 -> 65 | E11: =IF((Table71012131415[[#This Row],[Rank]]+Table71012131415[[#This Row],[Score]])>0,1,0) -> 1 | L11: =SUM(F11,H11,J11) -> 0 | M11: =SUM(G11,I11,K11) -> 0
A12: =MusicalTheatre!A17 -> C-604 | B12: =VLOOKUP(Table71012131415[[#This Row],[ID]],MusicalTheatre!A:B,2, FALSE) -> (710) Kassen Pace | C12: =MusicalTheatre!U17 -> 10 | D12: =MusicalTheatre!S17 -> 64 | E12: =IF((Table71012131415[[#This Row],[Rank]]+Table71012131415[[#This Row],[Score]])>0,1,0) -> 1 | L12: =SUM(F12,H12,J12) -> 0 | M12: =SUM(G12,I12,K12) -> 0
A13: =MusicalTheatre!A19 -> D-601 | B13: =VLOOKUP(Table71012131415[[#This Row],[ID]],MusicalTheatre!A:B,2, FALSE) -> (706) Melinda Grimstead | C13: =MusicalTheatre!U19 -> 10 | D13: =MusicalTheatre!S19 -> 61 | E13: =IF((Table71012131415[[#This Row],[Rank]]+Table71012131415[[#This Row],[Score]])>0,1,0) -> 1 | L13: =SUM(F13,H13,J13) -> 0 | M13: =SUM(G13,I13,K13) -> 0
A14: =MusicalTheatre!A24 -> E-601 | B14: =VLOOKUP(Table71012131415[[#This Row],[ID]],MusicalTheatre!A:B,2, FALSE) -> (704) Alex Osterhout | C14: =MusicalTheatre!U24 -> 10 | D14: =MusicalTheatre!S24 -> 58 | E14: =IF((Table71012131415[[#This Row],[Rank]]+Table71012131415[[#This Row],[Score]])>0,1,0) -> 1 | L14: =SUM(F14,H14,J14) -> 0 | M14: =SUM(G14,I14,K14) -> 0
A15: =MusicalTheatre!A6 -> A-603 | B15: =VLOOKUP(Table71012131415[[#This Row],[ID]],MusicalTheatre!A:B,2, FALSE) -> (713) Sarah B. | C15: =MusicalTheatre!U6 -> 11 | D15: =MusicalTheatre!S6 -> 62 | E15: =IF((Table71012131415[[#This Row],[Rank]]+Table71012131415[[#This Row],[Score]])>0,1,0) -> 1 | L15: =SUM(F15,H15,J15) -> 0 | M15: =SUM(G15,I15,K15) -> 0
A16: =MusicalTheatre!A10 -> B-602 | B16: =VLOOKUP(Table71012131415[[#This Row],[ID]],MusicalTheatre!A:B,2, FALSE) -> (701) Chynna Anderson | C16: =MusicalTheatre!U10 -> 12 | D16: =MusicalTheatre!S10 -> 66 | E16: =IF((Table71012131415[[#This Row],[Rank]]+Table71012131415[[#This Row],[Score]])>0,1,0) -> 1 | L16: =SUM(F16,H16,J16) -> 0 | M16: =SUM(G16,I16,K16) -> 0
A17: =MusicalTheatre!A39 -> H-601 | B17: =VLOOKUP(Table71012131415[[#This Row],[ID]],MusicalTheatre!A:B,2, FALSE) -> (715) Yudnely Avelar | C17: =MusicalTheatre!U39 -> 12 | D17: =MusicalTheatre!S39 -> 64 | E17: =IF((Table71012131415[[#This Row],[Rank]]+Table71012131415[[#This Row],[Score]])>0,1,0) -> 1 | L17: =SUM(F17,H17,J17) -> 0 | M17: =SUM(G17,I17,K17) -> 0
A18: =MusicalTheatre!A20 -> D-602 | B18: =VLOOKUP(Table71012131415[[#This Row],[ID]],MusicalTheatre!A:B,2, FALSE) -> (714) Eloisa Thornock | C18: =MusicalTheatre!U20 -> 12 | D18: =MusicalTheatre!S20 -> 59 | E18: =IF((Table71012131415[[#This Row],[Rank]]+Table71012131415[[#This Row],[Score]])>0,1,0) -> 1 | L18: =SUM(F18,H18,J18) -> 0 | M18: =SUM(G18,I18,K18) -> 0
A19: =MusicalTheatre!A16 -> C-603 | B19: =VLOOKUP(Table71012131415[[#This Row],[ID]],MusicalTheatre!A:B,2, FALSE) -> (709) C.J. Torgerson | C19: =MusicalTheatre!U16 -> 0 | D19: =MusicalTheatre!S16 -> 0 | E19: =IF((Table71012131415[[#This Row],[Rank]]+Table71012131415[[#This Row],[Score]])>0,1,0) -> 0 | L19: =SUM(F19,H19,J19) -> 0 | M19: =SUM(G19,I19,K19) -> 0
A20: =MusicalTheatre!A7 -> A-604 | B20: =VLOOKUP(Table71012131415[[#This Row],[ID]],MusicalTheatre!A:B,2, FALSE) -> 0 | C20: =MusicalTheatre!U7 -> 0 | D20: =MusicalTheatre!S7 -> 0 | E20: =IF((Table71012131415[[#This Row],[Rank]]+Table71012131415[[#This Row],[Score]])>0,1,0) -> 0 | L20: =SUM(F20,H20,J20) -> 0 | M20: =SUM(G20,I20,K20) -> 0
A21: =MusicalTheatre!A124 -> AA-601 | B21: =VLOOKUP(Table71012131415[[#This Row],[ID]],MusicalTheatre!A:B,2, FALSE) -> 0 | C21: =MusicalTheatre!U124 -> 0 | D21: =MusicalTheatre!S124 -> 0 | E21: =IF((Table71012131415[[#This Row],[Rank]]+Table71012131415[[#This Row],[Score]])>0,1,0) -> 0 | L21: =SUM(F21,H21,J21) -> 0 | M21: =SUM(G21,I21,K21) -> 0
A22: =MusicalTheatre!A125 -> AA-602 | B22: =VLOOKUP(Table71012131415[[#This Row],[ID]],MusicalTheatre!A:B,2, FALSE) -> 0 | C22: =MusicalTheatre!U125 -> 0 | D22: =MusicalTheatre!S125 -> 0 | E22: =IF((Table71012131415[[#This Row],[Rank]]+Table71012131415[[#This Row],[Score]])>0,1,0) -> 0 | L22: =SUM(F22,H22,J22) -> 0 | M22: =SUM(G22,I22,K22) -> 0
A23: =MusicalTheatre!A126 -> AA-603 | B23: =VLOOKUP(Table71012131415[[#This Row],[ID]],MusicalTheatre!A:B,2, FALSE) -> 0 | C23: =MusicalTheatre!U126 -> 0 | D23: =MusicalTheatre!S126 -> 0 | E23: =IF((Table71012131415[[#This Row],[Rank]]+Table71012131415[[#This Row],[Score]])>0,1,0) -> 0 | L23: =SUM(F23,H23,J23) -> 0 | M23: =SUM(G23,I23,K23) -> 0
A24: =MusicalTheatre!A127 -> AA-604 | B24: =VLOOKUP(Table71012131415[[#This Row],[ID]],MusicalTheatre!A:B,2, FALSE) -> 0 | C24: =MusicalTheatre!U127 -> 0 | D24: =MusicalTheatre!S127 -> 0 | E24: =IF((Table71012131415[[#This Row],[Rank]]+Table71012131415[[#This Row],[Score]])>0,1,0) -> 0 | L24: =SUM(F24,H24,J24) -> 0 | M24: =SUM(G24,I24,K24) -> 0
A25: =MusicalTheatre!A129 -> BB-601 | B25: =VLOOKUP(Table71012131415[[#This Row],[ID]],MusicalTheatre!A:B,2, FALSE) -> 0 | C25: =MusicalTheatre!U129 -> 0 | D25: =MusicalTheatre!S129 -> 0 | E25: =IF((Table71012131415[[#This Row],[Rank]]+Table71012131415[[#This Row],[Score]])>0,1,0) -> 0 | L25: =SUM(F25,H25,J25) -> 0 | M25: =SUM(G25,I25,K25) -> 0
A26: =MusicalTheatre!A130 -> BB-602 | B26: =VLOOKUP(Table71012131415[[#This Row],[ID]],MusicalTheatre!A:B,2, FALSE) -> 0 | C26: =MusicalTheatre!U130 -> 0 | D26: =MusicalTheatre!S130 -> 0 | E26: =IF((Table71012131415[[#This Row],[Rank]]+Table71012131415[[#This Row],[Score]])>0,1,0) -> 0 | L26: =SUM(F26,H26,J26) -> 0 | M26: =SUM(G26,I26,K26) -> 0
A27: =MusicalTheatre!A131 -> BB-603 | B27: =VLOOKUP(Table71012131415[[#This Row],[ID]],MusicalTheatre!A:B,2, FALSE) -> 0 | C27: =MusicalTheatre!U131 -> 0 | D27: =MusicalTheatre!S131 -> 0 | E27: =IF((Table71012131415[[#This Row],[Rank]]+Table71012131415[[#This Row],[Score]])>0,1,0) -> 0 | L27: =SUM(F27,H27,J27) -> 0 | M27: =SUM(G27,I27,K27) -> 0
A28: =MusicalTheatre!A132 -> BB-604 | B28: =VLOOKUP(Table71012131415[[#This Row],[ID]],MusicalTheatre!A:B,2, FALSE) -> 0 | C28: =MusicalTheatre!U132 -> 0 | D28: =MusicalTheatre!S132 -> 0 | E28: =IF((Table71012131415[[#This Row],[Rank]]+Table71012131415[[#This Row],[Score]])>0,1,0) -> 0 | L28: =SUM(F28,H28,J28) -> 0 | M28: =SUM(G28,I28,K28) -> 0
A29: =MusicalTheatre!A134 -> CC-601 | B29: =VLOOKUP(Table71012131415[[#This Row],[ID]],MusicalTheatre!A:B,2, FALSE) -> 0 | C29: =MusicalTheatre!U134 -> 0 | D29: =MusicalTheatre!S134 -> 0 | E29: =IF((Table71012131415[[#This Row],[Rank]]+Table71012131415[[#This Row],[Score]])>0,1,0) -> 0 | L29: =SUM(F29,H29,J29) -> 0 | M29: =SUM(G29,I29,K29) -> 0
A30: =MusicalTheatre!A135 -> CC-602 | B30: =VLOOKUP(Table71012131415[[#This Row],[ID]],MusicalTheatre!A:B,2, FALSE) -> 0 | C30: =MusicalTheatre!U135 -> 0 | D30: =MusicalTheatre!S135 -> 0 | E30: =IF((Table71012131415[[#This Row],[Rank]]+Table71012131415[[#This Row],[Score]])>0,1,0) -> 0 | L30: =SUM(F30,H30,J30) -> 0 | M30: =SUM(G30,I30,K30) -> 0
A31: =MusicalTheatre!A136 -> CC-603 | B31: =VLOOKUP(Table71012131415[[#This Row],[ID]],MusicalTheatre!A:B,2, FALSE) -> 0 | C31: =MusicalTheatre!U136 -> 0 | D31: =MusicalTheatre!S136 -> 0 | E31: =IF((Table71012131415[[#This Row],[Rank]]+Table71012131415[[#This Row],[Score]])>0,1,0) -> 0 | L31: =SUM(F31,H31,J31) -> 0 | M31: =SUM(G31,I31,K31) -> 0
A32: =MusicalTheatre!A137 -> CC-604 | B32: =VLOOKUP(Table71012131415[[#This Row],[ID]],MusicalTheatre!A:B,2, FALSE) -> 0 | C32: =MusicalTheatre!U137 -> 0 | D32: =MusicalTheatre!S137 -> 0 | E32: =IF((Table71012131415[[#This Row],[Rank]]+Table71012131415[[#This Row],[Score]])>0,1,0) -> 0 | L32: =SUM(F32,H32,J32) -> 0 | M32: =SUM(G32,I32,K32) -> 0
A33: =MusicalTheatre!A22 -> D-604 | B33: =VLOOKUP(Table71012131415[[#This Row],[ID]],MusicalTheatre!A:B,2, FALSE) -> 0 | C33: =MusicalTheatre!U22 -> 0 | D33: =MusicalTheatre!S22 -> 0 | E33: =IF((Table71012131415[[#This Row],[Rank]]+Table71012131415[[#This Row],[Score]])>0,1,0) -> 0 | L33: =SUM(F33,H33,J33) -> 0 | M33: =SUM(G33,I33,K33) -> 0
A34: =MusicalTheatre!A139 -> DD-601 | B34: =VLOOKUP(Table71012131415[[#This Row],[ID]],MusicalTheatre!A:B,2, FALSE) -> 0 | C34: =MusicalTheatre!U139 -> 0 | D34: =MusicalTheatre!S139 -> 0 | E34: =IF((Table71012131415[[#This Row],[Rank]]+Table71012131415[[#This Row],[Score]])>0,1,0) -> 0 | L34: =SUM(F34,H34,J34) -> 0 | M34: =SUM(G34,I34,K34) -> 0
A35: =MusicalTheatre!A140 -> DD-602 | B35: =VLOOKUP(Table71012131415[[#This Row],[ID]],MusicalTheatre!A:B,2, FALSE) -> 0 | C35: =MusicalTheatre!U140 -> 0 | D35: =MusicalTheatre!S140 -> 0 | E35: =IF((Table71012131415[[#This Row],[Rank]]+Table71012131415[[#This Row],[Score]])>0,1,0) -> 0 | L35: =SUM(F35,H35,J35) -> 0 | M35: =SUM(G35,I35,K35) -> 0
A36: =MusicalTheatre!A141 -> DD-603 | B36: =VLOOKUP(Table71012131415[[#This Row],[ID]],MusicalTheatre!A:B,2, FALSE) -> 0 | C36: =MusicalTheatre!U141 -> 0 | D36: =MusicalTheatre!S141 -> 0 | E36: =IF((Table71012131415[[#This Row],[Rank]]+Table71012131415[[#This Row],[Score]])>0,1,0) -> 0 | L36: =SUM(F36,H36,J36) -> 0 | M36: =SUM(G36,I36,K36) -> 0
A37: =MusicalTheatre!A142 -> DD-604 | B37: =VLOOKUP(Table71012131415[[#This Row],[ID]],MusicalTheatre!A:B,2, FALSE) -> 0 | C37: =MusicalTheatre!U142 -> 0 | D37: =MusicalTheatre!S142 -> 0 | E37: =IF((Table71012131415[[#This Row],[Rank]]+Table71012131415[[#This Row],[Score]])>0,1,0) -> 0 | L37: =SUM(F37,H37,J37) -> 0 | M37: =SUM(G37,I37,K37) -> 0
A38: =MusicalTheatre!A26 -> E-603 | B38: =VLOOKUP(Table71012131415[[#This Row],[ID]],MusicalTheatre!A:B,2, FALSE) -> 0 | C38: =MusicalTheatre!U26 -> 0 | D38: =MusicalTheatre!S26 -> 0 | E38: =IF((Table71012131415[[#This Row],[Rank]]+Table71012131415[[#This Row],[Score]])>0,1,0) -> 0 | L38: =SUM(F38,H38,J38) -> 0 | M38: =SUM(G38,I38,K38) -> 0
A39: =MusicalTheatre!A27 -> E-604 | B39: =VLOOKUP(Table71012131415[[#This Row],[ID]],MusicalTheatre!A:B,2, FALSE) -> 0 | C39: =MusicalTheatre!U27 -> 0 | D39: =MusicalTheatre!S27 -> 0 | E39: =IF((Table71012131415[[#This Row],[Rank]]+Table71012131415[[#This Row],[Score]])>0,1,0) -> 0 | L39: =SUM(F39,H39,J39) -> 0 | M39: =SUM(G39,I39,K39) -> 0
A40: =MusicalTheatre!A144 -> EE-601 | B40: =VLOOKUP(Table71012131415[[#This Row],[ID]],MusicalTheatre!A:B,2, FALSE) -> 0 | C40: =MusicalTheatre!U144 -> 0 | D40: =MusicalTheatre!S144 -> 0 | E40: =IF((Table71012131415[[#This Row],[Rank]]+Table71012131415[[#This Row],[Score]])>0,1,0) -> 0 | L40: =SUM(F40,H40,J40) -> 0 | M40: =SUM(G40,I40,K40) -> 0
A41: =MusicalTheatre!A145 -> EE-602 | B41: =VLOOKUP(Table71012131415[[#This Row],[ID]],MusicalTheatre!A:B,2, FALSE) -> 0 | C41: =MusicalTheatre!U145 -> 0 | D41: =MusicalTheatre!S145 -> 0 | E41: =IF((Table71012131415[[#This Row],[Rank]]+Table71012131415[[#This Row],[Score]])>0,1,0) -> 0 | L41: =SUM(F41,H41,J41) -> 0 | M41: =SUM(G41,I41,K41) -> 0
A42: =MusicalTheatre!A146 -> EE-603 | B42: =VLOOKUP(Table71012131415[[#This Row],[ID]],MusicalTheatre!A:B,2, FALSE) -> 0 | C42: =MusicalTheatre!U146 -> 0 | D42: =MusicalTheatre!S146 -> 0 | E42: =IF((Table71012131415[[#This Row],[Rank]]+Table71012131415[[#This Row],[Score]])>0,1,0) -> 0 | L42: =SUM(F42,H42,J42) -> 0 | M42: =SUM(G42,I42,K42) -> 0
A43: =MusicalTheatre!A147 -> EE-604 | B43: =VLOOKUP(Table71012131415[[#This Row],[ID]],MusicalTheatre!A:B,2, FALSE) -> 0 | C43: =MusicalTheatre!U147 -> 0 | D43: =MusicalTheatre!S147 -> 0 | E43: =IF((Table71012131415[[#This Row],[Rank]]+Table71012131415[[#This Row],[Score]])>0,1,0) -> 0 | L43: =SUM(F43,H43,J43) -> 0 | M43: =SUM(G43,I43,K43) -> 0
A44: =MusicalTheatre!A29 -> F-601 | B44: =VLOOKUP(Table71012131415[[#This Row],[ID]],MusicalTheatre!A:B,2, FALSE) -> 0 | C44: =MusicalTheatre!U29 -> 0 | D44: =MusicalTheatre!S29 -> 0 | E44: =IF((Table71012131415[[#This Row],[Rank]]+Table71012131415[[#This Row],[Score]])>0,1,0) -> 0 | L44: =SUM(F44,H44,J44) -> 0 | M44: =SUM(G44,I44,K44) -> 0
A45: =MusicalTheatre!A30 -> F-602 | B45: =VLOOKUP(Table71012131415[[#This Row],[ID]],MusicalTheatre!A:B,2, FALSE) -> 0 | C45: =MusicalTheatre!U30 -> 0 | D45: =MusicalTheatre!S30 -> 0 | E45: =IF((Table71012131415[[#This Row],[Rank]]+Table71012131415[[#This Row],[Score]])>0,1,0) -> 0 | L45: =SUM(F45,H45,J45) -> 0 | M45: =SUM(G45,I45,K45) -> 0
A46: =MusicalTheatre!A31 -> F-603 | B46: =VLOOKUP(Table71012131415[[#This Row],[ID]],MusicalTheatre!A:B,2, FALSE) -> 0 | C46: =MusicalTheatre!U31 -> 0 | D46: =MusicalTheatre!S31 -> 0 | E46: =IF((Table71012131415[[#This Row],[Rank]]+Table71012131415[[#This Row],[Score]])>0,1,0) -> 0 | L46: =SUM(F46,H46,J46) -> 0 | M46: =SUM(G46,I46,K46) -> 0
A47: =MusicalTheatre!A32 -> F-604 | B47: =VLOOKUP(Table71012131415[[#This Row],[ID]],MusicalTheatre!A:B,2, FALSE) -> 0 | C47: =MusicalTheatre!U32 -> 0 | D47: =MusicalTheatre!S32 -> 0 | E47: =IF((Table71012131415[[#This Row],[Rank]]+Table71012131415[[#This Row],[Score]])>0,1,0) -> 0 | L47: =SUM(F47,H47,J47) -> 0 | M47: =SUM(G47,I47,K47) -> 0
A48: =MusicalTheatre!A149 -> FF-601 | B48: =VLOOKUP(Table71012131415[[#This Row],[ID]],MusicalTheatre!A:B,2, FALSE) -> 0 | C48: =MusicalTheatre!U149 -> 0 | D48: =MusicalTheatre!S149 -> 0 | E48: =IF((Table71012131415[[#This Row],[Rank]]+Table71012131415[[#This Row],[Score]])>0,1,0) -> 0 | L48: =SUM(F48,H48,J48) -> 0 | M48: =SUM(G48,I48,K48) -> 0
A49: =MusicalTheatre!A150 -> FF-602 | B49: =VLOOKUP(Table71012131415[[#This Row],[ID]],MusicalTheatre!A:B,2, FALSE) -> 0 | C49: =MusicalTheatre!U150 -> 0 | D49: =MusicalTheatre!S150 -> 0 | E49: =IF((Table71012131415[[#This Row],[Rank]]+Table71012131415[[#This Row],[Score]])>0,1,0) -> 0 | L49: =SUM(F49,H49,J49) -> 0 | M49: =SUM(G49,I49,K49) -> 0
A50: =MusicalTheatre!A151 -> FF-603 | B50: =VLOOKUP(Table71012131415[[#This Row],[ID]],MusicalTheatre!A:B,2, FALSE) -> 0 | C50: =MusicalTheatre!U151 -> 0 | D50: =MusicalTheatre!S151 -> 0 | E50: =IF((Table71012131415[[#This Row],[Rank]]+Table71012131415[[#This Row],[Score]])>0,1,0) -> 0 | L50: =SUM(F50,H50,J50) -> 0 | M50: =SUM(G50,I50,K50) -> 0
A51: =MusicalTheatre!A152 -> FF-604 | B51: =VLOOKUP(Table71012131415[[#This Row],[ID]],MusicalTheatre!A:B,2, FALSE) -> 0 | C51: =MusicalTheatre!U152 -> 0 | D51: =MusicalTheatre!S152 -> 0 | E51: =IF((Table71012131415[[#This Row],[Rank]]+Table71012131415[[#This Row],[Score]])>0,1,0) -> 0 | L51: =SUM(F51,H51,J51) -> 0 | M51: =SUM(G51,I51,K51) -> 0
A52: =MusicalTheatre!A34 -> G-601 | B52: =VLOOKUP(Table71012131415[[#This Row],[ID]],MusicalTheatre!A:B,2, FALSE) -> 0 | C52: =MusicalTheatre!U34 -> 0 | D52: =MusicalTheatre!S34 -> 0 | E52: =IF((Table71012131415[[#This Row],[Rank]]+Table71012131415[[#This Row],[Score]])>0,1,0) -> 0 | L52: =SUM(F52,H52,J52) -> 0 | M52: =SUM(G52,I52,K52) -> 0
A53: =MusicalTheatre!A35 -> G-602 | B53: =VLOOKUP(Table71012131415[[#This Row],[ID]],MusicalTheatre!A:B,2, FALSE) -> 0 | C53: =MusicalTheatre!U35 -> 0 | D53: =MusicalTheatre!S35 -> 0 | E53: =IF((Table71012131415[[#This Row],[Rank]]+Table71012131415[[#This Row],[Score]])>0,1,0) -> 0 | L53: =SUM(F53,H53,J53) -> 0 | M53: =SUM(G53,I53,K53) -> 0
A54: =MusicalTheatre!A36 -> G-603 | B54: =VLOOKUP(Table71012131415[[#This Row],[ID]],MusicalTheatre!A:B,2, FALSE) -> 0 | C54: =MusicalTheatre!U36 -> 0 | D54: =MusicalTheatre!S36 -> 0 | E54: =IF((Table71012131415[[#This Row],[Rank]]+Table71012131415[[#This Row],[Score]])>0,1,0) -> 0 | L54: =SUM(F54,H54,J54) -> 0 | M54: =SUM(G54,I54,K54) -> 0
A55: =MusicalTheatre!A37 -> G-604 | B55: =VLOOKUP(Table71012131415[[#This Row],[ID]],MusicalTheatre!A:B,2, FALSE) -> 0 | C55: =MusicalTheatre!U37 -> 0 | D55: =MusicalTheatre!S37 -> 0 | E55: =IF((Table71012131415[[#This Row],[Rank]]+Table71012131415[[#This Row],[Score]])>0,1,0) -> 0 | L55: =SUM(F55,H55,J55) -> 0 | M55: =SUM(G55,I55,K55) -> 0
A56: =MusicalTheatre!A40 -> H-602 | B56: =VLOOKUP(Table71012131415[[#This Row],[ID]],MusicalTheatre!A:B,2, FALSE) -> 0 | C56: =MusicalTheatre!U40 -> 0 | D56: =MusicalTheatre!S40 -> 0 | E56: =IF((Table71012131415[[#This Row],[Rank]]+Table71012131415[[#This Row],[Score]])>0,1,0) -> 0 | L56: =SUM(F56,H56,J56) -> 0 | M56: =SUM(G56,I56,K56) -> 0
A57: =MusicalTheatre!A41 -> H-603 | B57: =VLOOKUP(Table71012131415[[#This Row],[ID]],MusicalTheatre!A:B,2, FALSE) -> 0 | C57: =MusicalTheatre!U41 -> 0 | D57: =MusicalTheatre!S41 -> 0 | E57: =IF((Table71012131415[[#This Row],[Rank]]+Table71012131415[[#This Row],[Score]])>0,1,0) -> 0 | L57: =SUM(F57,H57,J57) -> 0 | M57: =SUM(G57,I57,K57) -> 0
A58: =MusicalTheatre!A42 -> H-604 | B58: =VLOOKUP(Table71012131415[[#This Row],[ID]],MusicalTheatre!A:B,2, FALSE) -> 0 | C58: =MusicalTheatre!U42 -> 0 | D58: =MusicalTheatre!S42 -> 0 | E58: =IF((Table71012131415[[#This Row],[Rank]]+Table71012131415[[#This Row],[Score]])>0,1,0) -> 0 | L58: =SUM(F58,H58,J58) -> 0 | M58: =SUM(G58,I58,K58) -> 0
A59: =MusicalTheatre!A44 -> J-601 | B59: =VLOOKUP(Table71012131415[[#This Row],[ID]],MusicalTheatre!A:B,2, FALSE) -> 0 | C59: =MusicalTheatre!U44 -> 0 | D59: =MusicalTheatre!S44 -> 0 | E59: =IF((Table71012131415[[#This Row],[Rank]]+Table71012131415[[#This Row],[Score]])>0,1,0) -> 0 | L59: =SUM(F59,H59,J59) -> 0 | M59: =SUM(G59,I59,K59) -> 0
A60: =MusicalTheatre!A45 -> J-602 | B60: =VLOOKUP(Table71012131415[[#This Row],[ID]],MusicalTheatre!A:B,2, FALSE) -> 0 | C60: =MusicalTheatre!U45 -> 0 | D60: =MusicalTheatre!S45 -> 0 | E60: =IF((Table71012131415[[#This Row],[Rank]]+Table71012131415[[#This Row],[Score]])>0,1,0) -> 0 | L60: =SUM(F60,H60,J60) -> 0 | M60: =SUM(G60,I60,K60) -> 0
A61: =MusicalTheatre!A46 -> J-603 | B61: =VLOOKUP(Table71012131415[[#This Row],[ID]],MusicalTheatre!A:B,2, FALSE) -> 0 | C61: =MusicalTheatre!U46 -> 0 | D61: =MusicalTheatre!S46 -> 0 | E61: =IF((Table71012131415[[#This Row],[Rank]]+Table71012131415[[#This Row],[Score]])>0,1,0) -> 0 | L61: =SUM(F61,H61,J61) -> 0 | M61: =SUM(G61,I61,K61) -> 0
A62: =MusicalTheatre!A47 -> J-604 | B62: =VLOOKUP(Table71012131415[[#This Row],[ID]],MusicalTheatre!A:B,2, FALSE) -> 0 | C62: =MusicalTheatre!U47 -> 0 | D62: =MusicalTheatre!S47 -> 0 | E62: =IF((Table71012131415[[#This Row],[Rank]]+Table71012131415[[#This Row],[Score]])>0,1,0) -> 0 | L62: =SUM(F62,H62,J62) -> 0 | M62: =SUM(G62,I62,K62) -> 0
A63: =MusicalTheatre!A49 -> K-601 | B63: =VLOOKUP(Table71012131415[[#This Row],[ID]],MusicalTheatre!A:B,2, FALSE) -> 0 | C63: =MusicalTheatre!U49 -> 0 | D63: =MusicalTheatre!S49 -> 0 | E63: =IF((Table71012131415[[#This Row],[Rank]]+Table71012131415[[#This Row],[Score]])>0,1,0) -> 0 | L63: =SUM(F63,H63,J63) -> 0 | M63: =SUM(G63,I63,K63) -> 0
A64: =MusicalTheatre!A50 -> K-602 | B64: =VLOOKUP(Table71012131415[[#This Row],[ID]],MusicalTheatre!A:B,2, FALSE) -> 0 | C64: =MusicalTheatre!U50 -> 0 | D64: =MusicalTheatre!S50 -> 0 | E64: =IF((Table71012131415[[#This Row],[Rank]]+Table71012131415[[#This Row],[Score]])>0,1,0) -> 0 | L64: =SUM(F64,H64,J64) -> 0 | M64: =SUM(G64,I64,K64) -> 0
A65: =MusicalTheatre!A51 -> K-603 | B65: =VLOOKUP(Table71012131415[[#This Row],[ID]],MusicalTheatre!A:B,2, FALSE) -> 0 | C65: =MusicalTheatre!U51 -> 0 | D65: =MusicalTheatre!S51 -> 0 | E65: =IF((Table71012131415[[#This Row],[Rank]]+Table71012131415[[#This Row],[Score]])>0,1,0) -> 0 | L65: =SUM(F65,H65,J65) -> 0 | M65: =SUM(G65,I65,K65) -> 0
A66: =MusicalTheatre!A52 -> K-604 | B66: =VLOOKUP(Table71012131415[[#This Row],[ID]],MusicalTheatre!A:B,2, FALSE) -> 0 | C66: =MusicalTheatre!U52 -> 0 | D66: =MusicalTheatre!S52 -> 0 | E66: =IF((Table71012131415[[#This Row],[Rank]]+Table71012131415[[#This Row],[Score]])>0,1,0) -> 0 | L66: =SUM(F66,H66,J66) -> 0 | M66: =SUM(G66,I66,K66) -> 0
A67: =MusicalTheatre!A54 -> L-601 | B67: =VLOOKUP(Table71012131415[[#This Row],[ID]],MusicalTheatre!A:B,2, FALSE) -> 0 | C67: =MusicalTheatre!U54 -> 0 | D67: =MusicalTheatre!S54 -> 0 | E67: =IF((Table71012131415[[#This Row],[Rank]]+Table71012131415[[#This Row],[Score]])>0,1,0) -> 0 | L67: =SUM(F67,H67,J67) -> 0 | M67: =SUM(G67,I67,K67) -> 0
A68: =MusicalTheatre!A55 -> L-602 | B68: =VLOOKUP(Table71012131415[[#This Row],[ID]],MusicalTheatre!A:B,2, FALSE) -> 0 | C68: =MusicalTheatre!U55 -> 0 | D68: =MusicalTheatre!S55 -> 0 | E68: =IF((Table71012131415[[#This Row],[Rank]]+Table71012131415[[#This Row],[Score]])>0,1,0) -> 0 | L68: =SUM(F68,H68,J68) -> 0 | M68: =SUM(G68,I68,K68) -> 0
A69: =MusicalTheatre!A56 -> L-603 | B69: =VLOOKUP(Table71012131415[[#This Row],[ID]],MusicalTheatre!A:B,2, FALSE) -> 0 | C69: =MusicalTheatre!U56 -> 0 | D69: =MusicalTheatre!S56 -> 0 | E69: =IF((Table71012131415[[#This Row],[Rank]]+Table71012131415[[#This Row],[Score]])>0,1,0) -> 0 | L69: =SUM(F69,H69,J69) -> 0 | M69: =SUM(G69,I69,K69) -> 0
A70: =MusicalTheatre!A57 -> L-604 | B70: =VLOOKUP(Table71012131415[[#This Row],[ID]],MusicalTheatre!A:B,2, FALSE) -> 0 | C70: =MusicalTheatre!U57 -> 0 | D70: =MusicalTheatre!S57 -> 0 | E70: =IF((Table71012131415[[#This Row],[Rank]]+Table71012131415[[#This Row],[Score]])>0,1,0) -> 0 | L70: =SUM(F70,H70,J70) -> 0 | M70: =SUM(G70,I70,K70) -> 0
A71: =MusicalTheatre!A59 -> M-601 | B71: =VLOOKUP(Table71012131415[[#This Row],[ID]],MusicalTheatre!A:B,2, FALSE) -> 0 | C71: =MusicalTheatre!U59 -> 0 | D71: =MusicalTheatre!S59 -> 0 | E71: =IF((Table71012131415[[#This Row],[Rank]]+Table71012131415[[#This Row],[Score]])>0,1,0) -> 0 | L71: =SUM(F71,H71,J71) -> 0 | M71: =SUM(G71,I71,K71) -> 0
A72: =MusicalTheatre!A60 -> M-602 | B72: =VLOOKUP(Table71012131415[[#This Row],[ID]],MusicalTheatre!A:B,2, FALSE) -> 0 | C72: =MusicalTheatre!U60 -> 0 | D72: =MusicalTheatre!S60 -> 0 | E72: =IF((Table71012131415[[#This Row],[Rank]]+Table71012131415[[#This Row],[Score]])>0,1,0) -> 0 | L72: =SUM(F72,H72,J72) -> 0 | M72: =SUM(G72,I72,K72) -> 0
A73: =MusicalTheatre!A61 -> M-603 | B73: =VLOOKUP(Table71012131415[[#This Row],[ID]],MusicalTheatre!A:B,2, FALSE) -> 0 | C73: =MusicalTheatre!U61 -> 0 | D73: =MusicalTheatre!S61 -> 0 | E73: =IF((Table71012131415[[#This Row],[Rank]]+Table71012131415[[#This Row],[Score]])>0,1,0) -> 0 | L73: =SUM(F73,H73,J73) -> 0 | M73: =SUM(G73,I73,K73) -> 0
A74: =MusicalTheatre!A62 -> M-604 | B74: =VLOOKUP(Table71012131415[[#This Row],[ID]],MusicalTheatre!A:B,2, FALSE) -> 0 | C74: =MusicalTheatre!U62 -> 0 | D74: =MusicalTheatre!S62 -> 0 | E74: =IF((Table71012131415[[#This Row],[Rank]]+Table71012131415[[#This Row],[Score]])>0,1,0) -> 0 | L74: =SUM(F74,H74,J74) -> 0 | M74: =SUM(G74,I74,K74) -> 0
A75: =MusicalTheatre!A64 -> N-601 | B75: =VLOOKUP(Table71012131415[[#This Row],[ID]],MusicalTheatre!A:B,2, FALSE) -> 0 | C75: =MusicalTheatre!U64 -> 0 | D75: =MusicalTheatre!S64 -> 0 | E75: =IF((Table71012131415[[#This Row],[Rank]]+Table71012131415[[#This Row],[Score]])>0,1,0) -> 0 | L75: =SUM(F75,H75,J75) -> 0 | M75: =SUM(G75,I75,K75) -> 0
A76: =MusicalTheatre!A65 -> N-602 | B76: =VLOOKUP(Table71012131415[[#This Row],[ID]],MusicalTheatre!A:B,2, FALSE) -> 0 | C76: =MusicalTheatre!U65 -> 0 | D76: =MusicalTheatre!S65 -> 0 | E76: =IF((Table71012131415[[#This Row],[Rank]]+Table71012131415[[#This Row],[Score]])>0,1,0) -> 0 | L76: =SUM(F76,H76,J76) -> 0 | M76: =SUM(G76,I76,K76) -> 0
A77: =MusicalTheatre!A66 -> N-603 | B77: =VLOOKUP(Table71012131415[[#This Row],[ID]],MusicalTheatre!A:B,2, FALSE) -> 0 | C77: =MusicalTheatre!U66 -> 0 | D77: =MusicalTheatre!S66 -> 0 | E77: =IF((Table71012131415[[#This Row],[Rank]]+Table71012131415[[#This Row],[Score]])>0,1,0) -> 0 | L77: =SUM(F77,H77,J77) -> 0 | M77: =SUM(G77,I77,K77) -> 0
A78: =MusicalTheatre!A67 -> N-604 | B78: =VLOOKUP(Table71012131415[[#This Row],[ID]],MusicalTheatre!A:B,2, FALSE) -> 0 | C78: =MusicalTheatre!U67 -> 0 | D78: =MusicalTheatre!S67 -> 0 | E78: =IF((Table71012131415[[#This Row],[Rank]]+Table71012131415[[#This Row],[Score]])>0,1,0) -> 0 | L78: =SUM(F78,H78,J78) -> 0 | M78: =SUM(G78,I78,K78) -> 0
A79: =MusicalTheatre!A69 -> P-601 | B79: =VLOOKUP(Table71012131415[[#This Row],[ID]],MusicalTheatre!A:B,2, FALSE) -> 0 | C79: =MusicalTheatre!U69 -> 0 | D79: =MusicalTheatre!S69 -> 0 | E79: =IF((Table71012131415[[#This Row],[Rank]]+Table71012131415[[#This Row],[Score]])>0,1,0) -> 0 | L79: =SUM(F79,H79,J79) -> 0 | M79: =SUM(G79,I79,K79) -> 0
A80: =MusicalTheatre!A70 -> P-602 | B80: =VLOOKUP(Table71012131415[[#This Row],[ID]],MusicalTheatre!A:B,2, FALSE) -> 0 | C80: =MusicalTheatre!U70 -> 0 | D80: =MusicalTheatre!S70 -> 0 | E80: =IF((Table71012131415[[#This Row],[Rank]]+Table71012131415[[#This Row],[Score]])>0,1,0) -> 0 | L80: =SUM(F80,H80,J80) -> 0 | M80: =SUM(G80,I80,K80) -> 0
A81: =MusicalTheatre!A71 -> P-603 | B81: =VLOOKUP(Table71012131415[[#This Row],[ID]],MusicalTheatre!A:B,2, FALSE) -> 0 | C81: =MusicalTheatre!U71 -> 0 | D81: =MusicalTheatre!S71 -> 0 | E81: =IF((Table71012131415[[#This Row],[Rank]]+Table71012131415[[#This Row],[Score]])>0,1,0) -> 0 | L81: =SUM(F81,H81,J81) -> 0 | M81: =SUM(G81,I81,K81) -> 0
A82: =MusicalTheatre!A72 -> P-604 | B82: =VLOOKUP(Table71012131415[[#This Row],[ID]],MusicalTheatre!A:B,2, FALSE) -> 0 | C82: =MusicalTheatre!U72 -> 0 | D82: =MusicalTheatre!S72 -> 0 | E82: =IF((Table71012131415[[#This Row],[Rank]]+Table71012131415[[#This Row],[Score]])>0,1,0) -> 0 | L82: =SUM(F82,H82,J82) -> 0 | M82: =SUM(G82,I82,K82) -> 0
A83: =MusicalTheatre!A74 -> Q-601 | B83: =VLOOKUP(Table71012131415[[#This Row],[ID]],MusicalTheatre!A:B,2, FALSE) -> 0 | C83: =MusicalTheatre!U74 -> 0 | D83: =MusicalTheatre!S74 -> 0 | E83: =IF((Table71012131415[[#This Row],[Rank]]+Table71012131415[[#This Row],[Score]])>0,1,0) -> 0 | L83: =SUM(F83,H83,J83) -> 0 | M83: =SUM(G83,I83,K83) -> 0
A84: =MusicalTheatre!A75 -> Q-602 | B84: =VLOOKUP(Table71012131415[[#This Row],[ID]],MusicalTheatre!A:B,2, FALSE) -> 0 | C84: =MusicalTheatre!U75 -> 0 | D84: =MusicalTheatre!S75 -> 0 | E84: =IF((Table71012131415[[#This Row],[Rank]]+Table71012131415[[#This Row],[Score]])>0,1,0) -> 0 | L84: =SUM(F84,H84,J84) -> 0 | M84: =SUM(G84,I84,K84) -> 0
A85: =MusicalTheatre!A76 -> Q-603 | B85: =VLOOKUP(Table71012131415[[#This Row],[ID]],MusicalTheatre!A:B,2, FALSE) -> 0 | C85: =MusicalTheatre!U76 -> 0 | D85: =MusicalTheatre!S76 -> 0 | E85: =IF((Table71012131415[[#This Row],[Rank]]+Table71012131415[[#This Row],[Score]])>0,1,0) -> 0 | L85: =SUM(F85,H85,J85) -> 0 | M85: =SUM(G85,I85,K85) -> 0
A86: =MusicalTheatre!A77 -> Q-604 | B86: =VLOOKUP(Table71012131415[[#This Row],[ID]],MusicalTheatre!A:B,2, FALSE) -> 0 | C86: =MusicalTheatre!U77 -> 0 | D86: =MusicalTheatre!S77 -> 0 | E86: =IF((Table71012131415[[#This Row],[Rank]]+Table71012131415[[#This Row],[Score]])>0,1,0) -> 0 | L86: =SUM(F86,H86,J86) -> 0 | M86: =SUM(G86,I86,K86) -> 0
